Workbook

Sheet readme

Sheet lgpl

Sheet data_lookup (hidden)
A1: sheet_name | B1: num_dps | C1: num_factors | D1: rho_base | E1: rho_1 | F1: rho_2 | G1: rho_3 | H1: rho_4 | I1: rho_5 | J1: rho_6 | K1: rho_7 | L1: rho_8 | M1: rho_9 | N1: rho_10 | O1: ml-2_base | P1: ml-2_1 | Q1: ml-2_2 | R1: ml-2_3 | S1: ml-2_4 | T1: ml-2_5 | U1: ml-2_6 | V1: ml-2_7 | W1: ml-2_8 | X1: ml-2_9 | Y1: ml-2_10
A2: OLH for up to 7 factors | B2: 17 | C2: 7
A3: NOLH for up to 11 factors | B3: 33 | C3: 11 | D3: 0.02339572193 | E3: 0.01002673797 | F3: 0.006461675579 | G3: 0.005013368984 | H3: 0.003877005348 | I3: 0.00311942959 | J3: 0.002482811306 | K3: 0.002256016043 | L3: 0.002005347594 | M3: 0.001804812834 | N3: 0.001701507049 | O3: 0.7318222368 | P3: 0.4133026515 | Q3: 0.3032833915 | R3: 0.2557904089 | S3: 0.2253181472 | T3: 0.2090104289 | U3: 0.2013934274 | V3: 0.1843377296 | W3: 0.1737594404 | X3: 0.167747957 | Y3: 0.1601073208
A4: NOLH for up to 16 factors | B4: 65 | C4: 16 | D4: 0.02194055944 | E4: 0.006905594406 | F4: 0.004166666667 | G4: 0.003212412587 | H4: 0.002622377622 | I4: 0.002141608392 | J4: 0.001873126873 | K4: 0.001638986014 | L4: 0.001447163947 | M4: 0.001363636364 | N4: 0.001271455817 | O4: 4.464561418 | P4: 2.372997491 | Q4: 1.69362294 | R4: 1.342746333 | S4: 1.136674511 | T4: 1.011671571 | U4: 0.9255786285 | V4: 0.8519974077 | W4: 0.7918210892 | X4: 0.7502826584 | Y4: 0.7122465002
A5: NOLH for up to 22 factors | B5: 129 | C5: 22 | D5: 0.007401610018 | E5: 0.003343023256 | F5: 0.002347942755 | G5: 0.001914691413 | H5: 0.00175313059 | I5: 0.001555977937 | J5: 0.001351265014 | K5: 0.001235465116 | L5: 0.001096948917 | M5: 0.001054338104 | N5: 0.0009554399089 | O5: 37.77705509 | P5: 19.7290317 | Q5: 13.7925027 | R5: 10.86981346 | S5: 8.99921349 | T5: 7.854689097 | U5: 6.945802611 | V5: 6.247008763 | W5: 5.662316291 | X5: 5.242157613 | Y5: 4.952569593
A6: NOLH for up to 29 factors | B6: 257 | C6: 29 | D6: 0.003861358701 | E6: 0.001941283594 | F6: 0.001642950864 | G6: 0.001346032033 | H6: 0.001166749615 | I6: 0.0009692278979 | J6: 0.0009693288907 | K6: 0.0009232761741 | L6: 0.001030575413 | M6: 0.0008517328749 | N6: 0.0007897269684 | O6: 482.913066 | P6: 251.4645659 | Q6: 180.4775435 | R6: 138.6713965 | S6: 116.5024454 | T6: 101.1421771 | U6: 90.39380438 | V6: 83.07108653 | W6: 78.0508861 | X6: 72.06077304 | Y6: 68.99866548

Sheet coded OLH for 7 or fewer (hidden)
A1: Cioppa's factor ID | B1: f4 | C1: f5 | D1: f7 | E1: f2 | F1: f3 | G1: f6 | H1: f1
A5: base | B5: 6 | C5: 17 | D5: 14 | E5: 7 | F5: 5 | G5: 16 | H5: 10
B6: 2 | C6: 5 | D6: 15 | E6: 10 | F6: 1 | G6: 6 | H6: 11
B7: 3 | C7: 8 | D7: 2 | E7: 5 | F7: 11 | G7: 14 | H7: 17
B8: 4 | C8: 11 | D8: 6 | E8: 17 | F8: 10 | G8: 3 | H8: 13
B9: 13 | C9: 16 | D9: 8 | E9: 3 | F9: 6 | G9: 1 | H9: 14
B10: 17 | C10: 6 | D10: 7 | E10: 14 | F10: 2 | G10: 13 | H10: 15
B11: 11 | C11: 4 | D11: 17 | E11: 6 | F11: 15 | G11: 8 | H11: 16
B12: 10 | C12: 15 | D12: 13 | E12: 16 | F12: 14 | G12: 11 | H12: 12
B13: 9 | C13: 9 | D13: 9 | E13: 9 | F13: 9 | G13: 9 | H13: 9
B14: 12 | C14: 1 | D14: 4 | E14: 11 | F14: 13 | G14: 2 | H14: 8
B15: 16 | C15: 13 | D15: 3 | E15: 8 | F15: 17 | G15: 12 | H15: 7
B16: 15 | C16: 10 | D16: 16 | E16: 13 | F16: 7 | G16: 4 | H16: 1
B17: 14 | C17: 7 | D17: 12 | E17: 1 | F17: 8 | G17: 15 | H17: 5
B18: 5 | C18: 2 | D18: 10 | E18: 15 | F18: 12 | G18: 17 | H18: 4
B19: 1 | C19: 12 | D19: 11 | E19: 4 | F19: 16 | G19: 5 | H19: 3
B20: 7 | C20: 14 | D20: 1 | E20: 12 | F20: 3 | G20: 10 | H20: 2
B21: 8 | C21: 3 | D21: 5 | E21: 2 | F21: 4 | G21: 7 | H21: 6
A22: shift_and_stack_1 | B22: 17 | C22: 14 | D22: 7 | E22: 5 | F22: 16 | G22: 10 | H22: 6
B23: 5 | C23: 15 | D23: 10 | E23: 1 | F23: 6 | G23: 11 | H23: 2
B24: 8 | C24: 2 | D24: 5 | E24: 11 | F24: 14 | G24: 17 | H24: 3
B25: 11 | C25: 6 | D25: 17 | E25: 10 | F25: 3 | G25: 13 | H25: 4
B26: 16 | C26: 8 | D26: 3 | E26: 6 | F26: 1 | G26: 14 | H26: 13
B27: 6 | C27: 7 | D27: 14 | E27: 2 | F27: 13 | G27: 15 | H27: 17 | K27: 6 | L27: 17 | M27: 14 | N27: 7 | O27: 5 | P27: 16 | Q27: 10
B28: 4 | C28: 17 | D28: 6 | E28: 15 | F28: 8 | G28: 16 | H28: 11 | K28: 2 | L28: 5 | M28: 15 | N28: 10 | O28: 1 | P28: 6 | Q28: 11
B29: 15 | C29: 13 | D29: 16 | E29: 14 | F29: 11 | G29: 12 | H29: 10 | K29: 3 | L29: 8 | M29: 2 | N29: 5 | O29: 11 | P29: 14 | Q29: 17
B30: 1 | C30: 4 | D30: 11 | E30: 13 | F30: 2 | G30: 8 | H30: 12 | K30: 4 | L30: 11 | M30: 6 | N30: 17 | O30: 10 | P30: 3 | Q30: 13
B31: 13 | C31: 3 | D31: 8 | E31: 17 | F31: 12 | G31: 7 | H31: 16 | K31: 13 | L31: 16 | M31: 8 | N31: 3 | O31: 6 | P31: 1 | Q31: 14
B32: 10 | C32: 16 | D32: 13 | E32: 7 | F32: 4 | G32: 1 | H32: 15 | K32: 17 | L32: 6 | M32: 7 | N32: 14 | O32: 2 | P32: 13 | Q32: 15
B33: 7 | C33: 12 | D33: 1 | E33: 8 | F33: 15 | G33: 5 | H33: 14 | K33: 11 | L33: 4 | M33: 17 | N33: 6 | O33: 15 | P33: 8 | Q33: 16
B34: 2 | C34: 10 | D34: 15 | E34: 12 | F34: 17 | G34: 4 | H34: 5 | K34: 10 | L34: 15 | M34: 13 | N34: 16 | O34: 14 | P34: 11 | Q34: 12
B35: 12 | C35: 11 | D35: 4 | E35: 16 | F35: 5 | G35: 3 | H35: 1 | K35: 12 | L35: 1 | M35: 4 | N35: 11 | O35: 13 | P35: 2 | Q35: 8
B36: 14 | C36: 1 | D36: 12 | E36: 3 | F36: 10 | G36: 2 | H36: 7 | K36: 16 | L36: 13 | M36: 3 | N36: 8 | O36: 17 | P36: 12 | Q36: 7
B37: 3 | C37: 5 | D37: 2 | E37: 4 | F37: 7 | G37: 6 | H37: 8 | K37: 15 | L37: 10 | M37: 16 | N37: 13 | O37: 7 | P37: 4 | Q37: 1
A38: shift_and_stack_2 | B38: 14 | C38: 7 | D38: 5 | E38: 16 | F38: 10 | G38: 6 | H38: 17 | K38: 14 | L38: 7 | M38: 12 | N38: 1 | O38: 8 | P38: 15 | Q38: 5
B39: 15 | C39: 10 | D39: 1 | E39: 6 | F39: 11 | G39: 2 | H39: 5 | K39: 5 | L39: 2 | M39: 10 | N39: 15 | O39: 12 | P39: 17 | Q39: 4
B40: 2 | C40: 5 | D40: 11 | E40: 14 | F40: 17 | G40: 3 | H40: 8 | K40: 1 | L40: 12 | M40: 11 | N40: 4 | O40: 16 | P40: 5 | Q40: 3
B41: 6 | C41: 17 | D41: 10 | E41: 3 | F41: 13 | G41: 4 | H41: 11 | K41: 7 | L41: 14 | M41: 1 | N41: 12 | O41: 3 | P41: 10 | Q41: 2
B42: 8 | C42: 3 | D42: 6 | E42: 1 | F42: 14 | G42: 13 | H42: 16 | K42: 8 | L42: 3 | M42: 5 | N42: 2 | O42: 4 | P42: 7 | Q42: 6
B43: 7 | C43: 14 | D43: 2 | E43: 13 | F43: 15 | G43: 17 | H43: 6
B44: 17 | C44: 6 | D44: 15 | E44: 8 | F44: 16 | G44: 11 | H44: 4
B45: 13 | C45: 16 | D45: 14 | E45: 11 | F45: 12 | G45: 10 | H45: 15
B46: 4 | C46: 11 | D46: 13 | E46: 2 | F46: 8 | G46: 12 | H46: 1
B47: 3 | C47: 8 | D47: 17 | E47: 12 | F47: 7 | G47: 16 | H47: 13
B48: 16 | C48: 13 | D48: 7 | E48: 4 | F48: 1 | G48: 15 | H48: 10
B49: 12 | C49: 1 | D49: 8 | E49: 15 | F49: 5 | G49: 14 | H49: 7
B50: 10 | C50: 15 | D50: 12 | E50: 17 | F50: 4 | G50: 5 | H50: 2
B51: 11 | C51: 4 | D51: 16 | E51: 5 | F51: 3 | G51: 1 | H51: 12
B52: 1 | C52: 12 | D52: 3 | E52: 10 | F52: 2 | G52: 7 | H52: 14
B53: 5 | C53: 2 | D53: 4 | E53: 7 | F53: 6 | G53: 8 | H53: 3
A54: shift_and_stack_3 | B54: 7 | C54: 5 | D54: 16 | E54: 10 | F54: 6 | G54: 17 | H54: 14
B55: 10 | C55: 1 | D55: 6 | E55: 11 | F55: 2 | G55: 5 | H55: 15
B56: 5 | C56: 11 | D56: 14 | E56: 17 | F56: 3 | G56: 8 | H56: 2
B57: 17 | C57: 10 | D57: 3 | E57: 13 | F57: 4 | G57: 11 | H57: 6
B58: 3 | C58: 6 | D58: 1 | E58: 14 | F58: 13 | G58: 16 | H58: 8
B59: 14 | C59: 2 | D59: 13 | E59: 15 | F59: 17 | G59: 6 | H59: 7
B60: 6 | C60: 15 | D60: 8 | E60: 16 | F60: 11 | G60: 4 | H60: 17
B61: 16 | C61: 14 | D61: 11 | E61: 12 | F61: 10 | G61: 15 | H61: 13
B62: 11 | C62: 13 | D62: 2 | E62: 8 | F62: 12 | G62: 1 | H62: 4
B63: 8 | C63: 17 | D63: 12 | E63: 7 | F63: 16 | G63: 13 | H63: 3
B64: 13 | C64: 7 | D64: 4 | E64: 1 | F64: 15 | G64: 10 | H64: 16
B65: 1 | C65: 8 | D65: 15 | E65: 5 | F65: 14 | G65: 7 | H65: 12
B66: 15 | C66: 12 | D66: 17 | E66: 4 | F66: 5 | G66: 2 | H66: 10
B67: 4 | C67: 16 | D67: 5 | E67: 3 | F67: 1 | G67: 12 | H67: 11
B68: 12 | C68: 3 | D68: 10 | E68: 2 | F68: 7 | G68: 14 | H68: 1
B69: 2 | C69: 4 | D69: 7 | E69: 6 | F69: 8 | G69: 3 | H69: 5
A70: shift_and_stack_4 | B70: 5 | C70: 16 | D70: 10 | E70: 6 | F70: 17 | G70: 14 | H70: 7
B71: 1 | C71: 6 | D71: 11 | E71: 2 | F71: 5 | G71: 15 | H71: 10
B72: 11 | C72: 14 | D72: 17 | E72: 3 | F72: 8 | G72: 2 | H72: 5
B73: 10 | C73: 3 | D73: 13 | E73: 4 | F73: 11 | G73: 6 | H73: 17
B74: 6 | C74: 1 | D74: 14 | E74: 13 | F74: 16 | G74: 8 | H74: 3
B75: 2 | C75: 13 | D75: 15 | E75: 17 | F75: 6 | G75: 7 | H75: 14
B76: 15 | C76: 8 | D76: 16 | E76: 11 | F76: 4 | G76: 17 | H76: 6
B77: 14 | C77: 11 | D77: 12 | E77: 10 | F77: 15 | G77: 13 | H77: 16
B78: 13 | C78: 2 | D78: 8 | E78: 12 | F78: 1 | G78: 4 | H78: 11
B79: 17 | C79: 12 | D79: 7 | E79: 16 | F79: 13 | G79: 3 | H79: 8
B80: 7 | C80: 4 | D80: 1 | E80: 15 | F80: 10 | G80: 16 | H80: 13
B81: 8 | C81: 15 | D81: 5 | E81: 14 | F81: 7 | G81: 12 | H81: 1
B82: 12 | C82: 17 | D82: 4 | E82: 5 | F82: 2 | G82: 10 | H82: 15
B83: 16 | C83: 5 | D83: 3 | E83: 1 | F83: 12 | G83: 11 | H83: 4
B84: 3 | C84: 10 | D84: 2 | E84: 7 | F84: 14 | G84: 1 | H84: 12
B85: 4 | C85: 7 | D85: 6 | E85: 8 | F85: 3 | G85: 5 | H85: 2
A86: shift_and_stack_5 | B86: 16 | C86: 10 | D86: 6 | E86: 17 | F86: 14 | G86: 7 | H86: 5
B87: 6 | C87: 11 | D87: 2 | E87: 5 | F87: 15 | G87: 10 | H87: 1
B88: 14 | C88: 17 | D88: 3 | E88: 8 | F88: 2 | G88: 5 | H88: 11
B89: 3 | C89: 13 | D89: 4 | E89: 11 | F89: 6 | G89: 17 | H89: 10
B90: 1 | C90: 14 | D90: 13 | E90: 16 | F90: 8 | G90: 3 | H90: 6
B91: 13 | C91: 15 | D91: 17 | E91: 6 | F91: 7 | G91: 14 | H91: 2
B92: 8 | C92: 16 | D92: 11 | E92: 4 | F92: 17 | G92: 6 | H92: 15
B93: 11 | C93: 12 | D93: 10 | E93: 15 | F93: 13 | G93: 16 | H93: 14
B94: 2 | C94: 8 | D94: 12 | E94: 1 | F94: 4 | G94: 11 | H94: 13
B95: 12 | C95: 7 | D95: 16 | E95: 13 | F95: 3 | G95: 8 | H95: 17
B96: 4 | C96: 1 | D96: 15 | E96: 10 | F96: 16 | G96: 13 | H96: 7
B97: 15 | C97: 5 | D97: 14 | E97: 7 | F97: 12 | G97: 1 | H97: 8
B98: 17 | C98: 4 | D98: 5 | E98: 2 | F98: 10 | G98: 15 | H98: 12
B99: 5 | C99: 3 | D99: 1 | E99: 12 | F99: 11 | G99: 4 | H99: 16
B100: 10 | C100: 2 | D100: 7 | E100: 14 | F100: 1 | G100: 12 | H100: 3
B101: 7 | C101: 6 | D101: 8 | E101: 3 | F101: 5 | G101: 2 | H101: 4
A102: shift_and_stack_6 | B102: 10 | C102: 6 | D102: 17 | E102: 14 | F102: 7 | G102: 5 | H102: 16
B103: 11 | C103: 2 | D103: 5 | E103: 15 | F103: 10 | G103: 1 | H103: 6
B104: 17 | C104: 3 | D104: 8 | E104: 2 | F104: 5 | G104: 11 | H104: 14
B105: 13 | C105: 4 | D105: 11 | E105: 6 | F105: 17 | G105: 10 | H105: 3
B106: 14 | C106: 13 | D106: 16 | E106: 8 | F106: 3 | G106: 6 | H106: 1
B107: 15 | C107: 17 | D107: 6 | E107: 7 | F107: 14 | G107: 2 | H107: 13
B108: 16 | C108: 11 | D108: 4 | E108: 17 | F108: 6 | G108: 15 | H108: 8
B109: 12 | C109: 10 | D109: 15 | E109: 13 | F109: 16 | G109: 14 | H109: 11
B110: 8 | C110: 12 | D110: 1 | E110: 4 | F110: 11 | G110: 13 | H110: 2
B111: 7 | C111: 16 | D111: 13 | E111: 3 | F111: 8 | G111: 17 | H111: 12
B112: 1 | C112: 15 | D112: 10 | E112: 16 | F112: 13 | G112: 7 | H112: 4
B113: 5 | C113: 14 | D113: 7 | E113: 12 | F113: 1 | G113: 8 | H113: 15
B114: 4 | C114: 5 | D114: 2 | E114: 10 | F114: 15 | G114: 12 | H114: 17
B115: 3 | C115: 1 | D115: 12 | E115: 11 | F115: 4 | G115: 16 | H115: 5
B116: 2 | C116: 7 | D116: 14 | E116: 1 | F116: 12 | G116: 3 | H116: 10
B117: 6 | C117: 8 | D117: 3 | E117: 5 | F117: 2 | G117: 4 | H117: 7

Sheet OLH for up to 7 factors
A2: low level | B2: 1 | C2: 1 | D2: 1 | E2: 1 | F2: 1 | G2: 1 | H2: 1
A3: high level | B3: 17 | C3: 17 | D3: 17 | E3: 17 | F3: 17 | G3: 17 | H3: 17
A4: decimals | B4: 0 | C4: 0 | D4: 0 | E4: 0 | F4: 0 | G4: 0 | H4: 0
A5: factor name
B6: =ROUND( B$2+(('coded OLH for 7 or fewer'!B5-1)*(B$3-B$2)/16), B$4) -> 6 | C6: =ROUND( C$2+(('coded OLH for 7 or fewer'!C5-1)*(C$3-C$2)/16), C$4) -> 17 | D6: =ROUND( D$2+(('coded OLH for 7 or fewer'!D5-1)*(D$3-D$2)/16), D$4) -> 14 | E6: =ROUND( E$2+(('coded OLH for 7 or fewer'!E5-1)*(E$3-E$2)/16), E$4) -> 7 | F6: =ROUND( F$2+(('coded OLH for 7 or fewer'!F5-1)*(F$3-F$2)/16), F$4) -> 5 | G6: =ROUND( G$2+(('coded OLH for 7 or fewer'!G5-1)*(G$3-G$2)/16), G$4) -> 16 | H6: =ROUND( H$2+(('coded OLH for 7 or fewer'!H5-1)*(H$3-H$2)/16), H$4) -> 10
B7: =ROUND( B$2+(('coded OLH for 7 or fewer'!B6-1)*(B$3-B$2)/16), B$4) -> 2 | C7: =ROUND( C$2+(('coded OLH for 7 or fewer'!C6-1)*(C$3-C$2)/16), C$4) -> 5 | D7: =ROUND( D$2+(('coded OLH for 7 or fewer'!D6-1)*(D$3-D$2)/16), D$4) -> 15 | E7: =ROUND( E$2+(('coded OLH for 7 or fewer'!E6-1)*(E$3-E$2)/16), E$4) -> 10 | F7: =ROUND( F$2+(('coded OLH for 7 or fewer'!F6-1)*(F$3-F$2)/16), F$4) -> 1 | G7: =ROUND( G$2+(('coded OLH for 7 or fewer'!G6-1)*(G$3-G$2)/16), G$4) -> 6 | H7: =ROUND( H$2+(('coded OLH for 7 or fewer'!H6-1)*(H$3-H$2)/16), H$4) -> 11
B8: =ROUND( B$2+(('coded OLH for 7 or fewer'!B7-1)*(B$3-B$2)/16), B$4) -> 3 | C8: =ROUND( C$2+(('coded OLH for 7 or fewer'!C7-1)*(C$3-C$2)/16), C$4) -> 8 | D8: =ROUND( D$2+(('coded OLH for 7 or fewer'!D7-1)*(D$3-D$2)/16), D$4) -> 2 | E8: =ROUND( E$2+(('coded OLH for 7 or fewer'!E7-1)*(E$3-E$2)/16), E$4) -> 5 | F8: =ROUND( F$2+(('coded OLH for 7 or fewer'!F7-1)*(F$3-F$2)/16), F$4) -> 11 | G8: =ROUND( G$2+(('coded OLH for 7 or fewer'!G7-1)*(G$3-G$2)/16), G$4) -> 14 | H8: =ROUND( H$2+(('coded OLH for 7 or fewer'!H7-1)*(H$3-H$2)/16), H$4) -> 17
B9: =ROUND( B$2+(('coded OLH for 7 or fewer'!B8-1)*(B$3-B$2)/16), B$4) -> 4 | C9: =ROUND( C$2+(('coded OLH for 7 or fewer'!C8-1)*(C$3-C$2)/16), C$4) -> 11 | D9: =ROUND( D$2+(('coded OLH for 7 or fewer'!D8-1)*(D$3-D$2)/16), D$4) -> 6 | E9: =ROUND( E$2+(('coded OLH for 7 or fewer'!E8-1)*(E$3-E$2)/16), E$4) -> 17 | F9: =ROUND( F$2+(('coded OLH for 7 or fewer'!F8-1)*(F$3-F$2)/16), F$4) -> 10 | G9: =ROUND( G$2+(('coded OLH for 7 or fewer'!G8-1)*(G$3-G$2)/16), G$4) -> 3 | H9: =ROUND( H$2+(('coded OLH for 7 or fewer'!H8-1)*(H$3-H$2)/16), H$4) -> 13
B10: =ROUND( B$2+(('coded OLH for 7 or fewer'!B9-1)*(B$3-B$2)/16), B$4) -> 13 | C10: =ROUND( C$2+(('coded OLH for 7 or fewer'!C9-1)*(C$3-C$2)/16), C$4) -> 16 | D10: =ROUND( D$2+(('coded OLH for 7 or fewer'!D9-1)*(D$3-D$2)/16), D$4) -> 8 | E10: =ROUND( E$2+(('coded OLH for 7 or fewer'!E9-1)*(E$3-E$2)/16), E$4) -> 3 | F10: =ROUND( F$2+(('coded OLH for 7 or fewer'!F9-1)*(F$3-F$2)/16), F$4) -> 6 | G10: =ROUND( G$2+(('coded OLH for 7 or fewer'!G9-1)*(G$3-G$2)/16), G$4) -> 1 | H10: =ROUND( H$2+(('coded OLH for 7 or fewer'!H9-1)*(H$3-H$2)/16), H$4) -> 14
B11: =ROUND( B$2+(('coded OLH for 7 or fewer'!B10-1)*(B$3-B$2)/16), B$4) -> 17 | C11: =ROUND( C$2+(('coded OLH for 7 or fewer'!C10-1)*(C$3-C$2)/16), C$4) -> 6 | D11: =ROUND( D$2+(('coded OLH for 7 or fewer'!D10-1)*(D$3-D$2)/16), D$4) -> 7 | E11: =ROUND( E$2+(('coded OLH for 7 or fewer'!E10-1)*(E$3-E$2)/16), E$4) -> 14 | F11: =ROUND( F$2+(('coded OLH for 7 or fewer'!F10-1)*(F$3-F$2)/16), F$4) -> 2 | G11: =ROUND( G$2+(('coded OLH for 7 or fewer'!G10-1)*(G$3-G$2)/16), G$4) -> 13 | H11: =ROUND( H$2+(('coded OLH for 7 or fewer'!H10-1)*(H$3-H$2)/16), H$4) -> 15
B12: =ROUND( B$2+(('coded OLH for 7 or fewer'!B11-1)*(B$3-B$2)/16), B$4) -> 11 | C12: =ROUND( C$2+(('coded OLH for 7 or fewer'!C11-1)*(C$3-C$2)/16), C$4) -> 4 | D12: =ROUND( D$2+(('coded OLH for 7 or fewer'!D11-1)*(D$3-D$2)/16), D$4) -> 17 | E12: =ROUND( E$2+(('coded OLH for 7 or fewer'!E11-1)*(E$3-E$2)/16), E$4) -> 6 | F12: =ROUND( F$2+(('coded OLH for 7 or fewer'!F11-1)*(F$3-F$2)/16), F$4) -> 15 | G12: =ROUND( G$2+(('coded OLH for 7 or fewer'!G11-1)*(G$3-G$2)/16), G$4) -> 8 | H12: =ROUND( H$2+(('coded OLH for 7 or fewer'!H11-1)*(H$3-H$2)/16), H$4) -> 16
B13: =ROUND( B$2+(('coded OLH for 7 or fewer'!B12-1)*(B$3-B$2)/16), B$4) -> 10 | C13: =ROUND( C$2+(('coded OLH for 7 or fewer'!C12-1)*(C$3-C$2)/16), C$4) -> 15 | D13: =ROUND( D$2+(('coded OLH for 7 or fewer'!D12-1)*(D$3-D$2)/16), D$4) -> 13 | E13: =ROUND( E$2+(('coded OLH for 7 or fewer'!E12-1)*(E$3-E$2)/16), E$4) -> 16 | F13: =ROUND( F$2+(('coded OLH for 7 or fewer'!F12-1)*(F$3-F$2)/16), F$4) -> 14 | G13: =ROUND( G$2+(('coded OLH for 7 or fewer'!G12-1)*(G$3-G$2)/16), G$4) -> 11 | H13: =ROUND( H$2+(('coded OLH for 7 or fewer'!H12-1)*(H$3-H$2)/16), H$4) -> 12
B14: =ROUND( B$2+(('coded OLH for 7 or fewer'!B13-1)*(B$3-B$2)/16), B$4) -> 9 | C14: =ROUND( C$2+(('coded OLH for 7 or fewer'!C13-1)*(C$3-C$2)/16), C$4) -> 9 | D14: =ROUND( D$2+(('coded OLH for 7 or fewer'!D13-1)*(D$3-D$2)/16), D$4) -> 9 | E14: =ROUND( E$2+(('coded OLH for 7 or fewer'!E13-1)*(E$3-E$2)/16), E$4) -> 9 | F14: =ROUND( F$2+(('coded OLH for 7 or fewer'!F13-1)*(F$3-F$2)/16), F$4) -> 9 | G14: =ROUND( G$2+(('coded OLH for 7 or fewer'!G13-1)*(G$3-G$2)/16), G$4) -> 9 | H14: =ROUND( H$2+(('coded OLH for 7 or fewer'!H13-1)*(H$3-H$2)/16), H$4) -> 9
B15: =ROUND( B$2+(('coded OLH for 7 or fewer'!B14-1)*(B$3-B$2)/16), B$4) -> 12 | C15: =ROUND( C$2+(('coded OLH for 7 or fewer'!C14-1)*(C$3-C$2)/16), C$4) -> 1 | D15: =ROUND( D$2+(('coded OLH for 7 or fewer'!D14-1)*(D$3-D$2)/16), D$4) -> 4 | E15: =ROUND( E$2+(('coded OLH for 7 or fewer'!E14-1)*(E$3-E$2)/16), E$4) -> 11 | F15: =ROUND( F$2+(('coded OLH for 7 or fewer'!F14-1)*(F$3-F$2)/16), F$4) -> 13 | G15: =ROUND( G$2+(('coded OLH for 7 or fewer'!G14-1)*(G$3-G$2)/16), G$4) -> 2 | H15: =ROUND( H$2+(('coded OLH for 7 or fewer'!H14-1)*(H$3-H$2)/16), H$4) -> 8
B16: =ROUND( B$2+(('coded OLH for 7 or fewer'!B15-1)*(B$3-B$2)/16), B$4) -> 16 | C16: =ROUND( C$2+(('coded OLH for 7 or fewer'!C15-1)*(C$3-C$2)/16), C$4) -> 13 | D16: =ROUND( D$2+(('coded OLH for 7 or fewer'!D15-1)*(D$3-D$2)/16), D$4) -> 3 | E16: =ROUND( E$2+(('coded OLH for 7 or fewer'!E15-1)*(E$3-E$2)/16), E$4) -> 8 | F16: =ROUND( F$2+(('coded OLH for 7 or fewer'!F15-1)*(F$3-F$2)/16), F$4) -> 17 | G16: =ROUND( G$2+(('coded OLH for 7 or fewer'!G15-1)*(G$3-G$2)/16), G$4) -> 12 | H16: =ROUND( H$2+(('coded OLH for 7 or fewer'!H15-1)*(H$3-H$2)/16), H$4) -> 7
B17: =ROUND( B$2+(('coded OLH for 7 or fewer'!B16-1)*(B$3-B$2)/16), B$4) -> 15 | C17: =ROUND( C$2+(('coded OLH for 7 or fewer'!C16-1)*(C$3-C$2)/16), C$4) -> 10 | D17: =ROUND( D$2+(('coded OLH for 7 or fewer'!D16-1)*(D$3-D$2)/16), D$4) -> 16 | E17: =ROUND( E$2+(('coded OLH for 7 or fewer'!E16-1)*(E$3-E$2)/16), E$4) -> 13 | F17: =ROUND( F$2+(('coded OLH for 7 or fewer'!F16-1)*(F$3-F$2)/16), F$4) -> 7 | G17: =ROUND( G$2+(('coded OLH for 7 or fewer'!G16-1)*(G$3-G$2)/16), G$4) -> 4 | H17: =ROUND( H$2+(('coded OLH for 7 or fewer'!H16-1)*(H$3-H$2)/16), H$4) -> 1
B18: =ROUND( B$2+(('coded OLH for 7 or fewer'!B17-1)*(B$3-B$2)/16), B$4) -> 14 | C18: =ROUND( C$2+(('coded OLH for 7 or fewer'!C17-1)*(C$3-C$2)/16), C$4) -> 7 | D18: =ROUND( D$2+(('coded OLH for 7 or fewer'!D17-1)*(D$3-D$2)/16), D$4) -> 12 | E18: =ROUND( E$2+(('coded OLH for 7 or fewer'!E17-1)*(E$3-E$2)/16), E$4) -> 1 | F18: =ROUND( F$2+(('coded OLH for 7 or fewer'!F17-1)*(F$3-F$2)/16), F$4) -> 8 | G18: =ROUND( G$2+(('coded OLH for 7 or fewer'!G17-1)*(G$3-G$2)/16), G$4) -> 15 | H18: =ROUND( H$2+(('coded OLH for 7 or fewer'!H17-1)*(H$3-H$2)/16), H$4) -> 5
B19: =ROUND( B$2+(('coded OLH for 7 or fewer'!B18-1)*(B$3-B$2)/16), B$4) -> 5 | C19: =ROUND( C$2+(('coded OLH for 7 or fewer'!C18-1)*(C$3-C$2)/16), C$4) -> 2 | D19: =ROUND( D$2+(('coded OLH for 7 or fewer'!D18-1)*(D$3-D$2)/16), D$4) -> 10 | E19: =ROUND( E$2+(('coded OLH for 7 or fewer'!E18-1)*(E$3-E$2)/16), E$4) -> 15 | F19: =ROUND( F$2+(('coded OLH for 7 or fewer'!F18-1)*(F$3-F$2)/16), F$4) -> 12 | G19: =ROUND( G$2+(('coded OLH for 7 or fewer'!G18-1)*(G$3-G$2)/16), G$4) -> 17 | H19: =ROUND( H$2+(('coded OLH for 7 or fewer'!H18-1)*(H$3-H$2)/16), H$4) -> 4
B20: =ROUND( B$2+(('coded OLH for 7 or fewer'!B19-1)*(B$3-B$2)/16), B$4) -> 1 | C20: =ROUND( C$2+(('coded OLH for 7 or fewer'!C19-1)*(C$3-C$2)/16), C$4) -> 12 | D20: =ROUND( D$2+(('coded OLH for 7 or fewer'!D19-1)*(D$3-D$2)/16), D$4) -> 11 | E20: =ROUND( E$2+(('coded OLH for 7 or fewer'!E19-1)*(E$3-E$2)/16), E$4) -> 4 | F20: =ROUND( F$2+(('coded OLH for 7 or fewer'!F19-1)*(F$3-F$2)/16), F$4) -> 16 | G20: =ROUND( G$2+(('coded OLH for 7 or fewer'!G19-1)*(G$3-G$2)/16), G$4) -> 5 | H20: =ROUND( H$2+(('coded OLH for 7 or fewer'!H19-1)*(H$3-H$2)/16), H$4) -> 3
B21: =ROUND( B$2+(('coded OLH for 7 or fewer'!B20-1)*(B$3-B$2)/16), B$4) -> 7 | C21: =ROUND( C$2+(('coded OLH for 7 or fewer'!C20-1)*(C$3-C$2)/16), C$4) -> 14 | D21: =ROUND( D$2+(('coded OLH for 7 or fewer'!D20-1)*(D$3-D$2)/16), D$4) -> 1 | E21: =ROUND( E$2+(('coded OLH for 7 or fewer'!E20-1)*(E$3-E$2)/16), E$4) -> 12 | F21: =ROUND( F$2+(('coded OLH for 7 or fewer'!F20-1)*(F$3-F$2)/16), F$4) -> 3 | G21: =ROUND( G$2+(('coded OLH for 7 or fewer'!G20-1)*(G$3-G$2)/16), G$4) -> 10 | H21: =ROUND( H$2+(('coded OLH for 7 or fewer'!H20-1)*(H$3-H$2)/16), H$4) -> 2
B22: =ROUND( B$2+(('coded OLH for 7 or fewer'!B21-1)*(B$3-B$2)/16), B$4) -> 8 | C22: =ROUND( C$2+(('coded OLH for 7 or fewer'!C21-1)*(C$3-C$2)/16), C$4) -> 3 | D22: =ROUND( D$2+(('coded OLH for 7 or fewer'!D21-1)*(D$3-D$2)/16), D$4) -> 5 | E22: =ROUND( E$2+(('coded OLH for 7 or fewer'!E21-1)*(E$3-E$2)/16), E$4) -> 2 | F22: =ROUND( F$2+(('coded OLH for 7 or fewer'!F21-1)*(F$3-F$2)/16), F$4) -> 4 | G22: =ROUND( G$2+(('coded OLH for 7 or fewer'!G21-1)*(G$3-G$2)/16), G$4) -> 7 | H22: =ROUND( H$2+(('coded OLH for 7 or fewer'!H21-1)*(H$3-H$2)/16), H$4) -> 6

Sheet coded NOLH for 8-11 factors (hidden)
A1: factor ID | B1: f1 | C1: f2 | D1: f3 | E1: f5 | F1: f6 | G1: f8 | H1: f11 | I1: f4 | J1: f9 | K1: f7 | L1: f10
A2: low level
A3: high level | O3: for 8: remove columns 1, 2, 10
A4: factor name
B5: 33 | C5: 4 | D5: 15 | E5: 7 | F5: 29 | G5: 21 | H5: 23 | I5: 16 | J5: 33 | K5: 23 | L5: 20
B6: 30 | C6: 33 | D6: 5 | E6: 13 | F6: 16 | G6: 7 | H6: 25 | I6: 11 | J6: 30 | K6: 15 | L6: 28
B7: 29 | C7: 15 | D7: 30 | E7: 6 | F7: 2 | G7: 20 | H7: 24 | I7: 2 | J7: 11 | K7: 32 | L7: 13
B8: 19 | C8: 29 | D8: 33 | E8: 14 | F8: 31 | G8: 6 | H8: 27 | I8: 3 | J8: 15 | K8: 4 | L8: 8
B9: 31 | C9: 2 | D9: 16 | E9: 8 | F9: 23 | G9: 24 | H9: 14 | I9: 19 | J9: 3 | K9: 5 | L9: 23
B10: 32 | C10: 31 | D10: 11 | E10: 10 | F10: 15 | G10: 8 | H10: 6 | I10: 29 | J10: 2 | K10: 18 | L10: 25
B11: 23 | C11: 16 | D11: 32 | E11: 9 | F11: 1 | G11: 22 | H11: 13 | I11: 30 | J11: 29 | K11: 1 | L11: 10
B12: 18 | C12: 23 | D12: 31 | E12: 12 | F12: 30 | G12: 9 | H12: 8 | I12: 33 | J12: 18 | K12: 31 | L12: 7
B13: 22 | C13: 9 | D13: 8 | E13: 18 | F13: 24 | G13: 11 | H13: 1 | I13: 7 | J13: 20 | K13: 20 | L13: 3
B14: 25 | C14: 22 | D14: 10 | E14: 23 | F14: 8 | G14: 18 | H14: 4 | I14: 13 | J14: 28 | K14: 7 | L14: 2
B15: 24 | C15: 8 | D15: 25 | E15: 32 | F15: 12 | G15: 3 | H15: 5 | I15: 6 | J15: 13 | K15: 21 | L15: 22
B16: 26 | C16: 24 | D16: 22 | E16: 31 | F16: 25 | G16: 32 | H16: 16 | I16: 14 | J16: 8 | K16: 6 | L16: 19
B17: 20 | C17: 6 | D17: 7 | E17: 19 | F17: 20 | G17: 5 | H17: 32 | I17: 26 | J17: 12 | K17: 10 | L17: 1
B18: 28 | C18: 20 | D18: 13 | E18: 29 | F18: 6 | G18: 19 | H18: 31 | I18: 24 | J18: 9 | K18: 26 | L18: 5
B19: 21 | C19: 7 | D19: 28 | E19: 30 | F19: 13 | G19: 1 | H19: 22 | I19: 25 | J19: 24 | K19: 12 | L19: 30
B20: 27 | C20: 21 | D20: 20 | E20: 33 | F20: 27 | G20: 30 | H20: 19 | I20: 22 | J20: 27 | K20: 25 | L20: 18
B21: 17 | C21: 17 | D21: 17 | E21: 17 | F21: 17 | G21: 17 | H21: 17 | I21: 17 | J21: 17 | K21: 17 | L21: 17
B22: 1 | C22: 30 | D22: 19 | E22: 27 | F22: 5 | G22: 13 | H22: 11 | I22: 18 | J22: 1 | K22: 11 | L22: 14
B23: 4 | C23: 1 | D23: 29 | E23: 21 | F23: 18 | G23: 27 | H23: 9 | I23: 23 | J23: 4 | K23: 19 | L23: 6
B24: 5 | C24: 19 | D24: 4 | E24: 28 | F24: 32 | G24: 14 | H24: 10 | I24: 32 | J24: 23 | K24: 2 | L24: 21
B25: 15 | C25: 5 | D25: 1 | E25: 20 | F25: 3 | G25: 28 | H25: 7 | I25: 31 | J25: 19 | K25: 30 | L25: 26
B26: 3 | C26: 32 | D26: 18 | E26: 26 | F26: 11 | G26: 10 | H26: 20 | I26: 15 | J26: 31 | K26: 29 | L26: 11
B27: 2 | C27: 3 | D27: 23 | E27: 24 | F27: 19 | G27: 26 | H27: 28 | I27: 5 | J27: 32 | K27: 16 | L27: 9
B28: 11 | C28: 18 | D28: 2 | E28: 25 | F28: 33 | G28: 12 | H28: 21 | I28: 4 | J28: 5 | K28: 33 | L28: 24
B29: 16 | C29: 11 | D29: 3 | E29: 22 | F29: 4 | G29: 25 | H29: 26 | I29: 1 | J29: 16 | K29: 3 | L29: 27
B30: 12 | C30: 25 | D30: 26 | E30: 16 | F30: 10 | G30: 23 | H30: 33 | I30: 27 | J30: 14 | K30: 14 | L30: 31
B31: 9 | C31: 12 | D31: 24 | E31: 11 | F31: 26 | G31: 16 | H31: 30 | I31: 21 | J31: 6 | K31: 27 | L31: 32
B32: 10 | C32: 26 | D32: 9 | E32: 2 | F32: 22 | G32: 31 | H32: 29 | I32: 28 | J32: 21 | K32: 13 | L32: 12
B33: 8 | C33: 10 | D33: 12 | E33: 3 | F33: 9 | G33: 2 | H33: 18 | I33: 20 | J33: 26 | K33: 28 | L33: 15
B34: 14 | C34: 28 | D34: 27 | E34: 15 | F34: 14 | G34: 29 | H34: 2 | I34: 8 | J34: 22 | K34: 24 | L34: 33
B35: 6 | C35: 14 | D35: 21 | E35: 5 | F35: 28 | G35: 15 | H35: 3 | I35: 10 | J35: 25 | K35: 8 | L35: 29
B36: 13 | C36: 27 | D36: 6 | E36: 4 | F36: 21 | G36: 33 | H36: 12 | I36: 9 | J36: 10 | K36: 22 | L36: 4
B37: 7 | C37: 13 | D37: 14 | E37: 1 | F37: 7 | G37: 4 | H37: 15 | I37: 12 | J37: 7 | K37: 9 | L37: 16
B38: 23 | C38: 33 | D38: 29 | E38: 4 | F38: 20 | G38: 7 | H38: 15 | I38: 33 | J38: 21 | K38: 23 | L38: 16
B39: 15 | C39: 30 | D39: 16 | E39: 33 | F39: 28 | G39: 13 | H39: 5 | I39: 30 | J39: 7 | K39: 25 | L39: 11
B40: 32 | C40: 11 | D40: 2 | E40: 15 | F40: 13 | G40: 6 | H40: 30 | I40: 29 | J40: 20 | K40: 24 | L40: 2
B41: 4 | C41: 15 | D41: 31 | E41: 29 | F41: 8 | G41: 14 | H41: 33 | I41: 19 | J41: 6 | K41: 27 | L41: 3
B42: 5 | C42: 3 | D42: 23 | E42: 2 | F42: 23 | G42: 8 | H42: 16 | I42: 31 | J42: 24 | K42: 14 | L42: 19
B43: 18 | C43: 2 | D43: 15 | E43: 31 | F43: 25 | G43: 10 | H43: 11 | I43: 32 | J43: 8 | K43: 6 | L43: 29
B44: 1 | C44: 29 | D44: 1 | E44: 16 | F44: 10 | G44: 9 | H44: 32 | I44: 23 | J44: 22 | K44: 13 | L44: 30
B45: 31 | C45: 18 | D45: 30 | E45: 23 | F45: 7 | G45: 12 | H45: 31 | I45: 18 | J45: 9 | K45: 8 | L45: 33
B46: 20 | C46: 20 | D46: 24 | E46: 9 | F46: 3 | G46: 18 | H46: 8 | I46: 22 | J46: 11 | K46: 1 | L46: 7
B47: 7 | C47: 28 | D47: 8 | E47: 22 | F47: 2 | G47: 23 | H47: 10 | I47: 25 | J47: 18 | K47: 4 | L47: 13
B48: 21 | C48: 13 | D48: 12 | E48: 8 | F48: 22 | G48: 32 | H48: 25 | I48: 24 | J48: 3 | K48: 5 | L48: 6
B49: 6 | C49: 8 | D49: 25 | E49: 24 | F49: 19 | G49: 31 | H49: 22 | I49: 26 | J49: 32 | K49: 16 | L49: 14
B50: 10 | C50: 12 | D50: 20 | E50: 6 | F50: 1 | G50: 19 | H50: 7 | I50: 20 | J50: 5 | K50: 32 | L50: 26
B51: 26 | C51: 9 | D51: 6 | E51: 20 | F51: 5 | G51: 29 | H51: 13 | I51: 28 | J51: 19 | K51: 31 | L51: 24
B52: 12 | C52: 24 | D52: 13 | E52: 7 | F52: 30 | G52: 30 | H52: 28 | I52: 21 | J52: 1 | K52: 22 | L52: 25
B53: 25 | C53: 27 | D53: 27 | E53: 21 | F53: 18 | G53: 33 | H53: 20 | I53: 27 | J53: 30 | K53: 19 | L53: 22
B54: 11 | C54: 1 | D54: 5 | E54: 30 | F54: 14 | G54: 27 | H54: 19 | I54: 1 | J54: 13 | K54: 11 | L54: 18
B55: 19 | C55: 4 | D55: 18 | E55: 1 | F55: 6 | G55: 21 | H55: 29 | I55: 4 | J55: 27 | K55: 9 | L55: 23
B56: 2 | C56: 23 | D56: 32 | E56: 19 | F56: 21 | G56: 28 | H56: 4 | I56: 5 | J56: 14 | K56: 10 | L56: 32
B57: 30 | C57: 19 | D57: 3 | E57: 5 | F57: 26 | G57: 20 | H57: 1 | I57: 15 | J57: 28 | K57: 7 | L57: 31
B58: 29 | C58: 31 | D58: 11 | E58: 32 | F58: 11 | G58: 26 | H58: 18 | I58: 3 | J58: 10 | K58: 20 | L58: 15
B59: 16 | C59: 32 | D59: 19 | E59: 3 | F59: 9 | G59: 24 | H59: 23 | I59: 2 | J59: 26 | K59: 28 | L59: 5
B60: 33 | C60: 5 | D60: 33 | E60: 18 | F60: 24 | G60: 25 | H60: 2 | I60: 11 | J60: 12 | K60: 21 | L60: 4
B61: 3 | C61: 16 | D61: 4 | E61: 11 | F61: 27 | G61: 22 | H61: 3 | I61: 16 | J61: 25 | K61: 26 | L61: 1
B62: 14 | C62: 14 | D62: 10 | E62: 25 | F62: 31 | G62: 16 | H62: 26 | I62: 12 | J62: 23 | K62: 33 | L62: 27
B63: 27 | C63: 6 | D63: 26 | E63: 12 | F63: 32 | G63: 11 | H63: 24 | I63: 9 | J63: 16 | K63: 30 | L63: 21
B64: 13 | C64: 21 | D64: 22 | E64: 26 | F64: 12 | G64: 2 | H64: 9 | I64: 10 | J64: 31 | K64: 29 | L64: 28
B65: 28 | C65: 26 | D65: 9 | E65: 10 | F65: 15 | G65: 3 | H65: 12 | I65: 8 | J65: 2 | K65: 18 | L65: 20
B66: 24 | C66: 22 | D66: 14 | E66: 28 | F66: 33 | G66: 15 | H66: 27 | I66: 14 | J66: 29 | K66: 2 | L66: 8
B67: 8 | C67: 25 | D67: 28 | E67: 14 | F67: 29 | G67: 5 | H67: 21 | I67: 6 | J67: 15 | K67: 3 | L67: 10
B68: 22 | C68: 10 | D68: 21 | E68: 27 | F68: 4 | G68: 4 | H68: 6 | I68: 13 | J68: 33 | K68: 12 | L68: 9
B69: 9 | C69: 7 | D69: 7 | E69: 13 | F69: 16 | G69: 1 | H69: 14 | I69: 7 | J69: 4 | K69: 15 | L69: 12
B70: 15 | C70: 16 | D70: 20 | E70: 33 | F70: 4 | G70: 33 | H70: 29 | I70: 23 | J70: 21 | K70: 23 | L70: 7
B71: 5 | C71: 11 | D71: 28 | E71: 30 | F71: 33 | G71: 30 | H71: 16 | I71: 15 | J71: 7 | K71: 25 | L71: 13
B72: 30 | C72: 2 | D72: 13 | E72: 11 | F72: 15 | G72: 29 | H72: 2 | I72: 32 | J72: 20 | K72: 24 | L72: 6
B73: 33 | C73: 3 | D73: 8 | E73: 15 | F73: 29 | G73: 19 | H73: 31 | I73: 4 | J73: 6 | K73: 27 | L73: 14
B74: 16 | C74: 19 | D74: 23 | E74: 3 | F74: 2 | G74: 31 | H74: 23 | I74: 5 | J74: 24 | K74: 14 | L74: 8
B75: 11 | C75: 29 | D75: 25 | E75: 2 | F75: 31 | G75: 32 | H75: 15 | I75: 18 | J75: 8 | K75: 6 | L75: 10
B76: 32 | C76: 30 | D76: 10 | E76: 29 | F76: 16 | G76: 23 | H76: 1 | I76: 1 | J76: 22 | K76: 13 | L76: 9
B77: 31 | C77: 33 | D77: 7 | E77: 18 | F77: 23 | G77: 18 | H77: 30 | I77: 31 | J77: 9 | K77: 8 | L77: 12
B78: 8 | C78: 7 | D78: 3 | E78: 20 | F78: 9 | G78: 22 | H78: 24 | I78: 20 | J78: 11 | K78: 1 | L78: 18
B79: 10 | C79: 13 | D79: 2 | E79: 28 | F79: 22 | G79: 25 | H79: 8 | I79: 7 | J79: 18 | K79: 4 | L79: 23
B80: 25 | C80: 6 | D80: 22 | E80: 13 | F80: 8 | G80: 24 | H80: 12 | I80: 21 | J80: 3 | K80: 5 | L80: 32
B81: 22 | C81: 14 | D81: 19 | E81: 8 | F81: 24 | G81: 26 | H81: 25 | I81: 6 | J81: 32 | K81: 16 | L81: 31
B82: 7 | C82: 26 | D82: 1 | E82: 12 | F82: 6 | G82: 20 | H82: 20 | I82: 10 | J82: 5 | K82: 32 | L82: 19
B83: 13 | C83: 24 | D83: 5 | E83: 9 | F83: 20 | G83: 28 | H83: 6 | I83: 26 | J83: 19 | K83: 31 | L83: 29
B84: 28 | C84: 25 | D84: 30 | E84: 24 | F84: 7 | G84: 21 | H84: 13 | I84: 12 | J84: 1 | K84: 22 | L84: 30
B85: 20 | C85: 22 | D85: 18 | E85: 27 | F85: 21 | G85: 27 | H85: 27 | I85: 25 | J85: 30 | K85: 19 | L85: 33
B86: 19 | C86: 18 | D86: 14 | E86: 1 | F86: 30 | G86: 1 | H86: 5 | I86: 11 | J86: 13 | K86: 11 | L86: 27
B87: 29 | C87: 23 | D87: 6 | E87: 4 | F87: 1 | G87: 4 | H87: 18 | I87: 19 | J87: 27 | K87: 9 | L87: 21
B88: 4 | C88: 32 | D88: 21 | E88: 23 | F88: 19 | G88: 5 | H88: 32 | I88: 2 | J88: 14 | K88: 10 | L88: 28
B89: 1 | C89: 31 | D89: 26 | E89: 19 | F89: 5 | G89: 15 | H89: 3 | I89: 30 | J89: 28 | K89: 7 | L89: 20
B90: 18 | C90: 15 | D90: 11 | E90: 31 | F90: 32 | G90: 3 | H90: 11 | I90: 29 | J90: 10 | K90: 20 | L90: 26
B91: 23 | C91: 5 | D91: 9 | E91: 32 | F91: 3 | G91: 2 | H91: 19 | I91: 16 | J91: 26 | K91: 28 | L91: 24
B92: 2 | C92: 4 | D92: 24 | E92: 5 | F92: 18 | G92: 11 | H92: 33 | I92: 33 | J92: 12 | K92: 21 | L92: 25
B93: 3 | C93: 1 | D93: 27 | E93: 16 | F93: 11 | G93: 16 | H93: 4 | I93: 3 | J93: 25 | K93: 26 | L93: 22
B94: 26 | C94: 27 | D94: 31 | E94: 14 | F94: 25 | G94: 12 | H94: 10 | I94: 14 | J94: 23 | K94: 33 | L94: 16
B95: 24 | C95: 21 | D95: 32 | E95: 6 | F95: 12 | G95: 9 | H95: 26 | I95: 27 | J95: 16 | K95: 30 | L95: 11
B96: 9 | C96: 28 | D96: 12 | E96: 21 | F96: 26 | G96: 10 | H96: 22 | I96: 13 | J96: 31 | K96: 29 | L96: 2
B97: 12 | C97: 20 | D97: 15 | E97: 26 | F97: 10 | G97: 8 | H97: 9 | I97: 28 | J97: 2 | K97: 18 | L97: 3
B98: 27 | C98: 8 | D98: 33 | E98: 22 | F98: 28 | G98: 14 | H98: 14 | I98: 24 | J98: 29 | K98: 2 | L98: 15
B99: 21 | C99: 10 | D99: 29 | E99: 25 | F99: 14 | G99: 6 | H99: 28 | I99: 8 | J99: 15 | K99: 3 | L99: 5
B100: 6 | C100: 9 | D100: 4 | E100: 10 | F100: 27 | G100: 13 | H100: 21 | I100: 22 | J100: 33 | K100: 12 | L100: 4
B101: 14 | C101: 12 | D101: 16 | E101: 7 | F101: 13 | G101: 7 | H101: 7 | I101: 9 | J101: 4 | K101: 15 | L101: 1
B102: 20 | C102: 21 | D102: 15 | E102: 33 | F102: 16 | G102: 23 | H102: 4 | I102: 23 | J102: 29 | K102: 33 | L102: 7
B103: 28 | C103: 7 | D103: 5 | E103: 30 | F103: 11 | G103: 15 | H103: 33 | I103: 25 | J103: 16 | K103: 30 | L103: 13
B104: 13 | C104: 20 | D104: 30 | E104: 29 | F104: 2 | G104: 32 | H104: 15 | I104: 24 | J104: 2 | K104: 11 | L104: 6
B105: 8 | C105: 6 | D105: 33 | E105: 19 | F105: 3 | G105: 4 | H105: 29 | I105: 27 | J105: 31 | K105: 15 | L105: 14
B106: 23 | C106: 24 | D106: 16 | E106: 31 | F106: 19 | G106: 5 | H106: 2 | I106: 14 | J106: 23 | K106: 3 | L106: 8
B107: 25 | C107: 8 | D107: 11 | E107: 32 | F107: 29 | G107: 18 | H107: 31 | I107: 6 | J107: 15 | K107: 2 | L107: 10
B108: 10 | C108: 22 | D108: 32 | E108: 23 | F108: 30 | G108: 1 | H108: 16 | I108: 13 | J108: 1 | K108: 29 | L108: 9
B109: 7 | C109: 9 | D109: 31 | E109: 18 | F109: 33 | G109: 31 | H109: 23 | I109: 8 | J109: 30 | K109: 18 | L109: 12
B110: 3 | C110: 11 | D110: 8 | E110: 22 | F110: 7 | G110: 20 | H110: 9 | I110: 1 | J110: 24 | K110: 20 | L110: 18
B111: 2 | C111: 18 | D111: 10 | E111: 25 | F111: 13 | G111: 7 | H111: 22 | I111: 4 | J111: 8 | K111: 28 | L111: 23
B112: 22 | C112: 3 | D112: 25 | E112: 24 | F112: 6 | G112: 21 | H112: 8 | I112: 5 | J112: 12 | K112: 13 | L112: 32
B113: 19 | C113: 32 | D113: 22 | E113: 26 | F113: 14 | G113: 6 | H113: 24 | I113: 16 | J113: 25 | K113: 8 | L113: 31
B114: 1 | C114: 5 | D114: 7 | E114: 20 | F114: 26 | G114: 10 | H114: 6 | I114: 32 | J114: 20 | K114: 12 | L114: 19
B115: 5 | C115: 19 | D115: 13 | E115: 28 | F115: 24 | G115: 26 | H115: 20 | I115: 31 | J115: 6 | K115: 9 | L115: 29
B116: 30 | C116: 1 | D116: 28 | E116: 21 | F116: 25 | G116: 12 | H116: 7 | I116: 22 | J116: 13 | K116: 24 | L116: 30
B117: 18 | C117: 30 | D117: 20 | E117: 27 | F117: 22 | G117: 25 | H117: 21 | I117: 19 | J117: 27 | K117: 27 | L117: 33
B118: 14 | C118: 13 | D118: 19 | E118: 1 | F118: 18 | G118: 11 | H118: 30 | I118: 11 | J118: 5 | K118: 1 | L118: 27
B119: 6 | C119: 27 | D119: 29 | E119: 4 | F119: 23 | G119: 19 | H119: 1 | I119: 9 | J119: 18 | K119: 4 | L119: 21
B120: 21 | C120: 14 | D120: 4 | E120: 5 | F120: 32 | G120: 2 | H120: 19 | I120: 10 | J120: 32 | K120: 23 | L120: 28
B121: 26 | C121: 28 | D121: 1 | E121: 15 | F121: 31 | G121: 30 | H121: 5 | I121: 7 | J121: 3 | K121: 19 | L121: 20
B122: 11 | C122: 10 | D122: 18 | E122: 3 | F122: 15 | G122: 29 | H122: 32 | I122: 20 | J122: 11 | K122: 31 | L122: 26
B123: 9 | C123: 26 | D123: 23 | E123: 2 | F123: 5 | G123: 16 | H123: 3 | I123: 28 | J123: 19 | K123: 32 | L123: 24
B124: 24 | C124: 12 | D124: 2 | E124: 11 | F124: 4 | G124: 33 | H124: 18 | I124: 21 | J124: 33 | K124: 5 | L124: 25
B125: 27 | C125: 25 | D125: 3 | E125: 16 | F125: 1 | G125: 3 | H125: 11 | I125: 26 | J125: 4 | K125: 16 | L125: 22
B126: 31 | C126: 23 | D126: 26 | E126: 12 | F126: 27 | G126: 14 | H126: 25 | I126: 33 | J126: 10 | K126: 14 | L126: 16
B127: 32 | C127: 16 | D127: 24 | E127: 9 | F127: 21 | G127: 27 | H127: 12 | I127: 30 | J127: 26 | K127: 6 | L127: 11
B128: 12 | C128: 31 | D128: 9 | E128: 10 | F128: 28 | G128: 13 | H128: 26 | I128: 29 | J128: 22 | K128: 21 | L128: 2
B129: 15 | C129: 2 | D129: 12 | E129: 8 | F129: 20 | G129: 28 | H129: 10 | I129: 18 | J129: 9 | K129: 26 | L129: 3
B130: 33 | C130: 29 | D130: 27 | E130: 14 | F130: 8 | G130: 24 | H130: 28 | I130: 2 | J130: 14 | K130: 22 | L130: 15
B131: 29 | C131: 15 | D131: 21 | E131: 6 | F131: 10 | G131: 8 | H131: 14 | I131: 3 | J131: 28 | K131: 25 | L131: 5
B132: 4 | C132: 33 | D132: 6 | E132: 13 | F132: 9 | G132: 22 | H132: 27 | I132: 12 | J132: 21 | K132: 10 | L132: 4
B133: 16 | C133: 4 | D133: 14 | E133: 7 | F133: 12 | G133: 9 | H133: 13 | I133: 15 | J133: 7 | K133: 7 | L133: 1
B134: 7 | C134: 33 | D134: 16 | E134: 20 | F134: 33 | G134: 23 | H134: 23 | I134: 29 | J134: 4 | K134: 15 | L134: 21
B135: 13 | C135: 30 | D135: 11 | E135: 28 | F135: 30 | G135: 25 | H135: 15 | I135: 16 | J135: 33 | K135: 5 | L135: 7
B136: 6 | C136: 29 | D136: 2 | E136: 13 | F136: 11 | G136: 24 | H136: 32 | I136: 2 | J136: 15 | K136: 30 | L136: 20
B137: 14 | C137: 19 | D137: 3 | E137: 8 | F137: 15 | G137: 27 | H137: 4 | I137: 31 | J137: 29 | K137: 33 | L137: 6
B138: 8 | C138: 31 | D138: 19 | E138: 23 | F138: 3 | G138: 14 | H138: 5 | I138: 23 | J138: 2 | K138: 16 | L138: 24
B139: 10 | C139: 32 | D139: 29 | E139: 25 | F139: 2 | G139: 6 | H139: 18 | I139: 15 | J139: 31 | K139: 11 | L139: 8
B140: 9 | C140: 23 | D140: 30 | E140: 10 | F140: 29 | G140: 13 | H140: 1 | I140: 1 | J140: 16 | K140: 32 | L140: 22
B141: 12 | C141: 18 | D141: 33 | E141: 7 | F141: 18 | G141: 8 | H141: 31 | I141: 30 | J141: 23 | K141: 31 | L141: 9
B142: 18 | C142: 22 | D142: 7 | E142: 3 | F142: 20 | G142: 1 | H142: 20 | I142: 24 | J142: 9 | K142: 8 | L142: 11
B143: 23 | C143: 25 | D143: 13 | E143: 2 | F143: 28 | G143: 4 | H143: 7 | I143: 8 | J143: 22 | K143: 10 | L143: 18
B144: 32 | C144: 24 | D144: 6 | E144: 22 | F144: 13 | G144: 5 | H144: 21 | I144: 12 | J144: 8 | K144: 25 | L144: 3
B145: 31 | C145: 26 | D145: 14 | E145: 19 | F145: 8 | G145: 16 | H145: 6 | I145: 25 | J145: 24 | K145: 22 | L145: 32
B146: 19 | C146: 20 | D146: 26 | E146: 1 | F146: 12 | G146: 32 | H146: 10 | I146: 20 | J146: 6 | K146: 7 | L146: 5
B147: 29 | C147: 28 | D147: 24 | E147: 5 | F147: 9 | G147: 31 | H147: 26 | I147: 6 | J147: 20 | K147: 13 | L147: 19
B148: 30 | C148: 21 | D148: 25 | E148: 30 | F148: 24 | G148: 22 | H148: 12 | I148: 13 | J148: 7 | K148: 28 | L148: 1
B149: 33 | C149: 27 | D149: 22 | E149: 18 | F149: 27 | G149: 19 | H149: 25 | I149: 27 | J149: 21 | K149: 20 | L149: 30
B150: 27 | C150: 1 | D150: 18 | E150: 14 | F150: 1 | G150: 11 | H150: 11 | I150: 5 | J150: 30 | K150: 19 | L150: 13
B151: 21 | C151: 4 | D151: 23 | E151: 6 | F151: 4 | G151: 9 | H151: 19 | I151: 18 | J151: 1 | K151: 29 | L151: 27
B152: 28 | C152: 5 | D152: 32 | E152: 21 | F152: 23 | G152: 10 | H152: 2 | I152: 32 | J152: 19 | K152: 4 | L152: 14
B153: 20 | C153: 15 | D153: 31 | E153: 26 | F153: 19 | G153: 7 | H153: 30 | I153: 3 | J153: 5 | K153: 1 | L153: 28
B154: 26 | C154: 3 | D154: 15 | E154: 11 | F154: 31 | G154: 20 | H154: 29 | I154: 11 | J154: 32 | K154: 18 | L154: 10
B155: 24 | C155: 2 | D155: 5 | E155: 9 | F155: 32 | G155: 28 | H155: 16 | I155: 19 | J155: 3 | K155: 23 | L155: 26
B156: 25 | C156: 11 | D156: 4 | E156: 24 | F156: 5 | G156: 21 | H156: 33 | I156: 33 | J156: 18 | K156: 2 | L156: 12
B157: 22 | C157: 16 | D157: 1 | E157: 27 | F157: 16 | G157: 26 | H157: 3 | I157: 4 | J157: 11 | K157: 3 | L157: 25
B158: 16 | C158: 12 | D158: 27 | E158: 31 | F158: 14 | G158: 33 | H158: 14 | I158: 10 | J158: 25 | K158: 26 | L158: 23
B159: 11 | C159: 9 | D159: 21 | E159: 32 | F159: 6 | G159: 30 | H159: 27 | I159: 26 | J159: 12 | K159: 24 | L159: 16
B160: 2 | C160: 10 | D160: 28 | E160: 12 | F160: 21 | G160: 29 | H160: 13 | I160: 22 | J160: 26 | K160: 9 | L160: 31
B161: 3 | C161: 8 | D161: 20 | E161: 15 | F161: 26 | G161: 18 | H161: 28 | I161: 9 | J161: 10 | K161: 12 | L161: 2
B162: 15 | C162: 14 | D162: 8 | E162: 33 | F162: 22 | G162: 2 | H162: 24 | I162: 14 | J162: 28 | K162: 27 | L162: 29
B163: 5 | C163: 6 | D163: 10 | E163: 29 | F163: 25 | G163: 3 | H163: 8 | I163: 28 | J163: 14 | K163: 21 | L163: 15
B164: 4 | C164: 13 | D164: 9 | E164: 4 | F164: 10 | G164: 12 | H164: 22 | I164: 21 | J164: 27 | K164: 6 | L164: 33
B165: 1 | C165: 7 | D165: 12 | E165: 16 | F165: 7 | G165: 15 | H165: 9 | I165: 7 | J165: 13 | K165: 14 | L165: 4
B166: 33 | C166: 29 | D166: 20 | E166: 23 | F166: 23 | G166: 33 | H166: 21 | I166: 4 | J166: 15 | K166: 16 | L166: 7
B167: 30 | C167: 16 | D167: 28 | E167: 15 | F167: 25 | G167: 30 | H167: 7 | I167: 33 | J167: 5 | K167: 11 | L167: 13
B168: 11 | C168: 2 | D168: 13 | E168: 32 | F168: 24 | G168: 29 | H168: 20 | I168: 15 | J168: 30 | K168: 2 | L168: 6
B169: 15 | C169: 31 | D169: 8 | E169: 4 | F169: 27 | G169: 19 | H169: 6 | I169: 29 | J169: 33 | K169: 3 | L169: 14
B170: 3 | C170: 23 | D170: 23 | E170: 5 | F170: 14 | G170: 31 | H170: 24 | I170: 2 | J170: 16 | K170: 19 | L170: 8
B171: 2 | C171: 15 | D171: 25 | E171: 18 | F171: 6 | G171: 32 | H171: 8 | I171: 31 | J171: 11 | K171: 29 | L171: 10
B172: 29 | C172: 1 | D172: 10 | E172: 1 | F172: 13 | G172: 23 | H172: 22 | I172: 16 | J172: 32 | K172: 30 | L172: 9
B173: 18 | C173: 30 | D173: 7 | E173: 31 | F173: 8 | G173: 18 | H173: 9 | I173: 23 | J173: 31 | K173: 33 | L173: 12
B174: 20 | C174: 24 | D174: 3 | E174: 20 | F174: 1 | G174: 22 | H174: 11 | I174: 9 | J174: 8 | K174: 7 | L174: 18
B175: 28 | C175: 8 | D175: 2 | E175: 7 | F175: 4 | G175: 25 | H175: 18 | I175: 22 | J175: 10 | K175: 13 | L175: 23
B176: 13 | C176: 12 | D176: 22 | E176: 21 | F176: 5 | G176: 24 | H176: 3 | I176: 8 | J176: 25 | K176: 6 | L176: 32
B177: 8 | C177: 25 | D177: 19 | E177: 6 | F177: 16 | G177: 26 | H177: 32 | I177: 24 | J177: 22 | K177: 14 | L177: 31
B178: 12 | C178: 20 | D178: 1 | E178: 10 | F178: 32 | G178: 20 | H178: 5 | I178: 6 | J178: 7 | K178: 26 | L178: 19
B179: 9 | C179: 6 | D179: 5 | E179: 26 | F179: 31 | G179: 28 | H179: 19 | I179: 20 | J179: 13 | K179: 24 | L179: 29
B180: 24 | C180: 13 | D180: 30 | E180: 12 | F180: 22 | G180: 21 | H180: 1 | I180: 7 | J180: 28 | K180: 25 | L180: 30
B181: 27 | C181: 27 | D181: 18 | E181: 25 | F181: 19 | G181: 27 | H181: 30 | I181: 21 | J181: 20 | K181: 22 | L181: 33
B182: 1 | C182: 5 | D182: 14 | E182: 11 | F182: 11 | G182: 1 | H182: 13 | I182: 30 | J182: 19 | K182: 18 | L182: 27
B183: 4 | C183: 18 | D183: 6 | E183: 19 | F183: 9 | G183: 4 | H183: 27 | I183: 1 | J183: 29 | K183: 23 | L183: 21
B184: 23 | C184: 32 | D184: 21 | E184: 2 | F184: 10 | G184: 5 | H184: 14 | I184: 19 | J184: 4 | K184: 32 | L184: 28
B185: 19 | C185: 3 | D185: 26 | E185: 30 | F185: 7 | G185: 15 | H185: 28 | I185: 5 | J185: 1 | K185: 31 | L185: 20
B186: 31 | C186: 11 | D186: 11 | E186: 29 | F186: 20 | G186: 3 | H186: 10 | I186: 32 | J186: 18 | K186: 15 | L186: 26
B187: 32 | C187: 19 | D187: 9 | E187: 16 | F187: 28 | G187: 2 | H187: 26 | I187: 3 | J187: 23 | K187: 5 | L187: 24
B188: 5 | C188: 33 | D188: 24 | E188: 33 | F188: 21 | G188: 11 | H188: 12 | I188: 18 | J188: 2 | K188: 4 | L188: 25
B189: 16 | C189: 4 | D189: 27 | E189: 3 | F189: 26 | G189: 16 | H189: 25 | I189: 11 | J189: 3 | K189: 1 | L189: 22
B190: 14 | C190: 10 | D190: 31 | E190: 14 | F190: 33 | G190: 12 | H190: 23 | I190: 25 | J190: 26 | K190: 27 | L190: 16
B191: 6 | C191: 26 | D191: 32 | E191: 27 | F191: 30 | G191: 9 | H191: 16 | I191: 12 | J191: 24 | K191: 21 | L191: 11
B192: 21 | C192: 22 | D192: 12 | E192: 13 | F192: 29 | G192: 10 | H192: 31 | I192: 26 | J192: 9 | K192: 28 | L192: 2
B193: 26 | C193: 9 | D193: 15 | E193: 28 | F193: 18 | G193: 8 | H193: 2 | I193: 10 | J193: 12 | K193: 20 | L193: 3
B194: 22 | C194: 14 | D194: 33 | E194: 24 | F194: 2 | G194: 14 | H194: 29 | I194: 28 | J194: 27 | K194: 8 | L194: 15
B195: 25 | C195: 28 | D195: 29 | E195: 8 | F195: 3 | G195: 6 | H195: 15 | I195: 14 | J195: 21 | K195: 10 | L195: 5
B196: 10 | C196: 21 | D196: 4 | E196: 22 | F196: 12 | G196: 13 | H196: 33 | I196: 27 | J196: 6 | K196: 9 | L196: 4
B197: 7 | C197: 7 | D197: 16 | E197: 9 | F197: 15 | G197: 7 | H197: 4 | I197: 13 | J197: 14 | K197: 12 | L197: 1
B198: 20 | C198: 33 | D198: 29 | E198: 7 | F198: 15 | G198: 23 | H198: 23 | I198: 16 | J198: 33 | K198: 4 | L198: 21
B199: 28 | C199: 30 | D199: 16 | E199: 13 | F199: 5 | G199: 15 | H199: 25 | I199: 11 | J199: 30 | K199: 33 | L199: 7
B200: 13 | C200: 29 | D200: 2 | E200: 6 | F200: 30 | G200: 32 | H200: 24 | I200: 2 | J200: 11 | K200: 15 | L200: 20
... 157 more rows

Sheet NOLH for up to 11 factors
A2: low level | B2: 1 | C2: 1 | D2: 1 | E2: 1 | F2: 1 | G2: 1 | H2: 1 | I2: 1 | J2: 1 | K2: 1 | L2: 1
A3: high level | B3: 33 | C3: 33 | D3: 33 | E3: 33 | F3: 33 | G3: 33 | H3: 33 | I3: 33 | J3: 33 | K3: 33 | L3: 33
A4: decimals | B4: 0 | C4: 0 | D4: 0 | E4: 0 | F4: 0 | G4: 0 | H4: 0 | I4: 0 | J4: 0 | K4: 0 | L4: 0
A5: factor name
B6: =ROUND( B$2+(('coded NOLH for 8-11 factors'!B5-1)*(B$3-B$2)/32), B$4) -> 33 | C6: =ROUND( C$2+(('coded NOLH for 8-11 factors'!C5-1)*(C$3-C$2)/32), C$4) -> 4 | D6: =ROUND( D$2+(('coded NOLH for 8-11 factors'!D5-1)*(D$3-D$2)/32), D$4) -> 15 | E6: =ROUND( E$2+(('coded NOLH for 8-11 factors'!E5-1)*(E$3-E$2)/32), E$4) -> 7 | F6: =ROUND( F$2+(('coded NOLH for 8-11 factors'!F5-1)*(F$3-F$2)/32), F$4) -> 29 | G6: =ROUND( G$2+(('coded NOLH for 8-11 factors'!G5-1)*(G$3-G$2)/32), G$4) -> 21 | H6: =ROUND( H$2+(('coded NOLH for 8-11 factors'!H5-1)*(H$3-H$2)/32), H$4) -> 23 | I6: =ROUND( I$2+(('coded NOLH for 8-11 factors'!I5-1)*(I$3-I$2)/32), I$4) -> 16 | J6: =ROUND( J$2+(('coded NOLH for 8-11 factors'!J5-1)*(J$3-J$2)/32), J$4) -> 33 | K6: =ROUND( K$2+(('coded NOLH for 8-11 factors'!K5-1)*(K$3-K$2)/32), K$4) -> 23 | L6: =ROUND( L$2+(('coded NOLH for 8-11 factors'!L5-1)*(L$3-L$2)/32), L$4) -> 20
B7: =ROUND( B$2+(('coded NOLH for 8-11 factors'!B6-1)*(B$3-B$2)/32), B$4) -> 30 | C7: =ROUND( C$2+(('coded NOLH for 8-11 factors'!C6-1)*(C$3-C$2)/32), C$4) -> 33 | D7: =ROUND( D$2+(('coded NOLH for 8-11 factors'!D6-1)*(D$3-D$2)/32), D$4) -> 5 | E7: =ROUND( E$2+(('coded NOLH for 8-11 factors'!E6-1)*(E$3-E$2)/32), E$4) -> 13 | F7: =ROUND( F$2+(('coded NOLH for 8-11 factors'!F6-1)*(F$3-F$2)/32), F$4) -> 16 | G7: =ROUND( G$2+(('coded NOLH for 8-11 factors'!G6-1)*(G$3-G$2)/32), G$4) -> 7 | H7: =ROUND( H$2+(('coded NOLH for 8-11 factors'!H6-1)*(H$3-H$2)/32), H$4) -> 25 | I7: =ROUND( I$2+(('coded NOLH for 8-11 factors'!I6-1)*(I$3-I$2)/32), I$4) -> 11 | J7: =ROUND( J$2+(('coded NOLH for 8-11 factors'!J6-1)*(J$3-J$2)/32), J$4) -> 30 | K7: =ROUND( K$2+(('coded NOLH for 8-11 factors'!K6-1)*(K$3-K$2)/32), K$4) -> 15 | L7: =ROUND( L$2+(('coded NOLH for 8-11 factors'!L6-1)*(L$3-L$2)/32), L$4) -> 28
B8: =ROUND( B$2+(('coded NOLH for 8-11 factors'!B7-1)*(B$3-B$2)/32), B$4) -> 29 | C8: =ROUND( C$2+(('coded NOLH for 8-11 factors'!C7-1)*(C$3-C$2)/32), C$4) -> 15 | D8: =ROUND( D$2+(('coded NOLH for 8-11 factors'!D7-1)*(D$3-D$2)/32), D$4) -> 30 | E8: =ROUND( E$2+(('coded NOLH for 8-11 factors'!E7-1)*(E$3-E$2)/32), E$4) -> 6 | F8: =ROUND( F$2+(('coded NOLH for 8-11 factors'!F7-1)*(F$3-F$2)/32), F$4) -> 2 | G8: =ROUND( G$2+(('coded NOLH for 8-11 factors'!G7-1)*(G$3-G$2)/32), G$4) -> 20 | H8: =ROUND( H$2+(('coded NOLH for 8-11 factors'!H7-1)*(H$3-H$2)/32), H$4) -> 24 | I8: =ROUND( I$2+(('coded NOLH for 8-11 factors'!I7-1)*(I$3-I$2)/32), I$4) -> 2 | J8: =ROUND( J$2+(('coded NOLH for 8-11 factors'!J7-1)*(J$3-J$2)/32), J$4) -> 11 | K8: =ROUND( K$2+(('coded NOLH for 8-11 factors'!K7-1)*(K$3-K$2)/32), K$4) -> 32 | L8: =ROUND( L$2+(('coded NOLH for 8-11 factors'!L7-1)*(L$3-L$2)/32), L$4) -> 13
B9: =ROUND( B$2+(('coded NOLH for 8-11 factors'!B8-1)*(B$3-B$2)/32), B$4) -> 19 | C9: =ROUND( C$2+(('coded NOLH for 8-11 factors'!C8-1)*(C$3-C$2)/32), C$4) -> 29 | D9: =ROUND( D$2+(('coded NOLH for 8-11 factors'!D8-1)*(D$3-D$2)/32), D$4) -> 33 | E9: =ROUND( E$2+(('coded NOLH for 8-11 factors'!E8-1)*(E$3-E$2)/32), E$4) -> 14 | F9: =ROUND( F$2+(('coded NOLH for 8-11 factors'!F8-1)*(F$3-F$2)/32), F$4) -> 31 | G9: =ROUND( G$2+(('coded NOLH for 8-11 factors'!G8-1)*(G$3-G$2)/32), G$4) -> 6 | H9: =ROUND( H$2+(('coded NOLH for 8-11 factors'!H8-1)*(H$3-H$2)/32), H$4) -> 27 | I9: =ROUND( I$2+(('coded NOLH for 8-11 factors'!I8-1)*(I$3-I$2)/32), I$4) -> 3 | J9: =ROUND( J$2+(('coded NOLH for 8-11 factors'!J8-1)*(J$3-J$2)/32), J$4) -> 15 | K9: =ROUND( K$2+(('coded NOLH for 8-11 factors'!K8-1)*(K$3-K$2)/32), K$4) -> 4 | L9: =ROUND( L$2+(('coded NOLH for 8-11 factors'!L8-1)*(L$3-L$2)/32), L$4) -> 8
B10: =ROUND( B$2+(('coded NOLH for 8-11 factors'!B9-1)*(B$3-B$2)/32), B$4) -> 31 | C10: =ROUND( C$2+(('coded NOLH for 8-11 factors'!C9-1)*(C$3-C$2)/32), C$4) -> 2 | D10: =ROUND( D$2+(('coded NOLH for 8-11 factors'!D9-1)*(D$3-D$2)/32), D$4) -> 16 | E10: =ROUND( E$2+(('coded NOLH for 8-11 factors'!E9-1)*(E$3-E$2)/32), E$4) -> 8 | F10: =ROUND( F$2+(('coded NOLH for 8-11 factors'!F9-1)*(F$3-F$2)/32), F$4) -> 23 | G10: =ROUND( G$2+(('coded NOLH for 8-11 factors'!G9-1)*(G$3-G$2)/32), G$4) -> 24 | H10: =ROUND( H$2+(('coded NOLH for 8-11 factors'!H9-1)*(H$3-H$2)/32), H$4) -> 14 | I10: =ROUND( I$2+(('coded NOLH for 8-11 factors'!I9-1)*(I$3-I$2)/32), I$4) -> 19 | J10: =ROUND( J$2+(('coded NOLH for 8-11 factors'!J9-1)*(J$3-J$2)/32), J$4) -> 3 | K10: =ROUND( K$2+(('coded NOLH for 8-11 factors'!K9-1)*(K$3-K$2)/32), K$4) -> 5 | L10: =ROUND( L$2+(('coded NOLH for 8-11 factors'!L9-1)*(L$3-L$2)/32), L$4) -> 23
B11: =ROUND( B$2+(('coded NOLH for 8-11 factors'!B10-1)*(B$3-B$2)/32), B$4) -> 32 | C11: =ROUND( C$2+(('coded NOLH for 8-11 factors'!C10-1)*(C$3-C$2)/32), C$4) -> 31 | D11: =ROUND( D$2+(('coded NOLH for 8-11 factors'!D10-1)*(D$3-D$2)/32), D$4) -> 11 | E11: =ROUND( E$2+(('coded NOLH for 8-11 factors'!E10-1)*(E$3-E$2)/32), E$4) -> 10 | F11: =ROUND( F$2+(('coded NOLH for 8-11 factors'!F10-1)*(F$3-F$2)/32), F$4) -> 15 | G11: =ROUND( G$2+(('coded NOLH for 8-11 factors'!G10-1)*(G$3-G$2)/32), G$4) -> 8 | H11: =ROUND( H$2+(('coded NOLH for 8-11 factors'!H10-1)*(H$3-H$2)/32), H$4) -> 6 | I11: =ROUND( I$2+(('coded NOLH for 8-11 factors'!I10-1)*(I$3-I$2)/32), I$4) -> 29 | J11: =ROUND( J$2+(('coded NOLH for 8-11 factors'!J10-1)*(J$3-J$2)/32), J$4) -> 2 | K11: =ROUND( K$2+(('coded NOLH for 8-11 factors'!K10-1)*(K$3-K$2)/32), K$4) -> 18 | L11: =ROUND( L$2+(('coded NOLH for 8-11 factors'!L10-1)*(L$3-L$2)/32), L$4) -> 25
B12: =ROUND( B$2+(('coded NOLH for 8-11 factors'!B11-1)*(B$3-B$2)/32), B$4) -> 23 | C12: =ROUND( C$2+(('coded NOLH for 8-11 factors'!C11-1)*(C$3-C$2)/32), C$4) -> 16 | D12: =ROUND( D$2+(('coded NOLH for 8-11 factors'!D11-1)*(D$3-D$2)/32), D$4) -> 32 | E12: =ROUND( E$2+(('coded NOLH for 8-11 factors'!E11-1)*(E$3-E$2)/32), E$4) -> 9 | F12: =ROUND( F$2+(('coded NOLH for 8-11 factors'!F11-1)*(F$3-F$2)/32), F$4) -> 1 | G12: =ROUND( G$2+(('coded NOLH for 8-11 factors'!G11-1)*(G$3-G$2)/32), G$4) -> 22 | H12: =ROUND( H$2+(('coded NOLH for 8-11 factors'!H11-1)*(H$3-H$2)/32), H$4) -> 13 | I12: =ROUND( I$2+(('coded NOLH for 8-11 factors'!I11-1)*(I$3-I$2)/32), I$4) -> 30 | J12: =ROUND( J$2+(('coded NOLH for 8-11 factors'!J11-1)*(J$3-J$2)/32), J$4) -> 29 | K12: =ROUND( K$2+(('coded NOLH for 8-11 factors'!K11-1)*(K$3-K$2)/32), K$4) -> 1 | L12: =ROUND( L$2+(('coded NOLH for 8-11 factors'!L11-1)*(L$3-L$2)/32), L$4) -> 10
B13: =ROUND( B$2+(('coded NOLH for 8-11 factors'!B12-1)*(B$3-B$2)/32), B$4) -> 18 | C13: =ROUND( C$2+(('coded NOLH for 8-11 factors'!C12-1)*(C$3-C$2)/32), C$4) -> 23 | D13: =ROUND( D$2+(('coded NOLH for 8-11 factors'!D12-1)*(D$3-D$2)/32), D$4) -> 31 | E13: =ROUND( E$2+(('coded NOLH for 8-11 factors'!E12-1)*(E$3-E$2)/32), E$4) -> 12 | F13: =ROUND( F$2+(('coded NOLH for 8-11 factors'!F12-1)*(F$3-F$2)/32), F$4) -> 30 | G13: =ROUND( G$2+(('coded NOLH for 8-11 factors'!G12-1)*(G$3-G$2)/32), G$4) -> 9 | H13: =ROUND( H$2+(('coded NOLH for 8-11 factors'!H12-1)*(H$3-H$2)/32), H$4) -> 8 | I13: =ROUND( I$2+(('coded NOLH for 8-11 factors'!I12-1)*(I$3-I$2)/32), I$4) -> 33 | J13: =ROUND( J$2+(('coded NOLH for 8-11 factors'!J12-1)*(J$3-J$2)/32), J$4) -> 18 | K13: =ROUND( K$2+(('coded NOLH for 8-11 factors'!K12-1)*(K$3-K$2)/32), K$4) -> 31 | L13: =ROUND( L$2+(('coded NOLH for 8-11 factors'!L12-1)*(L$3-L$2)/32), L$4) -> 7
B14: =ROUND( B$2+(('coded NOLH for 8-11 factors'!B13-1)*(B$3-B$2)/32), B$4) -> 22 | C14: =ROUND( C$2+(('coded NOLH for 8-11 factors'!C13-1)*(C$3-C$2)/32), C$4) -> 9 | D14: =ROUND( D$2+(('coded NOLH for 8-11 factors'!D13-1)*(D$3-D$2)/32), D$4) -> 8 | E14: =ROUND( E$2+(('coded NOLH for 8-11 factors'!E13-1)*(E$3-E$2)/32), E$4) -> 18 | F14: =ROUND( F$2+(('coded NOLH for 8-11 factors'!F13-1)*(F$3-F$2)/32), F$4) -> 24 | G14: =ROUND( G$2+(('coded NOLH for 8-11 factors'!G13-1)*(G$3-G$2)/32), G$4) -> 11 | H14: =ROUND( H$2+(('coded NOLH for 8-11 factors'!H13-1)*(H$3-H$2)/32), H$4) -> 1 | I14: =ROUND( I$2+(('coded NOLH for 8-11 factors'!I13-1)*(I$3-I$2)/32), I$4) -> 7 | J14: =ROUND( J$2+(('coded NOLH for 8-11 factors'!J13-1)*(J$3-J$2)/32), J$4) -> 20 | K14: =ROUND( K$2+(('coded NOLH for 8-11 factors'!K13-1)*(K$3-K$2)/32), K$4) -> 20 | L14: =ROUND( L$2+(('coded NOLH for 8-11 factors'!L13-1)*(L$3-L$2)/32), L$4) -> 3
B15: =ROUND( B$2+(('coded NOLH for 8-11 factors'!B14-1)*(B$3-B$2)/32), B$4) -> 25 | C15: =ROUND( C$2+(('coded NOLH for 8-11 factors'!C14-1)*(C$3-C$2)/32), C$4) -> 22 | D15: =ROUND( D$2+(('coded NOLH for 8-11 factors'!D14-1)*(D$3-D$2)/32), D$4) -> 10 | E15: =ROUND( E$2+(('coded NOLH for 8-11 factors'!E14-1)*(E$3-E$2)/32), E$4) -> 23 | F15: =ROUND( F$2+(('coded NOLH for 8-11 factors'!F14-1)*(F$3-F$2)/32), F$4) -> 8 | G15: =ROUND( G$2+(('coded NOLH for 8-11 factors'!G14-1)*(G$3-G$2)/32), G$4) -> 18 | H15: =ROUND( H$2+(('coded NOLH for 8-11 factors'!H14-1)*(H$3-H$2)/32), H$4) -> 4 | I15: =ROUND( I$2+(('coded NOLH for 8-11 factors'!I14-1)*(I$3-I$2)/32), I$4) -> 13 | J15: =ROUND( J$2+(('coded NOLH for 8-11 factors'!J14-1)*(J$3-J$2)/32), J$4) -> 28 | K15: =ROUND( K$2+(('coded NOLH for 8-11 factors'!K14-1)*(K$3-K$2)/32), K$4) -> 7 | L15: =ROUND( L$2+(('coded NOLH for 8-11 factors'!L14-1)*(L$3-L$2)/32), L$4) -> 2
B16: =ROUND( B$2+(('coded NOLH for 8-11 factors'!B15-1)*(B$3-B$2)/32), B$4) -> 24 | C16: =ROUND( C$2+(('coded NOLH for 8-11 factors'!C15-1)*(C$3-C$2)/32), C$4) -> 8 | D16: =ROUND( D$2+(('coded NOLH for 8-11 factors'!D15-1)*(D$3-D$2)/32), D$4) -> 25 | E16: =ROUND( E$2+(('coded NOLH for 8-11 factors'!E15-1)*(E$3-E$2)/32), E$4) -> 32 | F16: =ROUND( F$2+(('coded NOLH for 8-11 factors'!F15-1)*(F$3-F$2)/32), F$4) -> 12 | G16: =ROUND( G$2+(('coded NOLH for 8-11 factors'!G15-1)*(G$3-G$2)/32), G$4) -> 3 | H16: =ROUND( H$2+(('coded NOLH for 8-11 factors'!H15-1)*(H$3-H$2)/32), H$4) -> 5 | I16: =ROUND( I$2+(('coded NOLH for 8-11 factors'!I15-1)*(I$3-I$2)/32), I$4) -> 6 | J16: =ROUND( J$2+(('coded NOLH for 8-11 factors'!J15-1)*(J$3-J$2)/32), J$4) -> 13 | K16: =ROUND( K$2+(('coded NOLH for 8-11 factors'!K15-1)*(K$3-K$2)/32), K$4) -> 21 | L16: =ROUND( L$2+(('coded NOLH for 8-11 factors'!L15-1)*(L$3-L$2)/32), L$4) -> 22
B17: =ROUND( B$2+(('coded NOLH for 8-11 factors'!B16-1)*(B$3-B$2)/32), B$4) -> 26 | C17: =ROUND( C$2+(('coded NOLH for 8-11 factors'!C16-1)*(C$3-C$2)/32), C$4) -> 24 | D17: =ROUND( D$2+(('coded NOLH for 8-11 factors'!D16-1)*(D$3-D$2)/32), D$4) -> 22 | E17: =ROUND( E$2+(('coded NOLH for 8-11 factors'!E16-1)*(E$3-E$2)/32), E$4) -> 31 | F17: =ROUND( F$2+(('coded NOLH for 8-11 factors'!F16-1)*(F$3-F$2)/32), F$4) -> 25 | G17: =ROUND( G$2+(('coded NOLH for 8-11 factors'!G16-1)*(G$3-G$2)/32), G$4) -> 32 | H17: =ROUND( H$2+(('coded NOLH for 8-11 factors'!H16-1)*(H$3-H$2)/32), H$4) -> 16 | I17: =ROUND( I$2+(('coded NOLH for 8-11 factors'!I16-1)*(I$3-I$2)/32), I$4) -> 14 | J17: =ROUND( J$2+(('coded NOLH for 8-11 factors'!J16-1)*(J$3-J$2)/32), J$4) -> 8 | K17: =ROUND( K$2+(('coded NOLH for 8-11 factors'!K16-1)*(K$3-K$2)/32), K$4) -> 6 | L17: =ROUND( L$2+(('coded NOLH for 8-11 factors'!L16-1)*(L$3-L$2)/32), L$4) -> 19
B18: =ROUND( B$2+(('coded NOLH for 8-11 factors'!B17-1)*(B$3-B$2)/32), B$4) -> 20 | C18: =ROUND( C$2+(('coded NOLH for 8-11 factors'!C17-1)*(C$3-C$2)/32), C$4) -> 6 | D18: =ROUND( D$2+(('coded NOLH for 8-11 factors'!D17-1)*(D$3-D$2)/32), D$4) -> 7 | E18: =ROUND( E$2+(('coded NOLH for 8-11 factors'!E17-1)*(E$3-E$2)/32), E$4) -> 19 | F18: =ROUND( F$2+(('coded NOLH for 8-11 factors'!F17-1)*(F$3-F$2)/32), F$4) -> 20 | G18: =ROUND( G$2+(('coded NOLH for 8-11 factors'!G17-1)*(G$3-G$2)/32), G$4) -> 5 | H18: =ROUND( H$2+(('coded NOLH for 8-11 factors'!H17-1)*(H$3-H$2)/32), H$4) -> 32 | I18: =ROUND( I$2+(('coded NOLH for 8-11 factors'!I17-1)*(I$3-I$2)/32), I$4) -> 26 | J18: =ROUND( J$2+(('coded NOLH for 8-11 factors'!J17-1)*(J$3-J$2)/32), J$4) -> 12 | K18: =ROUND( K$2+(('coded NOLH for 8-11 factors'!K17-1)*(K$3-K$2)/32), K$4) -> 10 | L18: =ROUND( L$2+(('coded NOLH for 8-11 factors'!L17-1)*(L$3-L$2)/32), L$4) -> 1
B19: =ROUND( B$2+(('coded NOLH for 8-11 factors'!B18-1)*(B$3-B$2)/32), B$4) -> 28 | C19: =ROUND( C$2+(('coded NOLH for 8-11 factors'!C18-1)*(C$3-C$2)/32), C$4) -> 20 | D19: =ROUND( D$2+(('coded NOLH for 8-11 factors'!D18-1)*(D$3-D$2)/32), D$4) -> 13 | E19: =ROUND( E$2+(('coded NOLH for 8-11 factors'!E18-1)*(E$3-E$2)/32), E$4) -> 29 | F19: =ROUND( F$2+(('coded NOLH for 8-11 factors'!F18-1)*(F$3-F$2)/32), F$4) -> 6 | G19: =ROUND( G$2+(('coded NOLH for 8-11 factors'!G18-1)*(G$3-G$2)/32), G$4) -> 19 | H19: =ROUND( H$2+(('coded NOLH for 8-11 factors'!H18-1)*(H$3-H$2)/32), H$4) -> 31 | I19: =ROUND( I$2+(('coded NOLH for 8-11 factors'!I18-1)*(I$3-I$2)/32), I$4) -> 24 | J19: =ROUND( J$2+(('coded NOLH for 8-11 factors'!J18-1)*(J$3-J$2)/32), J$4) -> 9 | K19: =ROUND( K$2+(('coded NOLH for 8-11 factors'!K18-1)*(K$3-K$2)/32), K$4) -> 26 | L19: =ROUND( L$2+(('coded NOLH for 8-11 factors'!L18-1)*(L$3-L$2)/32), L$4) -> 5
B20: =ROUND( B$2+(('coded NOLH for 8-11 factors'!B19-1)*(B$3-B$2)/32), B$4) -> 21 | C20: =ROUND( C$2+(('coded NOLH for 8-11 factors'!C19-1)*(C$3-C$2)/32), C$4) -> 7 | D20: =ROUND( D$2+(('coded NOLH for 8-11 factors'!D19-1)*(D$3-D$2)/32), D$4) -> 28 | E20: =ROUND( E$2+(('coded NOLH for 8-11 factors'!E19-1)*(E$3-E$2)/32), E$4) -> 30 | F20: =ROUND( F$2+(('coded NOLH for 8-11 factors'!F19-1)*(F$3-F$2)/32), F$4) -> 13 | G20: =ROUND( G$2+(('coded NOLH for 8-11 factors'!G19-1)*(G$3-G$2)/32), G$4) -> 1 | H20: =ROUND( H$2+(('coded NOLH for 8-11 factors'!H19-1)*(H$3-H$2)/32), H$4) -> 22 | I20: =ROUND( I$2+(('coded NOLH for 8-11 factors'!I19-1)*(I$3-I$2)/32), I$4) -> 25 | J20: =ROUND( J$2+(('coded NOLH for 8-11 factors'!J19-1)*(J$3-J$2)/32), J$4) -> 24 | K20: =ROUND( K$2+(('coded NOLH for 8-11 factors'!K19-1)*(K$3-K$2)/32), K$4) -> 12 | L20: =ROUND( L$2+(('coded NOLH for 8-11 factors'!L19-1)*(L$3-L$2)/32), L$4) -> 30
B21: =ROUND( B$2+(('coded NOLH for 8-11 factors'!B20-1)*(B$3-B$2)/32), B$4) -> 27 | C21: =ROUND( C$2+(('coded NOLH for 8-11 factors'!C20-1)*(C$3-C$2)/32), C$4) -> 21 | D21: =ROUND( D$2+(('coded NOLH for 8-11 factors'!D20-1)*(D$3-D$2)/32), D$4) -> 20 | E21: =ROUND( E$2+(('coded NOLH for 8-11 factors'!E20-1)*(E$3-E$2)/32), E$4) -> 33 | F21: =ROUND( F$2+(('coded NOLH for 8-11 factors'!F20-1)*(F$3-F$2)/32), F$4) -> 27 | G21: =ROUND( G$2+(('coded NOLH for 8-11 factors'!G20-1)*(G$3-G$2)/32), G$4) -> 30 | H21: =ROUND( H$2+(('coded NOLH for 8-11 factors'!H20-1)*(H$3-H$2)/32), H$4) -> 19 | I21: =ROUND( I$2+(('coded NOLH for 8-11 factors'!I20-1)*(I$3-I$2)/32), I$4) -> 22 | J21: =ROUND( J$2+(('coded NOLH for 8-11 factors'!J20-1)*(J$3-J$2)/32), J$4) -> 27 | K21: =ROUND( K$2+(('coded NOLH for 8-11 factors'!K20-1)*(K$3-K$2)/32), K$4) -> 25 | L21: =ROUND( L$2+(('coded NOLH for 8-11 factors'!L20-1)*(L$3-L$2)/32), L$4) -> 18
B22: =ROUND( B$2+(('coded NOLH for 8-11 factors'!B21-1)*(B$3-B$2)/32), B$4) -> 17 | C22: =ROUND( C$2+(('coded NOLH for 8-11 factors'!C21-1)*(C$3-C$2)/32), C$4) -> 17 | D22: =ROUND( D$2+(('coded NOLH for 8-11 factors'!D21-1)*(D$3-D$2)/32), D$4) -> 17 | E22: =ROUND( E$2+(('coded NOLH for 8-11 factors'!E21-1)*(E$3-E$2)/32), E$4) -> 17 | F22: =ROUND( F$2+(('coded NOLH for 8-11 factors'!F21-1)*(F$3-F$2)/32), F$4) -> 17 | G22: =ROUND( G$2+(('coded NOLH for 8-11 factors'!G21-1)*(G$3-G$2)/32), G$4) -> 17 | H22: =ROUND( H$2+(('coded NOLH for 8-11 factors'!H21-1)*(H$3-H$2)/32), H$4) -> 17 | I22: =ROUND( I$2+(('coded NOLH for 8-11 factors'!I21-1)*(I$3-I$2)/32), I$4) -> 17 | J22: =ROUND( J$2+(('coded NOLH for 8-11 factors'!J21-1)*(J$3-J$2)/32), J$4) -> 17 | K22: =ROUND( K$2+(('coded NOLH for 8-11 factors'!K21-1)*(K$3-K$2)/32), K$4) -> 17 | L22: =ROUND( L$2+(('coded NOLH for 8-11 factors'!L21-1)*(L$3-L$2)/32), L$4) -> 17
B23: =ROUND( B$2+(('coded NOLH for 8-11 factors'!B22-1)*(B$3-B$2)/32), B$4) -> 1 | C23: =ROUND( C$2+(('coded NOLH for 8-11 factors'!C22-1)*(C$3-C$2)/32), C$4) -> 30 | D23: =ROUND( D$2+(('coded NOLH for 8-11 factors'!D22-1)*(D$3-D$2)/32), D$4) -> 19 | E23: =ROUND( E$2+(('coded NOLH for 8-11 factors'!E22-1)*(E$3-E$2)/32), E$4) -> 27 | F23: =ROUND( F$2+(('coded NOLH for 8-11 factors'!F22-1)*(F$3-F$2)/32), F$4) -> 5 | G23: =ROUND( G$2+(('coded NOLH for 8-11 factors'!G22-1)*(G$3-G$2)/32), G$4) -> 13 | H23: =ROUND( H$2+(('coded NOLH for 8-11 factors'!H22-1)*(H$3-H$2)/32), H$4) -> 11 | I23: =ROUND( I$2+(('coded NOLH for 8-11 factors'!I22-1)*(I$3-I$2)/32), I$4) -> 18 | J23: =ROUND( J$2+(('coded NOLH for 8-11 factors'!J22-1)*(J$3-J$2)/32), J$4) -> 1 | K23: =ROUND( K$2+(('coded NOLH for 8-11 factors'!K22-1)*(K$3-K$2)/32), K$4) -> 11 | L23: =ROUND( L$2+(('coded NOLH for 8-11 factors'!L22-1)*(L$3-L$2)/32), L$4) -> 14
B24: =ROUND( B$2+(('coded NOLH for 8-11 factors'!B23-1)*(B$3-B$2)/32), B$4) -> 4 | C24: =ROUND( C$2+(('coded NOLH for 8-11 factors'!C23-1)*(C$3-C$2)/32), C$4) -> 1 | D24: =ROUND( D$2+(('coded NOLH for 8-11 factors'!D23-1)*(D$3-D$2)/32), D$4) -> 29 | E24: =ROUND( E$2+(('coded NOLH for 8-11 factors'!E23-1)*(E$3-E$2)/32), E$4) -> 21 | F24: =ROUND( F$2+(('coded NOLH for 8-11 factors'!F23-1)*(F$3-F$2)/32), F$4) -> 18 | G24: =ROUND( G$2+(('coded NOLH for 8-11 factors'!G23-1)*(G$3-G$2)/32), G$4) -> 27 | H24: =ROUND( H$2+(('coded NOLH for 8-11 factors'!H23-1)*(H$3-H$2)/32), H$4) -> 9 | I24: =ROUND( I$2+(('coded NOLH for 8-11 factors'!I23-1)*(I$3-I$2)/32), I$4) -> 23 | J24: =ROUND( J$2+(('coded NOLH for 8-11 factors'!J23-1)*(J$3-J$2)/32), J$4) -> 4 | K24: =ROUND( K$2+(('coded NOLH for 8-11 factors'!K23-1)*(K$3-K$2)/32), K$4) -> 19 | L24: =ROUND( L$2+(('coded NOLH for 8-11 factors'!L23-1)*(L$3-L$2)/32), L$4) -> 6
B25: =ROUND( B$2+(('coded NOLH for 8-11 factors'!B24-1)*(B$3-B$2)/32), B$4) -> 5 | C25: =ROUND( C$2+(('coded NOLH for 8-11 factors'!C24-1)*(C$3-C$2)/32), C$4) -> 19 | D25: =ROUND( D$2+(('coded NOLH for 8-11 factors'!D24-1)*(D$3-D$2)/32), D$4) -> 4 | E25: =ROUND( E$2+(('coded NOLH for 8-11 factors'!E24-1)*(E$3-E$2)/32), E$4) -> 28 | F25: =ROUND( F$2+(('coded NOLH for 8-11 factors'!F24-1)*(F$3-F$2)/32), F$4) -> 32 | G25: =ROUND( G$2+(('coded NOLH for 8-11 factors'!G24-1)*(G$3-G$2)/32), G$4) -> 14 | H25: =ROUND( H$2+(('coded NOLH for 8-11 factors'!H24-1)*(H$3-H$2)/32), H$4) -> 10 | I25: =ROUND( I$2+(('coded NOLH for 8-11 factors'!I24-1)*(I$3-I$2)/32), I$4) -> 32 | J25: =ROUND( J$2+(('coded NOLH for 8-11 factors'!J24-1)*(J$3-J$2)/32), J$4) -> 23 | K25: =ROUND( K$2+(('coded NOLH for 8-11 factors'!K24-1)*(K$3-K$2)/32), K$4) -> 2 | L25: =ROUND( L$2+(('coded NOLH for 8-11 factors'!L24-1)*(L$3-L$2)/32), L$4) -> 21
B26: =ROUND( B$2+(('coded NOLH for 8-11 factors'!B25-1)*(B$3-B$2)/32), B$4) -> 15 | C26: =ROUND( C$2+(('coded NOLH for 8-11 factors'!C25-1)*(C$3-C$2)/32), C$4) -> 5 | D26: =ROUND( D$2+(('coded NOLH for 8-11 factors'!D25-1)*(D$3-D$2)/32), D$4) -> 1 | E26: =ROUND( E$2+(('coded NOLH for 8-11 factors'!E25-1)*(E$3-E$2)/32), E$4) -> 20 | F26: =ROUND( F$2+(('coded NOLH for 8-11 factors'!F25-1)*(F$3-F$2)/32), F$4) -> 3 | G26: =ROUND( G$2+(('coded NOLH for 8-11 factors'!G25-1)*(G$3-G$2)/32), G$4) -> 28 | H26: =ROUND( H$2+(('coded NOLH for 8-11 factors'!H25-1)*(H$3-H$2)/32), H$4) -> 7 | I26: =ROUND( I$2+(('coded NOLH for 8-11 factors'!I25-1)*(I$3-I$2)/32), I$4) -> 31 | J26: =ROUND( J$2+(('coded NOLH for 8-11 factors'!J25-1)*(J$3-J$2)/32), J$4) -> 19 | K26: =ROUND( K$2+(('coded NOLH for 8-11 factors'!K25-1)*(K$3-K$2)/32), K$4) -> 30 | L26: =ROUND( L$2+(('coded NOLH for 8-11 factors'!L25-1)*(L$3-L$2)/32), L$4) -> 26
B27: =ROUND( B$2+(('coded NOLH for 8-11 factors'!B26-1)*(B$3-B$2)/32), B$4) -> 3 | C27: =ROUND( C$2+(('coded NOLH for 8-11 factors'!C26-1)*(C$3-C$2)/32), C$4) -> 32 | D27: =ROUND( D$2+(('coded NOLH for 8-11 factors'!D26-1)*(D$3-D$2)/32), D$4) -> 18 | E27: =ROUND( E$2+(('coded NOLH for 8-11 factors'!E26-1)*(E$3-E$2)/32), E$4) -> 26 | F27: =ROUND( F$2+(('coded NOLH for 8-11 factors'!F26-1)*(F$3-F$2)/32), F$4) -> 11 | G27: =ROUND( G$2+(('coded NOLH for 8-11 factors'!G26-1)*(G$3-G$2)/32), G$4) -> 10 | H27: =ROUND( H$2+(('coded NOLH for 8-11 factors'!H26-1)*(H$3-H$2)/32), H$4) -> 20 | I27: =ROUND( I$2+(('coded NOLH for 8-11 factors'!I26-1)*(I$3-I$2)/32), I$4) -> 15 | J27: =ROUND( J$2+(('coded NOLH for 8-11 factors'!J26-1)*(J$3-J$2)/32), J$4) -> 31 | K27: =ROUND( K$2+(('coded NOLH for 8-11 factors'!K26-1)*(K$3-K$2)/32), K$4) -> 29 | L27: =ROUND( L$2+(('coded NOLH for 8-11 factors'!L26-1)*(L$3-L$2)/32), L$4) -> 11
B28: =ROUND( B$2+(('coded NOLH for 8-11 factors'!B27-1)*(B$3-B$2)/32), B$4) -> 2 | C28: =ROUND( C$2+(('coded NOLH for 8-11 factors'!C27-1)*(C$3-C$2)/32), C$4) -> 3 | D28: =ROUND( D$2+(('coded NOLH for 8-11 factors'!D27-1)*(D$3-D$2)/32), D$4) -> 23 | E28: =ROUND( E$2+(('coded NOLH for 8-11 factors'!E27-1)*(E$3-E$2)/32), E$4) -> 24 | F28: =ROUND( F$2+(('coded NOLH for 8-11 factors'!F27-1)*(F$3-F$2)/32), F$4) -> 19 | G28: =ROUND( G$2+(('coded NOLH for 8-11 factors'!G27-1)*(G$3-G$2)/32), G$4) -> 26 | H28: =ROUND( H$2+(('coded NOLH for 8-11 factors'!H27-1)*(H$3-H$2)/32), H$4) -> 28 | I28: =ROUND( I$2+(('coded NOLH for 8-11 factors'!I27-1)*(I$3-I$2)/32), I$4) -> 5 | J28: =ROUND( J$2+(('coded NOLH for 8-11 factors'!J27-1)*(J$3-J$2)/32), J$4) -> 32 | K28: =ROUND( K$2+(('coded NOLH for 8-11 factors'!K27-1)*(K$3-K$2)/32), K$4) -> 16 | L28: =ROUND( L$2+(('coded NOLH for 8-11 factors'!L27-1)*(L$3-L$2)/32), L$4) -> 9
B29: =ROUND( B$2+(('coded NOLH for 8-11 factors'!B28-1)*(B$3-B$2)/32), B$4) -> 11 | C29: =ROUND( C$2+(('coded NOLH for 8-11 factors'!C28-1)*(C$3-C$2)/32), C$4) -> 18 | D29: =ROUND( D$2+(('coded NOLH for 8-11 factors'!D28-1)*(D$3-D$2)/32), D$4) -> 2 | E29: =ROUND( E$2+(('coded NOLH for 8-11 factors'!E28-1)*(E$3-E$2)/32), E$4) -> 25 | F29: =ROUND( F$2+(('coded NOLH for 8-11 factors'!F28-1)*(F$3-F$2)/32), F$4) -> 33 | G29: =ROUND( G$2+(('coded NOLH for 8-11 factors'!G28-1)*(G$3-G$2)/32), G$4) -> 12 | H29: =ROUND( H$2+(('coded NOLH for 8-11 factors'!H28-1)*(H$3-H$2)/32), H$4) -> 21 | I29: =ROUND( I$2+(('coded NOLH for 8-11 factors'!I28-1)*(I$3-I$2)/32), I$4) -> 4 | J29: =ROUND( J$2+(('coded NOLH for 8-11 factors'!J28-1)*(J$3-J$2)/32), J$4) -> 5 | K29: =ROUND( K$2+(('coded NOLH for 8-11 factors'!K28-1)*(K$3-K$2)/32), K$4) -> 33 | L29: =ROUND( L$2+(('coded NOLH for 8-11 factors'!L28-1)*(L$3-L$2)/32), L$4) -> 24
B30: =ROUND( B$2+(('coded NOLH for 8-11 factors'!B29-1)*(B$3-B$2)/32), B$4) -> 16 | C30: =ROUND( C$2+(('coded NOLH for 8-11 factors'!C29-1)*(C$3-C$2)/32), C$4) -> 11 | D30: =ROUND( D$2+(('coded NOLH for 8-11 factors'!D29-1)*(D$3-D$2)/32), D$4) -> 3 | E30: =ROUND( E$2+(('coded NOLH for 8-11 factors'!E29-1)*(E$3-E$2)/32), E$4) -> 22 | F30: =ROUND( F$2+(('coded NOLH for 8-11 factors'!F29-1)*(F$3-F$2)/32), F$4) -> 4 | G30: =ROUND( G$2+(('coded NOLH for 8-11 factors'!G29-1)*(G$3-G$2)/32), G$4) -> 25 | H30: =ROUND( H$2+(('coded NOLH for 8-11 factors'!H29-1)*(H$3-H$2)/32), H$4) -> 26 | I30: =ROUND( I$2+(('coded NOLH for 8-11 factors'!I29-1)*(I$3-I$2)/32), I$4) -> 1 | J30: =ROUND( J$2+(('coded NOLH for 8-11 factors'!J29-1)*(J$3-J$2)/32), J$4) -> 16 | K30: =ROUND( K$2+(('coded NOLH for 8-11 factors'!K29-1)*(K$3-K$2)/32), K$4) -> 3 | L30: =ROUND( L$2+(('coded NOLH for 8-11 factors'!L29-1)*(L$3-L$2)/32), L$4) -> 27
B31: =ROUND( B$2+(('coded NOLH for 8-11 factors'!B30-1)*(B$3-B$2)/32), B$4) -> 12 | C31: =ROUND( C$2+(('coded NOLH for 8-11 factors'!C30-1)*(C$3-C$2)/32), C$4) -> 25 | D31: =ROUND( D$2+(('coded NOLH for 8-11 factors'!D30-1)*(D$3-D$2)/32), D$4) -> 26 | E31: =ROUND( E$2+(('coded NOLH for 8-11 factors'!E30-1)*(E$3-E$2)/32), E$4) -> 16 | F31: =ROUND( F$2+(('coded NOLH for 8-11 factors'!F30-1)*(F$3-F$2)/32), F$4) -> 10 | G31: =ROUND( G$2+(('coded NOLH for 8-11 factors'!G30-1)*(G$3-G$2)/32), G$4) -> 23 | H31: =ROUND( H$2+(('coded NOLH for 8-11 factors'!H30-1)*(H$3-H$2)/32), H$4) -> 33 | I31: =ROUND( I$2+(('coded NOLH for 8-11 factors'!I30-1)*(I$3-I$2)/32), I$4) -> 27 | J31: =ROUND( J$2+(('coded NOLH for 8-11 factors'!J30-1)*(J$3-J$2)/32), J$4) -> 14 | K31: =ROUND( K$2+(('coded NOLH for 8-11 factors'!K30-1)*(K$3-K$2)/32), K$4) -> 14 | L31: =ROUND( L$2+(('coded NOLH for 8-11 factors'!L30-1)*(L$3-L$2)/32), L$4) -> 31
B32: =ROUND( B$2+(('coded NOLH for 8-11 factors'!B31-1)*(B$3-B$2)/32), B$4) -> 9 | C32: =ROUND( C$2+(('coded NOLH for 8-11 factors'!C31-1)*(C$3-C$2)/32), C$4) -> 12 | D32: =ROUND( D$2+(('coded NOLH for 8-11 factors'!D31-1)*(D$3-D$2)/32), D$4) -> 24 | E32: =ROUND( E$2+(('coded NOLH for 8-11 factors'!E31-1)*(E$3-E$2)/32), E$4) -> 11 | F32: =ROUND( F$2+(('coded NOLH for 8-11 factors'!F31-1)*(F$3-F$2)/32), F$4) -> 26 | G32: =ROUND( G$2+(('coded NOLH for 8-11 factors'!G31-1)*(G$3-G$2)/32), G$4) -> 16 | H32: =ROUND( H$2+(('coded NOLH for 8-11 factors'!H31-1)*(H$3-H$2)/32), H$4) -> 30 | I32: =ROUND( I$2+(('coded NOLH for 8-11 factors'!I31-1)*(I$3-I$2)/32), I$4) -> 21 | J32: =ROUND( J$2+(('coded NOLH for 8-11 factors'!J31-1)*(J$3-J$2)/32), J$4) -> 6 | K32: =ROUND( K$2+(('coded NOLH for 8-11 factors'!K31-1)*(K$3-K$2)/32), K$4) -> 27 | L32: =ROUND( L$2+(('coded NOLH for 8-11 factors'!L31-1)*(L$3-L$2)/32), L$4) -> 32
B33: =ROUND( B$2+(('coded NOLH for 8-11 factors'!B32-1)*(B$3-B$2)/32), B$4) -> 10 | C33: =ROUND( C$2+(('coded NOLH for 8-11 factors'!C32-1)*(C$3-C$2)/32), C$4) -> 26 | D33: =ROUND( D$2+(('coded NOLH for 8-11 factors'!D32-1)*(D$3-D$2)/32), D$4) -> 9 | E33: =ROUND( E$2+(('coded NOLH for 8-11 factors'!E32-1)*(E$3-E$2)/32), E$4) -> 2 | F33: =ROUND( F$2+(('coded NOLH for 8-11 factors'!F32-1)*(F$3-F$2)/32), F$4) -> 22 | G33: =ROUND( G$2+(('coded NOLH for 8-11 factors'!G32-1)*(G$3-G$2)/32), G$4) -> 31 | H33: =ROUND( H$2+(('coded NOLH for 8-11 factors'!H32-1)*(H$3-H$2)/32), H$4) -> 29 | I33: =ROUND( I$2+(('coded NOLH for 8-11 factors'!I32-1)*(I$3-I$2)/32), I$4) -> 28 | J33: =ROUND( J$2+(('coded NOLH for 8-11 factors'!J32-1)*(J$3-J$2)/32), J$4) -> 21 | K33: =ROUND( K$2+(('coded NOLH for 8-11 factors'!K32-1)*(K$3-K$2)/32), K$4) -> 13 | L33: =ROUND( L$2+(('coded NOLH for 8-11 factors'!L32-1)*(L$3-L$2)/32), L$4) -> 12
B34: =ROUND( B$2+(('coded NOLH for 8-11 factors'!B33-1)*(B$3-B$2)/32), B$4) -> 8 | C34: =ROUND( C$2+(('coded NOLH for 8-11 factors'!C33-1)*(C$3-C$2)/32), C$4) -> 10 | D34: =ROUND( D$2+(('coded NOLH for 8-11 factors'!D33-1)*(D$3-D$2)/32), D$4) -> 12 | E34: =ROUND( E$2+(('coded NOLH for 8-11 factors'!E33-1)*(E$3-E$2)/32), E$4) -> 3 | F34: =ROUND( F$2+(('coded NOLH for 8-11 factors'!F33-1)*(F$3-F$2)/32), F$4) -> 9 | G34: =ROUND( G$2+(('coded NOLH for 8-11 factors'!G33-1)*(G$3-G$2)/32), G$4) -> 2 | H34: =ROUND( H$2+(('coded NOLH for 8-11 factors'!H33-1)*(H$3-H$2)/32), H$4) -> 18 | I34: =ROUND( I$2+(('coded NOLH for 8-11 factors'!I33-1)*(I$3-I$2)/32), I$4) -> 20 | J34: =ROUND( J$2+(('coded NOLH for 8-11 factors'!J33-1)*(J$3-J$2)/32), J$4) -> 26 | K34: =ROUND( K$2+(('coded NOLH for 8-11 factors'!K33-1)*(K$3-K$2)/32), K$4) -> 28 | L34: =ROUND( L$2+(('coded NOLH for 8-11 factors'!L33-1)*(L$3-L$2)/32), L$4) -> 15
B35: =ROUND( B$2+(('coded NOLH for 8-11 factors'!B34-1)*(B$3-B$2)/32), B$4) -> 14 | C35: =ROUND( C$2+(('coded NOLH for 8-11 factors'!C34-1)*(C$3-C$2)/32), C$4) -> 28 | D35: =ROUND( D$2+(('coded NOLH for 8-11 factors'!D34-1)*(D$3-D$2)/32), D$4) -> 27 | E35: =ROUND( E$2+(('coded NOLH for 8-11 factors'!E34-1)*(E$3-E$2)/32), E$4) -> 15 | F35: =ROUND( F$2+(('coded NOLH for 8-11 factors'!F34-1)*(F$3-F$2)/32), F$4) -> 14 | G35: =ROUND( G$2+(('coded NOLH for 8-11 factors'!G34-1)*(G$3-G$2)/32), G$4) -> 29 | H35: =ROUND( H$2+(('coded NOLH for 8-11 factors'!H34-1)*(H$3-H$2)/32), H$4) -> 2 | I35: =ROUND( I$2+(('coded NOLH for 8-11 factors'!I34-1)*(I$3-I$2)/32), I$4) -> 8 | J35: =ROUND( J$2+(('coded NOLH for 8-11 factors'!J34-1)*(J$3-J$2)/32), J$4) -> 22 | K35: =ROUND( K$2+(('coded NOLH for 8-11 factors'!K34-1)*(K$3-K$2)/32), K$4) -> 24 | L35: =ROUND( L$2+(('coded NOLH for 8-11 factors'!L34-1)*(L$3-L$2)/32), L$4) -> 33
B36: =ROUND( B$2+(('coded NOLH for 8-11 factors'!B35-1)*(B$3-B$2)/32), B$4) -> 6 | C36: =ROUND( C$2+(('coded NOLH for 8-11 factors'!C35-1)*(C$3-C$2)/32), C$4) -> 14 | D36: =ROUND( D$2+(('coded NOLH for 8-11 factors'!D35-1)*(D$3-D$2)/32), D$4) -> 21 | E36: =ROUND( E$2+(('coded NOLH for 8-11 factors'!E35-1)*(E$3-E$2)/32), E$4) -> 5 | F36: =ROUND( F$2+(('coded NOLH for 8-11 factors'!F35-1)*(F$3-F$2)/32), F$4) -> 28 | G36: =ROUND( G$2+(('coded NOLH for 8-11 factors'!G35-1)*(G$3-G$2)/32), G$4) -> 15 | H36: =ROUND( H$2+(('coded NOLH for 8-11 factors'!H35-1)*(H$3-H$2)/32), H$4) -> 3 | I36: =ROUND( I$2+(('coded NOLH for 8-11 factors'!I35-1)*(I$3-I$2)/32), I$4) -> 10 | J36: =ROUND( J$2+(('coded NOLH for 8-11 factors'!J35-1)*(J$3-J$2)/32), J$4) -> 25 | K36: =ROUND( K$2+(('coded NOLH for 8-11 factors'!K35-1)*(K$3-K$2)/32), K$4) -> 8 | L36: =ROUND( L$2+(('coded NOLH for 8-11 factors'!L35-1)*(L$3-L$2)/32), L$4) -> 29
B37: =ROUND( B$2+(('coded NOLH for 8-11 factors'!B36-1)*(B$3-B$2)/32), B$4) -> 13 | C37: =ROUND( C$2+(('coded NOLH for 8-11 factors'!C36-1)*(C$3-C$2)/32), C$4) -> 27 | D37: =ROUND( D$2+(('coded NOLH for 8-11 factors'!D36-1)*(D$3-D$2)/32), D$4) -> 6 | E37: =ROUND( E$2+(('coded NOLH for 8-11 factors'!E36-1)*(E$3-E$2)/32), E$4) -> 4 | F37: =ROUND( F$2+(('coded NOLH for 8-11 factors'!F36-1)*(F$3-F$2)/32), F$4) -> 21 | G37: =ROUND( G$2+(('coded NOLH for 8-11 factors'!G36-1)*(G$3-G$2)/32), G$4) -> 33 | H37: =ROUND( H$2+(('coded NOLH for 8-11 factors'!H36-1)*(H$3-H$2)/32), H$4) -> 12 | I37: =ROUND( I$2+(('coded NOLH for 8-11 factors'!I36-1)*(I$3-I$2)/32), I$4) -> 9 | J37: =ROUND( J$2+(('coded NOLH for 8-11 factors'!J36-1)*(J$3-J$2)/32), J$4) -> 10 | K37: =ROUND( K$2+(('coded NOLH for 8-11 factors'!K36-1)*(K$3-K$2)/32), K$4) -> 22 | L37: =ROUND( L$2+(('coded NOLH for 8-11 factors'!L36-1)*(L$3-L$2)/32), L$4) -> 4
B38: =ROUND( B$2+(('coded NOLH for 8-11 factors'!B37-1)*(B$3-B$2)/32), B$4) -> 7 | C38: =ROUND( C$2+(('coded NOLH for 8-11 factors'!C37-1)*(C$3-C$2)/32), C$4) -> 13 | D38: =ROUND( D$2+(('coded NOLH for 8-11 factors'!D37-1)*(D$3-D$2)/32), D$4) -> 14 | E38: =ROUND( E$2+(('coded NOLH for 8-11 factors'!E37-1)*(E$3-E$2)/32), E$4) -> 1 | F38: =ROUND( F$2+(('coded NOLH for 8-11 factors'!F37-1)*(F$3-F$2)/32), F$4) -> 7 | G38: =ROUND( G$2+(('coded NOLH for 8-11 factors'!G37-1)*(G$3-G$2)/32), G$4) -> 4 | H38: =ROUND( H$2+(('coded NOLH for 8-11 factors'!H37-1)*(H$3-H$2)/32), H$4) -> 15 | I38: =ROUND( I$2+(('coded NOLH for 8-11 factors'!I37-1)*(I$3-I$2)/32), I$4) -> 12 | J38: =ROUND( J$2+(('coded NOLH for 8-11 factors'!J37-1)*(J$3-J$2)/32), J$4) -> 7 | K38: =ROUND( K$2+(('coded NOLH for 8-11 factors'!K37-1)*(K$3-K$2)/32), K$4) -> 9 | L38: =ROUND( L$2+(('coded NOLH for 8-11 factors'!L37-1)*(L$3-L$2)/32), L$4) -> 16

Sheet coded NOLH for 12-16 factors (hidden)
A1: Cioppa's factor ID | B1: f1 | C1: f2 | D1: f3 | E1: f5 | F1: f6 | G1: f8 | H1: f11 | I1: f12 | J1: f13 | K1: f14 | L1: f15 | M1: f16 | N1: f4 | O1: f9 | P1: f7 | Q1: f10
A2: low level
A3: high level
A4: factor name
B5: 47 | C5: 4 | D5: 24 | E5: 22 | F5: 9 | G5: 50 | H5: 52 | I5: 32 | J5: 63 | K5: 47 | L5: 36 | M5: 61 | N5: 13 | O5: 41 | P5: 53 | Q5: 45
B6: 62 | C6: 47 | D6: 8 | E6: 28 | F6: 23 | G6: 17 | H6: 36 | I6: 49 | J6: 47 | K6: 60 | L6: 50 | M6: 32 | N6: 16 | O6: 23 | P6: 23 | Q6: 11
B7: 58 | C7: 24 | D7: 62 | E7: 15 | F7: 20 | G7: 56 | H7: 11 | I7: 30 | J7: 27 | K7: 38 | L7: 52 | M7: 57 | N7: 31 | O7: 34 | P7: 18 | Q7: 58
B8: 42 | C8: 58 | D8: 47 | E8: 30 | F8: 5 | G8: 28 | H8: 18 | I8: 18 | J8: 9 | K8: 64 | L8: 59 | M8: 41 | N8: 6 | O8: 14 | P8: 56 | Q8: 22
B9: 60 | C9: 31 | D9: 13 | E9: 2 | F9: 7 | G9: 11 | H9: 17 | I9: 40 | J9: 40 | K9: 32 | L9: 5 | M9: 55 | N9: 42 | O9: 39 | P9: 46 | Q9: 52
B10: 35 | C10: 60 | D10: 16 | E10: 32 | F10: 11 | G10: 43 | H10: 10 | I10: 56 | J10: 58 | K10: 8 | L10: 27 | M10: 51 | N10: 58 | O10: 5 | P10: 12 | Q10: 4
B11: 50 | C11: 13 | D11: 35 | E11: 3 | F11: 17 | G11: 22 | H11: 58 | I11: 28 | J11: 11 | K11: 29 | L11: 23 | M11: 59 | N11: 62 | O11: 48 | P11: 7 | Q11: 36
B12: 53 | C12: 50 | D12: 60 | E12: 21 | F12: 25 | G12: 60 | H12: 46 | I12: 2 | J12: 17 | K12: 21 | L12: 2 | M12: 42 | N12: 47 | O12: 3 | P12: 36 | Q12: 13
B13: 45 | C13: 3 | D13: 2 | E13: 53 | F13: 27 | G13: 40 | H13: 26 | I13: 7 | J13: 52 | K13: 20 | L13: 55 | M13: 26 | N13: 22 | O13: 16 | P13: 34 | Q13: 65
B14: 63 | C14: 45 | D14: 32 | E14: 50 | F14: 1 | G14: 19 | H14: 60 | I14: 25 | J14: 44 | K14: 1 | L14: 44 | M14: 3 | N14: 28 | O14: 55 | P14: 2 | Q14: 31
B15: 34 | C15: 2 | D15: 63 | E15: 35 | F15: 14 | G15: 29 | H15: 21 | I15: 45 | J15: 2 | K15: 16 | L15: 47 | M15: 13 | N15: 15 | O15: 4 | P15: 16 | Q15: 54
B16: 64 | C16: 34 | D16: 45 | E16: 60 | F16: 12 | G16: 5 | H16: 25 | I16: 53 | J16: 21 | K16: 25 | L16: 35 | M16: 17 | N16: 30 | O16: 38 | P16: 60 | Q16: 15
B17: 36 | C17: 15 | D17: 22 | E17: 42 | F17: 26 | G17: 32 | H17: 13 | I17: 19 | J17: 62 | K17: 62 | L17: 10 | M17: 4 | N17: 64 | O17: 12 | P17: 41 | Q17: 48
B18: 51 | C18: 36 | D18: 28 | E18: 58 | F18: 18 | G18: 63 | H18: 4 | I18: 1 | J18: 34 | K18: 35 | L18: 17 | M18: 20 | N18: 34 | O18: 44 | P18: 26 | Q18: 26
B19: 38 | C19: 22 | D19: 51 | E19: 62 | F19: 29 | G19: 15 | H19: 31 | I19: 61 | J19: 10 | K19: 54 | L19: 1 | M19: 29 | N19: 63 | O19: 20 | P19: 38 | Q19: 56
B20: 44 | C20: 38 | D20: 36 | E20: 47 | F20: 10 | G20: 62 | H20: 65 | I20: 37 | J20: 30 | K20: 53 | L20: 24 | M20: 8 | N20: 45 | O20: 64 | P20: 55 | Q20: 29
B21: 56 | C21: 29 | D21: 26 | E21: 9 | F21: 44 | G21: 65 | H21: 51 | I21: 63 | J21: 38 | K21: 39 | L21: 21 | M21: 19 | N21: 27 | O21: 42 | P21: 44 | Q21: 25
B22: 37 | C22: 56 | D22: 18 | E22: 23 | F22: 38 | G22: 30 | H22: 54 | I22: 52 | J22: 24 | K22: 48 | L22: 8 | M22: 1 | N22: 1 | O22: 6 | P22: 24 | Q22: 46
B23: 48 | C23: 26 | D23: 37 | E23: 20 | F23: 51 | G23: 58 | H23: 3 | I23: 27 | J23: 35 | K23: 52 | L23: 32 | M23: 6 | N23: 14 | O23: 57 | P23: 3 | Q23: 34
B24: 40 | C24: 48 | D24: 56 | E24: 5 | F24: 36 | G24: 12 | H24: 29 | I24: 12 | J24: 53 | K24: 57 | L24: 4 | M24: 28 | N24: 12 | O24: 17 | P24: 31 | Q24: 47
B25: 54 | C25: 14 | D25: 27 | E25: 7 | F25: 64 | G25: 25 | H25: 2 | I25: 46 | J25: 20 | K25: 7 | L25: 28 | M25: 12 | N25: 40 | O25: 53 | P25: 65 | Q25: 27
B26: 52 | C26: 54 | D26: 1 | E26: 11 | F26: 34 | G26: 46 | H26: 32 | I26: 58 | J26: 12 | K26: 23 | L26: 60 | M26: 21 | N26: 48 | O26: 10 | P26: 29 | Q26: 64
B27: 65 | C27: 27 | D27: 52 | E27: 17 | F27: 63 | G27: 9 | H27: 47 | I27: 9 | J27: 37 | K27: 22 | L27: 37 | M27: 18 | N27: 37 | O27: 36 | P27: 14 | Q27: 17
B28: 39 | C28: 65 | D28: 54 | E28: 25 | F28: 45 | G28: 35 | H28: 38 | I28: 15 | J28: 65 | K28: 5 | L28: 46 | M28: 14 | N28: 56 | O28: 15 | P28: 61 | Q28: 60
B29: 41 | C29: 17 | D29: 7 | E29: 39 | F29: 53 | G29: 48 | H29: 61 | I29: 11 | J29: 7 | K29: 11 | L29: 18 | M29: 43 | N29: 9 | O29: 1 | P29: 58 | Q29: 24
B30: 49 | C30: 41 | D30: 11 | E30: 65 | F30: 50 | G30: 13 | H30: 42 | I30: 24 | J30: 25 | K30: 30 | L30: 3 | M30: 56 | N30: 23 | O30: 37 | P30: 4 | Q30: 61
B31: 55 | C31: 7 | D31: 49 | E31: 52 | F31: 35 | G31: 59 | H31: 22 | I31: 62 | J31: 50 | K31: 17 | L31: 15 | M31: 39 | N31: 20 | O31: 8 | P31: 27 | Q31: 9
B32: 59 | C32: 55 | D32: 41 | E32: 54 | F32: 60 | G32: 21 | H32: 9 | I32: 43 | J32: 48 | K32: 24 | L32: 25 | M32: 64 | N32: 5 | O32: 47 | P32: 45 | Q32: 38
B33: 61 | C33: 20 | D33: 9 | E33: 40 | F33: 42 | G33: 14 | H33: 27 | I33: 6 | J33: 15 | K33: 56 | L33: 57 | M33: 36 | N33: 59 | O33: 21 | P33: 47 | Q33: 7
B34: 46 | C34: 61 | D34: 23 | E34: 48 | F34: 58 | G34: 64 | H34: 23 | I34: 35 | J34: 5 | K34: 51 | L34: 40 | M34: 44 | N34: 55 | O34: 40 | P34: 17 | Q34: 43
B35: 43 | C35: 9 | D35: 46 | E35: 37 | F35: 62 | G35: 27 | H35: 50 | I35: 50 | J35: 60 | K35: 63 | L35: 53 | M35: 35 | N35: 49 | O35: 7 | P35: 9 | Q35: 16
B36: 57 | C36: 43 | D36: 61 | E36: 56 | F36: 47 | G36: 42 | H36: 59 | I36: 44 | J36: 43 | K36: 40 | L36: 54 | M36: 50 | N36: 41 | O36: 35 | P36: 51 | Q36: 63
B37: 33 | C37: 33 | D37: 33 | E37: 33 | F37: 33 | G37: 33 | H37: 33 | I37: 33 | J37: 33 | K37: 33 | L37: 33 | M37: 33 | N37: 33 | O37: 33 | P37: 33 | Q37: 33
B38: 19 | C38: 62 | D38: 42 | E38: 44 | F38: 57 | G38: 16 | H38: 14 | I38: 34 | J38: 3 | K38: 19 | L38: 30 | M38: 5 | N38: 53 | O38: 25 | P38: 13 | Q38: 21
B39: 4 | C39: 19 | D39: 58 | E39: 38 | F39: 43 | G39: 49 | H39: 30 | I39: 17 | J39: 19 | K39: 6 | L39: 16 | M39: 34 | N39: 50 | O39: 43 | P39: 43 | Q39: 55
B40: 8 | C40: 42 | D40: 4 | E40: 51 | F40: 46 | G40: 10 | H40: 55 | I40: 36 | J40: 39 | K40: 28 | L40: 14 | M40: 9 | N40: 35 | O40: 32 | P40: 48 | Q40: 8
B41: 24 | C41: 8 | D41: 19 | E41: 36 | F41: 61 | G41: 38 | H41: 48 | I41: 48 | J41: 57 | K41: 2 | L41: 7 | M41: 25 | N41: 60 | O41: 52 | P41: 10 | Q41: 44
B42: 6 | C42: 35 | D42: 53 | E42: 64 | F42: 59 | G42: 55 | H42: 49 | I42: 26 | J42: 26 | K42: 34 | L42: 61 | M42: 11 | N42: 24 | O42: 27 | P42: 20 | Q42: 14
B43: 31 | C43: 6 | D43: 50 | E43: 34 | F43: 55 | G43: 23 | H43: 56 | I43: 10 | J43: 8 | K43: 58 | L43: 39 | M43: 15 | N43: 8 | O43: 61 | P43: 54 | Q43: 62
B44: 16 | C44: 53 | D44: 31 | E44: 63 | F44: 49 | G44: 44 | H44: 8 | I44: 38 | J44: 55 | K44: 37 | L44: 43 | M44: 7 | N44: 4 | O44: 18 | P44: 59 | Q44: 30
B45: 13 | C45: 16 | D45: 6 | E45: 45 | F45: 41 | G45: 6 | H45: 20 | I45: 64 | J45: 49 | K45: 45 | L45: 64 | M45: 24 | N45: 19 | O45: 63 | P45: 30 | Q45: 53
B46: 21 | C46: 63 | D46: 64 | E46: 13 | F46: 39 | G46: 26 | H46: 40 | I46: 59 | J46: 14 | K46: 46 | L46: 11 | M46: 40 | N46: 44 | O46: 50 | P46: 32 | Q46: 1
B47: 3 | C47: 21 | D47: 34 | E47: 16 | F47: 65 | G47: 47 | H47: 6 | I47: 41 | J47: 22 | K47: 65 | L47: 22 | M47: 63 | N47: 38 | O47: 11 | P47: 64 | Q47: 35
B48: 32 | C48: 64 | D48: 3 | E48: 31 | F48: 52 | G48: 37 | H48: 45 | I48: 21 | J48: 64 | K48: 50 | L48: 19 | M48: 53 | N48: 51 | O48: 62 | P48: 50 | Q48: 12
B49: 2 | C49: 32 | D49: 21 | E49: 6 | F49: 54 | G49: 61 | H49: 41 | I49: 13 | J49: 45 | K49: 41 | L49: 31 | M49: 49 | N49: 36 | O49: 28 | P49: 6 | Q49: 51
B50: 30 | C50: 51 | D50: 44 | E50: 24 | F50: 40 | G50: 34 | H50: 53 | I50: 47 | J50: 4 | K50: 4 | L50: 56 | M50: 62 | N50: 2 | O50: 54 | P50: 25 | Q50: 18
B51: 15 | C51: 30 | D51: 38 | E51: 8 | F51: 48 | G51: 3 | H51: 62 | I51: 65 | J51: 32 | K51: 31 | L51: 49 | M51: 46 | N51: 32 | O51: 22 | P51: 40 | Q51: 40
B52: 28 | C52: 44 | D52: 15 | E52: 4 | F52: 37 | G52: 51 | H52: 35 | I52: 5 | J52: 56 | K52: 12 | L52: 65 | M52: 37 | N52: 3 | O52: 46 | P52: 28 | Q52: 10
B53: 22 | C53: 28 | D53: 30 | E53: 19 | F53: 56 | G53: 4 | H53: 1 | I53: 29 | J53: 36 | K53: 13 | L53: 42 | M53: 58 | N53: 21 | O53: 2 | P53: 11 | Q53: 37
B54: 10 | C54: 37 | D54: 40 | E54: 57 | F54: 22 | G54: 1 | H54: 15 | I54: 3 | J54: 28 | K54: 27 | L54: 45 | M54: 47 | N54: 39 | O54: 24 | P54: 22 | Q54: 41
B55: 29 | C55: 10 | D55: 48 | E55: 43 | F55: 28 | G55: 36 | H55: 12 | I55: 14 | J55: 42 | K55: 18 | L55: 58 | M55: 65 | N55: 65 | O55: 60 | P55: 42 | Q55: 20
B56: 18 | C56: 40 | D56: 29 | E56: 46 | F56: 15 | G56: 8 | H56: 63 | I56: 39 | J56: 31 | K56: 14 | L56: 34 | M56: 60 | N56: 52 | O56: 9 | P56: 63 | Q56: 32
B57: 26 | C57: 18 | D57: 10 | E57: 61 | F57: 30 | G57: 54 | H57: 37 | I57: 54 | J57: 13 | K57: 9 | L57: 62 | M57: 38 | N57: 54 | O57: 49 | P57: 35 | Q57: 19
B58: 12 | C58: 52 | D58: 39 | E58: 59 | F58: 2 | G58: 41 | H58: 64 | I58: 20 | J58: 46 | K58: 59 | L58: 38 | M58: 54 | N58: 26 | O58: 13 | P58: 1 | Q58: 39
B59: 14 | C59: 12 | D59: 65 | E59: 55 | F59: 32 | G59: 20 | H59: 34 | I59: 8 | J59: 54 | K59: 43 | L59: 6 | M59: 45 | N59: 18 | O59: 56 | P59: 37 | Q59: 2
B60: 1 | C60: 39 | D60: 14 | E60: 49 | F60: 3 | G60: 57 | H60: 19 | I60: 57 | J60: 29 | K60: 44 | L60: 29 | M60: 48 | N60: 29 | O60: 30 | P60: 52 | Q60: 49
B61: 27 | C61: 1 | D61: 12 | E61: 41 | F61: 21 | G61: 31 | H61: 28 | I61: 51 | J61: 1 | K61: 61 | L61: 20 | M61: 52 | N61: 10 | O61: 51 | P61: 5 | Q61: 6
B62: 25 | C62: 49 | D62: 59 | E62: 27 | F62: 13 | G62: 18 | H62: 5 | I62: 55 | J62: 59 | K62: 55 | L62: 48 | M62: 23 | N62: 57 | O62: 65 | P62: 8 | Q62: 42
B63: 17 | C63: 25 | D63: 55 | E63: 1 | F63: 16 | G63: 53 | H63: 24 | I63: 42 | J63: 41 | K63: 36 | L63: 63 | M63: 10 | N63: 43 | O63: 29 | P63: 62 | Q63: 5
B64: 11 | C64: 59 | D64: 17 | E64: 14 | F64: 31 | G64: 7 | H64: 44 | I64: 4 | J64: 16 | K64: 49 | L64: 51 | M64: 27 | N64: 46 | O64: 58 | P64: 39 | Q64: 57
B65: 7 | C65: 11 | D65: 25 | E65: 12 | F65: 6 | G65: 45 | H65: 57 | I65: 23 | J65: 18 | K65: 42 | L65: 41 | M65: 2 | N65: 61 | O65: 19 | P65: 21 | Q65: 28
B66: 5 | C66: 46 | D66: 57 | E66: 26 | F66: 24 | G66: 52 | H66: 39 | I66: 60 | J66: 51 | K66: 10 | L66: 9 | M66: 30 | N66: 7 | O66: 45 | P66: 19 | Q66: 59
B67: 20 | C67: 5 | D67: 43 | E67: 18 | F67: 8 | G67: 2 | H67: 43 | I67: 31 | J67: 61 | K67: 15 | L67: 26 | M67: 22 | N67: 11 | O67: 26 | P67: 49 | Q67: 23
B68: 23 | C68: 57 | D68: 20 | E68: 29 | F68: 4 | G68: 39 | H68: 16 | I68: 16 | J68: 6 | K68: 3 | L68: 13 | M68: 31 | N68: 17 | O68: 59 | P68: 57 | Q68: 50
B69: 9 | C69: 23 | D69: 5 | E69: 10 | F69: 19 | G69: 24 | H69: 7 | I69: 22 | J69: 23 | K69: 26 | L69: 12 | M69: 16 | N69: 25 | O69: 31 | P69: 15 | Q69: 3
B70: 4 | C70: 47 | D70: 9 | E70: 13 | F70: 24 | G70: 36 | H70: 32 | I70: 22 | J70: 47 | K70: 50 | L70: 63 | M70: 41 | N70: 61 | O70: 52 | P70: 45 | Q70: 53
B71: 47 | C71: 62 | D71: 23 | E71: 16 | F71: 8 | G71: 50 | H71: 49 | I71: 28 | J71: 60 | K71: 17 | L71: 47 | M71: 23 | N71: 32 | O71: 36 | P71: 11 | Q71: 23
B72: 24 | C72: 58 | D72: 20 | E72: 31 | F72: 62 | G72: 52 | H72: 30 | I72: 15 | J72: 38 | K72: 56 | L72: 27 | M72: 34 | N72: 57 | O72: 11 | P72: 58 | Q72: 18
B73: 58 | C73: 42 | D73: 5 | E73: 6 | F73: 47 | G73: 59 | H73: 18 | I73: 30 | J73: 64 | K73: 28 | L73: 9 | M73: 14 | N73: 41 | O73: 18 | P73: 22 | Q73: 56
B74: 31 | C74: 60 | D74: 7 | E74: 42 | F74: 13 | G74: 5 | H74: 40 | I74: 2 | J74: 32 | K74: 11 | L74: 40 | M74: 39 | N74: 55 | O74: 17 | P74: 52 | Q74: 46
B75: 60 | C75: 35 | D75: 11 | E75: 58 | F75: 16 | G75: 27 | H75: 56 | I75: 32 | J75: 8 | K75: 43 | L75: 58 | M75: 5 | N75: 51 | O75: 10 | P75: 4 | Q75: 12
B76: 13 | C76: 50 | D76: 17 | E76: 62 | F76: 35 | G76: 23 | H76: 28 | I76: 3 | J76: 29 | K76: 22 | L76: 11 | M76: 48 | N76: 59 | O76: 58 | P76: 36 | Q76: 7
B77: 50 | C77: 53 | D77: 25 | E77: 47 | F77: 60 | G77: 2 | H77: 2 | I77: 21 | J77: 21 | K77: 60 | L77: 17 | M77: 3 | N77: 42 | O77: 46 | P77: 13 | Q77: 36
B78: 3 | C78: 45 | D78: 27 | E78: 22 | F78: 2 | G78: 55 | H78: 7 | I78: 53 | J78: 20 | K78: 40 | L78: 52 | M78: 16 | N78: 26 | O78: 26 | P78: 65 | Q78: 34
B79: 45 | C79: 63 | D79: 1 | E79: 28 | F79: 32 | G79: 44 | H79: 25 | I79: 50 | J79: 1 | K79: 19 | L79: 44 | M79: 55 | N79: 3 | O79: 60 | P79: 31 | Q79: 2
B80: 2 | C80: 34 | D80: 14 | E80: 15 | F80: 63 | G80: 47 | H80: 45 | I80: 35 | J80: 16 | K80: 29 | L80: 2 | M80: 4 | N80: 13 | O80: 21 | P80: 54 | Q80: 16
B81: 34 | C81: 64 | D81: 12 | E81: 30 | F81: 45 | G81: 35 | H81: 53 | I81: 60 | J81: 25 | K81: 5 | L81: 21 | M81: 38 | N81: 17 | O81: 25 | P81: 15 | Q81: 60
B82: 15 | C82: 36 | D82: 26 | E82: 64 | F82: 22 | G82: 10 | H82: 19 | I82: 42 | J82: 62 | K82: 32 | L82: 62 | M82: 12 | N82: 4 | O82: 13 | P82: 48 | Q82: 41
B83: 36 | C83: 51 | D83: 18 | E83: 34 | F83: 28 | G83: 17 | H83: 1 | I83: 58 | J83: 35 | K83: 63 | L83: 34 | M83: 44 | N83: 20 | O83: 4 | P83: 26 | Q83: 26
B84: 22 | C84: 38 | D84: 29 | E84: 63 | F84: 51 | G84: 1 | H84: 61 | I84: 62 | J84: 54 | K84: 15 | L84: 10 | M84: 20 | N84: 29 | O84: 31 | P84: 56 | Q84: 38
B85: 38 | C85: 44 | D85: 10 | E85: 45 | F85: 36 | G85: 24 | H85: 37 | I85: 47 | J85: 53 | K85: 62 | L85: 30 | M85: 64 | N85: 8 | O85: 65 | P85: 29 | Q85: 55
B86: 29 | C86: 56 | D86: 44 | E86: 27 | F86: 26 | G86: 21 | H86: 63 | I86: 9 | J86: 39 | K86: 65 | L86: 38 | M86: 42 | N86: 19 | O86: 51 | P86: 25 | Q86: 44
B87: 56 | C87: 37 | D87: 38 | E87: 1 | F87: 18 | G87: 8 | H87: 52 | I87: 23 | J87: 48 | K87: 30 | L87: 24 | M87: 6 | N87: 1 | O87: 54 | P87: 46 | Q87: 24
B88: 26 | C88: 48 | D88: 51 | E88: 14 | F88: 37 | G88: 32 | H88: 27 | I88: 20 | J88: 52 | K88: 58 | L88: 35 | M88: 57 | N88: 6 | O88: 3 | P88: 34 | Q88: 3
B89: 48 | C89: 40 | D89: 36 | E89: 12 | F89: 56 | G89: 4 | H89: 12 | I89: 5 | J89: 57 | K89: 12 | L89: 53 | M89: 17 | N89: 28 | O89: 29 | P89: 47 | Q89: 31
B90: 14 | C90: 54 | D90: 64 | E90: 40 | F90: 27 | G90: 28 | H90: 46 | I90: 7 | J90: 7 | K90: 25 | L90: 20 | M90: 53 | N90: 12 | O90: 2 | P90: 27 | Q90: 65
B91: 54 | C91: 52 | D91: 34 | E91: 48 | F91: 1 | G91: 60 | H91: 58 | I91: 11 | J91: 23 | K91: 46 | L91: 12 | M91: 10 | N91: 21 | O91: 32 | P91: 64 | Q91: 29
B92: 27 | C92: 65 | D92: 63 | E92: 37 | F92: 52 | G92: 37 | H92: 9 | I92: 17 | J92: 22 | K92: 9 | L92: 37 | M92: 36 | N92: 18 | O92: 47 | P92: 17 | Q92: 14
B93: 65 | C93: 39 | D93: 45 | E93: 56 | F93: 54 | G93: 46 | H93: 15 | I93: 25 | J93: 5 | K93: 35 | L93: 65 | M93: 15 | N93: 14 | O93: 38 | P93: 60 | Q93: 61
B94: 17 | C94: 41 | D94: 53 | E94: 9 | F94: 7 | G94: 18 | H94: 11 | I94: 39 | J94: 11 | K94: 48 | L94: 7 | M94: 1 | N94: 43 | O94: 61 | P94: 24 | Q94: 58
B95: 41 | C95: 49 | D95: 50 | E95: 23 | F95: 11 | G95: 3 | H95: 24 | I95: 65 | J95: 30 | K95: 13 | L95: 25 | M95: 37 | N95: 56 | O95: 42 | P95: 61 | Q95: 4
B96: 7 | C96: 55 | D96: 35 | E96: 20 | F96: 49 | G96: 15 | H96: 62 | I96: 52 | J96: 17 | K96: 59 | L96: 50 | M96: 8 | N96: 39 | O96: 22 | P96: 9 | Q96: 27
B97: 55 | C97: 59 | D97: 60 | E97: 5 | F97: 41 | G97: 25 | H97: 43 | I97: 54 | J97: 24 | K97: 21 | L97: 48 | M97: 47 | N97: 64 | O97: 9 | P97: 38 | Q97: 45
B98: 20 | C98: 61 | D98: 42 | E98: 59 | F98: 9 | G98: 57 | H98: 6 | I98: 40 | J98: 56 | K98: 14 | L98: 15 | M98: 21 | N98: 36 | O98: 27 | P98: 7 | Q98: 47
B99: 61 | C99: 46 | D99: 58 | E99: 55 | F99: 23 | G99: 40 | H99: 35 | I99: 48 | J99: 51 | K99: 64 | L99: 5 | M99: 40 | N99: 44 | O99: 23 | P99: 43 | Q99: 17
B100: 9 | C100: 43 | D100: 62 | E100: 49 | F100: 46 | G100: 53 | H100: 50 | I100: 37 | J100: 63 | K100: 27 | L100: 60 | M100: 7 | N100: 35 | O100: 50 | P100: 16 | Q100: 9
B101: 43 | C101: 57 | D101: 47 | E101: 41 | F101: 61 | G101: 54 | H101: 44 | I101: 56 | J101: 40 | K101: 42 | L101: 43 | M101: 35 | N101: 50 | O101: 59 | P101: 63 | Q101: 51
B102: 62 | C102: 19 | D102: 57 | E102: 53 | F102: 42 | G102: 30 | H102: 34 | I102: 44 | J102: 19 | K102: 16 | L102: 3 | M102: 25 | N102: 5 | O102: 14 | P102: 21 | Q102: 13
B103: 19 | C103: 4 | D103: 43 | E103: 50 | F103: 58 | G103: 16 | H103: 17 | I103: 38 | J103: 6 | K103: 49 | L103: 19 | M103: 43 | N103: 34 | O103: 30 | P103: 55 | Q103: 43
B104: 42 | C104: 8 | D104: 46 | E104: 35 | F104: 4 | G104: 14 | H104: 36 | I104: 51 | J104: 28 | K104: 10 | L104: 39 | M104: 32 | N104: 9 | O104: 55 | P104: 8 | Q104: 48
B105: 8 | C105: 24 | D105: 61 | E105: 60 | F105: 19 | G105: 7 | H105: 48 | I105: 36 | J105: 2 | K105: 38 | L105: 57 | M105: 52 | N105: 25 | O105: 48 | P105: 44 | Q105: 10
B106: 35 | C106: 6 | D106: 59 | E106: 24 | F106: 53 | G106: 61 | H106: 26 | I106: 64 | J106: 34 | K106: 55 | L106: 26 | M106: 27 | N106: 11 | O106: 49 | P106: 14 | Q106: 20
B107: 6 | C107: 31 | D107: 55 | E107: 8 | F107: 50 | G107: 39 | H107: 10 | I107: 34 | J107: 58 | K107: 23 | L107: 8 | M107: 61 | N107: 15 | O107: 56 | P107: 62 | Q107: 54
B108: 53 | C108: 16 | D108: 49 | E108: 4 | F108: 31 | G108: 43 | H108: 38 | I108: 63 | J108: 37 | K108: 44 | L108: 55 | M108: 18 | N108: 7 | O108: 8 | P108: 30 | Q108: 59
B109: 16 | C109: 13 | D109: 41 | E109: 19 | F109: 6 | G109: 64 | H109: 64 | I109: 45 | J109: 45 | K109: 6 | L109: 49 | M109: 63 | N109: 24 | O109: 20 | P109: 53 | Q109: 30
B110: 63 | C110: 21 | D110: 39 | E110: 44 | F110: 64 | G110: 11 | H110: 59 | I110: 13 | J110: 46 | K110: 26 | L110: 14 | M110: 50 | N110: 40 | O110: 40 | P110: 1 | Q110: 32
B111: 21 | C111: 3 | D111: 65 | E111: 38 | F111: 34 | G111: 22 | H111: 41 | I111: 16 | J111: 65 | K111: 47 | L111: 22 | M111: 11 | N111: 63 | O111: 6 | P111: 35 | Q111: 64
B112: 64 | C112: 32 | D112: 52 | E112: 51 | F112: 3 | G112: 19 | H112: 21 | I112: 31 | J112: 50 | K112: 37 | L112: 64 | M112: 62 | N112: 53 | O112: 45 | P112: 12 | Q112: 50
B113: 32 | C113: 2 | D113: 54 | E113: 36 | F113: 21 | G113: 31 | H113: 13 | I113: 6 | J113: 41 | K113: 61 | L113: 45 | M113: 28 | N113: 49 | O113: 41 | P113: 51 | Q113: 6
B114: 51 | C114: 30 | D114: 40 | E114: 2 | F114: 44 | G114: 56 | H114: 47 | I114: 24 | J114: 4 | K114: 34 | L114: 4 | M114: 54 | N114: 62 | O114: 53 | P114: 18 | Q114: 25
B115: 30 | C115: 15 | D115: 48 | E115: 32 | F115: 38 | G115: 49 | H115: 65 | I115: 8 | J115: 31 | K115: 3 | L115: 32 | M115: 22 | N115: 46 | O115: 62 | P115: 40 | Q115: 40
B116: 44 | C116: 28 | D116: 37 | E116: 3 | F116: 15 | G116: 65 | H116: 5 | I116: 4 | J116: 12 | K116: 51 | L116: 56 | M116: 46 | N116: 37 | O116: 35 | P116: 10 | Q116: 28
B117: 28 | C117: 22 | D117: 56 | E117: 21 | F117: 30 | G117: 42 | H117: 29 | I117: 19 | J117: 13 | K117: 4 | L117: 36 | M117: 2 | N117: 58 | O117: 1 | P117: 37 | Q117: 11
B118: 37 | C118: 10 | D118: 22 | E118: 39 | F118: 40 | G118: 45 | H118: 3 | I118: 57 | J118: 27 | K118: 1 | L118: 28 | M118: 24 | N118: 47 | O118: 15 | P118: 41 | Q118: 22
B119: 10 | C119: 29 | D119: 28 | E119: 65 | F119: 48 | G119: 58 | H119: 14 | I119: 43 | J119: 18 | K119: 36 | L119: 42 | M119: 60 | N119: 65 | O119: 12 | P119: 20 | Q119: 42
B120: 40 | C120: 18 | D120: 15 | E120: 52 | F120: 29 | G120: 34 | H120: 39 | I120: 46 | J120: 14 | K120: 8 | L120: 31 | M120: 9 | N120: 60 | O120: 63 | P120: 32 | Q120: 63
B121: 18 | C121: 26 | D121: 30 | E121: 54 | F121: 10 | G121: 62 | H121: 54 | I121: 61 | J121: 9 | K121: 54 | L121: 13 | M121: 49 | N121: 38 | O121: 37 | P121: 19 | Q121: 35
B122: 52 | C122: 12 | D122: 2 | E122: 26 | F122: 39 | G122: 38 | H122: 20 | I122: 59 | J122: 59 | K122: 41 | L122: 46 | M122: 13 | N122: 54 | O122: 64 | P122: 39 | Q122: 1
B123: 12 | C123: 14 | D123: 32 | E123: 18 | F123: 65 | G123: 6 | H123: 8 | I123: 55 | J123: 43 | K123: 20 | L123: 54 | M123: 56 | N123: 45 | O123: 34 | P123: 2 | Q123: 37
B124: 39 | C124: 1 | D124: 3 | E124: 29 | F124: 14 | G124: 29 | H124: 57 | I124: 49 | J124: 44 | K124: 57 | L124: 29 | M124: 30 | N124: 48 | O124: 19 | P124: 49 | Q124: 52
B125: 1 | C125: 27 | D125: 21 | E125: 10 | F125: 12 | G125: 20 | H125: 51 | I125: 41 | J125: 61 | K125: 31 | L125: 1 | M125: 51 | N125: 52 | O125: 28 | P125: 6 | Q125: 5
B126: 49 | C126: 25 | D126: 13 | E126: 57 | F126: 59 | G126: 48 | H126: 55 | I126: 27 | J126: 55 | K126: 18 | L126: 59 | M126: 65 | N126: 23 | O126: 5 | P126: 42 | Q126: 8
B127: 25 | C127: 17 | D127: 16 | E127: 43 | F127: 55 | G127: 63 | H127: 42 | I127: 1 | J127: 36 | K127: 53 | L127: 41 | M127: 29 | N127: 10 | O127: 24 | P127: 5 | Q127: 62
B128: 59 | C128: 11 | D128: 31 | E128: 46 | F128: 17 | G128: 51 | H128: 4 | I128: 14 | J128: 49 | K128: 7 | L128: 16 | M128: 58 | N128: 27 | O128: 44 | P128: 57 | Q128: 39
B129: 11 | C129: 7 | D129: 6 | E129: 61 | F129: 25 | G129: 41 | H129: 23 | I129: 12 | J129: 42 | K129: 45 | L129: 18 | M129: 19 | N129: 2 | O129: 57 | P129: 28 | Q129: 21
B130: 46 | C130: 5 | D130: 24 | E130: 7 | F130: 57 | G130: 9 | H130: 60 | I130: 26 | J130: 10 | K130: 52 | L130: 51 | M130: 45 | N130: 30 | O130: 39 | P130: 59 | Q130: 19
B131: 5 | C131: 20 | D131: 8 | E131: 11 | F131: 43 | G131: 26 | H131: 31 | I131: 18 | J131: 15 | K131: 2 | L131: 61 | M131: 26 | N131: 22 | O131: 43 | P131: 23 | Q131: 49
B132: 57 | C132: 23 | D132: 4 | E132: 17 | F132: 20 | G132: 13 | H132: 16 | I132: 29 | J132: 3 | K132: 39 | L132: 6 | M132: 59 | N132: 31 | O132: 16 | P132: 50 | Q132: 57
B133: 23 | C133: 9 | D133: 19 | E133: 25 | F133: 5 | G133: 12 | H133: 22 | I133: 10 | J133: 26 | K133: 24 | L133: 23 | M133: 31 | N133: 16 | O133: 7 | P133: 3 | Q133: 15
B134: 52 | C134: 4 | D134: 24 | E134: 61 | F134: 41 | G134: 13 | H134: 36 | I134: 63 | J134: 32 | K134: 53 | L134: 45 | M134: 9 | N134: 22 | O134: 50 | P134: 47 | Q134: 47
B135: 36 | C135: 47 | D135: 8 | E135: 32 | F135: 23 | G135: 16 | H135: 50 | I135: 47 | J135: 49 | K135: 23 | L135: 11 | M135: 23 | N135: 28 | O135: 17 | P135: 62 | Q135: 60
B136: 11 | C136: 24 | D136: 62 | E136: 57 | F136: 34 | G136: 31 | H136: 52 | I136: 27 | J136: 30 | K136: 18 | L136: 58 | M136: 20 | N136: 15 | O136: 56 | P136: 58 | Q136: 38
B137: 18 | C137: 58 | D137: 47 | E137: 41 | F137: 14 | G137: 6 | H137: 59 | I137: 9 | J137: 18 | K137: 56 | L137: 22 | M137: 5 | N137: 30 | O137: 28 | P137: 42 | Q137: 64
B138: 17 | C138: 31 | D138: 13 | E138: 55 | F138: 39 | G138: 42 | H138: 5 | I138: 40 | J138: 40 | K138: 46 | L138: 52 | M138: 7 | N138: 2 | O138: 11 | P138: 60 | Q138: 32
B139: 10 | C139: 60 | D139: 16 | E139: 51 | F139: 5 | G139: 58 | H139: 27 | I139: 58 | J139: 56 | K139: 12 | L139: 4 | M139: 11 | N139: 32 | O139: 43 | P139: 35 | Q139: 8
B140: 58 | C140: 13 | D140: 35 | E140: 59 | F140: 48 | G140: 62 | H140: 23 | I140: 11 | J140: 28 | K140: 7 | L140: 36 | M140: 17 | N140: 3 | O140: 22 | P140: 50 | Q140: 29
B141: 46 | C141: 50 | D141: 60 | E141: 42 | F141: 3 | G141: 47 | H141: 2 | I141: 17 | J141: 2 | K141: 36 | L141: 13 | M141: 25 | N141: 21 | O141: 60 | P141: 53 | Q141: 21
B142: 26 | C142: 3 | D142: 2 | E142: 26 | F142: 16 | G142: 22 | H142: 55 | I142: 52 | J142: 7 | K142: 34 | L142: 65 | M142: 27 | N142: 53 | O142: 40 | P142: 45 | Q142: 20
B143: 60 | C143: 45 | D143: 32 | E143: 3 | F143: 55 | G143: 28 | H143: 44 | I143: 44 | J143: 25 | K143: 2 | L143: 31 | M143: 1 | N143: 50 | O143: 19 | P143: 63 | Q143: 1
B144: 21 | C144: 2 | D144: 63 | E144: 13 | F144: 4 | G144: 15 | H144: 47 | I144: 2 | J144: 45 | K144: 16 | L144: 54 | M144: 14 | N144: 35 | O144: 29 | P144: 34 | Q144: 16
B145: 25 | C145: 34 | D145: 45 | E145: 17 | F145: 38 | G145: 30 | H145: 35 | I145: 21 | J145: 53 | K145: 60 | L145: 15 | M145: 12 | N145: 60 | O145: 5 | P145: 64 | Q145: 25
B146: 13 | C146: 15 | D146: 22 | E146: 4 | F146: 12 | G146: 64 | H146: 10 | I146: 62 | J146: 19 | K146: 41 | L146: 48 | M146: 26 | N146: 42 | O146: 32 | P146: 36 | Q146: 62
B147: 4 | C147: 36 | D147: 28 | E147: 20 | F147: 44 | G147: 34 | H147: 17 | I147: 34 | J147: 1 | K147: 26 | L147: 26 | M147: 18 | N147: 58 | O147: 63 | P147: 51 | Q147: 35
B148: 31 | C148: 22 | D148: 51 | E148: 29 | F148: 20 | G148: 63 | H148: 1 | I148: 10 | J148: 61 | K148: 38 | L148: 56 | M148: 29 | N148: 62 | O148: 15 | P148: 38 | Q148: 54
B149: 65 | C149: 38 | D149: 36 | E149: 8 | F149: 64 | G149: 45 | H149: 24 | I149: 30 | J149: 37 | K149: 55 | L149: 29 | M149: 10 | N149: 47 | O149: 62 | P149: 44 | Q149: 53
B150: 51 | C150: 29 | D150: 26 | E150: 19 | F150: 42 | G150: 27 | H150: 21 | I150: 38 | J150: 63 | K150: 44 | L150: 25 | M150: 44 | N150: 9 | O150: 65 | P150: 56 | Q150: 39
B151: 54 | C151: 56 | D151: 18 | E151: 1 | F151: 6 | G151: 1 | H151: 8 | I151: 24 | J151: 52 | K151: 24 | L151: 46 | M151: 38 | N151: 23 | O151: 30 | P151: 37 | Q151: 48
B152: 3 | C152: 26 | D152: 37 | E152: 6 | F152: 57 | G152: 14 | H152: 32 | I152: 35 | J152: 27 | K152: 3 | L152: 34 | M152: 51 | N152: 20 | O152: 58 | P152: 48 | Q152: 52
B153: 29 | C153: 48 | D153: 56 | E153: 28 | F153: 17 | G153: 12 | H153: 4 | I153: 53 | J153: 12 | K153: 31 | L153: 47 | M153: 36 | N153: 5 | O153: 12 | P153: 40 | Q153: 57
B154: 2 | C154: 14 | D154: 27 | E154: 12 | F154: 53 | G154: 40 | H154: 28 | I154: 20 | J154: 46 | K154: 65 | L154: 27 | M154: 64 | N154: 7 | O154: 25 | P154: 54 | Q154: 7
B155: 32 | C155: 54 | D155: 1 | E155: 21 | F155: 10 | G155: 48 | H155: 60 | I155: 12 | J155: 58 | K155: 29 | L155: 64 | M155: 34 | N155: 11 | O155: 46 | P155: 52 | Q155: 23
B156: 47 | C156: 27 | D156: 52 | E156: 18 | F156: 36 | G156: 37 | H156: 37 | I156: 37 | J156: 9 | K156: 14 | L156: 17 | M156: 63 | N156: 17 | O156: 9 | P156: 65 | Q156: 22
B157: 38 | C157: 65 | D157: 54 | E157: 14 | F157: 15 | G157: 56 | H157: 46 | I157: 65 | J157: 15 | K157: 61 | L157: 60 | M157: 45 | N157: 25 | O157: 35 | P157: 39 | Q157: 5
B158: 61 | C158: 17 | D158: 7 | E158: 43 | F158: 1 | G158: 9 | H158: 18 | I158: 7 | J158: 11 | K158: 58 | L158: 24 | M158: 53 | N158: 39 | O158: 48 | P158: 41 | Q158: 11
B159: 42 | C159: 41 | D159: 11 | E159: 56 | F159: 37 | G159: 23 | H159: 3 | I159: 25 | J159: 24 | K159: 4 | L159: 61 | M159: 50 | N159: 65 | O159: 13 | P159: 49 | Q159: 30
B160: 22 | C160: 7 | D160: 49 | E160: 39 | F160: 8 | G160: 20 | H160: 15 | I160: 50 | J160: 62 | K160: 27 | L160: 9 | M160: 35 | N160: 52 | O160: 59 | P160: 55 | Q160: 17
B161: 9 | C161: 55 | D161: 41 | E161: 64 | F161: 47 | G161: 5 | H161: 25 | I161: 48 | J161: 43 | K161: 45 | L161: 38 | M161: 60 | N161: 54 | O161: 21 | P161: 59 | Q161: 24
B162: 27 | C162: 20 | D162: 9 | E162: 36 | F162: 21 | G162: 59 | H162: 57 | I162: 15 | J162: 6 | K162: 47 | L162: 7 | M162: 42 | N162: 40 | O162: 14 | P162: 61 | Q162: 56
B163: 23 | C163: 61 | D163: 23 | E163: 44 | F163: 40 | G163: 55 | H163: 40 | I163: 5 | J163: 35 | K163: 17 | L163: 43 | M163: 58 | N163: 48 | O163: 64 | P163: 46 | Q163: 51
B164: 50 | C164: 9 | D164: 46 | E164: 35 | F164: 7 | G164: 49 | H164: 53 | I164: 60 | J164: 50 | K164: 9 | L164: 16 | M164: 62 | N164: 37 | O164: 27 | P164: 43 | Q164: 63
B165: 59 | C165: 43 | D165: 61 | E165: 50 | F165: 35 | G165: 41 | H165: 54 | I165: 43 | J165: 44 | K165: 51 | L165: 63 | M165: 47 | N165: 56 | O165: 42 | P165: 57 | Q165: 40
B166: 14 | C166: 62 | D166: 42 | E166: 5 | F166: 25 | G166: 53 | H166: 30 | I166: 3 | J166: 34 | K166: 13 | L166: 21 | M166: 57 | N166: 44 | O166: 16 | P166: 19 | Q166: 19
B167: 30 | C167: 19 | D167: 58 | E167: 34 | F167: 43 | G167: 50 | H167: 16 | I167: 19 | J167: 17 | K167: 43 | L167: 55 | M167: 43 | N167: 38 | O167: 49 | P167: 4 | Q167: 6
B168: 55 | C168: 42 | D168: 4 | E168: 9 | F168: 32 | G168: 35 | H168: 14 | I168: 39 | J168: 36 | K168: 48 | L168: 8 | M168: 46 | N168: 51 | O168: 10 | P168: 8 | Q168: 28
B169: 48 | C169: 8 | D169: 19 | E169: 25 | F169: 52 | G169: 60 | H169: 7 | I169: 57 | J169: 48 | K169: 10 | L169: 44 | M169: 61 | N169: 36 | O169: 38 | P169: 24 | Q169: 2
B170: 49 | C170: 35 | D170: 53 | E170: 11 | F170: 27 | G170: 24 | H170: 61 | I170: 26 | J170: 26 | K170: 20 | L170: 14 | M170: 59 | N170: 64 | O170: 55 | P170: 6 | Q170: 34
B171: 56 | C171: 6 | D171: 50 | E171: 15 | F171: 61 | G171: 8 | H171: 39 | I171: 8 | J171: 10 | K171: 54 | L171: 62 | M171: 55 | N171: 34 | O171: 23 | P171: 31 | Q171: 58
B172: 8 | C172: 53 | D172: 31 | E172: 7 | F172: 18 | G172: 4 | H172: 43 | I172: 55 | J172: 38 | K172: 59 | L172: 30 | M172: 49 | N172: 63 | O172: 44 | P172: 16 | Q172: 37
B173: 20 | C173: 16 | D173: 6 | E173: 24 | F173: 63 | G173: 19 | H173: 64 | I173: 49 | J173: 64 | K173: 30 | L173: 53 | M173: 41 | N173: 45 | O173: 6 | P173: 13 | Q173: 45
B174: 40 | C174: 63 | D174: 64 | E174: 40 | F174: 50 | G174: 44 | H174: 11 | I174: 14 | J174: 59 | K174: 32 | L174: 1 | M174: 39 | N174: 13 | O174: 26 | P174: 21 | Q174: 46
B175: 6 | C175: 21 | D175: 34 | E175: 63 | F175: 11 | G175: 38 | H175: 22 | I175: 22 | J175: 41 | K175: 64 | L175: 35 | M175: 65 | N175: 16 | O175: 47 | P175: 3 | Q175: 65
B176: 45 | C176: 64 | D176: 3 | E176: 53 | F176: 62 | G176: 51 | H176: 19 | I176: 64 | J176: 21 | K176: 50 | L176: 12 | M176: 52 | N176: 31 | O176: 37 | P176: 32 | Q176: 50
B177: 41 | C177: 32 | D177: 21 | E177: 49 | F177: 28 | G177: 36 | H177: 31 | I177: 45 | J177: 13 | K177: 6 | L177: 51 | M177: 54 | N177: 6 | O177: 61 | P177: 2 | Q177: 41
B178: 53 | C178: 51 | D178: 44 | E178: 62 | F178: 54 | G178: 2 | H178: 56 | I178: 4 | J178: 47 | K178: 25 | L178: 18 | M178: 40 | N178: 24 | O178: 34 | P178: 30 | Q178: 4
B179: 62 | C179: 30 | D179: 38 | E179: 46 | F179: 22 | G179: 32 | H179: 49 | I179: 32 | J179: 65 | K179: 40 | L179: 40 | M179: 48 | N179: 8 | O179: 3 | P179: 15 | Q179: 31
B180: 35 | C180: 44 | D180: 15 | E180: 37 | F180: 46 | G180: 3 | H180: 65 | I180: 56 | J180: 5 | K180: 28 | L180: 10 | M180: 37 | N180: 4 | O180: 51 | P180: 28 | Q180: 12
B181: 1 | C181: 28 | D181: 30 | E181: 58 | F181: 2 | G181: 21 | H181: 42 | I181: 36 | J181: 29 | K181: 11 | L181: 37 | M181: 56 | N181: 19 | O181: 4 | P181: 22 | Q181: 13
B182: 15 | C182: 37 | D182: 40 | E182: 47 | F182: 24 | G182: 39 | H182: 45 | I182: 28 | J182: 3 | K182: 22 | L182: 41 | M182: 22 | N182: 57 | O182: 1 | P182: 10 | Q182: 27
B183: 12 | C183: 10 | D183: 48 | E183: 65 | F183: 60 | G183: 65 | H183: 58 | I183: 42 | J183: 14 | K183: 42 | L183: 20 | M183: 28 | N183: 43 | O183: 36 | P183: 29 | Q183: 18
B184: 63 | C184: 40 | D184: 29 | E184: 60 | F184: 9 | G184: 52 | H184: 34 | I184: 31 | J184: 39 | K184: 63 | L184: 32 | M184: 15 | N184: 46 | O184: 8 | P184: 18 | Q184: 14
B185: 37 | C185: 18 | D185: 10 | E185: 38 | F185: 49 | G185: 54 | H185: 62 | I185: 13 | J185: 54 | K185: 35 | L185: 19 | M185: 30 | N185: 61 | O185: 54 | P185: 26 | Q185: 9
B186: 64 | C186: 52 | D186: 39 | E186: 54 | F186: 13 | G186: 26 | H186: 38 | I186: 46 | J186: 20 | K186: 1 | L186: 39 | M186: 2 | N186: 59 | O186: 41 | P186: 12 | Q186: 59
B187: 34 | C187: 12 | D187: 65 | E187: 45 | F187: 56 | G187: 18 | H187: 6 | I187: 54 | J187: 8 | K187: 37 | L187: 2 | M187: 32 | N187: 55 | O187: 20 | P187: 14 | Q187: 43
B188: 19 | C188: 39 | D188: 14 | E188: 48 | F188: 30 | G188: 29 | H188: 29 | I188: 29 | J188: 57 | K188: 52 | L188: 49 | M188: 3 | N188: 49 | O188: 57 | P188: 1 | Q188: 44
B189: 28 | C189: 1 | D189: 12 | E189: 52 | F189: 51 | G189: 10 | H189: 20 | I189: 1 | J189: 51 | K189: 5 | L189: 6 | M189: 21 | N189: 41 | O189: 31 | P189: 27 | Q189: 61
B190: 5 | C190: 49 | D190: 59 | E190: 23 | F190: 65 | G190: 57 | H190: 48 | I190: 59 | J190: 55 | K190: 8 | L190: 42 | M190: 13 | N190: 27 | O190: 18 | P190: 25 | Q190: 55
B191: 24 | C191: 25 | D191: 55 | E191: 10 | F191: 29 | G191: 43 | H191: 63 | I191: 41 | J191: 42 | K191: 62 | L191: 5 | M191: 16 | N191: 1 | O191: 53 | P191: 17 | Q191: 36
B192: 44 | C192: 59 | D192: 17 | E192: 27 | F192: 58 | G192: 46 | H192: 51 | I192: 16 | J192: 4 | K192: 39 | L192: 57 | M192: 31 | N192: 14 | O192: 7 | P192: 11 | Q192: 49
B193: 57 | C193: 11 | D193: 25 | E193: 2 | F193: 19 | G193: 61 | H193: 41 | I193: 18 | J193: 23 | K193: 21 | L193: 28 | M193: 6 | N193: 12 | O193: 45 | P193: 7 | Q193: 42
B194: 39 | C194: 46 | D194: 57 | E194: 30 | F194: 45 | G194: 7 | H194: 9 | I194: 51 | J194: 60 | K194: 19 | L194: 59 | M194: 24 | N194: 26 | O194: 52 | P194: 5 | Q194: 10
B195: 43 | C195: 5 | D195: 43 | E195: 22 | F195: 26 | G195: 11 | H195: 26 | I195: 61 | J195: 31 | K195: 49 | L195: 23 | M195: 8 | N195: 18 | O195: 2 | P195: 20 | Q195: 15
B196: 16 | C196: 57 | D196: 20 | E196: 31 | F196: 59 | G196: 17 | H196: 13 | I196: 6 | J196: 16 | K196: 57 | L196: 50 | M196: 4 | N196: 29 | O196: 39 | P196: 23 | Q196: 3
B197: 7 | C197: 23 | D197: 5 | E197: 16 | F197: 31 | G197: 25 | H197: 12 | I197: 23 | J197: 22 | K197: 15 | L197: 3 | M197: 19 | N197: 10 | O197: 24 | P197: 9 | Q197: 26
B198: 53 | C198: 9 | D198: 13 | E198: 36 | F198: 47 | G198: 41 | H198: 45 | I198: 24 | J198: 47 | K198: 63 | L198: 4 | M198: 22 | N198: 32 | O198: 50 | P198: 61 | Q198: 52
B199: 23 | C199: 23 | D199: 16 | E199: 50 | F199: 60 | G199: 23 | H199: 11 | I199: 8 | J199: 62 | K199: 47 | L199: 47 | M199: 28 | N199: 49 | O199: 17 | P199: 32 | Q199: 36
B200: 18 | C200: 20 | D200: 31 | E200: 52 | F200: 38 | G200: 34 | H200: 58 | I200: 62 | J200: 58 | K200: 27 | L200: 24 | M200: 15 | N200: 30 | O200: 56 | P200: 57 | Q200: 11
... 509 more rows

Sheet NOLH for up to 16 factors
A2: low level | B2: 1 | C2: 1 | D2: 1 | E2: 1 | F2: 1 | G2: 1 | H2: 1 | I2: 1 | J2: 1 | K2: 1 | L2: 1 | M2: 1 | N2: 1 | O2: 1 | P2: 1 | Q2: 1
A3: high level | B3: 65 | C3: 65 | D3: 65 | E3: 65 | F3: 65 | G3: 65 | H3: 65 | I3: 65 | J3: 65 | K3: 65 | L3: 65 | M3: 65 | N3: 65 | O3: 65 | P3: 65 | Q3: 65
A4: decimals | B4: 0 | C4: 0 | D4: 0 | E4: 0 | F4: 0 | G4: 0 | H4: 0 | I4: 0 | J4: 0 | K4: 0 | L4: 0 | M4: 0 | N4: 0 | O4: 0 | P4: 0 | Q4: 0
A5: factor name
B6: =ROUND( B$2+(('coded NOLH for 12-16 factors'!B5-1)*(B$3-B$2)/64), B$4) -> 47 | C6: =ROUND( C$2+(('coded NOLH for 12-16 factors'!C5-1)*(C$3-C$2)/64), C$4) -> 4 | D6: =ROUND( D$2+(('coded NOLH for 12-16 factors'!D5-1)*(D$3-D$2)/64), D$4) -> 24 | E6: =ROUND( E$2+(('coded NOLH for 12-16 factors'!E5-1)*(E$3-E$2)/64), E$4) -> 22 | F6: =ROUND( F$2+(('coded NOLH for 12-16 factors'!F5-1)*(F$3-F$2)/64), F$4) -> 9 | G6: =ROUND( G$2+(('coded NOLH for 12-16 factors'!G5-1)*(G$3-G$2)/64), G$4) -> 50 | H6: =ROUND( H$2+(('coded NOLH for 12-16 factors'!H5-1)*(H$3-H$2)/64), H$4) -> 52 | I6: =ROUND( I$2+(('coded NOLH for 12-16 factors'!I5-1)*(I$3-I$2)/64), I$4) -> 32 | J6: =ROUND( J$2+(('coded NOLH for 12-16 factors'!J5-1)*(J$3-J$2)/64), J$4) -> 63 | K6: =ROUND( K$2+(('coded NOLH for 12-16 factors'!K5-1)*(K$3-K$2)/64), K$4) -> 47 | L6: =ROUND( L$2+(('coded NOLH for 12-16 factors'!L5-1)*(L$3-L$2)/64), L$4) -> 36 | M6: =ROUND( M$2+(('coded NOLH for 12-16 factors'!M5-1)*(M$3-M$2)/64), M$4) -> 61 | N6: =ROUND( N$2+(('coded NOLH for 12-16 factors'!N5-1)*(N$3-N$2)/64), N$4) -> 13 | O6: =ROUND( O$2+(('coded NOLH for 12-16 factors'!O5-1)*(O$3-O$2)/64), O$4) -> 41 | P6: =ROUND( P$2+(('coded NOLH for 12-16 factors'!P5-1)*(P$3-P$2)/64), P$4) -> 53 | Q6: =ROUND( Q$2+(('coded NOLH for 12-16 factors'!Q5-1)*(Q$3-Q$2)/64), Q$4) -> 45
B7: =ROUND( B$2+(('coded NOLH for 12-16 factors'!B6-1)*(B$3-B$2)/64), B$4) -> 62 | C7: =ROUND( C$2+(('coded NOLH for 12-16 factors'!C6-1)*(C$3-C$2)/64), C$4) -> 47 | D7: =ROUND( D$2+(('coded NOLH for 12-16 factors'!D6-1)*(D$3-D$2)/64), D$4) -> 8 | E7: =ROUND( E$2+(('coded NOLH for 12-16 factors'!E6-1)*(E$3-E$2)/64), E$4) -> 28 | F7: =ROUND( F$2+(('coded NOLH for 12-16 factors'!F6-1)*(F$3-F$2)/64), F$4) -> 23 | G7: =ROUND( G$2+(('coded NOLH for 12-16 factors'!G6-1)*(G$3-G$2)/64), G$4) -> 17 | H7: =ROUND( H$2+(('coded NOLH for 12-16 factors'!H6-1)*(H$3-H$2)/64), H$4) -> 36 | I7: =ROUND( I$2+(('coded NOLH for 12-16 factors'!I6-1)*(I$3-I$2)/64), I$4) -> 49 | J7: =ROUND( J$2+(('coded NOLH for 12-16 factors'!J6-1)*(J$3-J$2)/64), J$4) -> 47 | K7: =ROUND( K$2+(('coded NOLH for 12-16 factors'!K6-1)*(K$3-K$2)/64), K$4) -> 60 | L7: =ROUND( L$2+(('coded NOLH for 12-16 factors'!L6-1)*(L$3-L$2)/64), L$4) -> 50 | M7: =ROUND( M$2+(('coded NOLH for 12-16 factors'!M6-1)*(M$3-M$2)/64), M$4) -> 32 | N7: =ROUND( N$2+(('coded NOLH for 12-16 factors'!N6-1)*(N$3-N$2)/64), N$4) -> 16 | O7: =ROUND( O$2+(('coded NOLH for 12-16 factors'!O6-1)*(O$3-O$2)/64), O$4) -> 23 | P7: =ROUND( P$2+(('coded NOLH for 12-16 factors'!P6-1)*(P$3-P$2)/64), P$4) -> 23 | Q7: =ROUND( Q$2+(('coded NOLH for 12-16 factors'!Q6-1)*(Q$3-Q$2)/64), Q$4) -> 11
B8: =ROUND( B$2+(('coded NOLH for 12-16 factors'!B7-1)*(B$3-B$2)/64), B$4) -> 58 | C8: =ROUND( C$2+(('coded NOLH for 12-16 factors'!C7-1)*(C$3-C$2)/64), C$4) -> 24 | D8: =ROUND( D$2+(('coded NOLH for 12-16 factors'!D7-1)*(D$3-D$2)/64), D$4) -> 62 | E8: =ROUND( E$2+(('coded NOLH for 12-16 factors'!E7-1)*(E$3-E$2)/64), E$4) -> 15 | F8: =ROUND( F$2+(('coded NOLH for 12-16 factors'!F7-1)*(F$3-F$2)/64), F$4) -> 20 | G8: =ROUND( G$2+(('coded NOLH for 12-16 factors'!G7-1)*(G$3-G$2)/64), G$4) -> 56 | H8: =ROUND( H$2+(('coded NOLH for 12-16 factors'!H7-1)*(H$3-H$2)/64), H$4) -> 11 | I8: =ROUND( I$2+(('coded NOLH for 12-16 factors'!I7-1)*(I$3-I$2)/64), I$4) -> 30 | J8: =ROUND( J$2+(('coded NOLH for 12-16 factors'!J7-1)*(J$3-J$2)/64), J$4) -> 27 | K8: =ROUND( K$2+(('coded NOLH for 12-16 factors'!K7-1)*(K$3-K$2)/64), K$4) -> 38 | L8: =ROUND( L$2+(('coded NOLH for 12-16 factors'!L7-1)*(L$3-L$2)/64), L$4) -> 52 | M8: =ROUND( M$2+(('coded NOLH for 12-16 factors'!M7-1)*(M$3-M$2)/64), M$4) -> 57 | N8: =ROUND( N$2+(('coded NOLH for 12-16 factors'!N7-1)*(N$3-N$2)/64), N$4) -> 31 | O8: =ROUND( O$2+(('coded NOLH for 12-16 factors'!O7-1)*(O$3-O$2)/64), O$4) -> 34 | P8: =ROUND( P$2+(('coded NOLH for 12-16 factors'!P7-1)*(P$3-P$2)/64), P$4) -> 18 | Q8: =ROUND( Q$2+(('coded NOLH for 12-16 factors'!Q7-1)*(Q$3-Q$2)/64), Q$4) -> 58
B9: =ROUND( B$2+(('coded NOLH for 12-16 factors'!B8-1)*(B$3-B$2)/64), B$4) -> 42 | C9: =ROUND( C$2+(('coded NOLH for 12-16 factors'!C8-1)*(C$3-C$2)/64), C$4) -> 58 | D9: =ROUND( D$2+(('coded NOLH for 12-16 factors'!D8-1)*(D$3-D$2)/64), D$4) -> 47 | E9: =ROUND( E$2+(('coded NOLH for 12-16 factors'!E8-1)*(E$3-E$2)/64), E$4) -> 30 | F9: =ROUND( F$2+(('coded NOLH for 12-16 factors'!F8-1)*(F$3-F$2)/64), F$4) -> 5 | G9: =ROUND( G$2+(('coded NOLH for 12-16 factors'!G8-1)*(G$3-G$2)/64), G$4) -> 28 | H9: =ROUND( H$2+(('coded NOLH for 12-16 factors'!H8-1)*(H$3-H$2)/64), H$4) -> 18 | I9: =ROUND( I$2+(('coded NOLH for 12-16 factors'!I8-1)*(I$3-I$2)/64), I$4) -> 18 | J9: =ROUND( J$2+(('coded NOLH for 12-16 factors'!J8-1)*(J$3-J$2)/64), J$4) -> 9 | K9: =ROUND( K$2+(('coded NOLH for 12-16 factors'!K8-1)*(K$3-K$2)/64), K$4) -> 64 | L9: =ROUND( L$2+(('coded NOLH for 12-16 factors'!L8-1)*(L$3-L$2)/64), L$4) -> 59 | M9: =ROUND( M$2+(('coded NOLH for 12-16 factors'!M8-1)*(M$3-M$2)/64), M$4) -> 41 | N9: =ROUND( N$2+(('coded NOLH for 12-16 factors'!N8-1)*(N$3-N$2)/64), N$4) -> 6 | O9: =ROUND( O$2+(('coded NOLH for 12-16 factors'!O8-1)*(O$3-O$2)/64), O$4) -> 14 | P9: =ROUND( P$2+(('coded NOLH for 12-16 factors'!P8-1)*(P$3-P$2)/64), P$4) -> 56 | Q9: =ROUND( Q$2+(('coded NOLH for 12-16 factors'!Q8-1)*(Q$3-Q$2)/64), Q$4) -> 22
B10: =ROUND( B$2+(('coded NOLH for 12-16 factors'!B9-1)*(B$3-B$2)/64), B$4) -> 60 | C10: =ROUND( C$2+(('coded NOLH for 12-16 factors'!C9-1)*(C$3-C$2)/64), C$4) -> 31 | D10: =ROUND( D$2+(('coded NOLH for 12-16 factors'!D9-1)*(D$3-D$2)/64), D$4) -> 13 | E10: =ROUND( E$2+(('coded NOLH for 12-16 factors'!E9-1)*(E$3-E$2)/64), E$4) -> 2 | F10: =ROUND( F$2+(('coded NOLH for 12-16 factors'!F9-1)*(F$3-F$2)/64), F$4) -> 7 | G10: =ROUND( G$2+(('coded NOLH for 12-16 factors'!G9-1)*(G$3-G$2)/64), G$4) -> 11 | H10: =ROUND( H$2+(('coded NOLH for 12-16 factors'!H9-1)*(H$3-H$2)/64), H$4) -> 17 | I10: =ROUND( I$2+(('coded NOLH for 12-16 factors'!I9-1)*(I$3-I$2)/64), I$4) -> 40 | J10: =ROUND( J$2+(('coded NOLH for 12-16 factors'!J9-1)*(J$3-J$2)/64), J$4) -> 40 | K10: =ROUND( K$2+(('coded NOLH for 12-16 factors'!K9-1)*(K$3-K$2)/64), K$4) -> 32 | L10: =ROUND( L$2+(('coded NOLH for 12-16 factors'!L9-1)*(L$3-L$2)/64), L$4) -> 5 | M10: =ROUND( M$2+(('coded NOLH for 12-16 factors'!M9-1)*(M$3-M$2)/64), M$4) -> 55 | N10: =ROUND( N$2+(('coded NOLH for 12-16 factors'!N9-1)*(N$3-N$2)/64), N$4) -> 42 | O10: =ROUND( O$2+(('coded NOLH for 12-16 factors'!O9-1)*(O$3-O$2)/64), O$4) -> 39 | P10: =ROUND( P$2+(('coded NOLH for 12-16 factors'!P9-1)*(P$3-P$2)/64), P$4) -> 46 | Q10: =ROUND( Q$2+(('coded NOLH for 12-16 factors'!Q9-1)*(Q$3-Q$2)/64), Q$4) -> 52
B11: =ROUND( B$2+(('coded NOLH for 12-16 factors'!B10-1)*(B$3-B$2)/64), B$4) -> 35 | C11: =ROUND( C$2+(('coded NOLH for 12-16 factors'!C10-1)*(C$3-C$2)/64), C$4) -> 60 | D11: =ROUND( D$2+(('coded NOLH for 12-16 factors'!D10-1)*(D$3-D$2)/64), D$4) -> 16 | E11: =ROUND( E$2+(('coded NOLH for 12-16 factors'!E10-1)*(E$3-E$2)/64), E$4) -> 32 | F11: =ROUND( F$2+(('coded NOLH for 12-16 factors'!F10-1)*(F$3-F$2)/64), F$4) -> 11 | G11: =ROUND( G$2+(('coded NOLH for 12-16 factors'!G10-1)*(G$3-G$2)/64), G$4) -> 43 | H11: =ROUND( H$2+(('coded NOLH for 12-16 factors'!H10-1)*(H$3-H$2)/64), H$4) -> 10 | I11: =ROUND( I$2+(('coded NOLH for 12-16 factors'!I10-1)*(I$3-I$2)/64), I$4) -> 56 | J11: =ROUND( J$2+(('coded NOLH for 12-16 factors'!J10-1)*(J$3-J$2)/64), J$4) -> 58 | K11: =ROUND( K$2+(('coded NOLH for 12-16 factors'!K10-1)*(K$3-K$2)/64), K$4) -> 8 | L11: =ROUND( L$2+(('coded NOLH for 12-16 factors'!L10-1)*(L$3-L$2)/64), L$4) -> 27 | M11: =ROUND( M$2+(('coded NOLH for 12-16 factors'!M10-1)*(M$3-M$2)/64), M$4) -> 51 | N11: =ROUND( N$2+(('coded NOLH for 12-16 factors'!N10-1)*(N$3-N$2)/64), N$4) -> 58 | O11: =ROUND( O$2+(('coded NOLH for 12-16 factors'!O10-1)*(O$3-O$2)/64), O$4) -> 5 | P11: =ROUND( P$2+(('coded NOLH for 12-16 factors'!P10-1)*(P$3-P$2)/64), P$4) -> 12 | Q11: =ROUND( Q$2+(('coded NOLH for 12-16 factors'!Q10-1)*(Q$3-Q$2)/64), Q$4) -> 4
B12: =ROUND( B$2+(('coded NOLH for 12-16 factors'!B11-1)*(B$3-B$2)/64), B$4) -> 50 | C12: =ROUND( C$2+(('coded NOLH for 12-16 factors'!C11-1)*(C$3-C$2)/64), C$4) -> 13 | D12: =ROUND( D$2+(('coded NOLH for 12-16 factors'!D11-1)*(D$3-D$2)/64), D$4) -> 35 | E12: =ROUND( E$2+(('coded NOLH for 12-16 factors'!E11-1)*(E$3-E$2)/64), E$4) -> 3 | F12: =ROUND( F$2+(('coded NOLH for 12-16 factors'!F11-1)*(F$3-F$2)/64), F$4) -> 17 | G12: =ROUND( G$2+(('coded NOLH for 12-16 factors'!G11-1)*(G$3-G$2)/64), G$4) -> 22 | H12: =ROUND( H$2+(('coded NOLH for 12-16 factors'!H11-1)*(H$3-H$2)/64), H$4) -> 58 | I12: =ROUND( I$2+(('coded NOLH for 12-16 factors'!I11-1)*(I$3-I$2)/64), I$4) -> 28 | J12: =ROUND( J$2+(('coded NOLH for 12-16 factors'!J11-1)*(J$3-J$2)/64), J$4) -> 11 | K12: =ROUND( K$2+(('coded NOLH for 12-16 factors'!K11-1)*(K$3-K$2)/64), K$4) -> 29 | L12: =ROUND( L$2+(('coded NOLH for 12-16 factors'!L11-1)*(L$3-L$2)/64), L$4) -> 23 | M12: =ROUND( M$2+(('coded NOLH for 12-16 factors'!M11-1)*(M$3-M$2)/64), M$4) -> 59 | N12: =ROUND( N$2+(('coded NOLH for 12-16 factors'!N11-1)*(N$3-N$2)/64), N$4) -> 62 | O12: =ROUND( O$2+(('coded NOLH for 12-16 factors'!O11-1)*(O$3-O$2)/64), O$4) -> 48 | P12: =ROUND( P$2+(('coded NOLH for 12-16 factors'!P11-1)*(P$3-P$2)/64), P$4) -> 7 | Q12: =ROUND( Q$2+(('coded NOLH for 12-16 factors'!Q11-1)*(Q$3-Q$2)/64), Q$4) -> 36
B13: =ROUND( B$2+(('coded NOLH for 12-16 factors'!B12-1)*(B$3-B$2)/64), B$4) -> 53 | C13: =ROUND( C$2+(('coded NOLH for 12-16 factors'!C12-1)*(C$3-C$2)/64), C$4) -> 50 | D13: =ROUND( D$2+(('coded NOLH for 12-16 factors'!D12-1)*(D$3-D$2)/64), D$4) -> 60 | E13: =ROUND( E$2+(('coded NOLH for 12-16 factors'!E12-1)*(E$3-E$2)/64), E$4) -> 21 | F13: =ROUND( F$2+(('coded NOLH for 12-16 factors'!F12-1)*(F$3-F$2)/64), F$4) -> 25 | G13: =ROUND( G$2+(('coded NOLH for 12-16 factors'!G12-1)*(G$3-G$2)/64), G$4) -> 60 | H13: =ROUND( H$2+(('coded NOLH for 12-16 factors'!H12-1)*(H$3-H$2)/64), H$4) -> 46 | I13: =ROUND( I$2+(('coded NOLH for 12-16 factors'!I12-1)*(I$3-I$2)/64), I$4) -> 2 | J13: =ROUND( J$2+(('coded NOLH for 12-16 factors'!J12-1)*(J$3-J$2)/64), J$4) -> 17 | K13: =ROUND( K$2+(('coded NOLH for 12-16 factors'!K12-1)*(K$3-K$2)/64), K$4) -> 21 | L13: =ROUND( L$2+(('coded NOLH for 12-16 factors'!L12-1)*(L$3-L$2)/64), L$4) -> 2 | M13: =ROUND( M$2+(('coded NOLH for 12-16 factors'!M12-1)*(M$3-M$2)/64), M$4) -> 42 | N13: =ROUND( N$2+(('coded NOLH for 12-16 factors'!N12-1)*(N$3-N$2)/64), N$4) -> 47 | O13: =ROUND( O$2+(('coded NOLH for 12-16 factors'!O12-1)*(O$3-O$2)/64), O$4) -> 3 | P13: =ROUND( P$2+(('coded NOLH for 12-16 factors'!P12-1)*(P$3-P$2)/64), P$4) -> 36 | Q13: =ROUND( Q$2+(('coded NOLH for 12-16 factors'!Q12-1)*(Q$3-Q$2)/64), Q$4) -> 13
B14: =ROUND( B$2+(('coded NOLH for 12-16 factors'!B13-1)*(B$3-B$2)/64), B$4) -> 45 | C14: =ROUND( C$2+(('coded NOLH for 12-16 factors'!C13-1)*(C$3-C$2)/64), C$4) -> 3 | D14: =ROUND( D$2+(('coded NOLH for 12-16 factors'!D13-1)*(D$3-D$2)/64), D$4) -> 2 | E14: =ROUND( E$2+(('coded NOLH for 12-16 factors'!E13-1)*(E$3-E$2)/64), E$4) -> 53 | F14: =ROUND( F$2+(('coded NOLH for 12-16 factors'!F13-1)*(F$3-F$2)/64), F$4) -> 27 | G14: =ROUND( G$2+(('coded NOLH for 12-16 factors'!G13-1)*(G$3-G$2)/64), G$4) -> 40 | H14: =ROUND( H$2+(('coded NOLH for 12-16 factors'!H13-1)*(H$3-H$2)/64), H$4) -> 26 | I14: =ROUND( I$2+(('coded NOLH for 12-16 factors'!I13-1)*(I$3-I$2)/64), I$4) -> 7 | J14: =ROUND( J$2+(('coded NOLH for 12-16 factors'!J13-1)*(J$3-J$2)/64), J$4) -> 52 | K14: =ROUND( K$2+(('coded NOLH for 12-16 factors'!K13-1)*(K$3-K$2)/64), K$4) -> 20 | L14: =ROUND( L$2+(('coded NOLH for 12-16 factors'!L13-1)*(L$3-L$2)/64), L$4) -> 55 | M14: =ROUND( M$2+(('coded NOLH for 12-16 factors'!M13-1)*(M$3-M$2)/64), M$4) -> 26 | N14: =ROUND( N$2+(('coded NOLH for 12-16 factors'!N13-1)*(N$3-N$2)/64), N$4) -> 22 | O14: =ROUND( O$2+(('coded NOLH for 12-16 factors'!O13-1)*(O$3-O$2)/64), O$4) -> 16 | P14: =ROUND( P$2+(('coded NOLH for 12-16 factors'!P13-1)*(P$3-P$2)/64), P$4) -> 34 | Q14: =ROUND( Q$2+(('coded NOLH for 12-16 factors'!Q13-1)*(Q$3-Q$2)/64), Q$4) -> 65
B15: =ROUND( B$2+(('coded NOLH for 12-16 factors'!B14-1)*(B$3-B$2)/64), B$4) -> 63 | C15: =ROUND( C$2+(('coded NOLH for 12-16 factors'!C14-1)*(C$3-C$2)/64), C$4) -> 45 | D15: =ROUND( D$2+(('coded NOLH for 12-16 factors'!D14-1)*(D$3-D$2)/64), D$4) -> 32 | E15: =ROUND( E$2+(('coded NOLH for 12-16 factors'!E14-1)*(E$3-E$2)/64), E$4) -> 50 | F15: =ROUND( F$2+(('coded NOLH for 12-16 factors'!F14-1)*(F$3-F$2)/64), F$4) -> 1 | G15: =ROUND( G$2+(('coded NOLH for 12-16 factors'!G14-1)*(G$3-G$2)/64), G$4) -> 19 | H15: =ROUND( H$2+(('coded NOLH for 12-16 factors'!H14-1)*(H$3-H$2)/64), H$4) -> 60 | I15: =ROUND( I$2+(('coded NOLH for 12-16 factors'!I14-1)*(I$3-I$2)/64), I$4) -> 25 | J15: =ROUND( J$2+(('coded NOLH for 12-16 factors'!J14-1)*(J$3-J$2)/64), J$4) -> 44 | K15: =ROUND( K$2+(('coded NOLH for 12-16 factors'!K14-1)*(K$3-K$2)/64), K$4) -> 1 | L15: =ROUND( L$2+(('coded NOLH for 12-16 factors'!L14-1)*(L$3-L$2)/64), L$4) -> 44 | M15: =ROUND( M$2+(('coded NOLH for 12-16 factors'!M14-1)*(M$3-M$2)/64), M$4) -> 3 | N15: =ROUND( N$2+(('coded NOLH for 12-16 factors'!N14-1)*(N$3-N$2)/64), N$4) -> 28 | O15: =ROUND( O$2+(('coded NOLH for 12-16 factors'!O14-1)*(O$3-O$2)/64), O$4) -> 55 | P15: =ROUND( P$2+(('coded NOLH for 12-16 factors'!P14-1)*(P$3-P$2)/64), P$4) -> 2 | Q15: =ROUND( Q$2+(('coded NOLH for 12-16 factors'!Q14-1)*(Q$3-Q$2)/64), Q$4) -> 31
B16: =ROUND( B$2+(('coded NOLH for 12-16 factors'!B15-1)*(B$3-B$2)/64), B$4) -> 34 | C16: =ROUND( C$2+(('coded NOLH for 12-16 factors'!C15-1)*(C$3-C$2)/64), C$4) -> 2 | D16: =ROUND( D$2+(('coded NOLH for 12-16 factors'!D15-1)*(D$3-D$2)/64), D$4) -> 63 | E16: =ROUND( E$2+(('coded NOLH for 12-16 factors'!E15-1)*(E$3-E$2)/64), E$4) -> 35 | F16: =ROUND( F$2+(('coded NOLH for 12-16 factors'!F15-1)*(F$3-F$2)/64), F$4) -> 14 | G16: =ROUND( G$2+(('coded NOLH for 12-16 factors'!G15-1)*(G$3-G$2)/64), G$4) -> 29 | H16: =ROUND( H$2+(('coded NOLH for 12-16 factors'!H15-1)*(H$3-H$2)/64), H$4) -> 21 | I16: =ROUND( I$2+(('coded NOLH for 12-16 factors'!I15-1)*(I$3-I$2)/64), I$4) -> 45 | J16: =ROUND( J$2+(('coded NOLH for 12-16 factors'!J15-1)*(J$3-J$2)/64), J$4) -> 2 | K16: =ROUND( K$2+(('coded NOLH for 12-16 factors'!K15-1)*(K$3-K$2)/64), K$4) -> 16 | L16: =ROUND( L$2+(('coded NOLH for 12-16 factors'!L15-1)*(L$3-L$2)/64), L$4) -> 47 | M16: =ROUND( M$2+(('coded NOLH for 12-16 factors'!M15-1)*(M$3-M$2)/64), M$4) -> 13 | N16: =ROUND( N$2+(('coded NOLH for 12-16 factors'!N15-1)*(N$3-N$2)/64), N$4) -> 15 | O16: =ROUND( O$2+(('coded NOLH for 12-16 factors'!O15-1)*(O$3-O$2)/64), O$4) -> 4 | P16: =ROUND( P$2+(('coded NOLH for 12-16 factors'!P15-1)*(P$3-P$2)/64), P$4) -> 16 | Q16: =ROUND( Q$2+(('coded NOLH for 12-16 factors'!Q15-1)*(Q$3-Q$2)/64), Q$4) -> 54
B17: =ROUND( B$2+(('coded NOLH for 12-16 factors'!B16-1)*(B$3-B$2)/64), B$4) -> 64 | C17: =ROUND( C$2+(('coded NOLH for 12-16 factors'!C16-1)*(C$3-C$2)/64), C$4) -> 34 | D17: =ROUND( D$2+(('coded NOLH for 12-16 factors'!D16-1)*(D$3-D$2)/64), D$4) -> 45 | E17: =ROUND( E$2+(('coded NOLH for 12-16 factors'!E16-1)*(E$3-E$2)/64), E$4) -> 60 | F17: =ROUND( F$2+(('coded NOLH for 12-16 factors'!F16-1)*(F$3-F$2)/64), F$4) -> 12 | G17: =ROUND( G$2+(('coded NOLH for 12-16 factors'!G16-1)*(G$3-G$2)/64), G$4) -> 5 | H17: =ROUND( H$2+(('coded NOLH for 12-16 factors'!H16-1)*(H$3-H$2)/64), H$4) -> 25 | I17: =ROUND( I$2+(('coded NOLH for 12-16 factors'!I16-1)*(I$3-I$2)/64), I$4) -> 53 | J17: =ROUND( J$2+(('coded NOLH for 12-16 factors'!J16-1)*(J$3-J$2)/64), J$4) -> 21 | K17: =ROUND( K$2+(('coded NOLH for 12-16 factors'!K16-1)*(K$3-K$2)/64), K$4) -> 25 | L17: =ROUND( L$2+(('coded NOLH for 12-16 factors'!L16-1)*(L$3-L$2)/64), L$4) -> 35 | M17: =ROUND( M$2+(('coded NOLH for 12-16 factors'!M16-1)*(M$3-M$2)/64), M$4) -> 17 | N17: =ROUND( N$2+(('coded NOLH for 12-16 factors'!N16-1)*(N$3-N$2)/64), N$4) -> 30 | O17: =ROUND( O$2+(('coded NOLH for 12-16 factors'!O16-1)*(O$3-O$2)/64), O$4) -> 38 | P17: =ROUND( P$2+(('coded NOLH for 12-16 factors'!P16-1)*(P$3-P$2)/64), P$4) -> 60 | Q17: =ROUND( Q$2+(('coded NOLH for 12-16 factors'!Q16-1)*(Q$3-Q$2)/64), Q$4) -> 15
B18: =ROUND( B$2+(('coded NOLH for 12-16 factors'!B17-1)*(B$3-B$2)/64), B$4) -> 36 | C18: =ROUND( C$2+(('coded NOLH for 12-16 factors'!C17-1)*(C$3-C$2)/64), C$4) -> 15 | D18: =ROUND( D$2+(('coded NOLH for 12-16 factors'!D17-1)*(D$3-D$2)/64), D$4) -> 22 | E18: =ROUND( E$2+(('coded NOLH for 12-16 factors'!E17-1)*(E$3-E$2)/64), E$4) -> 42 | F18: =ROUND( F$2+(('coded NOLH for 12-16 factors'!F17-1)*(F$3-F$2)/64), F$4) -> 26 | G18: =ROUND( G$2+(('coded NOLH for 12-16 factors'!G17-1)*(G$3-G$2)/64), G$4) -> 32 | H18: =ROUND( H$2+(('coded NOLH for 12-16 factors'!H17-1)*(H$3-H$2)/64), H$4) -> 13 | I18: =ROUND( I$2+(('coded NOLH for 12-16 factors'!I17-1)*(I$3-I$2)/64), I$4) -> 19 | J18: =ROUND( J$2+(('coded NOLH for 12-16 factors'!J17-1)*(J$3-J$2)/64), J$4) -> 62 | K18: =ROUND( K$2+(('coded NOLH for 12-16 factors'!K17-1)*(K$3-K$2)/64), K$4) -> 62 | L18: =ROUND( L$2+(('coded NOLH for 12-16 factors'!L17-1)*(L$3-L$2)/64), L$4) -> 10 | M18: =ROUND( M$2+(('coded NOLH for 12-16 factors'!M17-1)*(M$3-M$2)/64), M$4) -> 4 | N18: =ROUND( N$2+(('coded NOLH for 12-16 factors'!N17-1)*(N$3-N$2)/64), N$4) -> 64 | O18: =ROUND( O$2+(('coded NOLH for 12-16 factors'!O17-1)*(O$3-O$2)/64), O$4) -> 12 | P18: =ROUND( P$2+(('coded NOLH for 12-16 factors'!P17-1)*(P$3-P$2)/64), P$4) -> 41 | Q18: =ROUND( Q$2+(('coded NOLH for 12-16 factors'!Q17-1)*(Q$3-Q$2)/64), Q$4) -> 48
B19: =ROUND( B$2+(('coded NOLH for 12-16 factors'!B18-1)*(B$3-B$2)/64), B$4) -> 51 | C19: =ROUND( C$2+(('coded NOLH for 12-16 factors'!C18-1)*(C$3-C$2)/64), C$4) -> 36 | D19: =ROUND( D$2+(('coded NOLH for 12-16 factors'!D18-1)*(D$3-D$2)/64), D$4) -> 28 | E19: =ROUND( E$2+(('coded NOLH for 12-16 factors'!E18-1)*(E$3-E$2)/64), E$4) -> 58 | F19: =ROUND( F$2+(('coded NOLH for 12-16 factors'!F18-1)*(F$3-F$2)/64), F$4) -> 18 | G19: =ROUND( G$2+(('coded NOLH for 12-16 factors'!G18-1)*(G$3-G$2)/64), G$4) -> 63 | H19: =ROUND( H$2+(('coded NOLH for 12-16 factors'!H18-1)*(H$3-H$2)/64), H$4) -> 4 | I19: =ROUND( I$2+(('coded NOLH for 12-16 factors'!I18-1)*(I$3-I$2)/64), I$4) -> 1 | J19: =ROUND( J$2+(('coded NOLH for 12-16 factors'!J18-1)*(J$3-J$2)/64), J$4) -> 34 | K19: =ROUND( K$2+(('coded NOLH for 12-16 factors'!K18-1)*(K$3-K$2)/64), K$4) -> 35 | L19: =ROUND( L$2+(('coded NOLH for 12-16 factors'!L18-1)*(L$3-L$2)/64), L$4) -> 17 | M19: =ROUND( M$2+(('coded NOLH for 12-16 factors'!M18-1)*(M$3-M$2)/64), M$4) -> 20 | N19: =ROUND( N$2+(('coded NOLH for 12-16 factors'!N18-1)*(N$3-N$2)/64), N$4) -> 34 | O19: =ROUND( O$2+(('coded NOLH for 12-16 factors'!O18-1)*(O$3-O$2)/64), O$4) -> 44 | P19: =ROUND( P$2+(('coded NOLH for 12-16 factors'!P18-1)*(P$3-P$2)/64), P$4) -> 26 | Q19: =ROUND( Q$2+(('coded NOLH for 12-16 factors'!Q18-1)*(Q$3-Q$2)/64), Q$4) -> 26
B20: =ROUND( B$2+(('coded NOLH for 12-16 factors'!B19-1)*(B$3-B$2)/64), B$4) -> 38 | C20: =ROUND( C$2+(('coded NOLH for 12-16 factors'!C19-1)*(C$3-C$2)/64), C$4) -> 22 | D20: =ROUND( D$2+(('coded NOLH for 12-16 factors'!D19-1)*(D$3-D$2)/64), D$4) -> 51 | E20: =ROUND( E$2+(('coded NOLH for 12-16 factors'!E19-1)*(E$3-E$2)/64), E$4) -> 62 | F20: =ROUND( F$2+(('coded NOLH for 12-16 factors'!F19-1)*(F$3-F$2)/64), F$4) -> 29 | G20: =ROUND( G$2+(('coded NOLH for 12-16 factors'!G19-1)*(G$3-G$2)/64), G$4) -> 15 | H20: =ROUND( H$2+(('coded NOLH for 12-16 factors'!H19-1)*(H$3-H$2)/64), H$4) -> 31 | I20: =ROUND( I$2+(('coded NOLH for 12-16 factors'!I19-1)*(I$3-I$2)/64), I$4) -> 61 | J20: =ROUND( J$2+(('coded NOLH for 12-16 factors'!J19-1)*(J$3-J$2)/64), J$4) -> 10 | K20: =ROUND( K$2+(('coded NOLH for 12-16 factors'!K19-1)*(K$3-K$2)/64), K$4) -> 54 | L20: =ROUND( L$2+(('coded NOLH for 12-16 factors'!L19-1)*(L$3-L$2)/64), L$4) -> 1 | M20: =ROUND( M$2+(('coded NOLH for 12-16 factors'!M19-1)*(M$3-M$2)/64), M$4) -> 29 | N20: =ROUND( N$2+(('coded NOLH for 12-16 factors'!N19-1)*(N$3-N$2)/64), N$4) -> 63 | O20: =ROUND( O$2+(('coded NOLH for 12-16 factors'!O19-1)*(O$3-O$2)/64), O$4) -> 20 | P20: =ROUND( P$2+(('coded NOLH for 12-16 factors'!P19-1)*(P$3-P$2)/64), P$4) -> 38 | Q20: =ROUND( Q$2+(('coded NOLH for 12-16 factors'!Q19-1)*(Q$3-Q$2)/64), Q$4) -> 56
B21: =ROUND( B$2+(('coded NOLH for 12-16 factors'!B20-1)*(B$3-B$2)/64), B$4) -> 44 | C21: =ROUND( C$2+(('coded NOLH for 12-16 factors'!C20-1)*(C$3-C$2)/64), C$4) -> 38 | D21: =ROUND( D$2+(('coded NOLH for 12-16 factors'!D20-1)*(D$3-D$2)/64), D$4) -> 36 | E21: =ROUND( E$2+(('coded NOLH for 12-16 factors'!E20-1)*(E$3-E$2)/64), E$4) -> 47 | F21: =ROUND( F$2+(('coded NOLH for 12-16 factors'!F20-1)*(F$3-F$2)/64), F$4) -> 10 | G21: =ROUND( G$2+(('coded NOLH for 12-16 factors'!G20-1)*(G$3-G$2)/64), G$4) -> 62 | H21: =ROUND( H$2+(('coded NOLH for 12-16 factors'!H20-1)*(H$3-H$2)/64), H$4) -> 65 | I21: =ROUND( I$2+(('coded NOLH for 12-16 factors'!I20-1)*(I$3-I$2)/64), I$4) -> 37 | J21: =ROUND( J$2+(('coded NOLH for 12-16 factors'!J20-1)*(J$3-J$2)/64), J$4) -> 30 | K21: =ROUND( K$2+(('coded NOLH for 12-16 factors'!K20-1)*(K$3-K$2)/64), K$4) -> 53 | L21: =ROUND( L$2+(('coded NOLH for 12-16 factors'!L20-1)*(L$3-L$2)/64), L$4) -> 24 | M21: =ROUND( M$2+(('coded NOLH for 12-16 factors'!M20-1)*(M$3-M$2)/64), M$4) -> 8 | N21: =ROUND( N$2+(('coded NOLH for 12-16 factors'!N20-1)*(N$3-N$2)/64), N$4) -> 45 | O21: =ROUND( O$2+(('coded NOLH for 12-16 factors'!O20-1)*(O$3-O$2)/64), O$4) -> 64 | P21: =ROUND( P$2+(('coded NOLH for 12-16 factors'!P20-1)*(P$3-P$2)/64), P$4) -> 55 | Q21: =ROUND( Q$2+(('coded NOLH for 12-16 factors'!Q20-1)*(Q$3-Q$2)/64), Q$4) -> 29
B22: =ROUND( B$2+(('coded NOLH for 12-16 factors'!B21-1)*(B$3-B$2)/64), B$4) -> 56 | C22: =ROUND( C$2+(('coded NOLH for 12-16 factors'!C21-1)*(C$3-C$2)/64), C$4) -> 29 | D22: =ROUND( D$2+(('coded NOLH for 12-16 factors'!D21-1)*(D$3-D$2)/64), D$4) -> 26 | E22: =ROUND( E$2+(('coded NOLH for 12-16 factors'!E21-1)*(E$3-E$2)/64), E$4) -> 9 | F22: =ROUND( F$2+(('coded NOLH for 12-16 factors'!F21-1)*(F$3-F$2)/64), F$4) -> 44 | G22: =ROUND( G$2+(('coded NOLH for 12-16 factors'!G21-1)*(G$3-G$2)/64), G$4) -> 65 | H22: =ROUND( H$2+(('coded NOLH for 12-16 factors'!H21-1)*(H$3-H$2)/64), H$4) -> 51 | I22: =ROUND( I$2+(('coded NOLH for 12-16 factors'!I21-1)*(I$3-I$2)/64), I$4) -> 63 | J22: =ROUND( J$2+(('coded NOLH for 12-16 factors'!J21-1)*(J$3-J$2)/64), J$4) -> 38 | K22: =ROUND( K$2+(('coded NOLH for 12-16 factors'!K21-1)*(K$3-K$2)/64), K$4) -> 39 | L22: =ROUND( L$2+(('coded NOLH for 12-16 factors'!L21-1)*(L$3-L$2)/64), L$4) -> 21 | M22: =ROUND( M$2+(('coded NOLH for 12-16 factors'!M21-1)*(M$3-M$2)/64), M$4) -> 19 | N22: =ROUND( N$2+(('coded NOLH for 12-16 factors'!N21-1)*(N$3-N$2)/64), N$4) -> 27 | O22: =ROUND( O$2+(('coded NOLH for 12-16 factors'!O21-1)*(O$3-O$2)/64), O$4) -> 42 | P22: =ROUND( P$2+(('coded NOLH for 12-16 factors'!P21-1)*(P$3-P$2)/64), P$4) -> 44 | Q22: =ROUND( Q$2+(('coded NOLH for 12-16 factors'!Q21-1)*(Q$3-Q$2)/64), Q$4) -> 25
B23: =ROUND( B$2+(('coded NOLH for 12-16 factors'!B22-1)*(B$3-B$2)/64), B$4) -> 37 | C23: =ROUND( C$2+(('coded NOLH for 12-16 factors'!C22-1)*(C$3-C$2)/64), C$4) -> 56 | D23: =ROUND( D$2+(('coded NOLH for 12-16 factors'!D22-1)*(D$3-D$2)/64), D$4) -> 18 | E23: =ROUND( E$2+(('coded NOLH for 12-16 factors'!E22-1)*(E$3-E$2)/64), E$4) -> 23 | F23: =ROUND( F$2+(('coded NOLH for 12-16 factors'!F22-1)*(F$3-F$2)/64), F$4) -> 38 | G23: =ROUND( G$2+(('coded NOLH for 12-16 factors'!G22-1)*(G$3-G$2)/64), G$4) -> 30 | H23: =ROUND( H$2+(('coded NOLH for 12-16 factors'!H22-1)*(H$3-H$2)/64), H$4) -> 54 | I23: =ROUND( I$2+(('coded NOLH for 12-16 factors'!I22-1)*(I$3-I$2)/64), I$4) -> 52 | J23: =ROUND( J$2+(('coded NOLH for 12-16 factors'!J22-1)*(J$3-J$2)/64), J$4) -> 24 | K23: =ROUND( K$2+(('coded NOLH for 12-16 factors'!K22-1)*(K$3-K$2)/64), K$4) -> 48 | L23: =ROUND( L$2+(('coded NOLH for 12-16 factors'!L22-1)*(L$3-L$2)/64), L$4) -> 8 | M23: =ROUND( M$2+(('coded NOLH for 12-16 factors'!M22-1)*(M$3-M$2)/64), M$4) -> 1 | N23: =ROUND( N$2+(('coded NOLH for 12-16 factors'!N22-1)*(N$3-N$2)/64), N$4) -> 1 | O23: =ROUND( O$2+(('coded NOLH for 12-16 factors'!O22-1)*(O$3-O$2)/64), O$4) -> 6 | P23: =ROUND( P$2+(('coded NOLH for 12-16 factors'!P22-1)*(P$3-P$2)/64), P$4) -> 24 | Q23: =ROUND( Q$2+(('coded NOLH for 12-16 factors'!Q22-1)*(Q$3-Q$2)/64), Q$4) -> 46
B24: =ROUND( B$2+(('coded NOLH for 12-16 factors'!B23-1)*(B$3-B$2)/64), B$4) -> 48 | C24: =ROUND( C$2+(('coded NOLH for 12-16 factors'!C23-1)*(C$3-C$2)/64), C$4) -> 26 | D24: =ROUND( D$2+(('coded NOLH for 12-16 factors'!D23-1)*(D$3-D$2)/64), D$4) -> 37 | E24: =ROUND( E$2+(('coded NOLH for 12-16 factors'!E23-1)*(E$3-E$2)/64), E$4) -> 20 | F24: =ROUND( F$2+(('coded NOLH for 12-16 factors'!F23-1)*(F$3-F$2)/64), F$4) -> 51 | G24: =ROUND( G$2+(('coded NOLH for 12-16 factors'!G23-1)*(G$3-G$2)/64), G$4) -> 58 | H24: =ROUND( H$2+(('coded NOLH for 12-16 factors'!H23-1)*(H$3-H$2)/64), H$4) -> 3 | I24: =ROUND( I$2+(('coded NOLH for 12-16 factors'!I23-1)*(I$3-I$2)/64), I$4) -> 27 | J24: =ROUND( J$2+(('coded NOLH for 12-16 factors'!J23-1)*(J$3-J$2)/64), J$4) -> 35 | K24: =ROUND( K$2+(('coded NOLH for 12-16 factors'!K23-1)*(K$3-K$2)/64), K$4) -> 52 | L24: =ROUND( L$2+(('coded NOLH for 12-16 factors'!L23-1)*(L$3-L$2)/64), L$4) -> 32 | M24: =ROUND( M$2+(('coded NOLH for 12-16 factors'!M23-1)*(M$3-M$2)/64), M$4) -> 6 | N24: =ROUND( N$2+(('coded NOLH for 12-16 factors'!N23-1)*(N$3-N$2)/64), N$4) -> 14 | O24: =ROUND( O$2+(('coded NOLH for 12-16 factors'!O23-1)*(O$3-O$2)/64), O$4) -> 57 | P24: =ROUND( P$2+(('coded NOLH for 12-16 factors'!P23-1)*(P$3-P$2)/64), P$4) -> 3 | Q24: =ROUND( Q$2+(('coded NOLH for 12-16 factors'!Q23-1)*(Q$3-Q$2)/64), Q$4) -> 34
B25: =ROUND( B$2+(('coded NOLH for 12-16 factors'!B24-1)*(B$3-B$2)/64), B$4) -> 40 | C25: =ROUND( C$2+(('coded NOLH for 12-16 factors'!C24-1)*(C$3-C$2)/64), C$4) -> 48 | D25: =ROUND( D$2+(('coded NOLH for 12-16 factors'!D24-1)*(D$3-D$2)/64), D$4) -> 56 | E25: =ROUND( E$2+(('coded NOLH for 12-16 factors'!E24-1)*(E$3-E$2)/64), E$4) -> 5 | F25: =ROUND( F$2+(('coded NOLH for 12-16 factors'!F24-1)*(F$3-F$2)/64), F$4) -> 36 | G25: =ROUND( G$2+(('coded NOLH for 12-16 factors'!G24-1)*(G$3-G$2)/64), G$4) -> 12 | H25: =ROUND( H$2+(('coded NOLH for 12-16 factors'!H24-1)*(H$3-H$2)/64), H$4) -> 29 | I25: =ROUND( I$2+(('coded NOLH for 12-16 factors'!I24-1)*(I$3-I$2)/64), I$4) -> 12 | J25: =ROUND( J$2+(('coded NOLH for 12-16 factors'!J24-1)*(J$3-J$2)/64), J$4) -> 53 | K25: =ROUND( K$2+(('coded NOLH for 12-16 factors'!K24-1)*(K$3-K$2)/64), K$4) -> 57 | L25: =ROUND( L$2+(('coded NOLH for 12-16 factors'!L24-1)*(L$3-L$2)/64), L$4) -> 4 | M25: =ROUND( M$2+(('coded NOLH for 12-16 factors'!M24-1)*(M$3-M$2)/64), M$4) -> 28 | N25: =ROUND( N$2+(('coded NOLH for 12-16 factors'!N24-1)*(N$3-N$2)/64), N$4) -> 12 | O25: =ROUND( O$2+(('coded NOLH for 12-16 factors'!O24-1)*(O$3-O$2)/64), O$4) -> 17 | P25: =ROUND( P$2+(('coded NOLH for 12-16 factors'!P24-1)*(P$3-P$2)/64), P$4) -> 31 | Q25: =ROUND( Q$2+(('coded NOLH for 12-16 factors'!Q24-1)*(Q$3-Q$2)/64), Q$4) -> 47
B26: =ROUND( B$2+(('coded NOLH for 12-16 factors'!B25-1)*(B$3-B$2)/64), B$4) -> 54 | C26: =ROUND( C$2+(('coded NOLH for 12-16 factors'!C25-1)*(C$3-C$2)/64), C$4) -> 14 | D26: =ROUND( D$2+(('coded NOLH for 12-16 factors'!D25-1)*(D$3-D$2)/64), D$4) -> 27 | E26: =ROUND( E$2+(('coded NOLH for 12-16 factors'!E25-1)*(E$3-E$2)/64), E$4) -> 7 | F26: =ROUND( F$2+(('coded NOLH for 12-16 factors'!F25-1)*(F$3-F$2)/64), F$4) -> 64 | G26: =ROUND( G$2+(('coded NOLH for 12-16 factors'!G25-1)*(G$3-G$2)/64), G$4) -> 25 | H26: =ROUND( H$2+(('coded NOLH for 12-16 factors'!H25-1)*(H$3-H$2)/64), H$4) -> 2 | I26: =ROUND( I$2+(('coded NOLH for 12-16 factors'!I25-1)*(I$3-I$2)/64), I$4) -> 46 | J26: =ROUND( J$2+(('coded NOLH for 12-16 factors'!J25-1)*(J$3-J$2)/64), J$4) -> 20 | K26: =ROUND( K$2+(('coded NOLH for 12-16 factors'!K25-1)*(K$3-K$2)/64), K$4) -> 7 | L26: =ROUND( L$2+(('coded NOLH for 12-16 factors'!L25-1)*(L$3-L$2)/64), L$4) -> 28 | M26: =ROUND( M$2+(('coded NOLH for 12-16 factors'!M25-1)*(M$3-M$2)/64), M$4) -> 12 | N26: =ROUND( N$2+(('coded NOLH for 12-16 factors'!N25-1)*(N$3-N$2)/64), N$4) -> 40 | O26: =ROUND( O$2+(('coded NOLH for 12-16 factors'!O25-1)*(O$3-O$2)/64), O$4) -> 53 | P26: =ROUND( P$2+(('coded NOLH for 12-16 factors'!P25-1)*(P$3-P$2)/64), P$4) -> 65 | Q26: =ROUND( Q$2+(('coded NOLH for 12-16 factors'!Q25-1)*(Q$3-Q$2)/64), Q$4) -> 27
B27: =ROUND( B$2+(('coded NOLH for 12-16 factors'!B26-1)*(B$3-B$2)/64), B$4) -> 52 | C27: =ROUND( C$2+(('coded NOLH for 12-16 factors'!C26-1)*(C$3-C$2)/64), C$4) -> 54 | D27: =ROUND( D$2+(('coded NOLH for 12-16 factors'!D26-1)*(D$3-D$2)/64), D$4) -> 1 | E27: =ROUND( E$2+(('coded NOLH for 12-16 factors'!E26-1)*(E$3-E$2)/64), E$4) -> 11 | F27: =ROUND( F$2+(('coded NOLH for 12-16 factors'!F26-1)*(F$3-F$2)/64), F$4) -> 34 | G27: =ROUND( G$2+(('coded NOLH for 12-16 factors'!G26-1)*(G$3-G$2)/64), G$4) -> 46 | H27: =ROUND( H$2+(('coded NOLH for 12-16 factors'!H26-1)*(H$3-H$2)/64), H$4) -> 32 | I27: =ROUND( I$2+(('coded NOLH for 12-16 factors'!I26-1)*(I$3-I$2)/64), I$4) -> 58 | J27: =ROUND( J$2+(('coded NOLH for 12-16 factors'!J26-1)*(J$3-J$2)/64), J$4) -> 12 | K27: =ROUND( K$2+(('coded NOLH for 12-16 factors'!K26-1)*(K$3-K$2)/64), K$4) -> 23 | L27: =ROUND( L$2+(('coded NOLH for 12-16 factors'!L26-1)*(L$3-L$2)/64), L$4) -> 60 | M27: =ROUND( M$2+(('coded NOLH for 12-16 factors'!M26-1)*(M$3-M$2)/64), M$4) -> 21 | N27: =ROUND( N$2+(('coded NOLH for 12-16 factors'!N26-1)*(N$3-N$2)/64), N$4) -> 48 | O27: =ROUND( O$2+(('coded NOLH for 12-16 factors'!O26-1)*(O$3-O$2)/64), O$4) -> 10 | P27: =ROUND( P$2+(('coded NOLH for 12-16 factors'!P26-1)*(P$3-P$2)/64), P$4) -> 29 | Q27: =ROUND( Q$2+(('coded NOLH for 12-16 factors'!Q26-1)*(Q$3-Q$2)/64), Q$4) -> 64
B28: =ROUND( B$2+(('coded NOLH for 12-16 factors'!B27-1)*(B$3-B$2)/64), B$4) -> 65 | C28: =ROUND( C$2+(('coded NOLH for 12-16 factors'!C27-1)*(C$3-C$2)/64), C$4) -> 27 | D28: =ROUND( D$2+(('coded NOLH for 12-16 factors'!D27-1)*(D$3-D$2)/64), D$4) -> 52 | E28: =ROUND( E$2+(('coded NOLH for 12-16 factors'!E27-1)*(E$3-E$2)/64), E$4) -> 17 | F28: =ROUND( F$2+(('coded NOLH for 12-16 factors'!F27-1)*(F$3-F$2)/64), F$4) -> 63 | G28: =ROUND( G$2+(('coded NOLH for 12-16 factors'!G27-1)*(G$3-G$2)/64), G$4) -> 9 | H28: =ROUND( H$2+(('coded NOLH for 12-16 factors'!H27-1)*(H$3-H$2)/64), H$4) -> 47 | I28: =ROUND( I$2+(('coded NOLH for 12-16 factors'!I27-1)*(I$3-I$2)/64), I$4) -> 9 | J28: =ROUND( J$2+(('coded NOLH for 12-16 factors'!J27-1)*(J$3-J$2)/64), J$4) -> 37 | K28: =ROUND( K$2+(('coded NOLH for 12-16 factors'!K27-1)*(K$3-K$2)/64), K$4) -> 22 | L28: =ROUND( L$2+(('coded NOLH for 12-16 factors'!L27-1)*(L$3-L$2)/64), L$4) -> 37 | M28: =ROUND( M$2+(('coded NOLH for 12-16 factors'!M27-1)*(M$3-M$2)/64), M$4) -> 18 | N28: =ROUND( N$2+(('coded NOLH for 12-16 factors'!N27-1)*(N$3-N$2)/64), N$4) -> 37 | O28: =ROUND( O$2+(('coded NOLH for 12-16 factors'!O27-1)*(O$3-O$2)/64), O$4) -> 36 | P28: =ROUND( P$2+(('coded NOLH for 12-16 factors'!P27-1)*(P$3-P$2)/64), P$4) -> 14 | Q28: =ROUND( Q$2+(('coded NOLH for 12-16 factors'!Q27-1)*(Q$3-Q$2)/64), Q$4) -> 17
B29: =ROUND( B$2+(('coded NOLH for 12-16 factors'!B28-1)*(B$3-B$2)/64), B$4) -> 39 | C29: =ROUND( C$2+(('coded NOLH for 12-16 factors'!C28-1)*(C$3-C$2)/64), C$4) -> 65 | D29: =ROUND( D$2+(('coded NOLH for 12-16 factors'!D28-1)*(D$3-D$2)/64), D$4) -> 54 | E29: =ROUND( E$2+(('coded NOLH for 12-16 factors'!E28-1)*(E$3-E$2)/64), E$4) -> 25 | F29: =ROUND( F$2+(('coded NOLH for 12-16 factors'!F28-1)*(F$3-F$2)/64), F$4) -> 45 | G29: =ROUND( G$2+(('coded NOLH for 12-16 factors'!G28-1)*(G$3-G$2)/64), G$4) -> 35 | H29: =ROUND( H$2+(('coded NOLH for 12-16 factors'!H28-1)*(H$3-H$2)/64), H$4) -> 38 | I29: =ROUND( I$2+(('coded NOLH for 12-16 factors'!I28-1)*(I$3-I$2)/64), I$4) -> 15 | J29: =ROUND( J$2+(('coded NOLH for 12-16 factors'!J28-1)*(J$3-J$2)/64), J$4) -> 65 | K29: =ROUND( K$2+(('coded NOLH for 12-16 factors'!K28-1)*(K$3-K$2)/64), K$4) -> 5 | L29: =ROUND( L$2+(('coded NOLH for 12-16 factors'!L28-1)*(L$3-L$2)/64), L$4) -> 46 | M29: =ROUND( M$2+(('coded NOLH for 12-16 factors'!M28-1)*(M$3-M$2)/64), M$4) -> 14 | N29: =ROUND( N$2+(('coded NOLH for 12-16 factors'!N28-1)*(N$3-N$2)/64), N$4) -> 56 | O29: =ROUND( O$2+(('coded NOLH for 12-16 factors'!O28-1)*(O$3-O$2)/64), O$4) -> 15 | P29: =ROUND( P$2+(('coded NOLH for 12-16 factors'!P28-1)*(P$3-P$2)/64), P$4) -> 61 | Q29: =ROUND( Q$2+(('coded NOLH for 12-16 factors'!Q28-1)*(Q$3-Q$2)/64), Q$4) -> 60
B30: =ROUND( B$2+(('coded NOLH for 12-16 factors'!B29-1)*(B$3-B$2)/64), B$4) -> 41 | C30: =ROUND( C$2+(('coded NOLH for 12-16 factors'!C29-1)*(C$3-C$2)/64), C$4) -> 17 | D30: =ROUND( D$2+(('coded NOLH for 12-16 factors'!D29-1)*(D$3-D$2)/64), D$4) -> 7 | E30: =ROUND( E$2+(('coded NOLH for 12-16 factors'!E29-1)*(E$3-E$2)/64), E$4) -> 39 | F30: =ROUND( F$2+(('coded NOLH for 12-16 factors'!F29-1)*(F$3-F$2)/64), F$4) -> 53 | G30: =ROUND( G$2+(('coded NOLH for 12-16 factors'!G29-1)*(G$3-G$2)/64), G$4) -> 48 | H30: =ROUND( H$2+(('coded NOLH for 12-16 factors'!H29-1)*(H$3-H$2)/64), H$4) -> 61 | I30: =ROUND( I$2+(('coded NOLH for 12-16 factors'!I29-1)*(I$3-I$2)/64), I$4) -> 11 | J30: =ROUND( J$2+(('coded NOLH for 12-16 factors'!J29-1)*(J$3-J$2)/64), J$4) -> 7 | K30: =ROUND( K$2+(('coded NOLH for 12-16 factors'!K29-1)*(K$3-K$2)/64), K$4) -> 11 | L30: =ROUND( L$2+(('coded NOLH for 12-16 factors'!L29-1)*(L$3-L$2)/64), L$4) -> 18 | M30: =ROUND( M$2+(('coded NOLH for 12-16 factors'!M29-1)*(M$3-M$2)/64), M$4) -> 43 | N30: =ROUND( N$2+(('coded NOLH for 12-16 factors'!N29-1)*(N$3-N$2)/64), N$4) -> 9 | O30: =ROUND( O$2+(('coded NOLH for 12-16 factors'!O29-1)*(O$3-O$2)/64), O$4) -> 1 | P30: =ROUND( P$2+(('coded NOLH for 12-16 factors'!P29-1)*(P$3-P$2)/64), P$4) -> 58 | Q30: =ROUND( Q$2+(('coded NOLH for 12-16 factors'!Q29-1)*(Q$3-Q$2)/64), Q$4) -> 24
B31: =ROUND( B$2+(('coded NOLH for 12-16 factors'!B30-1)*(B$3-B$2)/64), B$4) -> 49 | C31: =ROUND( C$2+(('coded NOLH for 12-16 factors'!C30-1)*(C$3-C$2)/64), C$4) -> 41 | D31: =ROUND( D$2+(('coded NOLH for 12-16 factors'!D30-1)*(D$3-D$2)/64), D$4) -> 11 | E31: =ROUND( E$2+(('coded NOLH for 12-16 factors'!E30-1)*(E$3-E$2)/64), E$4) -> 65 | F31: =ROUND( F$2+(('coded NOLH for 12-16 factors'!F30-1)*(F$3-F$2)/64), F$4) -> 50 | G31: =ROUND( G$2+(('coded NOLH for 12-16 factors'!G30-1)*(G$3-G$2)/64), G$4) -> 13 | H31: =ROUND( H$2+(('coded NOLH for 12-16 factors'!H30-1)*(H$3-H$2)/64), H$4) -> 42 | I31: =ROUND( I$2+(('coded NOLH for 12-16 factors'!I30-1)*(I$3-I$2)/64), I$4) -> 24 | J31: =ROUND( J$2+(('coded NOLH for 12-16 factors'!J30-1)*(J$3-J$2)/64), J$4) -> 25 | K31: =ROUND( K$2+(('coded NOLH for 12-16 factors'!K30-1)*(K$3-K$2)/64), K$4) -> 30 | L31: =ROUND( L$2+(('coded NOLH for 12-16 factors'!L30-1)*(L$3-L$2)/64), L$4) -> 3 | M31: =ROUND( M$2+(('coded NOLH for 12-16 factors'!M30-1)*(M$3-M$2)/64), M$4) -> 56 | N31: =ROUND( N$2+(('coded NOLH for 12-16 factors'!N30-1)*(N$3-N$2)/64), N$4) -> 23 | O31: =ROUND( O$2+(('coded NOLH for 12-16 factors'!O30-1)*(O$3-O$2)/64), O$4) -> 37 | P31: =ROUND( P$2+(('coded NOLH for 12-16 factors'!P30-1)*(P$3-P$2)/64), P$4) -> 4 | Q31: =ROUND( Q$2+(('coded NOLH for 12-16 factors'!Q30-1)*(Q$3-Q$2)/64), Q$4) -> 61
B32: =ROUND( B$2+(('coded NOLH for 12-16 factors'!B31-1)*(B$3-B$2)/64), B$4) -> 55 | C32: =ROUND( C$2+(('coded NOLH for 12-16 factors'!C31-1)*(C$3-C$2)/64), C$4) -> 7 | D32: =ROUND( D$2+(('coded NOLH for 12-16 factors'!D31-1)*(D$3-D$2)/64), D$4) -> 49 | E32: =ROUND( E$2+(('coded NOLH for 12-16 factors'!E31-1)*(E$3-E$2)/64), E$4) -> 52 | F32: =ROUND( F$2+(('coded NOLH for 12-16 factors'!F31-1)*(F$3-F$2)/64), F$4) -> 35 | G32: =ROUND( G$2+(('coded NOLH for 12-16 factors'!G31-1)*(G$3-G$2)/64), G$4) -> 59 | H32: =ROUND( H$2+(('coded NOLH for 12-16 factors'!H31-1)*(H$3-H$2)/64), H$4) -> 22 | I32: =ROUND( I$2+(('coded NOLH for 12-16 factors'!I31-1)*(I$3-I$2)/64), I$4) -> 62 | J32: =ROUND( J$2+(('coded NOLH for 12-16 factors'!J31-1)*(J$3-J$2)/64), J$4) -> 50 | K32: =ROUND( K$2+(('coded NOLH for 12-16 factors'!K31-1)*(K$3-K$2)/64), K$4) -> 17 | L32: =ROUND( L$2+(('coded NOLH for 12-16 factors'!L31-1)*(L$3-L$2)/64), L$4) -> 15 | M32: =ROUND( M$2+(('coded NOLH for 12-16 factors'!M31-1)*(M$3-M$2)/64), M$4) -> 39 | N32: =ROUND( N$2+(('coded NOLH for 12-16 factors'!N31-1)*(N$3-N$2)/64), N$4) -> 20 | O32: =ROUND( O$2+(('coded NOLH for 12-16 factors'!O31-1)*(O$3-O$2)/64), O$4) -> 8 | P32: =ROUND( P$2+(('coded NOLH for 12-16 factors'!P31-1)*(P$3-P$2)/64), P$4) -> 27 | Q32: =ROUND( Q$2+(('coded NOLH for 12-16 factors'!Q31-1)*(Q$3-Q$2)/64), Q$4) -> 9
B33: =ROUND( B$2+(('coded NOLH for 12-16 factors'!B32-1)*(B$3-B$2)/64), B$4) -> 59 | C33: =ROUND( C$2+(('coded NOLH for 12-16 factors'!C32-1)*(C$3-C$2)/64), C$4) -> 55 | D33: =ROUND( D$2+(('coded NOLH for 12-16 factors'!D32-1)*(D$3-D$2)/64), D$4) -> 41 | E33: =ROUND( E$2+(('coded NOLH for 12-16 factors'!E32-1)*(E$3-E$2)/64), E$4) -> 54 | F33: =ROUND( F$2+(('coded NOLH for 12-16 factors'!F32-1)*(F$3-F$2)/64), F$4) -> 60 | G33: =ROUND( G$2+(('coded NOLH for 12-16 factors'!G32-1)*(G$3-G$2)/64), G$4) -> 21 | H33: =ROUND( H$2+(('coded NOLH for 12-16 factors'!H32-1)*(H$3-H$2)/64), H$4) -> 9 | I33: =ROUND( I$2+(('coded NOLH for 12-16 factors'!I32-1)*(I$3-I$2)/64), I$4) -> 43 | J33: =ROUND( J$2+(('coded NOLH for 12-16 factors'!J32-1)*(J$3-J$2)/64), J$4) -> 48 | K33: =ROUND( K$2+(('coded NOLH for 12-16 factors'!K32-1)*(K$3-K$2)/64), K$4) -> 24 | L33: =ROUND( L$2+(('coded NOLH for 12-16 factors'!L32-1)*(L$3-L$2)/64), L$4) -> 25 | M33: =ROUND( M$2+(('coded NOLH for 12-16 factors'!M32-1)*(M$3-M$2)/64), M$4) -> 64 | N33: =ROUND( N$2+(('coded NOLH for 12-16 factors'!N32-1)*(N$3-N$2)/64), N$4) -> 5 | O33: =ROUND( O$2+(('coded NOLH for 12-16 factors'!O32-1)*(O$3-O$2)/64), O$4) -> 47 | P33: =ROUND( P$2+(('coded NOLH for 12-16 factors'!P32-1)*(P$3-P$2)/64), P$4) -> 45 | Q33: =ROUND( Q$2+(('coded NOLH for 12-16 factors'!Q32-1)*(Q$3-Q$2)/64), Q$4) -> 38
B34: =ROUND( B$2+(('coded NOLH for 12-16 factors'!B33-1)*(B$3-B$2)/64), B$4) -> 61 | C34: =ROUND( C$2+(('coded NOLH for 12-16 factors'!C33-1)*(C$3-C$2)/64), C$4) -> 20 | D34: =ROUND( D$2+(('coded NOLH for 12-16 factors'!D33-1)*(D$3-D$2)/64), D$4) -> 9 | E34: =ROUND( E$2+(('coded NOLH for 12-16 factors'!E33-1)*(E$3-E$2)/64), E$4) -> 40 | F34: =ROUND( F$2+(('coded NOLH for 12-16 factors'!F33-1)*(F$3-F$2)/64), F$4) -> 42 | G34: =ROUND( G$2+(('coded NOLH for 12-16 factors'!G33-1)*(G$3-G$2)/64), G$4) -> 14 | H34: =ROUND( H$2+(('coded NOLH for 12-16 factors'!H33-1)*(H$3-H$2)/64), H$4) -> 27 | I34: =ROUND( I$2+(('coded NOLH for 12-16 factors'!I33-1)*(I$3-I$2)/64), I$4) -> 6 | J34: =ROUND( J$2+(('coded NOLH for 12-16 factors'!J33-1)*(J$3-J$2)/64), J$4) -> 15 | K34: =ROUND( K$2+(('coded NOLH for 12-16 factors'!K33-1)*(K$3-K$2)/64), K$4) -> 56 | L34: =ROUND( L$2+(('coded NOLH for 12-16 factors'!L33-1)*(L$3-L$2)/64), L$4) -> 57 | M34: =ROUND( M$2+(('coded NOLH for 12-16 factors'!M33-1)*(M$3-M$2)/64), M$4) -> 36 | N34: =ROUND( N$2+(('coded NOLH for 12-16 factors'!N33-1)*(N$3-N$2)/64), N$4) -> 59 | O34: =ROUND( O$2+(('coded NOLH for 12-16 factors'!O33-1)*(O$3-O$2)/64), O$4) -> 21 | P34: =ROUND( P$2+(('coded NOLH for 12-16 factors'!P33-1)*(P$3-P$2)/64), P$4) -> 47 | Q34: =ROUND( Q$2+(('coded NOLH for 12-16 factors'!Q33-1)*(Q$3-Q$2)/64), Q$4) -> 7
B35: =ROUND( B$2+(('coded NOLH for 12-16 factors'!B34-1)*(B$3-B$2)/64), B$4) -> 46 | C35: =ROUND( C$2+(('coded NOLH for 12-16 factors'!C34-1)*(C$3-C$2)/64), C$4) -> 61 | D35: =ROUND( D$2+(('coded NOLH for 12-16 factors'!D34-1)*(D$3-D$2)/64), D$4) -> 23 | E35: =ROUND( E$2+(('coded NOLH for 12-16 factors'!E34-1)*(E$3-E$2)/64), E$4) -> 48 | F35: =ROUND( F$2+(('coded NOLH for 12-16 factors'!F34-1)*(F$3-F$2)/64), F$4) -> 58 | G35: =ROUND( G$2+(('coded NOLH for 12-16 factors'!G34-1)*(G$3-G$2)/64), G$4) -> 64 | H35: =ROUND( H$2+(('coded NOLH for 12-16 factors'!H34-1)*(H$3-H$2)/64), H$4) -> 23 | I35: =ROUND( I$2+(('coded NOLH for 12-16 factors'!I34-1)*(I$3-I$2)/64), I$4) -> 35 | J35: =ROUND( J$2+(('coded NOLH for 12-16 factors'!J34-1)*(J$3-J$2)/64), J$4) -> 5 | K35: =ROUND( K$2+(('coded NOLH for 12-16 factors'!K34-1)*(K$3-K$2)/64), K$4) -> 51 | L35: =ROUND( L$2+(('coded NOLH for 12-16 factors'!L34-1)*(L$3-L$2)/64), L$4) -> 40 | M35: =ROUND( M$2+(('coded NOLH for 12-16 factors'!M34-1)*(M$3-M$2)/64), M$4) -> 44 | N35: =ROUND( N$2+(('coded NOLH for 12-16 factors'!N34-1)*(N$3-N$2)/64), N$4) -> 55 | O35: =ROUND( O$2+(('coded NOLH for 12-16 factors'!O34-1)*(O$3-O$2)/64), O$4) -> 40 | P35: =ROUND( P$2+(('coded NOLH for 12-16 factors'!P34-1)*(P$3-P$2)/64), P$4) -> 17 | Q35: =ROUND( Q$2+(('coded NOLH for 12-16 factors'!Q34-1)*(Q$3-Q$2)/64), Q$4) -> 43
B36: =ROUND( B$2+(('coded NOLH for 12-16 factors'!B35-1)*(B$3-B$2)/64), B$4) -> 43 | C36: =ROUND( C$2+(('coded NOLH for 12-16 factors'!C35-1)*(C$3-C$2)/64), C$4) -> 9 | D36: =ROUND( D$2+(('coded NOLH for 12-16 factors'!D35-1)*(D$3-D$2)/64), D$4) -> 46 | E36: =ROUND( E$2+(('coded NOLH for 12-16 factors'!E35-1)*(E$3-E$2)/64), E$4) -> 37 | F36: =ROUND( F$2+(('coded NOLH for 12-16 factors'!F35-1)*(F$3-F$2)/64), F$4) -> 62 | G36: =ROUND( G$2+(('coded NOLH for 12-16 factors'!G35-1)*(G$3-G$2)/64), G$4) -> 27 | H36: =ROUND( H$2+(('coded NOLH for 12-16 factors'!H35-1)*(H$3-H$2)/64), H$4) -> 50 | I36: =ROUND( I$2+(('coded NOLH for 12-16 factors'!I35-1)*(I$3-I$2)/64), I$4) -> 50 | J36: =ROUND( J$2+(('coded NOLH for 12-16 factors'!J35-1)*(J$3-J$2)/64), J$4) -> 60 | K36: =ROUND( K$2+(('coded NOLH for 12-16 factors'!K35-1)*(K$3-K$2)/64), K$4) -> 63 | L36: =ROUND( L$2+(('coded NOLH for 12-16 factors'!L35-1)*(L$3-L$2)/64), L$4) -> 53 | M36: =ROUND( M$2+(('coded NOLH for 12-16 factors'!M35-1)*(M$3-M$2)/64), M$4) -> 35 | N36: =ROUND( N$2+(('coded NOLH for 12-16 factors'!N35-1)*(N$3-N$2)/64), N$4) -> 49 | O36: =ROUND( O$2+(('coded NOLH for 12-16 factors'!O35-1)*(O$3-O$2)/64), O$4) -> 7 | P36: =ROUND( P$2+(('coded NOLH for 12-16 factors'!P35-1)*(P$3-P$2)/64), P$4) -> 9 | Q36: =ROUND( Q$2+(('coded NOLH for 12-16 factors'!Q35-1)*(Q$3-Q$2)/64), Q$4) -> 16
B37: =ROUND( B$2+(('coded NOLH for 12-16 factors'!B36-1)*(B$3-B$2)/64), B$4) -> 57 | C37: =ROUND( C$2+(('coded NOLH for 12-16 factors'!C36-1)*(C$3-C$2)/64), C$4) -> 43 | D37: =ROUND( D$2+(('coded NOLH for 12-16 factors'!D36-1)*(D$3-D$2)/64), D$4) -> 61 | E37: =ROUND( E$2+(('coded NOLH for 12-16 factors'!E36-1)*(E$3-E$2)/64), E$4) -> 56 | F37: =ROUND( F$2+(('coded NOLH for 12-16 factors'!F36-1)*(F$3-F$2)/64), F$4) -> 47 | G37: =ROUND( G$2+(('coded NOLH for 12-16 factors'!G36-1)*(G$3-G$2)/64), G$4) -> 42 | H37: =ROUND( H$2+(('coded NOLH for 12-16 factors'!H36-1)*(H$3-H$2)/64), H$4) -> 59 | I37: =ROUND( I$2+(('coded NOLH for 12-16 factors'!I36-1)*(I$3-I$2)/64), I$4) -> 44 | J37: =ROUND( J$2+(('coded NOLH for 12-16 factors'!J36-1)*(J$3-J$2)/64), J$4) -> 43 | K37: =ROUND( K$2+(('coded NOLH for 12-16 factors'!K36-1)*(K$3-K$2)/64), K$4) -> 40 | L37: =ROUND( L$2+(('coded NOLH for 12-16 factors'!L36-1)*(L$3-L$2)/64), L$4) -> 54 | M37: =ROUND( M$2+(('coded NOLH for 12-16 factors'!M36-1)*(M$3-M$2)/64), M$4) -> 50 | N37: =ROUND( N$2+(('coded NOLH for 12-16 factors'!N36-1)*(N$3-N$2)/64), N$4) -> 41 | O37: =ROUND( O$2+(('coded NOLH for 12-16 factors'!O36-1)*(O$3-O$2)/64), O$4) -> 35 | P37: =ROUND( P$2+(('coded NOLH for 12-16 factors'!P36-1)*(P$3-P$2)/64), P$4) -> 51 | Q37: =ROUND( Q$2+(('coded NOLH for 12-16 factors'!Q36-1)*(Q$3-Q$2)/64), Q$4) -> 63
B38: =ROUND( B$2+(('coded NOLH for 12-16 factors'!B37-1)*(B$3-B$2)/64), B$4) -> 33 | C38: =ROUND( C$2+(('coded NOLH for 12-16 factors'!C37-1)*(C$3-C$2)/64), C$4) -> 33 | D38: =ROUND( D$2+(('coded NOLH for 12-16 factors'!D37-1)*(D$3-D$2)/64), D$4) -> 33 | E38: =ROUND( E$2+(('coded NOLH for 12-16 factors'!E37-1)*(E$3-E$2)/64), E$4) -> 33 | F38: =ROUND( F$2+(('coded NOLH for 12-16 factors'!F37-1)*(F$3-F$2)/64), F$4) -> 33 | G38: =ROUND( G$2+(('coded NOLH for 12-16 factors'!G37-1)*(G$3-G$2)/64), G$4) -> 33 | H38: =ROUND( H$2+(('coded NOLH for 12-16 factors'!H37-1)*(H$3-H$2)/64), H$4) -> 33 | I38: =ROUND( I$2+(('coded NOLH for 12-16 factors'!I37-1)*(I$3-I$2)/64), I$4) -> 33 | J38: =ROUND( J$2+(('coded NOLH for 12-16 factors'!J37-1)*(J$3-J$2)/64), J$4) -> 33 | K38: =ROUND( K$2+(('coded NOLH for 12-16 factors'!K37-1)*(K$3-K$2)/64), K$4) -> 33 | L38: =ROUND( L$2+(('coded NOLH for 12-16 factors'!L37-1)*(L$3-L$2)/64), L$4) -> 33 | M38: =ROUND( M$2+(('coded NOLH for 12-16 factors'!M37-1)*(M$3-M$2)/64), M$4) -> 33 | N38: =ROUND( N$2+(('coded NOLH for 12-16 factors'!N37-1)*(N$3-N$2)/64), N$4) -> 33 | O38: =ROUND( O$2+(('coded NOLH for 12-16 factors'!O37-1)*(O$3-O$2)/64), O$4) -> 33 | P38: =ROUND( P$2+(('coded NOLH for 12-16 factors'!P37-1)*(P$3-P$2)/64), P$4) -> 33 | Q38: =ROUND( Q$2+(('coded NOLH for 12-16 factors'!Q37-1)*(Q$3-Q$2)/64), Q$4) -> 33
B39: =ROUND( B$2+(('coded NOLH for 12-16 factors'!B38-1)*(B$3-B$2)/64), B$4) -> 19 | C39: =ROUND( C$2+(('coded NOLH for 12-16 factors'!C38-1)*(C$3-C$2)/64), C$4) -> 62 | D39: =ROUND( D$2+(('coded NOLH for 12-16 factors'!D38-1)*(D$3-D$2)/64), D$4) -> 42 | E39: =ROUND( E$2+(('coded NOLH for 12-16 factors'!E38-1)*(E$3-E$2)/64), E$4) -> 44 | F39: =ROUND( F$2+(('coded NOLH for 12-16 factors'!F38-1)*(F$3-F$2)/64), F$4) -> 57 | G39: =ROUND( G$2+(('coded NOLH for 12-16 factors'!G38-1)*(G$3-G$2)/64), G$4) -> 16 | H39: =ROUND( H$2+(('coded NOLH for 12-16 factors'!H38-1)*(H$3-H$2)/64), H$4) -> 14 | I39: =ROUND( I$2+(('coded NOLH for 12-16 factors'!I38-1)*(I$3-I$2)/64), I$4) -> 34 | J39: =ROUND( J$2+(('coded NOLH for 12-16 factors'!J38-1)*(J$3-J$2)/64), J$4) -> 3 | K39: =ROUND( K$2+(('coded NOLH for 12-16 factors'!K38-1)*(K$3-K$2)/64), K$4) -> 19 | L39: =ROUND( L$2+(('coded NOLH for 12-16 factors'!L38-1)*(L$3-L$2)/64), L$4) -> 30 | M39: =ROUND( M$2+(('coded NOLH for 12-16 factors'!M38-1)*(M$3-M$2)/64), M$4) -> 5 | N39: =ROUND( N$2+(('coded NOLH for 12-16 factors'!N38-1)*(N$3-N$2)/64), N$4) -> 53 | O39: =ROUND( O$2+(('coded NOLH for 12-16 factors'!O38-1)*(O$3-O$2)/64), O$4) -> 25 | P39: =ROUND( P$2+(('coded NOLH for 12-16 factors'!P38-1)*(P$3-P$2)/64), P$4) -> 13 | Q39: =ROUND( Q$2+(('coded NOLH for 12-16 factors'!Q38-1)*(Q$3-Q$2)/64), Q$4) -> 21
B40: =ROUND( B$2+(('coded NOLH for 12-16 factors'!B39-1)*(B$3-B$2)/64), B$4) -> 4 | C40: =ROUND( C$2+(('coded NOLH for 12-16 factors'!C39-1)*(C$3-C$2)/64), C$4) -> 19 | D40: =ROUND( D$2+(('coded NOLH for 12-16 factors'!D39-1)*(D$3-D$2)/64), D$4) -> 58 | E40: =ROUND( E$2+(('coded NOLH for 12-16 factors'!E39-1)*(E$3-E$2)/64), E$4) -> 38 | F40: =ROUND( F$2+(('coded NOLH for 12-16 factors'!F39-1)*(F$3-F$2)/64), F$4) -> 43 | G40: =ROUND( G$2+(('coded NOLH for 12-16 factors'!G39-1)*(G$3-G$2)/64), G$4) -> 49 | H40: =ROUND( H$2+(('coded NOLH for 12-16 factors'!H39-1)*(H$3-H$2)/64), H$4) -> 30 | I40: =ROUND( I$2+(('coded NOLH for 12-16 factors'!I39-1)*(I$3-I$2)/64), I$4) -> 17 | J40: =ROUND( J$2+(('coded NOLH for 12-16 factors'!J39-1)*(J$3-J$2)/64), J$4) -> 19 | K40: =ROUND( K$2+(('coded NOLH for 12-16 factors'!K39-1)*(K$3-K$2)/64), K$4) -> 6 | L40: =ROUND( L$2+(('coded NOLH for 12-16 factors'!L39-1)*(L$3-L$2)/64), L$4) -> 16 | M40: =ROUND( M$2+(('coded NOLH for 12-16 factors'!M39-1)*(M$3-M$2)/64), M$4) -> 34 | N40: =ROUND( N$2+(('coded NOLH for 12-16 factors'!N39-1)*(N$3-N$2)/64), N$4) -> 50 | O40: =ROUND( O$2+(('coded NOLH for 12-16 factors'!O39-1)*(O$3-O$2)/64), O$4) -> 43 | P40: =ROUND( P$2+(('coded NOLH for 12-16 factors'!P39-1)*(P$3-P$2)/64), P$4) -> 43 | Q40: =ROUND( Q$2+(('coded NOLH for 12-16 factors'!Q39-1)*(Q$3-Q$2)/64), Q$4) -> 55
B41: =ROUND( B$2+(('coded NOLH for 12-16 factors'!B40-1)*(B$3-B$2)/64), B$4) -> 8 | C41: =ROUND( C$2+(('coded NOLH for 12-16 factors'!C40-1)*(C$3-C$2)/64), C$4) -> 42 | D41: =ROUND( D$2+(('coded NOLH for 12-16 factors'!D40-1)*(D$3-D$2)/64), D$4) -> 4 | E41: =ROUND( E$2+(('coded NOLH for 12-16 factors'!E40-1)*(E$3-E$2)/64), E$4) -> 51 | F41: =ROUND( F$2+(('coded NOLH for 12-16 factors'!F40-1)*(F$3-F$2)/64), F$4) -> 46 | G41: =ROUND( G$2+(('coded NOLH for 12-16 factors'!G40-1)*(G$3-G$2)/64), G$4) -> 10 | H41: =ROUND( H$2+(('coded NOLH for 12-16 factors'!H40-1)*(H$3-H$2)/64), H$4) -> 55 | I41: =ROUND( I$2+(('coded NOLH for 12-16 factors'!I40-1)*(I$3-I$2)/64), I$4) -> 36 | J41: =ROUND( J$2+(('coded NOLH for 12-16 factors'!J40-1)*(J$3-J$2)/64), J$4) -> 39 | K41: =ROUND( K$2+(('coded NOLH for 12-16 factors'!K40-1)*(K$3-K$2)/64), K$4) -> 28 | L41: =ROUND( L$2+(('coded NOLH for 12-16 factors'!L40-1)*(L$3-L$2)/64), L$4) -> 14 | M41: =ROUND( M$2+(('coded NOLH for 12-16 factors'!M40-1)*(M$3-M$2)/64), M$4) -> 9 | N41: =ROUND( N$2+(('coded NOLH for 12-16 factors'!N40-1)*(N$3-N$2)/64), N$4) -> 35 | O41: =ROUND( O$2+(('coded NOLH for 12-16 factors'!O40-1)*(O$3-O$2)/64), O$4) -> 32 | P41: =ROUND( P$2+(('coded NOLH for 12-16 factors'!P40-1)*(P$3-P$2)/64), P$4) -> 48 | Q41: =ROUND( Q$2+(('coded NOLH for 12-16 factors'!Q40-1)*(Q$3-Q$2)/64), Q$4) -> 8
B42: =ROUND( B$2+(('coded NOLH for 12-16 factors'!B41-1)*(B$3-B$2)/64), B$4) -> 24 | C42: =ROUND( C$2+(('coded NOLH for 12-16 factors'!C41-1)*(C$3-C$2)/64), C$4) -> 8 | D42: =ROUND( D$2+(('coded NOLH for 12-16 factors'!D41-1)*(D$3-D$2)/64), D$4) -> 19 | E42: =ROUND( E$2+(('coded NOLH for 12-16 factors'!E41-1)*(E$3-E$2)/64), E$4) -> 36 | F42: =ROUND( F$2+(('coded NOLH for 12-16 factors'!F41-1)*(F$3-F$2)/64), F$4) -> 61 | G42: =ROUND( G$2+(('coded NOLH for 12-16 factors'!G41-1)*(G$3-G$2)/64), G$4) -> 38 | H42: =ROUND( H$2+(('coded NOLH for 12-16 factors'!H41-1)*(H$3-H$2)/64), H$4) -> 48 | I42: =ROUND( I$2+(('coded NOLH for 12-16 factors'!I41-1)*(I$3-I$2)/64), I$4) -> 48 | J42: =ROUND( J$2+(('coded NOLH for 12-16 factors'!J41-1)*(J$3-J$2)/64), J$4) -> 57 | K42: =ROUND( K$2+(('coded NOLH for 12-16 factors'!K41-1)*(K$3-K$2)/64), K$4) -> 2 | L42: =ROUND( L$2+(('coded NOLH for 12-16 factors'!L41-1)*(L$3-L$2)/64), L$4) -> 7 | M42: =ROUND( M$2+(('coded NOLH for 12-16 factors'!M41-1)*(M$3-M$2)/64), M$4) -> 25 | N42: =ROUND( N$2+(('coded NOLH for 12-16 factors'!N41-1)*(N$3-N$2)/64), N$4) -> 60 | O42: =ROUND( O$2+(('coded NOLH for 12-16 factors'!O41-1)*(O$3-O$2)/64), O$4) -> 52 | P42: =ROUND( P$2+(('coded NOLH for 12-16 factors'!P41-1)*(P$3-P$2)/64), P$4) -> 10 | Q42: =ROUND( Q$2+(('coded NOLH for 12-16 factors'!Q41-1)*(Q$3-Q$2)/64), Q$4) -> 44
B43: =ROUND( B$2+(('coded NOLH for 12-16 factors'!B42-1)*(B$3-B$2)/64), B$4) -> 6 | C43: =ROUND( C$2+(('coded NOLH for 12-16 factors'!C42-1)*(C$3-C$2)/64), C$4) -> 35 | D43: =ROUND( D$2+(('coded NOLH for 12-16 factors'!D42-1)*(D$3-D$2)/64), D$4) -> 53 | E43: =ROUND( E$2+(('coded NOLH for 12-16 factors'!E42-1)*(E$3-E$2)/64), E$4) -> 64 | F43: =ROUND( F$2+(('coded NOLH for 12-16 factors'!F42-1)*(F$3-F$2)/64), F$4) -> 59 | G43: =ROUND( G$2+(('coded NOLH for 12-16 factors'!G42-1)*(G$3-G$2)/64), G$4) -> 55 | H43: =ROUND( H$2+(('coded NOLH for 12-16 factors'!H42-1)*(H$3-H$2)/64), H$4) -> 49 | I43: =ROUND( I$2+(('coded NOLH for 12-16 factors'!I42-1)*(I$3-I$2)/64), I$4) -> 26 | J43: =ROUND( J$2+(('coded NOLH for 12-16 factors'!J42-1)*(J$3-J$2)/64), J$4) -> 26 | K43: =ROUND( K$2+(('coded NOLH for 12-16 factors'!K42-1)*(K$3-K$2)/64), K$4) -> 34 | L43: =ROUND( L$2+(('coded NOLH for 12-16 factors'!L42-1)*(L$3-L$2)/64), L$4) -> 61 | M43: =ROUND( M$2+(('coded NOLH for 12-16 factors'!M42-1)*(M$3-M$2)/64), M$4) -> 11 | N43: =ROUND( N$2+(('coded NOLH for 12-16 factors'!N42-1)*(N$3-N$2)/64), N$4) -> 24 | O43: =ROUND( O$2+(('coded NOLH for 12-16 factors'!O42-1)*(O$3-O$2)/64), O$4) -> 27 | P43: =ROUND( P$2+(('coded NOLH for 12-16 factors'!P42-1)*(P$3-P$2)/64), P$4) -> 20 | Q43: =ROUND( Q$2+(('coded NOLH for 12-16 factors'!Q42-1)*(Q$3-Q$2)/64), Q$4) -> 14
B44: =ROUND( B$2+(('coded NOLH for 12-16 factors'!B43-1)*(B$3-B$2)/64), B$4) -> 31 | C44: =ROUND( C$2+(('coded NOLH for 12-16 factors'!C43-1)*(C$3-C$2)/64), C$4) -> 6 | D44: =ROUND( D$2+(('coded NOLH for 12-16 factors'!D43-1)*(D$3-D$2)/64), D$4) -> 50 | E44: =ROUND( E$2+(('coded NOLH for 12-16 factors'!E43-1)*(E$3-E$2)/64), E$4) -> 34 | F44: =ROUND( F$2+(('coded NOLH for 12-16 factors'!F43-1)*(F$3-F$2)/64), F$4) -> 55 | G44: =ROUND( G$2+(('coded NOLH for 12-16 factors'!G43-1)*(G$3-G$2)/64), G$4) -> 23 | H44: =ROUND( H$2+(('coded NOLH for 12-16 factors'!H43-1)*(H$3-H$2)/64), H$4) -> 56 | I44: =ROUND( I$2+(('coded NOLH for 12-16 factors'!I43-1)*(I$3-I$2)/64), I$4) -> 10 | J44: =ROUND( J$2+(('coded NOLH for 12-16 factors'!J43-1)*(J$3-J$2)/64), J$4) -> 8 | K44: =ROUND( K$2+(('coded NOLH for 12-16 factors'!K43-1)*(K$3-K$2)/64), K$4) -> 58 | L44: =ROUND( L$2+(('coded NOLH for 12-16 factors'!L43-1)*(L$3-L$2)/64), L$4) -> 39 | M44: =ROUND( M$2+(('coded NOLH for 12-16 factors'!M43-1)*(M$3-M$2)/64), M$4) -> 15 | N44: =ROUND( N$2+(('coded NOLH for 12-16 factors'!N43-1)*(N$3-N$2)/64), N$4) -> 8 | O44: =ROUND( O$2+(('coded NOLH for 12-16 factors'!O43-1)*(O$3-O$2)/64), O$4) -> 61 | P44: =ROUND( P$2+(('coded NOLH for 12-16 factors'!P43-1)*(P$3-P$2)/64), P$4) -> 54 | Q44: =ROUND( Q$2+(('coded NOLH for 12-16 factors'!Q43-1)*(Q$3-Q$2)/64), Q$4) -> 62
B45: =ROUND( B$2+(('coded NOLH for 12-16 factors'!B44-1)*(B$3-B$2)/64), B$4) -> 16 | C45: =ROUND( C$2+(('coded NOLH for 12-16 factors'!C44-1)*(C$3-C$2)/64), C$4) -> 53 | D45: =ROUND( D$2+(('coded NOLH for 12-16 factors'!D44-1)*(D$3-D$2)/64), D$4) -> 31 | E45: =ROUND( E$2+(('coded NOLH for 12-16 factors'!E44-1)*(E$3-E$2)/64), E$4) -> 63 | F45: =ROUND( F$2+(('coded NOLH for 12-16 factors'!F44-1)*(F$3-F$2)/64), F$4) -> 49 | G45: =ROUND( G$2+(('coded NOLH for 12-16 factors'!G44-1)*(G$3-G$2)/64), G$4) -> 44 | H45: =ROUND( H$2+(('coded NOLH for 12-16 factors'!H44-1)*(H$3-H$2)/64), H$4) -> 8 | I45: =ROUND( I$2+(('coded NOLH for 12-16 factors'!I44-1)*(I$3-I$2)/64), I$4) -> 38 | J45: =ROUND( J$2+(('coded NOLH for 12-16 factors'!J44-1)*(J$3-J$2)/64), J$4) -> 55 | K45: =ROUND( K$2+(('coded NOLH for 12-16 factors'!K44-1)*(K$3-K$2)/64), K$4) -> 37 | L45: =ROUND( L$2+(('coded NOLH for 12-16 factors'!L44-1)*(L$3-L$2)/64), L$4) -> 43 | M45: =ROUND( M$2+(('coded NOLH for 12-16 factors'!M44-1)*(M$3-M$2)/64), M$4) -> 7 | N45: =ROUND( N$2+(('coded NOLH for 12-16 factors'!N44-1)*(N$3-N$2)/64), N$4) -> 4 | O45: =ROUND( O$2+(('coded NOLH for 12-16 factors'!O44-1)*(O$3-O$2)/64), O$4) -> 18 | P45: =ROUND( P$2+(('coded NOLH for 12-16 factors'!P44-1)*(P$3-P$2)/64), P$4) -> 59 | Q45: =ROUND( Q$2+(('coded NOLH for 12-16 factors'!Q44-1)*(Q$3-Q$2)/64), Q$4) -> 30
B46: =ROUND( B$2+(('coded NOLH for 12-16 factors'!B45-1)*(B$3-B$2)/64), B$4) -> 13 | C46: =ROUND( C$2+(('coded NOLH for 12-16 factors'!C45-1)*(C$3-C$2)/64), C$4) -> 16 | D46: =ROUND( D$2+(('coded NOLH for 12-16 factors'!D45-1)*(D$3-D$2)/64), D$4) -> 6 | E46: =ROUND( E$2+(('coded NOLH for 12-16 factors'!E45-1)*(E$3-E$2)/64), E$4) -> 45 | F46: =ROUND( F$2+(('coded NOLH for 12-16 factors'!F45-1)*(F$3-F$2)/64), F$4) -> 41 | G46: =ROUND( G$2+(('coded NOLH for 12-16 factors'!G45-1)*(G$3-G$2)/64), G$4) -> 6 | H46: =ROUND( H$2+(('coded NOLH for 12-16 factors'!H45-1)*(H$3-H$2)/64), H$4) -> 20 | I46: =ROUND( I$2+(('coded NOLH for 12-16 factors'!I45-1)*(I$3-I$2)/64), I$4) -> 64 | J46: =ROUND( J$2+(('coded NOLH for 12-16 factors'!J45-1)*(J$3-J$2)/64), J$4) -> 49 | K46: =ROUND( K$2+(('coded NOLH for 12-16 factors'!K45-1)*(K$3-K$2)/64), K$4) -> 45 | L46: =ROUND( L$2+(('coded NOLH for 12-16 factors'!L45-1)*(L$3-L$2)/64), L$4) -> 64 | M46: =ROUND( M$2+(('coded NOLH for 12-16 factors'!M45-1)*(M$3-M$2)/64), M$4) -> 24 | N46: =ROUND( N$2+(('coded NOLH for 12-16 factors'!N45-1)*(N$3-N$2)/64), N$4) -> 19 | O46: =ROUND( O$2+(('coded NOLH for 12-16 factors'!O45-1)*(O$3-O$2)/64), O$4) -> 63 | P46: =ROUND( P$2+(('coded NOLH for 12-16 factors'!P45-1)*(P$3-P$2)/64), P$4) -> 30 | Q46: =ROUND( Q$2+(('coded NOLH for 12-16 factors'!Q45-1)*(Q$3-Q$2)/64), Q$4) -> 53
B47: =ROUND( B$2+(('coded NOLH for 12-16 factors'!B46-1)*(B$3-B$2)/64), B$4) -> 21 | C47: =ROUND( C$2+(('coded NOLH for 12-16 factors'!C46-1)*(C$3-C$2)/64), C$4) -> 63 | D47: =ROUND( D$2+(('coded NOLH for 12-16 factors'!D46-1)*(D$3-D$2)/64), D$4) -> 64 | E47: =ROUND( E$2+(('coded NOLH for 12-16 factors'!E46-1)*(E$3-E$2)/64), E$4) -> 13 | F47: =ROUND( F$2+(('coded NOLH for 12-16 factors'!F46-1)*(F$3-F$2)/64), F$4) -> 39 | G47: =ROUND( G$2+(('coded NOLH for 12-16 factors'!G46-1)*(G$3-G$2)/64), G$4) -> 26 | H47: =ROUND( H$2+(('coded NOLH for 12-16 factors'!H46-1)*(H$3-H$2)/64), H$4) -> 40 | I47: =ROUND( I$2+(('coded NOLH for 12-16 factors'!I46-1)*(I$3-I$2)/64), I$4) -> 59 | J47: =ROUND( J$2+(('coded NOLH for 12-16 factors'!J46-1)*(J$3-J$2)/64), J$4) -> 14 | K47: =ROUND( K$2+(('coded NOLH for 12-16 factors'!K46-1)*(K$3-K$2)/64), K$4) -> 46 | L47: =ROUND( L$2+(('coded NOLH for 12-16 factors'!L46-1)*(L$3-L$2)/64), L$4) -> 11 | M47: =ROUND( M$2+(('coded NOLH for 12-16 factors'!M46-1)*(M$3-M$2)/64), M$4) -> 40 | N47: =ROUND( N$2+(('coded NOLH for 12-16 factors'!N46-1)*(N$3-N$2)/64), N$4) -> 44 | O47: =ROUND( O$2+(('coded NOLH for 12-16 factors'!O46-1)*(O$3-O$2)/64), O$4) -> 50 | P47: =ROUND( P$2+(('coded NOLH for 12-16 factors'!P46-1)*(P$3-P$2)/64), P$4) -> 32 | Q47: =ROUND( Q$2+(('coded NOLH for 12-16 factors'!Q46-1)*(Q$3-Q$2)/64), Q$4) -> 1
B48: =ROUND( B$2+(('coded NOLH for 12-16 factors'!B47-1)*(B$3-B$2)/64), B$4) -> 3 | C48: =ROUND( C$2+(('coded NOLH for 12-16 factors'!C47-1)*(C$3-C$2)/64), C$4) -> 21 | D48: =ROUND( D$2+(('coded NOLH for 12-16 factors'!D47-1)*(D$3-D$2)/64), D$4) -> 34 | E48: =ROUND( E$2+(('coded NOLH for 12-16 factors'!E47-1)*(E$3-E$2)/64), E$4) -> 16 | F48: =ROUND( F$2+(('coded NOLH for 12-16 factors'!F47-1)*(F$3-F$2)/64), F$4) -> 65 | G48: =ROUND( G$2+(('coded NOLH for 12-16 factors'!G47-1)*(G$3-G$2)/64), G$4) -> 47 | H48: =ROUND( H$2+(('coded NOLH for 12-16 factors'!H47-1)*(H$3-H$2)/64), H$4) -> 6 | I48: =ROUND( I$2+(('coded NOLH for 12-16 factors'!I47-1)*(I$3-I$2)/64), I$4) -> 41 | J48: =ROUND( J$2+(('coded NOLH for 12-16 factors'!J47-1)*(J$3-J$2)/64), J$4) -> 22 | K48: =ROUND( K$2+(('coded NOLH for 12-16 factors'!K47-1)*(K$3-K$2)/64), K$4) -> 65 | L48: =ROUND( L$2+(('coded NOLH for 12-16 factors'!L47-1)*(L$3-L$2)/64), L$4) -> 22 | M48: =ROUND( M$2+(('coded NOLH for 12-16 factors'!M47-1)*(M$3-M$2)/64), M$4) -> 63 | N48: =ROUND( N$2+(('coded NOLH for 12-16 factors'!N47-1)*(N$3-N$2)/64), N$4) -> 38 | O48: =ROUND( O$2+(('coded NOLH for 12-16 factors'!O47-1)*(O$3-O$2)/64), O$4) -> 11 | P48: =ROUND( P$2+(('coded NOLH for 12-16 factors'!P47-1)*(P$3-P$2)/64), P$4) -> 64 | Q48: =ROUND( Q$2+(('coded NOLH for 12-16 factors'!Q47-1)*(Q$3-Q$2)/64), Q$4) -> 35
B49: =ROUND( B$2+(('coded NOLH for 12-16 factors'!B48-1)*(B$3-B$2)/64), B$4) -> 32 | C49: =ROUND( C$2+(('coded NOLH for 12-16 factors'!C48-1)*(C$3-C$2)/64), C$4) -> 64 | D49: =ROUND( D$2+(('coded NOLH for 12-16 factors'!D48-1)*(D$3-D$2)/64), D$4) -> 3 | E49: =ROUND( E$2+(('coded NOLH for 12-16 factors'!E48-1)*(E$3-E$2)/64), E$4) -> 31 | F49: =ROUND( F$2+(('coded NOLH for 12-16 factors'!F48-1)*(F$3-F$2)/64), F$4) -> 52 | G49: =ROUND( G$2+(('coded NOLH for 12-16 factors'!G48-1)*(G$3-G$2)/64), G$4) -> 37 | H49: =ROUND( H$2+(('coded NOLH for 12-16 factors'!H48-1)*(H$3-H$2)/64), H$4) -> 45 | I49: =ROUND( I$2+(('coded NOLH for 12-16 factors'!I48-1)*(I$3-I$2)/64), I$4) -> 21 | J49: =ROUND( J$2+(('coded NOLH for 12-16 factors'!J48-1)*(J$3-J$2)/64), J$4) -> 64 | K49: =ROUND( K$2+(('coded NOLH for 12-16 factors'!K48-1)*(K$3-K$2)/64), K$4) -> 50 | L49: =ROUND( L$2+(('coded NOLH for 12-16 factors'!L48-1)*(L$3-L$2)/64), L$4) -> 19 | M49: =ROUND( M$2+(('coded NOLH for 12-16 factors'!M48-1)*(M$3-M$2)/64), M$4) -> 53 | N49: =ROUND( N$2+(('coded NOLH for 12-16 factors'!N48-1)*(N$3-N$2)/64), N$4) -> 51 | O49: =ROUND( O$2+(('coded NOLH for 12-16 factors'!O48-1)*(O$3-O$2)/64), O$4) -> 62 | P49: =ROUND( P$2+(('coded NOLH for 12-16 factors'!P48-1)*(P$3-P$2)/64), P$4) -> 50 | Q49: =ROUND( Q$2+(('coded NOLH for 12-16 factors'!Q48-1)*(Q$3-Q$2)/64), Q$4) -> 12
B50: =ROUND( B$2+(('coded NOLH for 12-16 factors'!B49-1)*(B$3-B$2)/64), B$4) -> 2 | C50: =ROUND( C$2+(('coded NOLH for 12-16 factors'!C49-1)*(C$3-C$2)/64), C$4) -> 32 | D50: =ROUND( D$2+(('coded NOLH for 12-16 factors'!D49-1)*(D$3-D$2)/64), D$4) -> 21 | E50: =ROUND( E$2+(('coded NOLH for 12-16 factors'!E49-1)*(E$3-E$2)/64), E$4) -> 6 | F50: =ROUND( F$2+(('coded NOLH for 12-16 factors'!F49-1)*(F$3-F$2)/64), F$4) -> 54 | G50: =ROUND( G$2+(('coded NOLH for 12-16 factors'!G49-1)*(G$3-G$2)/64), G$4) -> 61 | H50: =ROUND( H$2+(('coded NOLH for 12-16 factors'!H49-1)*(H$3-H$2)/64), H$4) -> 41 | I50: =ROUND( I$2+(('coded NOLH for 12-16 factors'!I49-1)*(I$3-I$2)/64), I$4) -> 13 | J50: =ROUND( J$2+(('coded NOLH for 12-16 factors'!J49-1)*(J$3-J$2)/64), J$4) -> 45 | K50: =ROUND( K$2+(('coded NOLH for 12-16 factors'!K49-1)*(K$3-K$2)/64), K$4) -> 41 | L50: =ROUND( L$2+(('coded NOLH for 12-16 factors'!L49-1)*(L$3-L$2)/64), L$4) -> 31 | M50: =ROUND( M$2+(('coded NOLH for 12-16 factors'!M49-1)*(M$3-M$2)/64), M$4) -> 49 | N50: =ROUND( N$2+(('coded NOLH for 12-16 factors'!N49-1)*(N$3-N$2)/64), N$4) -> 36 | O50: =ROUND( O$2+(('coded NOLH for 12-16 factors'!O49-1)*(O$3-O$2)/64), O$4) -> 28 | P50: =ROUND( P$2+(('coded NOLH for 12-16 factors'!P49-1)*(P$3-P$2)/64), P$4) -> 6 | Q50: =ROUND( Q$2+(('coded NOLH for 12-16 factors'!Q49-1)*(Q$3-Q$2)/64), Q$4) -> 51
B51: =ROUND( B$2+(('coded NOLH for 12-16 factors'!B50-1)*(B$3-B$2)/64), B$4) -> 30 | C51: =ROUND( C$2+(('coded NOLH for 12-16 factors'!C50-1)*(C$3-C$2)/64), C$4) -> 51 | D51: =ROUND( D$2+(('coded NOLH for 12-16 factors'!D50-1)*(D$3-D$2)/64), D$4) -> 44 | E51: =ROUND( E$2+(('coded NOLH for 12-16 factors'!E50-1)*(E$3-E$2)/64), E$4) -> 24 | F51: =ROUND( F$2+(('coded NOLH for 12-16 factors'!F50-1)*(F$3-F$2)/64), F$4) -> 40 | G51: =ROUND( G$2+(('coded NOLH for 12-16 factors'!G50-1)*(G$3-G$2)/64), G$4) -> 34 | H51: =ROUND( H$2+(('coded NOLH for 12-16 factors'!H50-1)*(H$3-H$2)/64), H$4) -> 53 | I51: =ROUND( I$2+(('coded NOLH for 12-16 factors'!I50-1)*(I$3-I$2)/64), I$4) -> 47 | J51: =ROUND( J$2+(('coded NOLH for 12-16 factors'!J50-1)*(J$3-J$2)/64), J$4) -> 4 | K51: =ROUND( K$2+(('coded NOLH for 12-16 factors'!K50-1)*(K$3-K$2)/64), K$4) -> 4 | L51: =ROUND( L$2+(('coded NOLH for 12-16 factors'!L50-1)*(L$3-L$2)/64), L$4) -> 56 | M51: =ROUND( M$2+(('coded NOLH for 12-16 factors'!M50-1)*(M$3-M$2)/64), M$4) -> 62 | N51: =ROUND( N$2+(('coded NOLH for 12-16 factors'!N50-1)*(N$3-N$2)/64), N$4) -> 2 | O51: =ROUND( O$2+(('coded NOLH for 12-16 factors'!O50-1)*(O$3-O$2)/64), O$4) -> 54 | P51: =ROUND( P$2+(('coded NOLH for 12-16 factors'!P50-1)*(P$3-P$2)/64), P$4) -> 25 | Q51: =ROUND( Q$2+(('coded NOLH for 12-16 factors'!Q50-1)*(Q$3-Q$2)/64), Q$4) -> 18
B52: =ROUND( B$2+(('coded NOLH for 12-16 factors'!B51-1)*(B$3-B$2)/64), B$4) -> 15 | C52: =ROUND( C$2+(('coded NOLH for 12-16 factors'!C51-1)*(C$3-C$2)/64), C$4) -> 30 | D52: =ROUND( D$2+(('coded NOLH for 12-16 factors'!D51-1)*(D$3-D$2)/64), D$4) -> 38 | E52: =ROUND( E$2+(('coded NOLH for 12-16 factors'!E51-1)*(E$3-E$2)/64), E$4) -> 8 | F52: =ROUND( F$2+(('coded NOLH for 12-16 factors'!F51-1)*(F$3-F$2)/64), F$4) -> 48 | G52: =ROUND( G$2+(('coded NOLH for 12-16 factors'!G51-1)*(G$3-G$2)/64), G$4) -> 3 | H52: =ROUND( H$2+(('coded NOLH for 12-16 factors'!H51-1)*(H$3-H$2)/64), H$4) -> 62 | I52: =ROUND( I$2+(('coded NOLH for 12-16 factors'!I51-1)*(I$3-I$2)/64), I$4) -> 65 | J52: =ROUND( J$2+(('coded NOLH for 12-16 factors'!J51-1)*(J$3-J$2)/64), J$4) -> 32 | K52: =ROUND( K$2+(('coded NOLH for 12-16 factors'!K51-1)*(K$3-K$2)/64), K$4) -> 31 | L52: =ROUND( L$2+(('coded NOLH for 12-16 factors'!L51-1)*(L$3-L$2)/64), L$4) -> 49 | M52: =ROUND( M$2+(('coded NOLH for 12-16 factors'!M51-1)*(M$3-M$2)/64), M$4) -> 46 | N52: =ROUND( N$2+(('coded NOLH for 12-16 factors'!N51-1)*(N$3-N$2)/64), N$4) -> 32 | O52: =ROUND( O$2+(('coded NOLH for 12-16 factors'!O51-1)*(O$3-O$2)/64), O$4) -> 22 | P52: =ROUND( P$2+(('coded NOLH for 12-16 factors'!P51-1)*(P$3-P$2)/64), P$4) -> 40 | Q52: =ROUND( Q$2+(('coded NOLH for 12-16 factors'!Q51-1)*(Q$3-Q$2)/64), Q$4) -> 40
B53: =ROUND( B$2+(('coded NOLH for 12-16 factors'!B52-1)*(B$3-B$2)/64), B$4) -> 28 | C53: =ROUND( C$2+(('coded NOLH for 12-16 factors'!C52-1)*(C$3-C$2)/64), C$4) -> 44 | D53: =ROUND( D$2+(('coded NOLH for 12-16 factors'!D52-1)*(D$3-D$2)/64), D$4) -> 15 | E53: =ROUND( E$2+(('coded NOLH for 12-16 factors'!E52-1)*(E$3-E$2)/64), E$4) -> 4 | F53: =ROUND( F$2+(('coded NOLH for 12-16 factors'!F52-1)*(F$3-F$2)/64), F$4) -> 37 | G53: =ROUND( G$2+(('coded NOLH for 12-16 factors'!G52-1)*(G$3-G$2)/64), G$4) -> 51 | H53: =ROUND( H$2+(('coded NOLH for 12-16 factors'!H52-1)*(H$3-H$2)/64), H$4) -> 35 | I53: =ROUND( I$2+(('coded NOLH for 12-16 factors'!I52-1)*(I$3-I$2)/64), I$4) -> 5 | J53: =ROUND( J$2+(('coded NOLH for 12-16 factors'!J52-1)*(J$3-J$2)/64), J$4) -> 56 | K53: =ROUND( K$2+(('coded NOLH for 12-16 factors'!K52-1)*(K$3-K$2)/64), K$4) -> 12 | L53: =ROUND( L$2+(('coded NOLH for 12-16 factors'!L52-1)*(L$3-L$2)/64), L$4) -> 65 | M53: =ROUND( M$2+(('coded NOLH for 12-16 factors'!M52-1)*(M$3-M$2)/64), M$4) -> 37 | N53: =ROUND( N$2+(('coded NOLH for 12-16 factors'!N52-1)*(N$3-N$2)/64), N$4) -> 3 | O53: =ROUND( O$2+(('coded NOLH for 12-16 factors'!O52-1)*(O$3-O$2)/64), O$4) -> 46 | P53: =ROUND( P$2+(('coded NOLH for 12-16 factors'!P52-1)*(P$3-P$2)/64), P$4) -> 28 | Q53: =ROUND( Q$2+(('coded NOLH for 12-16 factors'!Q52-1)*(Q$3-Q$2)/64), Q$4) -> 10
B54: =ROUND( B$2+(('coded NOLH for 12-16 factors'!B53-1)*(B$3-B$2)/64), B$4) -> 22 | C54: =ROUND( C$2+(('coded NOLH for 12-16 factors'!C53-1)*(C$3-C$2)/64), C$4) -> 28 | D54: =ROUND( D$2+(('coded NOLH for 12-16 factors'!D53-1)*(D$3-D$2)/64), D$4) -> 30 | E54: =ROUND( E$2+(('coded NOLH for 12-16 factors'!E53-1)*(E$3-E$2)/64), E$4) -> 19 | F54: =ROUND( F$2+(('coded NOLH for 12-16 factors'!F53-1)*(F$3-F$2)/64), F$4) -> 56 | G54: =ROUND( G$2+(('coded NOLH for 12-16 factors'!G53-1)*(G$3-G$2)/64), G$4) -> 4 | H54: =ROUND( H$2+(('coded NOLH for 12-16 factors'!H53-1)*(H$3-H$2)/64), H$4) -> 1 | I54: =ROUND( I$2+(('coded NOLH for 12-16 factors'!I53-1)*(I$3-I$2)/64), I$4) -> 29 | J54: =ROUND( J$2+(('coded NOLH for 12-16 factors'!J53-1)*(J$3-J$2)/64), J$4) -> 36 | K54: =ROUND( K$2+(('coded NOLH for 12-16 factors'!K53-1)*(K$3-K$2)/64), K$4) -> 13 | L54: =ROUND( L$2+(('coded NOLH for 12-16 factors'!L53-1)*(L$3-L$2)/64), L$4) -> 42 | M54: =ROUND( M$2+(('coded NOLH for 12-16 factors'!M53-1)*(M$3-M$2)/64), M$4) -> 58 | N54: =ROUND( N$2+(('coded NOLH for 12-16 factors'!N53-1)*(N$3-N$2)/64), N$4) -> 21 | O54: =ROUND( O$2+(('coded NOLH for 12-16 factors'!O53-1)*(O$3-O$2)/64), O$4) -> 2 | P54: =ROUND( P$2+(('coded NOLH for 12-16 factors'!P53-1)*(P$3-P$2)/64), P$4) -> 11 | Q54: =ROUND( Q$2+(('coded NOLH for 12-16 factors'!Q53-1)*(Q$3-Q$2)/64), Q$4) -> 37
B55: =ROUND( B$2+(('coded NOLH for 12-16 factors'!B54-1)*(B$3-B$2)/64), B$4) -> 10 | C55: =ROUND( C$2+(('coded NOLH for 12-16 factors'!C54-1)*(C$3-C$2)/64), C$4) -> 37 | D55: =ROUND( D$2+(('coded NOLH for 12-16 factors'!D54-1)*(D$3-D$2)/64), D$4) -> 40 | E55: =ROUND( E$2+(('coded NOLH for 12-16 factors'!E54-1)*(E$3-E$2)/64), E$4) -> 57 | F55: =ROUND( F$2+(('coded NOLH for 12-16 factors'!F54-1)*(F$3-F$2)/64), F$4) -> 22 | G55: =ROUND( G$2+(('coded NOLH for 12-16 factors'!G54-1)*(G$3-G$2)/64), G$4) -> 1 | H55: =ROUND( H$2+(('coded NOLH for 12-16 factors'!H54-1)*(H$3-H$2)/64), H$4) -> 15 | I55: =ROUND( I$2+(('coded NOLH for 12-16 factors'!I54-1)*(I$3-I$2)/64), I$4) -> 3 | J55: =ROUND( J$2+(('coded NOLH for 12-16 factors'!J54-1)*(J$3-J$2)/64), J$4) -> 28 | K55: =ROUND( K$2+(('coded NOLH for 12-16 factors'!K54-1)*(K$3-K$2)/64), K$4) -> 27 | L55: =ROUND( L$2+(('coded NOLH for 12-16 factors'!L54-1)*(L$3-L$2)/64), L$4) -> 45 | M55: =ROUND( M$2+(('coded NOLH for 12-16 factors'!M54-1)*(M$3-M$2)/64), M$4) -> 47 | N55: =ROUND( N$2+(('coded NOLH for 12-16 factors'!N54-1)*(N$3-N$2)/64), N$4) -> 39 | O55: =ROUND( O$2+(('coded NOLH for 12-16 factors'!O54-1)*(O$3-O$2)/64), O$4) -> 24 | P55: =ROUND( P$2+(('coded NOLH for 12-16 factors'!P54-1)*(P$3-P$2)/64), P$4) -> 22 | Q55: =ROUND( Q$2+(('coded NOLH for 12-16 factors'!Q54-1)*(Q$3-Q$2)/64), Q$4) -> 41
B56: =ROUND( B$2+(('coded NOLH for 12-16 factors'!B55-1)*(B$3-B$2)/64), B$4) -> 29 | C56: =ROUND( C$2+(('coded NOLH for 12-16 factors'!C55-1)*(C$3-C$2)/64), C$4) -> 10 | D56: =ROUND( D$2+(('coded NOLH for 12-16 factors'!D55-1)*(D$3-D$2)/64), D$4) -> 48 | E56: =ROUND( E$2+(('coded NOLH for 12-16 factors'!E55-1)*(E$3-E$2)/64), E$4) -> 43 | F56: =ROUND( F$2+(('coded NOLH for 12-16 factors'!F55-1)*(F$3-F$2)/64), F$4) -> 28 | G56: =ROUND( G$2+(('coded NOLH for 12-16 factors'!G55-1)*(G$3-G$2)/64), G$4) -> 36 | H56: =ROUND( H$2+(('coded NOLH for 12-16 factors'!H55-1)*(H$3-H$2)/64), H$4) -> 12 | I56: =ROUND( I$2+(('coded NOLH for 12-16 factors'!I55-1)*(I$3-I$2)/64), I$4) -> 14 | J56: =ROUND( J$2+(('coded NOLH for 12-16 factors'!J55-1)*(J$3-J$2)/64), J$4) -> 42 | K56: =ROUND( K$2+(('coded NOLH for 12-16 factors'!K55-1)*(K$3-K$2)/64), K$4) -> 18 | L56: =ROUND( L$2+(('coded NOLH for 12-16 factors'!L55-1)*(L$3-L$2)/64), L$4) -> 58 | M56: =ROUND( M$2+(('coded NOLH for 12-16 factors'!M55-1)*(M$3-M$2)/64), M$4) -> 65 | N56: =ROUND( N$2+(('coded NOLH for 12-16 factors'!N55-1)*(N$3-N$2)/64), N$4) -> 65 | O56: =ROUND( O$2+(('coded NOLH for 12-16 factors'!O55-1)*(O$3-O$2)/64), O$4) -> 60 | P56: =ROUND( P$2+(('coded NOLH for 12-16 factors'!P55-1)*(P$3-P$2)/64), P$4) -> 42 | Q56: =ROUND( Q$2+(('coded NOLH for 12-16 factors'!Q55-1)*(Q$3-Q$2)/64), Q$4) -> 20
B57: =ROUND( B$2+(('coded NOLH for 12-16 factors'!B56-1)*(B$3-B$2)/64), B$4) -> 18 | C57: =ROUND( C$2+(('coded NOLH for 12-16 factors'!C56-1)*(C$3-C$2)/64), C$4) -> 40 | D57: =ROUND( D$2+(('coded NOLH for 12-16 factors'!D56-1)*(D$3-D$2)/64), D$4) -> 29 | E57: =ROUND( E$2+(('coded NOLH for 12-16 factors'!E56-1)*(E$3-E$2)/64), E$4) -> 46 | F57: =ROUND( F$2+(('coded NOLH for 12-16 factors'!F56-1)*(F$3-F$2)/64), F$4) -> 15 | G57: =ROUND( G$2+(('coded NOLH for 12-16 factors'!G56-1)*(G$3-G$2)/64), G$4) -> 8 | H57: =ROUND( H$2+(('coded NOLH for 12-16 factors'!H56-1)*(H$3-H$2)/64), H$4) -> 63 | I57: =ROUND( I$2+(('coded NOLH for 12-16 factors'!I56-1)*(I$3-I$2)/64), I$4) -> 39 | J57: =ROUND( J$2+(('coded NOLH for 12-16 factors'!J56-1)*(J$3-J$2)/64), J$4) -> 31 | K57: =ROUND( K$2+(('coded NOLH for 12-16 factors'!K56-1)*(K$3-K$2)/64), K$4) -> 14 | L57: =ROUND( L$2+(('coded NOLH for 12-16 factors'!L56-1)*(L$3-L$2)/64), L$4) -> 34 | M57: =ROUND( M$2+(('coded NOLH for 12-16 factors'!M56-1)*(M$3-M$2)/64), M$4) -> 60 | N57: =ROUND( N$2+(('coded NOLH for 12-16 factors'!N56-1)*(N$3-N$2)/64), N$4) -> 52 | O57: =ROUND( O$2+(('coded NOLH for 12-16 factors'!O56-1)*(O$3-O$2)/64), O$4) -> 9 | P57: =ROUND( P$2+(('coded NOLH for 12-16 factors'!P56-1)*(P$3-P$2)/64), P$4) -> 63 | Q57: =ROUND( Q$2+(('coded NOLH for 12-16 factors'!Q56-1)*(Q$3-Q$2)/64), Q$4) -> 32
B58: =ROUND( B$2+(('coded NOLH for 12-16 factors'!B57-1)*(B$3-B$2)/64), B$4) -> 26 | C58: =ROUND( C$2+(('coded NOLH for 12-16 factors'!C57-1)*(C$3-C$2)/64), C$4) -> 18 | D58: =ROUND( D$2+(('coded NOLH for 12-16 factors'!D57-1)*(D$3-D$2)/64), D$4) -> 10 | E58: =ROUND( E$2+(('coded NOLH for 12-16 factors'!E57-1)*(E$3-E$2)/64), E$4) -> 61 | F58: =ROUND( F$2+(('coded NOLH for 12-16 factors'!F57-1)*(F$3-F$2)/64), F$4) -> 30 | G58: =ROUND( G$2+(('coded NOLH for 12-16 factors'!G57-1)*(G$3-G$2)/64), G$4) -> 54 | H58: =ROUND( H$2+(('coded NOLH for 12-16 factors'!H57-1)*(H$3-H$2)/64), H$4) -> 37 | I58: =ROUND( I$2+(('coded NOLH for 12-16 factors'!I57-1)*(I$3-I$2)/64), I$4) -> 54 | J58: =ROUND( J$2+(('coded NOLH for 12-16 factors'!J57-1)*(J$3-J$2)/64), J$4) -> 13 | K58: =ROUND( K$2+(('coded NOLH for 12-16 factors'!K57-1)*(K$3-K$2)/64), K$4) -> 9 | L58: =ROUND( L$2+(('coded NOLH for 12-16 factors'!L57-1)*(L$3-L$2)/64), L$4) -> 62 | M58: =ROUND( M$2+(('coded NOLH for 12-16 factors'!M57-1)*(M$3-M$2)/64), M$4) -> 38 | N58: =ROUND( N$2+(('coded NOLH for 12-16 factors'!N57-1)*(N$3-N$2)/64), N$4) -> 54 | O58: =ROUND( O$2+(('coded NOLH for 12-16 factors'!O57-1)*(O$3-O$2)/64), O$4) -> 49 | P58: =ROUND( P$2+(('coded NOLH for 12-16 factors'!P57-1)*(P$3-P$2)/64), P$4) -> 35 | Q58: =ROUND( Q$2+(('coded NOLH for 12-16 factors'!Q57-1)*(Q$3-Q$2)/64), Q$4) -> 19
B59: =ROUND( B$2+(('coded NOLH for 12-16 factors'!B58-1)*(B$3-B$2)/64), B$4) -> 12 | C59: =ROUND( C$2+(('coded NOLH for 12-16 factors'!C58-1)*(C$3-C$2)/64), C$4) -> 52 | D59: =ROUND( D$2+(('coded NOLH for 12-16 factors'!D58-1)*(D$3-D$2)/64), D$4) -> 39 | E59: =ROUND( E$2+(('coded NOLH for 12-16 factors'!E58-1)*(E$3-E$2)/64), E$4) -> 59 | F59: =ROUND( F$2+(('coded NOLH for 12-16 factors'!F58-1)*(F$3-F$2)/64), F$4) -> 2 | G59: =ROUND( G$2+(('coded NOLH for 12-16 factors'!G58-1)*(G$3-G$2)/64), G$4) -> 41 | H59: =ROUND( H$2+(('coded NOLH for 12-16 factors'!H58-1)*(H$3-H$2)/64), H$4) -> 64 | I59: =ROUND( I$2+(('coded NOLH for 12-16 factors'!I58-1)*(I$3-I$2)/64), I$4) -> 20 | J59: =ROUND( J$2+(('coded NOLH for 12-16 factors'!J58-1)*(J$3-J$2)/64), J$4) -> 46 | K59: =ROUND( K$2+(('coded NOLH for 12-16 factors'!K58-1)*(K$3-K$2)/64), K$4) -> 59 | L59: =ROUND( L$2+(('coded NOLH for 12-16 factors'!L58-1)*(L$3-L$2)/64), L$4) -> 38 | M59: =ROUND( M$2+(('coded NOLH for 12-16 factors'!M58-1)*(M$3-M$2)/64), M$4) -> 54 | N59: =ROUND( N$2+(('coded NOLH for 12-16 factors'!N58-1)*(N$3-N$2)/64), N$4) -> 26 | O59: =ROUND( O$2+(('coded NOLH for 12-16 factors'!O58-1)*(O$3-O$2)/64), O$4) -> 13 | P59: =ROUND( P$2+(('coded NOLH for 12-16 factors'!P58-1)*(P$3-P$2)/64), P$4) -> 1 | Q59: =ROUND( Q$2+(('coded NOLH for 12-16 factors'!Q58-1)*(Q$3-Q$2)/64), Q$4) -> 39
B60: =ROUND( B$2+(('coded NOLH for 12-16 factors'!B59-1)*(B$3-B$2)/64), B$4) -> 14 | C60: =ROUND( C$2+(('coded NOLH for 12-16 factors'!C59-1)*(C$3-C$2)/64), C$4) -> 12 | D60: =ROUND( D$2+(('coded NOLH for 12-16 factors'!D59-1)*(D$3-D$2)/64), D$4) -> 65 | E60: =ROUND( E$2+(('coded NOLH for 12-16 factors'!E59-1)*(E$3-E$2)/64), E$4) -> 55 | F60: =ROUND( F$2+(('coded NOLH for 12-16 factors'!F59-1)*(F$3-F$2)/64), F$4) -> 32 | G60: =ROUND( G$2+(('coded NOLH for 12-16 factors'!G59-1)*(G$3-G$2)/64), G$4) -> 20 | H60: =ROUND( H$2+(('coded NOLH for 12-16 factors'!H59-1)*(H$3-H$2)/64), H$4) -> 34 | I60: =ROUND( I$2+(('coded NOLH for 12-16 factors'!I59-1)*(I$3-I$2)/64), I$4) -> 8 | J60: =ROUND( J$2+(('coded NOLH for 12-16 factors'!J59-1)*(J$3-J$2)/64), J$4) -> 54 | K60: =ROUND( K$2+(('coded NOLH for 12-16 factors'!K59-1)*(K$3-K$2)/64), K$4) -> 43 | L60: =ROUND( L$2+(('coded NOLH for 12-16 factors'!L59-1)*(L$3-L$2)/64), L$4) -> 6 | M60: =ROUND( M$2+(('coded NOLH for 12-16 factors'!M59-1)*(M$3-M$2)/64), M$4) -> 45 | N60: =ROUND( N$2+(('coded NOLH for 12-16 factors'!N59-1)*(N$3-N$2)/64), N$4) -> 18 | O60: =ROUND( O$2+(('coded NOLH for 12-16 factors'!O59-1)*(O$3-O$2)/64), O$4) -> 56 | P60: =ROUND( P$2+(('coded NOLH for 12-16 factors'!P59-1)*(P$3-P$2)/64), P$4) -> 37 | Q60: =ROUND( Q$2+(('coded NOLH for 12-16 factors'!Q59-1)*(Q$3-Q$2)/64), Q$4) -> 2
B61: =ROUND( B$2+(('coded NOLH for 12-16 factors'!B60-1)*(B$3-B$2)/64), B$4) -> 1 | C61: =ROUND( C$2+(('coded NOLH for 12-16 factors'!C60-1)*(C$3-C$2)/64), C$4) -> 39 | D61: =ROUND( D$2+(('coded NOLH for 12-16 factors'!D60-1)*(D$3-D$2)/64), D$4) -> 14 | E61: =ROUND( E$2+(('coded NOLH for 12-16 factors'!E60-1)*(E$3-E$2)/64), E$4) -> 49 | F61: =ROUND( F$2+(('coded NOLH for 12-16 factors'!F60-1)*(F$3-F$2)/64), F$4) -> 3 | G61: =ROUND( G$2+(('coded NOLH for 12-16 factors'!G60-1)*(G$3-G$2)/64), G$4) -> 57 | H61: =ROUND( H$2+(('coded NOLH for 12-16 factors'!H60-1)*(H$3-H$2)/64), H$4) -> 19 | I61: =ROUND( I$2+(('coded NOLH for 12-16 factors'!I60-1)*(I$3-I$2)/64), I$4) -> 57 | J61: =ROUND( J$2+(('coded NOLH for 12-16 factors'!J60-1)*(J$3-J$2)/64), J$4) -> 29 | K61: =ROUND( K$2+(('coded NOLH for 12-16 factors'!K60-1)*(K$3-K$2)/64), K$4) -> 44 | L61: =ROUND( L$2+(('coded NOLH for 12-16 factors'!L60-1)*(L$3-L$2)/64), L$4) -> 29 | M61: =ROUND( M$2+(('coded NOLH for 12-16 factors'!M60-1)*(M$3-M$2)/64), M$4) -> 48 | N61: =ROUND( N$2+(('coded NOLH for 12-16 factors'!N60-1)*(N$3-N$2)/64), N$4) -> 29 | O61: =ROUND( O$2+(('coded NOLH for 12-16 factors'!O60-1)*(O$3-O$2)/64), O$4) -> 30 | P61: =ROUND( P$2+(('coded NOLH for 12-16 factors'!P60-1)*(P$3-P$2)/64), P$4) -> 52 | Q61: =ROUND( Q$2+(('coded NOLH for 12-16 factors'!Q60-1)*(Q$3-Q$2)/64), Q$4) -> 49
B62: =ROUND( B$2+(('coded NOLH for 12-16 factors'!B61-1)*(B$3-B$2)/64), B$4) -> 27 | C62: =ROUND( C$2+(('coded NOLH for 12-16 factors'!C61-1)*(C$3-C$2)/64), C$4) -> 1 | D62: =ROUND( D$2+(('coded NOLH for 12-16 factors'!D61-1)*(D$3-D$2)/64), D$4) -> 12 | E62: =ROUND( E$2+(('coded NOLH for 12-16 factors'!E61-1)*(E$3-E$2)/64), E$4) -> 41 | F62: =ROUND( F$2+(('coded NOLH for 12-16 factors'!F61-1)*(F$3-F$2)/64), F$4) -> 21 | G62: =ROUND( G$2+(('coded NOLH for 12-16 factors'!G61-1)*(G$3-G$2)/64), G$4) -> 31 | H62: =ROUND( H$2+(('coded NOLH for 12-16 factors'!H61-1)*(H$3-H$2)/64), H$4) -> 28 | I62: =ROUND( I$2+(('coded NOLH for 12-16 factors'!I61-1)*(I$3-I$2)/64), I$4) -> 51 | J62: =ROUND( J$2+(('coded NOLH for 12-16 factors'!J61-1)*(J$3-J$2)/64), J$4) -> 1 | K62: =ROUND( K$2+(('coded NOLH for 12-16 factors'!K61-1)*(K$3-K$2)/64), K$4) -> 61 | L62: =ROUND( L$2+(('coded NOLH for 12-16 factors'!L61-1)*(L$3-L$2)/64), L$4) -> 20 | M62: =ROUND( M$2+(('coded NOLH for 12-16 factors'!M61-1)*(M$3-M$2)/64), M$4) -> 52 | N62: =ROUND( N$2+(('coded NOLH for 12-16 factors'!N61-1)*(N$3-N$2)/64), N$4) -> 10 | O62: =ROUND( O$2+(('coded NOLH for 12-16 factors'!O61-1)*(O$3-O$2)/64), O$4) -> 51 | P62: =ROUND( P$2+(('coded NOLH for 12-16 factors'!P61-1)*(P$3-P$2)/64), P$4) -> 5 | Q62: =ROUND( Q$2+(('coded NOLH for 12-16 factors'!Q61-1)*(Q$3-Q$2)/64), Q$4) -> 6
B63: =ROUND( B$2+(('coded NOLH for 12-16 factors'!B62-1)*(B$3-B$2)/64), B$4) -> 25 | C63: =ROUND( C$2+(('coded NOLH for 12-16 factors'!C62-1)*(C$3-C$2)/64), C$4) -> 49 | D63: =ROUND( D$2+(('coded NOLH for 12-16 factors'!D62-1)*(D$3-D$2)/64), D$4) -> 59 | E63: =ROUND( E$2+(('coded NOLH for 12-16 factors'!E62-1)*(E$3-E$2)/64), E$4) -> 27 | F63: =ROUND( F$2+(('coded NOLH for 12-16 factors'!F62-1)*(F$3-F$2)/64), F$4) -> 13 | G63: =ROUND( G$2+(('coded NOLH for 12-16 factors'!G62-1)*(G$3-G$2)/64), G$4) -> 18 | H63: =ROUND( H$2+(('coded NOLH for 12-16 factors'!H62-1)*(H$3-H$2)/64), H$4) -> 5 | I63: =ROUND( I$2+(('coded NOLH for 12-16 factors'!I62-1)*(I$3-I$2)/64), I$4) -> 55 | J63: =ROUND( J$2+(('coded NOLH for 12-16 factors'!J62-1)*(J$3-J$2)/64), J$4) -> 59 | K63: =ROUND( K$2+(('coded NOLH for 12-16 factors'!K62-1)*(K$3-K$2)/64), K$4) -> 55 | L63: =ROUND( L$2+(('coded NOLH for 12-16 factors'!L62-1)*(L$3-L$2)/64), L$4) -> 48 | M63: =ROUND( M$2+(('coded NOLH for 12-16 factors'!M62-1)*(M$3-M$2)/64), M$4) -> 23 | N63: =ROUND( N$2+(('coded NOLH for 12-16 factors'!N62-1)*(N$3-N$2)/64), N$4) -> 57 | O63: =ROUND( O$2+(('coded NOLH for 12-16 factors'!O62-1)*(O$3-O$2)/64), O$4) -> 65 | P63: =ROUND( P$2+(('coded NOLH for 12-16 factors'!P62-1)*(P$3-P$2)/64), P$4) -> 8 | Q63: =ROUND( Q$2+(('coded NOLH for 12-16 factors'!Q62-1)*(Q$3-Q$2)/64), Q$4) -> 42
B64: =ROUND( B$2+(('coded NOLH for 12-16 factors'!B63-1)*(B$3-B$2)/64), B$4) -> 17 | C64: =ROUND( C$2+(('coded NOLH for 12-16 factors'!C63-1)*(C$3-C$2)/64), C$4) -> 25 | D64: =ROUND( D$2+(('coded NOLH for 12-16 factors'!D63-1)*(D$3-D$2)/64), D$4) -> 55 | E64: =ROUND( E$2+(('coded NOLH for 12-16 factors'!E63-1)*(E$3-E$2)/64), E$4) -> 1 | F64: =ROUND( F$2+(('coded NOLH for 12-16 factors'!F63-1)*(F$3-F$2)/64), F$4) -> 16 | G64: =ROUND( G$2+(('coded NOLH for 12-16 factors'!G63-1)*(G$3-G$2)/64), G$4) -> 53 | H64: =ROUND( H$2+(('coded NOLH for 12-16 factors'!H63-1)*(H$3-H$2)/64), H$4) -> 24 | I64: =ROUND( I$2+(('coded NOLH for 12-16 factors'!I63-1)*(I$3-I$2)/64), I$4) -> 42 | J64: =ROUND( J$2+(('coded NOLH for 12-16 factors'!J63-1)*(J$3-J$2)/64), J$4) -> 41 | K64: =ROUND( K$2+(('coded NOLH for 12-16 factors'!K63-1)*(K$3-K$2)/64), K$4) -> 36 | L64: =ROUND( L$2+(('coded NOLH for 12-16 factors'!L63-1)*(L$3-L$2)/64), L$4) -> 63 | M64: =ROUND( M$2+(('coded NOLH for 12-16 factors'!M63-1)*(M$3-M$2)/64), M$4) -> 10 | N64: =ROUND( N$2+(('coded NOLH for 12-16 factors'!N63-1)*(N$3-N$2)/64), N$4) -> 43 | O64: =ROUND( O$2+(('coded NOLH for 12-16 factors'!O63-1)*(O$3-O$2)/64), O$4) -> 29 | P64: =ROUND( P$2+(('coded NOLH for 12-16 factors'!P63-1)*(P$3-P$2)/64), P$4) -> 62 | Q64: =ROUND( Q$2+(('coded NOLH for 12-16 factors'!Q63-1)*(Q$3-Q$2)/64), Q$4) -> 5
B65: =ROUND( B$2+(('coded NOLH for 12-16 factors'!B64-1)*(B$3-B$2)/64), B$4) -> 11 | C65: =ROUND( C$2+(('coded NOLH for 12-16 factors'!C64-1)*(C$3-C$2)/64), C$4) -> 59 | D65: =ROUND( D$2+(('coded NOLH for 12-16 factors'!D64-1)*(D$3-D$2)/64), D$4) -> 17 | E65: =ROUND( E$2+(('coded NOLH for 12-16 factors'!E64-1)*(E$3-E$2)/64), E$4) -> 14 | F65: =ROUND( F$2+(('coded NOLH for 12-16 factors'!F64-1)*(F$3-F$2)/64), F$4) -> 31 | G65: =ROUND( G$2+(('coded NOLH for 12-16 factors'!G64-1)*(G$3-G$2)/64), G$4) -> 7 | H65: =ROUND( H$2+(('coded NOLH for 12-16 factors'!H64-1)*(H$3-H$2)/64), H$4) -> 44 | I65: =ROUND( I$2+(('coded NOLH for 12-16 factors'!I64-1)*(I$3-I$2)/64), I$4) -> 4 | J65: =ROUND( J$2+(('coded NOLH for 12-16 factors'!J64-1)*(J$3-J$2)/64), J$4) -> 16 | K65: =ROUND( K$2+(('coded NOLH for 12-16 factors'!K64-1)*(K$3-K$2)/64), K$4) -> 49 | L65: =ROUND( L$2+(('coded NOLH for 12-16 factors'!L64-1)*(L$3-L$2)/64), L$4) -> 51 | M65: =ROUND( M$2+(('coded NOLH for 12-16 factors'!M64-1)*(M$3-M$2)/64), M$4) -> 27 | N65: =ROUND( N$2+(('coded NOLH for 12-16 factors'!N64-1)*(N$3-N$2)/64), N$4) -> 46 | O65: =ROUND( O$2+(('coded NOLH for 12-16 factors'!O64-1)*(O$3-O$2)/64), O$4) -> 58 | P65: =ROUND( P$2+(('coded NOLH for 12-16 factors'!P64-1)*(P$3-P$2)/64), P$4) -> 39 | Q65: =ROUND( Q$2+(('coded NOLH for 12-16 factors'!Q64-1)*(Q$3-Q$2)/64), Q$4) -> 57
B66: =ROUND( B$2+(('coded NOLH for 12-16 factors'!B65-1)*(B$3-B$2)/64), B$4) -> 7 | C66: =ROUND( C$2+(('coded NOLH for 12-16 factors'!C65-1)*(C$3-C$2)/64), C$4) -> 11 | D66: =ROUND( D$2+(('coded NOLH for 12-16 factors'!D65-1)*(D$3-D$2)/64), D$4) -> 25 | E66: =ROUND( E$2+(('coded NOLH for 12-16 factors'!E65-1)*(E$3-E$2)/64), E$4) -> 12 | F66: =ROUND( F$2+(('coded NOLH for 12-16 factors'!F65-1)*(F$3-F$2)/64), F$4) -> 6 | G66: =ROUND( G$2+(('coded NOLH for 12-16 factors'!G65-1)*(G$3-G$2)/64), G$4) -> 45 | H66: =ROUND( H$2+(('coded NOLH for 12-16 factors'!H65-1)*(H$3-H$2)/64), H$4) -> 57 | I66: =ROUND( I$2+(('coded NOLH for 12-16 factors'!I65-1)*(I$3-I$2)/64), I$4) -> 23 | J66: =ROUND( J$2+(('coded NOLH for 12-16 factors'!J65-1)*(J$3-J$2)/64), J$4) -> 18 | K66: =ROUND( K$2+(('coded NOLH for 12-16 factors'!K65-1)*(K$3-K$2)/64), K$4) -> 42 | L66: =ROUND( L$2+(('coded NOLH for 12-16 factors'!L65-1)*(L$3-L$2)/64), L$4) -> 41 | M66: =ROUND( M$2+(('coded NOLH for 12-16 factors'!M65-1)*(M$3-M$2)/64), M$4) -> 2 | N66: =ROUND( N$2+(('coded NOLH for 12-16 factors'!N65-1)*(N$3-N$2)/64), N$4) -> 61 | O66: =ROUND( O$2+(('coded NOLH for 12-16 factors'!O65-1)*(O$3-O$2)/64), O$4) -> 19 | P66: =ROUND( P$2+(('coded NOLH for 12-16 factors'!P65-1)*(P$3-P$2)/64), P$4) -> 21 | Q66: =ROUND( Q$2+(('coded NOLH for 12-16 factors'!Q65-1)*(Q$3-Q$2)/64), Q$4) -> 28
B67: =ROUND( B$2+(('coded NOLH for 12-16 factors'!B66-1)*(B$3-B$2)/64), B$4) -> 5 | C67: =ROUND( C$2+(('coded NOLH for 12-16 factors'!C66-1)*(C$3-C$2)/64), C$4) -> 46 | D67: =ROUND( D$2+(('coded NOLH for 12-16 factors'!D66-1)*(D$3-D$2)/64), D$4) -> 57 | E67: =ROUND( E$2+(('coded NOLH for 12-16 factors'!E66-1)*(E$3-E$2)/64), E$4) -> 26 | F67: =ROUND( F$2+(('coded NOLH for 12-16 factors'!F66-1)*(F$3-F$2)/64), F$4) -> 24 | G67: =ROUND( G$2+(('coded NOLH for 12-16 factors'!G66-1)*(G$3-G$2)/64), G$4) -> 52 | H67: =ROUND( H$2+(('coded NOLH for 12-16 factors'!H66-1)*(H$3-H$2)/64), H$4) -> 39 | I67: =ROUND( I$2+(('coded NOLH for 12-16 factors'!I66-1)*(I$3-I$2)/64), I$4) -> 60 | J67: =ROUND( J$2+(('coded NOLH for 12-16 factors'!J66-1)*(J$3-J$2)/64), J$4) -> 51 | K67: =ROUND( K$2+(('coded NOLH for 12-16 factors'!K66-1)*(K$3-K$2)/64), K$4) -> 10 | L67: =ROUND( L$2+(('coded NOLH for 12-16 factors'!L66-1)*(L$3-L$2)/64), L$4) -> 9 | M67: =ROUND( M$2+(('coded NOLH for 12-16 factors'!M66-1)*(M$3-M$2)/64), M$4) -> 30 | N67: =ROUND( N$2+(('coded NOLH for 12-16 factors'!N66-1)*(N$3-N$2)/64), N$4) -> 7 | O67: =ROUND( O$2+(('coded NOLH for 12-16 factors'!O66-1)*(O$3-O$2)/64), O$4) -> 45 | P67: =ROUND( P$2+(('coded NOLH for 12-16 factors'!P66-1)*(P$3-P$2)/64), P$4) -> 19 | Q67: =ROUND( Q$2+(('coded NOLH for 12-16 factors'!Q66-1)*(Q$3-Q$2)/64), Q$4) -> 59
B68: =ROUND( B$2+(('coded NOLH for 12-16 factors'!B67-1)*(B$3-B$2)/64), B$4) -> 20 | C68: =ROUND( C$2+(('coded NOLH for 12-16 factors'!C67-1)*(C$3-C$2)/64), C$4) -> 5 | D68: =ROUND( D$2+(('coded NOLH for 12-16 factors'!D67-1)*(D$3-D$2)/64), D$4) -> 43 | E68: =ROUND( E$2+(('coded NOLH for 12-16 factors'!E67-1)*(E$3-E$2)/64), E$4) -> 18 | F68: =ROUND( F$2+(('coded NOLH for 12-16 factors'!F67-1)*(F$3-F$2)/64), F$4) -> 8 | G68: =ROUND( G$2+(('coded NOLH for 12-16 factors'!G67-1)*(G$3-G$2)/64), G$4) -> 2 | H68: =ROUND( H$2+(('coded NOLH for 12-16 factors'!H67-1)*(H$3-H$2)/64), H$4) -> 43 | I68: =ROUND( I$2+(('coded NOLH for 12-16 factors'!I67-1)*(I$3-I$2)/64), I$4) -> 31 | J68: =ROUND( J$2+(('coded NOLH for 12-16 factors'!J67-1)*(J$3-J$2)/64), J$4) -> 61 | K68: =ROUND( K$2+(('coded NOLH for 12-16 factors'!K67-1)*(K$3-K$2)/64), K$4) -> 15 | L68: =ROUND( L$2+(('coded NOLH for 12-16 factors'!L67-1)*(L$3-L$2)/64), L$4) -> 26 | M68: =ROUND( M$2+(('coded NOLH for 12-16 factors'!M67-1)*(M$3-M$2)/64), M$4) -> 22 | N68: =ROUND( N$2+(('coded NOLH for 12-16 factors'!N67-1)*(N$3-N$2)/64), N$4) -> 11 | O68: =ROUND( O$2+(('coded NOLH for 12-16 factors'!O67-1)*(O$3-O$2)/64), O$4) -> 26 | P68: =ROUND( P$2+(('coded NOLH for 12-16 factors'!P67-1)*(P$3-P$2)/64), P$4) -> 49 | Q68: =ROUND( Q$2+(('coded NOLH for 12-16 factors'!Q67-1)*(Q$3-Q$2)/64), Q$4) -> 23
B69: =ROUND( B$2+(('coded NOLH for 12-16 factors'!B68-1)*(B$3-B$2)/64), B$4) -> 23 | C69: =ROUND( C$2+(('coded NOLH for 12-16 factors'!C68-1)*(C$3-C$2)/64), C$4) -> 57 | D69: =ROUND( D$2+(('coded NOLH for 12-16 factors'!D68-1)*(D$3-D$2)/64), D$4) -> 20 | E69: =ROUND( E$2+(('coded NOLH for 12-16 factors'!E68-1)*(E$3-E$2)/64), E$4) -> 29 | F69: =ROUND( F$2+(('coded NOLH for 12-16 factors'!F68-1)*(F$3-F$2)/64), F$4) -> 4 | G69: =ROUND( G$2+(('coded NOLH for 12-16 factors'!G68-1)*(G$3-G$2)/64), G$4) -> 39 | H69: =ROUND( H$2+(('coded NOLH for 12-16 factors'!H68-1)*(H$3-H$2)/64), H$4) -> 16 | I69: =ROUND( I$2+(('coded NOLH for 12-16 factors'!I68-1)*(I$3-I$2)/64), I$4) -> 16 | J69: =ROUND( J$2+(('coded NOLH for 12-16 factors'!J68-1)*(J$3-J$2)/64), J$4) -> 6 | K69: =ROUND( K$2+(('coded NOLH for 12-16 factors'!K68-1)*(K$3-K$2)/64), K$4) -> 3 | L69: =ROUND( L$2+(('coded NOLH for 12-16 factors'!L68-1)*(L$3-L$2)/64), L$4) -> 13 | M69: =ROUND( M$2+(('coded NOLH for 12-16 factors'!M68-1)*(M$3-M$2)/64), M$4) -> 31 | N69: =ROUND( N$2+(('coded NOLH for 12-16 factors'!N68-1)*(N$3-N$2)/64), N$4) -> 17 | O69: =ROUND( O$2+(('coded NOLH for 12-16 factors'!O68-1)*(O$3-O$2)/64), O$4) -> 59 | P69: =ROUND( P$2+(('coded NOLH for 12-16 factors'!P68-1)*(P$3-P$2)/64), P$4) -> 57 | Q69: =ROUND( Q$2+(('coded NOLH for 12-16 factors'!Q68-1)*(Q$3-Q$2)/64), Q$4) -> 50
B70: =ROUND( B$2+(('coded NOLH for 12-16 factors'!B69-1)*(B$3-B$2)/64), B$4) -> 9 | C70: =ROUND( C$2+(('coded NOLH for 12-16 factors'!C69-1)*(C$3-C$2)/64), C$4) -> 23 | D70: =ROUND( D$2+(('coded NOLH for 12-16 factors'!D69-1)*(D$3-D$2)/64), D$4) -> 5 | E70: =ROUND( E$2+(('coded NOLH for 12-16 factors'!E69-1)*(E$3-E$2)/64), E$4) -> 10 | F70: =ROUND( F$2+(('coded NOLH for 12-16 factors'!F69-1)*(F$3-F$2)/64), F$4) -> 19 | G70: =ROUND( G$2+(('coded NOLH for 12-16 factors'!G69-1)*(G$3-G$2)/64), G$4) -> 24 | H70: =ROUND( H$2+(('coded NOLH for 12-16 factors'!H69-1)*(H$3-H$2)/64), H$4) -> 7 | I70: =ROUND( I$2+(('coded NOLH for 12-16 factors'!I69-1)*(I$3-I$2)/64), I$4) -> 22 | J70: =ROUND( J$2+(('coded NOLH for 12-16 factors'!J69-1)*(J$3-J$2)/64), J$4) -> 23 | K70: =ROUND( K$2+(('coded NOLH for 12-16 factors'!K69-1)*(K$3-K$2)/64), K$4) -> 26 | L70: =ROUND( L$2+(('coded NOLH for 12-16 factors'!L69-1)*(L$3-L$2)/64), L$4) -> 12 | M70: =ROUND( M$2+(('coded NOLH for 12-16 factors'!M69-1)*(M$3-M$2)/64), M$4) -> 16 | N70: =ROUND( N$2+(('coded NOLH for 12-16 factors'!N69-1)*(N$3-N$2)/64), N$4) -> 25 | O70: =ROUND( O$2+(('coded NOLH for 12-16 factors'!O69-1)*(O$3-O$2)/64), O$4) -> 31 | P70: =ROUND( P$2+(('coded NOLH for 12-16 factors'!P69-1)*(P$3-P$2)/64), P$4) -> 15 | Q70: =ROUND( Q$2+(('coded NOLH for 12-16 factors'!Q69-1)*(Q$3-Q$2)/64), Q$4) -> 3

Sheet coded NOLH for 17-22 factors (hidden)
A1: Cioppa's factor ID | B1: f2 | C1: f3 | D1: f4 | E1: f6 | F1: f7 | G1: f8 | H1: f9 | I1: f10 | J1: f11 | K1: f12 | L1: f13 | M1: f14 | N1: f15 | O1: f17 | P1: f18 | Q1: f19 | R1: f22 | S1: f16 | T1: f21 | U1: f20 | V1: f5 | W1: f1
A2: low level
A3: high level
A4: factor name
B5: 32 | C5: 58 | D5: 51 | E5: 59 | F5: 44 | G5: 89 | H5: 73 | I5: 98 | J5: 72 | K5: 120 | L5: 100 | M5: 98 | N5: 78 | O5: 129 | P5: 120 | Q5: 80 | R5: 109 | S5: 70 | T5: 116 | U5: 124 | V5: 34 | W5: 115
B6: 115 | C6: 40 | D6: 56 | E6: 60 | F6: 13 | G6: 59 | H6: 55 | I6: 27 | J6: 62 | K6: 50 | L6: 119 | M6: 77 | N6: 80 | O6: 122 | P6: 94 | Q6: 104 | R6: 117 | S6: 75 | T6: 79 | U6: 94 | V6: 29 | W6: 98
B7: 58 | C7: 98 | D7: 1 | E7: 36 | F7: 54 | G7: 21 | H7: 97 | I7: 84 | J7: 79 | K7: 74 | L7: 61 | M7: 21 | N7: 63 | O7: 111 | P7: 128 | Q7: 82 | R7: 72 | S7: 20 | T7: 108 | U7: 85 | V7: 62 | W7: 90
B8: 90 | C8: 115 | D8: 39 | E8: 48 | F8: 57 | G8: 98 | H8: 10 | I8: 53 | J8: 35 | K8: 60 | L8: 54 | M8: 49 | N8: 44 | O8: 127 | P8: 87 | Q8: 125 | R8: 79 | S8: 47 | T8: 76 | U8: 100 | V8: 33 | W8: 72
B9: 1 | C9: 51 | D9: 72 | E9: 31 | F9: 14 | G9: 69 | H9: 47 | I9: 120 | J9: 129 | K9: 82 | L9: 15 | M9: 128 | N9: 110 | O9: 35 | P9: 58 | Q9: 57 | R9: 113 | S9: 87 | T9: 94 | U9: 84 | V9: 7 | W9: 91
B10: 91 | C10: 56 | D10: 90 | E10: 2 | F10: 52 | G10: 43 | H10: 76 | I10: 6 | J10: 33 | K10: 16 | L10: 24 | M10: 129 | N10: 81 | O10: 63 | P10: 41 | Q10: 45 | R10: 119 | S10: 113 | T10: 98 | U10: 95 | V10: 11 | W10: 129
B11: 51 | C11: 129 | D11: 98 | E11: 38 | F11: 21 | G11: 30 | H11: 32 | I11: 121 | J11: 124 | K11: 94 | L11: 91 | M11: 14 | N11: 1 | O11: 15 | P11: 61 | Q11: 41 | R11: 118 | S11: 45 | T11: 121 | U11: 88 | V11: 4 | W11: 74
B12: 74 | C12: 91 | D12: 115 | E12: 9 | F12: 45 | G12: 119 | H12: 112 | I12: 3 | J12: 40 | K12: 28 | L12: 64 | M12: 12 | N12: 22 | O12: 37 | P12: 44 | Q12: 56 | R12: 61 | S12: 13 | T12: 125 | U12: 75 | V12: 3 | W12: 79
B13: 4 | C13: 7 | D13: 34 | E13: 27 | F13: 26 | G13: 126 | H13: 94 | I13: 56 | J13: 94 | K13: 110 | L13: 96 | M13: 36 | N13: 77 | O13: 34 | P13: 122 | Q13: 103 | R13: 101 | S13: 126 | T13: 43 | U13: 4 | V13: 79 | W13: 127
B14: 127 | C14: 11 | D14: 29 | E14: 35 | F14: 16 | G14: 14 | H14: 27 | I14: 71 | J14: 26 | K14: 19 | L14: 63 | M14: 18 | N14: 90 | O14: 16 | P14: 118 | Q14: 59 | R14: 94 | S14: 90 | T14: 29 | U14: 48 | V14: 74 | W14: 126
B15: 7 | C15: 126 | D15: 62 | E15: 37 | F15: 41 | G15: 10 | H15: 100 | I15: 29 | J15: 80 | K15: 107 | L15: 22 | M15: 70 | N15: 36 | O15: 30 | P15: 97 | Q15: 121 | R15: 93 | S15: 28 | T15: 39 | U15: 1 | V15: 129 | W15: 119
B16: 119 | C16: 127 | D16: 33 | E16: 50 | F16: 19 | G16: 129 | H16: 66 | I16: 117 | J16: 37 | K16: 41 | L16: 32 | M16: 87 | N16: 33 | O16: 57 | P16: 109 | Q16: 70 | R16: 76 | S16: 26 | T16: 26 | U16: 9 | V16: 91 | W16: 123
B17: 62 | C17: 34 | D17: 123 | E17: 24 | F17: 53 | G17: 93 | H17: 7 | I17: 47 | J17: 85 | K17: 115 | L17: 2 | M17: 28 | N17: 117 | O17: 94 | P17: 42 | Q17: 15 | R17: 99 | S17: 107 | T17: 60 | U17: 62 | V17: 72 | W17: 97
B18: 97 | C18: 29 | D18: 119 | E18: 46 | F18: 12 | G18: 31 | H18: 118 | I18: 70 | J18: 27 | K18: 51 | L18: 3 | M18: 42 | N18: 109 | O18: 121 | P18: 47 | Q18: 28 | R18: 87 | S18: 63 | T18: 64 | U18: 32 | V18: 90 | W18: 68
B19: 34 | C19: 68 | D19: 126 | E19: 30 | F19: 61 | G19: 28 | H19: 5 | I19: 19 | J19: 127 | K19: 104 | L19: 109 | M19: 97 | N19: 31 | O19: 68 | P19: 39 | Q19: 10 | R19: 81 | S19: 15 | T19: 19 | U19: 60 | V19: 98 | W19: 101
B20: 101 | C20: 97 | D20: 127 | E20: 5 | F20: 23 | G20: 67 | H20: 126 | I20: 94 | J20: 32 | K20: 55 | L20: 124 | M20: 80 | N20: 43 | O20: 76 | P20: 34 | Q20: 12 | R20: 127 | S20: 49 | T20: 74 | U20: 37 | V20: 115 | W20: 96
B21: 30 | C21: 24 | D21: 27 | E21: 96 | F21: 6 | G21: 90 | H21: 89 | I21: 64 | J21: 28 | K21: 77 | L21: 81 | M21: 78 | N21: 27 | O21: 128 | P21: 6 | Q21: 101 | R21: 10 | S21: 116 | T21: 107 | U21: 10 | V21: 59 | W21: 125
B22: 125 | C22: 46 | D22: 35 | E22: 101 | F22: 55 | G22: 26 | H22: 20 | I22: 62 | J22: 96 | K22: 6 | L22: 77 | M22: 93 | N22: 57 | O22: 80 | P22: 11 | Q22: 88 | R22: 62 | S22: 100 | T22: 123 | U22: 39 | V22: 60 | W22: 100
B23: 24 | C23: 100 | D23: 37 | E23: 68 | F23: 28 | G23: 5 | H23: 88 | I23: 69 | J23: 31 | K23: 119 | L23: 41 | M23: 63 | N23: 92 | O23: 124 | P23: 9 | Q23: 87 | R23: 8 | S23: 54 | T23: 50 | U23: 41 | V23: 36 | W23: 84
B24: 84 | C24: 125 | D24: 50 | E24: 97 | F24: 17 | G24: 103 | H24: 45 | I24: 21 | J24: 70 | K24: 32 | L24: 8 | M24: 61 | N24: 85 | O24: 79 | P24: 3 | Q24: 78 | R24: 47 | S24: 7 | T24: 67 | U24: 31 | V24: 48 | W24: 106
B25: 37 | C25: 27 | D25: 106 | E25: 123 | F25: 64 | G25: 86 | H25: 40 | I25: 129 | J25: 14 | K25: 83 | L25: 23 | M25: 126 | N25: 3 | O25: 59 | P25: 106 | Q25: 11 | R25: 15 | S25: 86 | T25: 128 | U25: 50 | V25: 31 | W25: 80
B26: 80 | C26: 35 | D26: 84 | E26: 119 | F26: 49 | G26: 17 | H26: 111 | I26: 35 | J26: 125 | K26: 73 | L26: 7 | M26: 75 | N26: 2 | O26: 17 | P26: 71 | Q26: 49 | R26: 23 | S26: 80 | T26: 113 | U26: 8 | V26: 2 | W26: 93
B27: 27 | C27: 93 | D27: 100 | E27: 126 | F27: 43 | G27: 45 | H27: 8 | I27: 122 | J27: 7 | K27: 113 | L27: 104 | M27: 6 | N27: 116 | O27: 52 | P27: 103 | Q27: 69 | R27: 22 | S27: 33 | T27: 105 | U27: 51 | V27: 38 | W27: 95
B28: 95 | C28: 80 | D28: 125 | E28: 127 | F28: 25 | G28: 81 | H28: 105 | I28: 37 | J28: 128 | K28: 52 | L28: 82 | M28: 17 | N28: 120 | O28: 38 | P28: 85 | Q28: 32 | R28: 4 | S28: 58 | T28: 83 | U28: 28 | V28: 9 | W28: 103
B29: 38 | C29: 31 | D29: 59 | E29: 79 | F29: 42 | G29: 128 | H29: 61 | I29: 34 | J29: 57 | K29: 106 | L29: 71 | M29: 56 | N29: 35 | O29: 14 | P29: 7 | Q29: 107 | R29: 44 | S29: 118 | T29: 18 | U29: 119 | V29: 103 | W29: 121
B30: 121 | C30: 2 | D30: 60 | E30: 74 | F30: 20 | G30: 38 | H30: 50 | I30: 105 | J30: 81 | K30: 38 | L30: 85 | M30: 44 | N30: 4 | O30: 26 | P30: 49 | Q30: 117 | R30: 20 | S30: 121 | T30: 49 | U30: 128 | V30: 95 | W30: 92
B31: 31 | C31: 92 | D31: 36 | E31: 129 | F31: 8 | G31: 16 | H31: 78 | I31: 40 | J31: 39 | K31: 108 | L31: 60 | M31: 91 | N31: 66 | O31: 23 | P31: 50 | Q31: 75 | R31: 64 | S31: 18 | T31: 30 | U31: 112 | V31: 93 | W31: 128
B32: 128 | C32: 121 | D32: 48 | E32: 91 | F32: 22 | G32: 97 | H32: 37 | I32: 76 | J32: 126 | K32: 8 | L32: 38 | M32: 105 | N32: 79 | O32: 5 | P32: 66 | Q32: 92 | R32: 28 | S32: 41 | T32: 57 | U32: 107 | V32: 80 | W32: 99
B33: 36 | C33: 59 | D33: 99 | E33: 72 | F33: 47 | G33: 70 | H33: 1 | I33: 49 | J33: 41 | K33: 61 | L33: 5 | M33: 10 | N33: 5 | O33: 87 | P33: 99 | Q33: 17 | R33: 57 | S33: 114 | T33: 11 | U33: 109 | V33: 106 | W33: 82
B34: 82 | C34: 60 | D34: 128 | E34: 90 | F34: 63 | G34: 55 | H34: 96 | I34: 118 | J34: 74 | K34: 46 | L34: 40 | M34: 20 | N34: 48 | O34: 91 | P34: 129 | Q34: 6 | R34: 46 | S34: 108 | T34: 41 | U34: 71 | V34: 84 | W34: 94
B35: 59 | C35: 94 | D35: 92 | E35: 98 | F35: 10 | G35: 51 | H35: 6 | I35: 2 | J35: 17 | K35: 112 | L35: 121 | M35: 104 | N35: 70 | O35: 84 | P35: 73 | Q35: 8 | R35: 24 | S35: 62 | T35: 68 | U35: 101 | V35: 100 | W35: 70
B36: 70 | C36: 82 | D36: 121 | E36: 115 | F36: 18 | G36: 95 | H36: 86 | I36: 99 | J36: 101 | K36: 4 | L36: 95 | M36: 90 | N36: 88 | O36: 89 | P36: 95 | Q36: 34 | R36: 52 | S36: 39 | T36: 6 | U36: 76 | V36: 125 | W36: 71
B37: 10 | C37: 47 | D37: 42 | E37: 44 | F37: 71 | G37: 64 | H37: 117 | I37: 73 | J37: 117 | K37: 67 | L37: 116 | M37: 96 | N37: 74 | O37: 110 | P37: 84 | Q37: 14 | R37: 6 | S37: 52 | T37: 1 | U37: 115 | V37: 6 | W37: 112
B38: 112 | C38: 63 | D38: 20 | E38: 13 | F38: 70 | G38: 52 | H38: 49 | I38: 5 | J38: 43 | K38: 68 | L38: 117 | M38: 123 | N38: 62 | O38: 85 | P38: 107 | Q38: 25 | R38: 33 | S38: 42 | T38: 48 | U38: 78 | V38: 55 | W38: 120
B39: 47 | C39: 120 | D39: 8 | E39: 54 | F39: 94 | G39: 20 | H39: 121 | I39: 106 | J39: 69 | K39: 54 | L39: 31 | M39: 45 | N39: 19 | O39: 82 | P39: 76 | Q39: 19 | R39: 41 | S39: 71 | T39: 33 | U39: 127 | V39: 28 | W39: 67
B40: 67 | C40: 112 | D40: 22 | E40: 57 | F40: 82 | G40: 123 | H40: 15 | I40: 17 | J40: 52 | K40: 103 | L40: 36 | M40: 16 | N40: 25 | O40: 77 | P40: 92 | Q40: 44 | R40: 55 | S40: 77 | T40: 15 | U40: 81 | V40: 17 | W40: 83
B41: 8 | C41: 42 | D41: 83 | E41: 14 | F41: 99 | G41: 108 | H41: 62 | I41: 86 | J41: 76 | K41: 2 | L41: 29 | M41: 100 | N41: 96 | O41: 31 | P41: 60 | Q41: 68 | R41: 40 | S41: 10 | T41: 55 | U41: 106 | V41: 64 | W41: 108
B42: 108 | C42: 20 | D42: 67 | E42: 52 | F42: 128 | G42: 39 | H42: 77 | I42: 79 | J42: 11 | K42: 101 | L42: 19 | M42: 95 | N42: 113 | O42: 29 | P42: 48 | Q42: 84 | R42: 2 | S42: 31 | T42: 42 | U42: 111 | V42: 49 | W42: 122
B43: 42 | C43: 122 | D43: 120 | E43: 21 | F43: 92 | G43: 8 | H43: 29 | I43: 110 | J43: 88 | K43: 12 | L43: 78 | M43: 51 | N43: 55 | O43: 60 | P43: 20 | Q43: 76 | R43: 59 | S43: 125 | T43: 34 | U43: 118 | V43: 43 | W43: 110
B44: 110 | C44: 108 | D44: 112 | E44: 45 | F44: 121 | G44: 111 | H44: 128 | I44: 48 | J44: 21 | K44: 100 | L44: 87 | M44: 68 | N44: 18 | O44: 27 | P44: 18 | Q44: 79 | R44: 30 | S44: 92 | T44: 46 | U44: 97 | V44: 25 | W44: 88
B45: 43 | C45: 64 | D45: 6 | E45: 26 | F45: 103 | G45: 88 | H45: 72 | I45: 14 | J45: 110 | K45: 31 | L45: 112 | M45: 9 | N45: 121 | O45: 28 | P45: 105 | Q45: 2 | R45: 9 | S45: 73 | T45: 120 | U45: 47 | V45: 88 | W45: 105
B46: 105 | C46: 49 | D46: 55 | E46: 16 | F46: 95 | G46: 68 | H46: 3 | I46: 92 | J46: 24 | K46: 93 | L46: 114 | M46: 27 | N46: 93 | O46: 11 | P46: 67 | Q46: 21 | R46: 14 | S46: 37 | T46: 110 | U46: 34 | V46: 110 | W46: 87
B47: 64 | C47: 87 | D47: 28 | E47: 41 | F47: 93 | G47: 36 | H47: 116 | I47: 15 | J47: 107 | K47: 45 | L47: 47 | M47: 101 | N47: 24 | O47: 69 | P47: 125 | Q47: 36 | R47: 18 | S47: 111 | T47: 127 | U47: 58 | V47: 122 | W47: 81
B48: 81 | C48: 105 | D48: 17 | E48: 19 | F48: 80 | G48: 96 | H48: 31 | I48: 119 | J48: 38 | K48: 86 | L48: 12 | M48: 107 | N48: 32 | O48: 64 | P48: 77 | Q48: 1 | R48: 32 | S48: 106 | T48: 102 | U48: 25 | V48: 108 | W48: 66
B49: 28 | C49: 6 | D49: 66 | E49: 53 | F49: 106 | G49: 73 | H49: 38 | I49: 72 | J49: 118 | K49: 43 | L49: 28 | M49: 5 | N49: 115 | O49: 108 | P49: 17 | Q49: 77 | R49: 26 | S49: 6 | T49: 69 | U49: 61 | V49: 83 | W49: 113
B50: 113 | C50: 55 | D50: 81 | E50: 12 | F50: 84 | G50: 3 | H50: 67 | I50: 87 | J50: 55 | K50: 109 | L50: 46 | M50: 22 | N50: 72 | O50: 117 | P50: 37 | Q50: 90 | R50: 50 | S50: 25 | T50: 99 | U50: 63 | V50: 67 | W50: 102
B51: 6 | C51: 102 | D51: 87 | E51: 61 | F51: 100 | G51: 18 | H51: 23 | I51: 22 | J51: 108 | K51: 3 | L51: 80 | M51: 59 | N51: 11 | O51: 123 | P51: 26 | Q51: 97 | R51: 34 | S51: 94 | T51: 59 | U51: 5 | V51: 120 | W51: 75
B52: 75 | C52: 113 | D52: 105 | E52: 23 | F52: 125 | G52: 101 | H52: 91 | I52: 126 | J52: 59 | K52: 95 | L52: 79 | M52: 83 | N52: 76 | O52: 109 | P52: 19 | Q52: 99 | R52: 39 | S52: 101 | T52: 86 | U52: 40 | V52: 112 | W52: 124
B53: 61 | C53: 53 | D53: 26 | E53: 124 | F53: 96 | G53: 124 | H53: 113 | I53: 123 | J53: 53 | K53: 33 | L53: 126 | M53: 57 | N53: 30 | O53: 90 | P53: 14 | Q53: 7 | R53: 125 | S53: 27 | T53: 8 | U53: 14 | V53: 44 | W53: 107
B54: 107 | C54: 12 | D54: 16 | E54: 75 | F54: 101 | G54: 53 | H54: 21 | I54: 52 | J54: 122 | K54: 105 | L54: 74 | M54: 76 | N54: 7 | O54: 106 | P54: 29 | Q54: 4 | R54: 95 | S54: 64 | T54: 35 | U54: 38 | V54: 13 | W54: 69
B55: 53 | C55: 69 | D55: 41 | E55: 102 | F55: 68 | G55: 24 | H55: 114 | I55: 67 | J55: 15 | K55: 39 | L55: 27 | M55: 3 | N55: 83 | O55: 75 | P55: 55 | Q55: 20 | R55: 82 | S55: 95 | T55: 24 | U55: 73 | V55: 54 | W55: 118
B56: 118 | C56: 107 | D56: 19 | E56: 113 | F56: 97 | G56: 72 | H56: 46 | I56: 50 | J56: 100 | K56: 71 | L56: 10 | M56: 41 | N56: 124 | O56: 112 | P56: 56 | Q56: 22 | R56: 111 | S56: 98 | T56: 40 | U56: 64 | V56: 57 | W56: 77
B57: 41 | C57: 26 | D57: 77 | E57: 66 | F57: 123 | G57: 107 | H57: 11 | I57: 89 | J57: 48 | K57: 13 | L57: 44 | M57: 84 | N57: 23 | O57: 72 | P57: 108 | Q57: 100 | R57: 74 | S57: 2 | T57: 45 | U57: 16 | V57: 14 | W57: 111
B58: 111 | C58: 16 | D58: 118 | E58: 81 | F58: 119 | G58: 13 | H58: 70 | I58: 33 | J58: 67 | K58: 125 | L58: 58 | M58: 119 | N58: 39 | O58: 42 | P58: 98 | Q58: 64 | R58: 85 | S58: 1 | T58: 13 | U58: 13 | V58: 52 | W58: 89
B59: 26 | C59: 89 | D59: 69 | E59: 87 | F59: 126 | G59: 9 | H59: 28 | I59: 91 | J59: 25 | K59: 9 | L59: 129 | M59: 48 | N59: 84 | O59: 25 | P59: 79 | Q59: 106 | R59: 105 | S59: 109 | T59: 53 | U59: 20 | V59: 21 | W59: 114
B60: 114 | C60: 111 | D60: 107 | E60: 105 | F60: 127 | G60: 80 | H60: 74 | I60: 28 | J60: 86 | K60: 129 | L60: 68 | M60: 13 | N60: 59 | O60: 49 | P60: 102 | Q60: 114 | R60: 92 | S60: 122 | T60: 52 | U60: 43 | V60: 45 | W60: 104
B61: 21 | C61: 14 | D61: 44 | E61: 88 | F61: 79 | G61: 84 | H61: 108 | I61: 18 | J61: 16 | K61: 49 | L61: 75 | M61: 8 | N61: 28 | O61: 33 | P61: 13 | Q61: 18 | R61: 123 | S61: 46 | T61: 126 | U61: 113 | V61: 104 | W61: 85
B62: 85 | C62: 52 | D62: 13 | E62: 110 | F62: 74 | G62: 25 | H62: 35 | I62: 104 | J62: 84 | K62: 72 | L62: 73 | M62: 38 | N62: 8 | O62: 47 | P62: 16 | Q62: 35 | R62: 103 | S62: 3 | T62: 118 | U62: 104 | V62: 114 | W62: 109
B63: 14 | C63: 109 | D63: 54 | E63: 122 | F63: 129 | G63: 47 | H63: 71 | I63: 23 | J63: 18 | K63: 42 | L63: 25 | M63: 106 | N63: 114 | O63: 10 | P63: 68 | Q63: 37 | R63: 129 | S63: 74 | T63: 93 | U63: 86 | V63: 89 | W63: 78
B64: 78 | C64: 85 | D64: 57 | E64: 108 | F64: 91 | G64: 118 | H64: 51 | I64: 88 | J64: 121 | K64: 123 | L64: 33 | M64: 99 | N64: 89 | O64: 56 | P64: 40 | Q64: 58 | R64: 114 | S64: 79 | T64: 114 | U64: 74 | V64: 111 | W64: 116
B65: 54 | C65: 44 | D65: 116 | E65: 83 | F65: 72 | G65: 115 | H65: 48 | I65: 16 | J65: 66 | K65: 40 | L65: 37 | M65: 19 | N65: 12 | O65: 118 | P65: 100 | Q65: 91 | R65: 63 | S65: 11 | T65: 103 | U65: 103 | V65: 77 | W65: 73
B66: 73 | C66: 13 | D66: 78 | E66: 67 | F66: 90 | G66: 48 | H66: 106 | I66: 85 | J66: 83 | K66: 64 | L66: 17 | M66: 58 | N66: 26 | O66: 86 | P66: 126 | Q66: 127 | R66: 88 | S66: 34 | T66: 72 | U66: 108 | V66: 118 | W66: 76
B67: 44 | C67: 76 | D67: 109 | E67: 120 | F67: 98 | G67: 54 | H67: 43 | I67: 30 | J67: 19 | K67: 14 | L67: 88 | M67: 115 | N67: 69 | O67: 126 | P67: 115 | Q67: 67 | R67: 77 | S67: 82 | T67: 109 | U67: 77 | V67: 69 | W67: 117
B68: 117 | C68: 73 | D68: 85 | E68: 112 | F68: 115 | G68: 74 | H68: 104 | I68: 75 | J68: 120 | K68: 96 | L68: 110 | M68: 66 | N68: 101 | O68: 98 | P68: 78 | Q68: 83 | R68: 70 | S68: 69 | T68: 92 | U68: 123 | V68: 107 | W68: 86
B69: 65 | C69: 65 | D69: 65 | E69: 65 | F69: 65 | G69: 65 | H69: 65 | I69: 65 | J69: 65 | K69: 65 | L69: 65 | M69: 65 | N69: 65 | O69: 65 | P69: 65 | Q69: 65 | R69: 65 | S69: 65 | T69: 65 | U69: 65 | V69: 65 | W69: 65
B70: 98 | C70: 72 | D70: 79 | E70: 71 | F70: 86 | G70: 41 | H70: 57 | I70: 32 | J70: 58 | K70: 10 | L70: 30 | M70: 32 | N70: 52 | O70: 1 | P70: 10 | Q70: 50 | R70: 21 | S70: 60 | T70: 14 | U70: 6 | V70: 96 | W70: 15
B71: 15 | C71: 90 | D71: 74 | E71: 70 | F71: 117 | G71: 71 | H71: 75 | I71: 103 | J71: 68 | K71: 80 | L71: 11 | M71: 53 | N71: 50 | O71: 8 | P71: 36 | Q71: 26 | R71: 13 | S71: 55 | T71: 51 | U71: 36 | V71: 101 | W71: 32
B72: 72 | C72: 32 | D72: 129 | E72: 94 | F72: 76 | G72: 109 | H72: 33 | I72: 46 | J72: 51 | K72: 56 | L72: 69 | M72: 109 | N72: 67 | O72: 19 | P72: 2 | Q72: 48 | R72: 58 | S72: 110 | T72: 22 | U72: 45 | V72: 68 | W72: 40
B73: 40 | C73: 15 | D73: 91 | E73: 82 | F73: 73 | G73: 32 | H73: 120 | I73: 77 | J73: 95 | K73: 70 | L73: 76 | M73: 81 | N73: 86 | O73: 3 | P73: 43 | Q73: 5 | R73: 51 | S73: 83 | T73: 54 | U73: 30 | V73: 97 | W73: 58
B74: 129 | C74: 79 | D74: 58 | E74: 99 | F74: 116 | G74: 61 | H74: 83 | I74: 10 | J74: 1 | K74: 48 | L74: 115 | M74: 2 | N74: 20 | O74: 95 | P74: 72 | Q74: 73 | R74: 17 | S74: 43 | T74: 36 | U74: 46 | V74: 123 | W74: 39
B75: 39 | C75: 74 | D75: 40 | E75: 128 | F75: 78 | G75: 87 | H75: 54 | I75: 124 | J75: 97 | K75: 114 | L75: 106 | M75: 1 | N75: 49 | O75: 67 | P75: 89 | Q75: 85 | R75: 11 | S75: 17 | T75: 32 | U75: 35 | V75: 119 | W75: 1
B76: 79 | C76: 1 | D76: 32 | E76: 92 | F76: 109 | G76: 100 | H76: 98 | I76: 9 | J76: 6 | K76: 36 | L76: 39 | M76: 116 | N76: 129 | O76: 115 | P76: 69 | Q76: 89 | R76: 12 | S76: 85 | T76: 9 | U76: 42 | V76: 126 | W76: 56
B77: 56 | C77: 39 | D77: 15 | E77: 121 | F77: 85 | G77: 11 | H77: 18 | I77: 127 | J77: 90 | K77: 102 | L77: 66 | M77: 118 | N77: 108 | O77: 93 | P77: 86 | Q77: 74 | R77: 69 | S77: 117 | T77: 5 | U77: 55 | V77: 127 | W77: 51
B78: 126 | C78: 123 | D78: 96 | E78: 103 | F78: 104 | G78: 4 | H78: 36 | I78: 74 | J78: 36 | K78: 20 | L78: 34 | M78: 94 | N78: 53 | O78: 96 | P78: 8 | Q78: 27 | R78: 29 | S78: 4 | T78: 87 | U78: 126 | V78: 51 | W78: 3
B79: 3 | C79: 119 | D79: 101 | E79: 95 | F79: 114 | G79: 116 | H79: 103 | I79: 59 | J79: 104 | K79: 111 | L79: 67 | M79: 112 | N79: 40 | O79: 114 | P79: 12 | Q79: 71 | R79: 36 | S79: 40 | T79: 101 | U79: 82 | V79: 56 | W79: 4
B80: 123 | C80: 4 | D80: 68 | E80: 93 | F80: 89 | G80: 120 | H80: 30 | I80: 101 | J80: 50 | K80: 23 | L80: 108 | M80: 60 | N80: 94 | O80: 100 | P80: 33 | Q80: 9 | R80: 37 | S80: 102 | T80: 91 | U80: 129 | V80: 1 | W80: 11
B81: 11 | C81: 3 | D81: 97 | E81: 80 | F81: 111 | G81: 1 | H81: 64 | I81: 13 | J81: 93 | K81: 89 | L81: 98 | M81: 43 | N81: 97 | O81: 73 | P81: 21 | Q81: 60 | R81: 54 | S81: 104 | T81: 104 | U81: 121 | V81: 39 | W81: 7
B82: 68 | C82: 96 | D82: 7 | E82: 106 | F82: 77 | G82: 37 | H82: 123 | I82: 83 | J82: 45 | K82: 15 | L82: 128 | M82: 102 | N82: 13 | O82: 36 | P82: 88 | Q82: 115 | R82: 31 | S82: 23 | T82: 70 | U82: 68 | V82: 58 | W82: 33
B83: 33 | C83: 101 | D83: 11 | E83: 84 | F83: 118 | G83: 99 | H83: 12 | I83: 60 | J83: 103 | K83: 79 | L83: 127 | M83: 88 | N83: 21 | O83: 9 | P83: 83 | Q83: 102 | R83: 43 | S83: 67 | T83: 66 | U83: 98 | V83: 40 | W83: 62
B84: 96 | C84: 62 | D84: 4 | E84: 100 | F84: 69 | G84: 102 | H84: 125 | I84: 111 | J84: 3 | K84: 26 | L84: 21 | M84: 33 | N84: 99 | O84: 62 | P84: 91 | Q84: 120 | R84: 49 | S84: 115 | T84: 111 | U84: 70 | V84: 32 | W84: 29
B85: 29 | C85: 33 | D85: 3 | E85: 125 | F85: 107 | G85: 63 | H85: 4 | I85: 36 | J85: 98 | K85: 75 | L85: 6 | M85: 50 | N85: 87 | O85: 54 | P85: 96 | Q85: 118 | R85: 3 | S85: 81 | T85: 56 | U85: 93 | V85: 15 | W85: 34
B86: 100 | C86: 106 | D86: 103 | E86: 34 | F86: 124 | G86: 40 | H86: 41 | I86: 66 | J86: 102 | K86: 53 | L86: 49 | M86: 52 | N86: 103 | O86: 2 | P86: 124 | Q86: 29 | R86: 120 | S86: 14 | T86: 23 | U86: 120 | V86: 71 | W86: 5
B87: 5 | C87: 84 | D87: 95 | E87: 29 | F87: 75 | G87: 104 | H87: 110 | I87: 68 | J87: 34 | K87: 124 | L87: 53 | M87: 37 | N87: 73 | O87: 50 | P87: 119 | Q87: 42 | R87: 68 | S87: 30 | T87: 7 | U87: 91 | V87: 70 | W87: 30
B88: 106 | C88: 30 | D88: 93 | E88: 62 | F88: 102 | G88: 125 | H88: 42 | I88: 61 | J88: 99 | K88: 11 | L88: 89 | M88: 67 | N88: 38 | O88: 6 | P88: 121 | Q88: 43 | R88: 122 | S88: 76 | T88: 80 | U88: 89 | V88: 94 | W88: 46
B89: 46 | C89: 5 | D89: 80 | E89: 33 | F89: 113 | G89: 27 | H89: 85 | I89: 109 | J89: 60 | K89: 98 | L89: 122 | M89: 69 | N89: 45 | O89: 51 | P89: 127 | Q89: 52 | R89: 83 | S89: 123 | T89: 63 | U89: 99 | V89: 82 | W89: 24
B90: 93 | C90: 103 | D90: 24 | E90: 7 | F90: 66 | G90: 44 | H90: 90 | I90: 1 | J90: 116 | K90: 47 | L90: 107 | M90: 4 | N90: 127 | O90: 71 | P90: 24 | Q90: 119 | R90: 115 | S90: 44 | T90: 2 | U90: 80 | V90: 99 | W90: 50
B91: 50 | C91: 95 | D91: 46 | E91: 11 | F91: 81 | G91: 113 | H91: 19 | I91: 95 | J91: 5 | K91: 57 | L91: 123 | M91: 55 | N91: 128 | O91: 113 | P91: 59 | Q91: 81 | R91: 107 | S91: 50 | T91: 17 | U91: 122 | V91: 128 | W91: 37
B92: 103 | C92: 37 | D92: 30 | E92: 4 | F92: 87 | G92: 85 | H92: 122 | I92: 8 | J92: 123 | K92: 17 | L92: 26 | M92: 124 | N92: 14 | O92: 78 | P92: 27 | Q92: 61 | R92: 108 | S92: 97 | T92: 25 | U92: 79 | V92: 92 | W92: 35
B93: 35 | C93: 50 | D93: 5 | E93: 3 | F93: 105 | G93: 49 | H93: 25 | I93: 93 | J93: 2 | K93: 78 | L93: 48 | M93: 113 | N93: 10 | O93: 92 | P93: 45 | Q93: 98 | R93: 126 | S93: 72 | T93: 47 | U93: 102 | V93: 121 | W93: 27
B94: 92 | C94: 99 | D94: 71 | E94: 51 | F94: 88 | G94: 2 | H94: 69 | I94: 96 | J94: 73 | K94: 24 | L94: 59 | M94: 74 | N94: 95 | O94: 116 | P94: 123 | Q94: 23 | R94: 86 | S94: 12 | T94: 112 | U94: 11 | V94: 27 | W94: 9
B95: 9 | C95: 128 | D95: 70 | E95: 56 | F95: 110 | G95: 92 | H95: 80 | I95: 25 | J95: 49 | K95: 92 | L95: 45 | M95: 86 | N95: 126 | O95: 104 | P95: 81 | Q95: 13 | R95: 110 | S95: 9 | T95: 81 | U95: 2 | V95: 35 | W95: 38
B96: 99 | C96: 38 | D96: 94 | E96: 1 | F96: 122 | G96: 114 | H96: 52 | I96: 90 | J96: 91 | K96: 22 | L96: 70 | M96: 39 | N96: 64 | O96: 107 | P96: 80 | Q96: 55 | R96: 66 | S96: 112 | T96: 100 | U96: 18 | V96: 37 | W96: 2
B97: 2 | C97: 9 | D97: 82 | E97: 39 | F97: 108 | G97: 33 | H97: 93 | I97: 54 | J97: 4 | K97: 122 | L97: 92 | M97: 25 | N97: 51 | O97: 125 | P97: 64 | Q97: 38 | R97: 102 | S97: 89 | T97: 73 | U97: 23 | V97: 50 | W97: 31
B98: 94 | C98: 71 | D98: 31 | E98: 58 | F98: 83 | G98: 60 | H98: 129 | I98: 81 | J98: 89 | K98: 69 | L98: 125 | M98: 120 | N98: 125 | O98: 43 | P98: 31 | Q98: 113 | R98: 73 | S98: 16 | T98: 119 | U98: 21 | V98: 24 | W98: 48
B99: 48 | C99: 70 | D99: 2 | E99: 40 | F99: 67 | G99: 75 | H99: 34 | I99: 12 | J99: 56 | K99: 84 | L99: 90 | M99: 110 | N99: 82 | O99: 39 | P99: 1 | Q99: 124 | R99: 84 | S99: 22 | T99: 89 | U99: 59 | V99: 46 | W99: 36
B100: 71 | C100: 36 | D100: 38 | E100: 32 | F100: 120 | G100: 79 | H100: 124 | I100: 128 | J100: 113 | K100: 18 | L100: 9 | M100: 26 | N100: 60 | O100: 46 | P100: 57 | Q100: 122 | R100: 106 | S100: 68 | T100: 62 | U100: 29 | V100: 30 | W100: 60
B101: 60 | C101: 48 | D101: 9 | E101: 15 | F101: 112 | G101: 35 | H101: 44 | I101: 31 | J101: 29 | K101: 126 | L101: 35 | M101: 40 | N101: 42 | O101: 41 | P101: 35 | Q101: 96 | R101: 78 | S101: 91 | T101: 124 | U101: 54 | V101: 5 | W101: 59
B102: 120 | C102: 83 | D102: 88 | E102: 86 | F102: 59 | G102: 66 | H102: 13 | I102: 57 | J102: 13 | K102: 63 | L102: 14 | M102: 34 | N102: 56 | O102: 20 | P102: 46 | Q102: 116 | R102: 124 | S102: 78 | T102: 129 | U102: 15 | V102: 124 | W102: 18
B103: 18 | C103: 67 | D103: 110 | E103: 117 | F103: 60 | G103: 78 | H103: 81 | I103: 125 | J103: 87 | K103: 62 | L103: 13 | M103: 7 | N103: 68 | O103: 45 | P103: 23 | Q103: 105 | R103: 97 | S103: 88 | T103: 82 | U103: 52 | V103: 75 | W103: 10
B104: 83 | C104: 10 | D104: 122 | E104: 76 | F104: 36 | G104: 110 | H104: 9 | I104: 24 | J104: 61 | K104: 76 | L104: 99 | M104: 85 | N104: 111 | O104: 48 | P104: 54 | Q104: 111 | R104: 89 | S104: 59 | T104: 97 | U104: 3 | V104: 102 | W104: 63
B105: 63 | C105: 18 | D105: 108 | E105: 73 | F105: 48 | G105: 7 | H105: 115 | I105: 113 | J105: 78 | K105: 27 | L105: 94 | M105: 114 | N105: 105 | O105: 53 | P105: 38 | Q105: 86 | R105: 75 | S105: 53 | T105: 115 | U105: 49 | V105: 113 | W105: 47
B106: 122 | C106: 88 | D106: 47 | E106: 116 | F106: 31 | G106: 22 | H106: 68 | I106: 44 | J106: 54 | K106: 128 | L106: 101 | M106: 30 | N106: 34 | O106: 99 | P106: 70 | Q106: 62 | R106: 90 | S106: 120 | T106: 75 | U106: 24 | V106: 66 | W106: 22
B107: 22 | C107: 110 | D107: 63 | E107: 78 | F107: 2 | G107: 91 | H107: 53 | I107: 51 | J107: 119 | K107: 29 | L107: 111 | M107: 35 | N107: 17 | O107: 101 | P107: 82 | Q107: 46 | R107: 128 | S107: 99 | T107: 88 | U107: 19 | V107: 81 | W107: 8
B108: 88 | C108: 8 | D108: 10 | E108: 109 | F108: 38 | G108: 122 | H108: 101 | I108: 20 | J108: 42 | K108: 118 | L108: 52 | M108: 79 | N108: 75 | O108: 70 | P108: 110 | Q108: 54 | R108: 71 | S108: 5 | T108: 96 | U108: 12 | V108: 87 | W108: 20
B109: 20 | C109: 22 | D109: 18 | E109: 85 | F109: 9 | G109: 19 | H109: 2 | I109: 82 | J109: 109 | K109: 30 | L109: 43 | M109: 62 | N109: 112 | O109: 103 | P109: 112 | Q109: 51 | R109: 100 | S109: 38 | T109: 84 | U109: 33 | V109: 105 | W109: 42
B110: 87 | C110: 66 | D110: 124 | E110: 104 | F110: 27 | G110: 42 | H110: 58 | I110: 116 | J110: 20 | K110: 99 | L110: 18 | M110: 121 | N110: 9 | O110: 102 | P110: 25 | Q110: 128 | R110: 121 | S110: 57 | T110: 10 | U110: 83 | V110: 42 | W110: 25
B111: 25 | C111: 81 | D111: 75 | E111: 114 | F111: 35 | G111: 62 | H111: 127 | I111: 38 | J111: 106 | K111: 37 | L111: 16 | M111: 103 | N111: 37 | O111: 119 | P111: 63 | Q111: 109 | R111: 116 | S111: 93 | T111: 20 | U111: 96 | V111: 20 | W111: 43
B112: 66 | C112: 43 | D112: 102 | E112: 89 | F112: 37 | G112: 94 | H112: 14 | I112: 115 | J112: 23 | K112: 85 | L112: 83 | M112: 29 | N112: 106 | O112: 61 | P112: 5 | Q112: 94 | R112: 112 | S112: 19 | T112: 3 | U112: 72 | V112: 8 | W112: 49
B113: 49 | C113: 25 | D113: 113 | E113: 111 | F113: 50 | G113: 34 | H113: 99 | I113: 11 | J113: 92 | K113: 44 | L113: 118 | M113: 23 | N113: 98 | O113: 66 | P113: 53 | Q113: 129 | R113: 98 | S113: 24 | T113: 28 | U113: 105 | V113: 22 | W113: 64
B114: 102 | C114: 124 | D114: 64 | E114: 77 | F114: 24 | G114: 57 | H114: 92 | I114: 58 | J114: 12 | K114: 87 | L114: 102 | M114: 125 | N114: 15 | O114: 22 | P114: 113 | Q114: 53 | R114: 104 | S114: 124 | T114: 61 | U114: 69 | V114: 47 | W114: 17
B115: 17 | C115: 75 | D115: 49 | E115: 118 | F115: 46 | G115: 127 | H115: 63 | I115: 43 | J115: 75 | K115: 21 | L115: 84 | M115: 108 | N115: 58 | O115: 13 | P115: 93 | Q115: 40 | R115: 80 | S115: 105 | T115: 31 | U115: 67 | V115: 63 | W115: 28
B116: 124 | C116: 28 | D116: 43 | E116: 69 | F116: 30 | G116: 112 | H116: 107 | I116: 108 | J116: 22 | K116: 127 | L116: 50 | M116: 71 | N116: 119 | O116: 7 | P116: 104 | Q116: 33 | R116: 96 | S116: 36 | T116: 71 | U116: 125 | V116: 10 | W116: 55
B117: 55 | C117: 17 | D117: 25 | E117: 107 | F117: 5 | G117: 29 | H117: 39 | I117: 4 | J117: 71 | K117: 35 | L117: 51 | M117: 47 | N117: 54 | O117: 21 | P117: 111 | Q117: 31 | R117: 91 | S117: 29 | T117: 44 | U117: 90 | V117: 18 | W117: 6
B118: 69 | C118: 77 | D118: 104 | E118: 6 | F118: 34 | G118: 6 | H118: 17 | I118: 7 | J118: 77 | K118: 97 | L118: 4 | M118: 73 | N118: 100 | O118: 40 | P118: 116 | Q118: 123 | R118: 5 | S118: 103 | T118: 122 | U118: 116 | V118: 86 | W118: 23
B119: 23 | C119: 118 | D119: 114 | E119: 55 | F119: 29 | G119: 77 | H119: 109 | I119: 78 | J119: 8 | K119: 25 | L119: 56 | M119: 54 | N119: 123 | O119: 24 | P119: 101 | Q119: 126 | R119: 35 | S119: 66 | T119: 95 | U119: 92 | V119: 117 | W119: 61
B120: 77 | C120: 61 | D120: 89 | E120: 28 | F120: 62 | G120: 106 | H120: 16 | I120: 63 | J120: 115 | K120: 91 | L120: 103 | M120: 127 | N120: 47 | O120: 55 | P120: 75 | Q120: 110 | R120: 48 | S120: 35 | T120: 106 | U120: 57 | V120: 76 | W120: 12
B121: 12 | C121: 23 | D121: 111 | E121: 17 | F121: 33 | G121: 58 | H121: 84 | I121: 80 | J121: 30 | K121: 59 | L121: 120 | M121: 89 | N121: 6 | O121: 18 | P121: 74 | Q121: 108 | R121: 19 | S121: 32 | T121: 90 | U121: 66 | V121: 73 | W121: 53
B122: 89 | C122: 104 | D122: 53 | E122: 64 | F122: 7 | G122: 23 | H122: 119 | I122: 41 | J122: 82 | K122: 117 | L122: 86 | M122: 46 | N122: 107 | O122: 58 | P122: 22 | Q122: 30 | R122: 56 | S122: 128 | T122: 85 | U122: 114 | V122: 116 | W122: 19
B123: 19 | C123: 114 | D123: 12 | E123: 49 | F123: 11 | G123: 117 | H123: 60 | I123: 97 | J123: 63 | K123: 5 | L123: 72 | M123: 11 | N123: 91 | O123: 88 | P123: 32 | Q123: 66 | R123: 45 | S123: 129 | T123: 117 | U123: 117 | V123: 78 | W123: 41
B124: 104 | C124: 41 | D124: 61 | E124: 43 | F124: 4 | G124: 121 | H124: 102 | I124: 39 | J124: 105 | K124: 121 | L124: 1 | M124: 82 | N124: 46 | O124: 105 | P124: 51 | Q124: 24 | R124: 25 | S124: 21 | T124: 77 | U124: 110 | V124: 109 | W124: 16
B125: 16 | C125: 19 | D125: 23 | E125: 25 | F125: 3 | G125: 50 | H125: 56 | I125: 102 | J125: 44 | K125: 1 | L125: 62 | M125: 117 | N125: 71 | O125: 81 | P125: 28 | Q125: 16 | R125: 38 | S125: 8 | T125: 78 | U125: 87 | V125: 85 | W125: 26
B126: 109 | C126: 116 | D126: 86 | E126: 42 | F126: 51 | G126: 46 | H126: 22 | I126: 112 | J126: 114 | K126: 81 | L126: 55 | M126: 122 | N126: 102 | O126: 97 | P126: 117 | Q126: 112 | R126: 7 | S126: 84 | T126: 4 | U126: 17 | V126: 26 | W126: 45
B127: 45 | C127: 78 | D127: 117 | E127: 20 | F127: 56 | G127: 105 | H127: 95 | I127: 26 | J127: 46 | K127: 58 | L127: 57 | M127: 92 | N127: 122 | O127: 83 | P127: 114 | Q127: 95 | R127: 27 | S127: 127 | T127: 12 | U127: 26 | V127: 16 | W127: 21
B128: 116 | C128: 21 | D128: 76 | E128: 8 | F128: 1 | G128: 83 | H128: 59 | I128: 107 | J128: 112 | K128: 88 | L128: 105 | M128: 24 | N128: 16 | O128: 120 | P128: 62 | Q128: 93 | R128: 1 | S128: 56 | T128: 37 | U128: 44 | V128: 41 | W128: 52
B129: 52 | C129: 45 | D129: 73 | E129: 22 | F129: 39 | G129: 12 | H129: 79 | I129: 42 | J129: 9 | K129: 7 | L129: 97 | M129: 31 | N129: 41 | O129: 74 | P129: 90 | Q129: 72 | R129: 16 | S129: 51 | T129: 16 | U129: 56 | V129: 19 | W129: 14
B130: 76 | C130: 86 | D130: 14 | E130: 47 | F130: 58 | G130: 15 | H130: 82 | I130: 114 | J130: 64 | K130: 90 | L130: 93 | M130: 111 | N130: 118 | O130: 12 | P130: 30 | Q130: 39 | R130: 67 | S130: 119 | T130: 27 | U130: 27 | V130: 53 | W130: 57
B131: 57 | C131: 117 | D131: 52 | E131: 63 | F131: 40 | G131: 82 | H131: 24 | I131: 45 | J131: 47 | K131: 66 | L131: 113 | M131: 72 | N131: 104 | O131: 44 | P131: 4 | Q131: 3 | R131: 42 | S131: 96 | T131: 58 | U131: 22 | V131: 12 | W131: 54
B132: 86 | C132: 54 | D132: 21 | E132: 10 | F132: 32 | G132: 76 | H132: 87 | I132: 100 | J132: 111 | K132: 116 | L132: 42 | M132: 15 | N132: 61 | O132: 4 | P132: 15 | Q132: 63 | R132: 53 | S132: 48 | T132: 21 | U132: 53 | V132: 61 | W132: 13
B133: 13 | C133: 57 | D133: 45 | E133: 18 | F133: 15 | G133: 56 | H133: 26 | I133: 55 | J133: 10 | K133: 34 | L133: 20 | M133: 64 | N133: 29 | O133: 32 | P133: 52 | Q133: 47 | R133: 60 | S133: 61 | T133: 38 | U133: 7 | V133: 23 | W133: 44
B134: 100 | C134: 78 | D134: 124 | E134: 98 | F134: 129 | G134: 73 | H134: 34 | I134: 80 | J134: 116 | K134: 120 | L134: 98 | M134: 59 | N134: 109 | O134: 120 | P134: 115 | Q134: 72 | R134: 32 | S134: 89 | T134: 70 | U134: 51 | V134: 44 | W134: 58
B135: 119 | C135: 80 | D135: 94 | E135: 27 | F135: 122 | G135: 55 | H135: 29 | I135: 104 | J135: 79 | K135: 50 | L135: 77 | M135: 60 | N135: 117 | O135: 94 | P135: 98 | Q135: 62 | R135: 115 | S135: 59 | T135: 75 | U135: 56 | V135: 13 | W135: 40
B136: 61 | C136: 63 | D136: 85 | E136: 84 | F136: 111 | G136: 97 | H136: 62 | I136: 82 | J136: 108 | K136: 74 | L136: 21 | M136: 36 | N136: 72 | O136: 128 | P136: 90 | Q136: 79 | R136: 58 | S136: 21 | T136: 20 | U136: 1 | V136: 54 | W136: 98
B137: 54 | C137: 44 | D137: 100 | E137: 53 | F137: 127 | G137: 10 | H137: 33 | I137: 125 | J137: 76 | K137: 60 | L137: 49 | M137: 48 | N137: 79 | O137: 87 | P137: 72 | Q137: 35 | R137: 90 | S137: 98 | T137: 47 | U137: 39 | V137: 57 | W137: 115
B138: 15 | C138: 110 | D138: 84 | E138: 120 | F138: 35 | G138: 47 | H138: 7 | I138: 57 | J138: 94 | K138: 82 | L138: 128 | M138: 31 | N138: 113 | O138: 58 | P138: 91 | Q138: 129 | R138: 1 | S138: 69 | T138: 87 | U138: 72 | V138: 14 | W138: 51
B139: 24 | C139: 81 | D139: 95 | E139: 6 | F139: 63 | G139: 76 | H139: 11 | I139: 45 | J139: 98 | K139: 16 | L139: 129 | M139: 2 | N139: 119 | O139: 41 | P139: 129 | Q139: 33 | R139: 91 | S139: 43 | T139: 113 | U139: 90 | V139: 52 | W139: 56
B140: 91 | C140: 1 | D140: 88 | E140: 121 | F140: 15 | G140: 32 | H140: 4 | I140: 41 | J140: 121 | K140: 94 | L140: 14 | M140: 38 | N140: 118 | O140: 61 | P140: 74 | Q140: 124 | R140: 51 | S140: 30 | T140: 45 | U140: 98 | V140: 21 | W140: 129
B141: 64 | C141: 22 | D141: 75 | E141: 3 | F141: 37 | G141: 112 | H141: 3 | I141: 56 | J141: 125 | K141: 28 | L141: 12 | M141: 9 | N141: 61 | O141: 44 | P141: 79 | Q141: 40 | R141: 74 | S141: 119 | T141: 13 | U141: 115 | V141: 45 | W141: 91
B142: 96 | C142: 77 | D142: 4 | E142: 56 | F142: 34 | G142: 94 | H142: 79 | I142: 103 | J142: 43 | K142: 110 | L142: 36 | M142: 27 | N142: 101 | O142: 122 | P142: 127 | Q142: 94 | R142: 4 | S142: 126 | T142: 126 | U142: 34 | V142: 26 | W142: 7
B143: 63 | C143: 90 | D143: 48 | E143: 71 | F143: 16 | G143: 27 | H143: 74 | I143: 59 | J143: 29 | K143: 19 | L143: 18 | M143: 35 | N143: 94 | O143: 118 | P143: 126 | Q143: 26 | R143: 127 | S143: 14 | T143: 90 | U143: 29 | V143: 16 | W143: 11
B144: 22 | C144: 36 | D144: 1 | E144: 29 | F144: 30 | G144: 100 | H144: 129 | I144: 121 | J144: 39 | K144: 107 | L144: 70 | M144: 37 | N144: 93 | O144: 97 | P144: 119 | Q144: 80 | R144: 7 | S144: 10 | T144: 28 | U144: 62 | V144: 41 | W144: 126
B145: 32 | C145: 33 | D145: 9 | E145: 117 | F145: 57 | G145: 66 | H145: 91 | I145: 70 | J145: 26 | K145: 41 | L145: 87 | M145: 50 | N145: 76 | O145: 109 | P145: 123 | Q145: 37 | R145: 119 | S145: 129 | T145: 26 | U145: 33 | V145: 19 | W145: 127
B146: 2 | C146: 117 | D146: 62 | E146: 47 | F146: 94 | G146: 7 | H146: 72 | I146: 15 | J146: 60 | K146: 115 | L146: 28 | M146: 24 | N146: 99 | O146: 42 | P146: 97 | Q146: 85 | R146: 62 | S146: 93 | T146: 107 | U146: 123 | V146: 53 | W146: 34
B147: 3 | C147: 109 | D147: 32 | E147: 70 | F147: 121 | G147: 118 | H147: 90 | I147: 28 | J147: 64 | K147: 51 | L147: 42 | M147: 46 | N147: 87 | O147: 47 | P147: 68 | Q147: 27 | R147: 97 | S147: 31 | T147: 63 | U147: 119 | V147: 12 | W147: 29
B148: 109 | C148: 31 | D148: 60 | E148: 19 | F148: 68 | G148: 5 | H148: 98 | I148: 10 | J148: 19 | K148: 104 | L148: 97 | M148: 30 | N148: 81 | O148: 39 | P148: 101 | Q148: 127 | R148: 34 | S148: 28 | T148: 15 | U148: 126 | V148: 61 | W148: 68
B149: 124 | C149: 43 | D149: 37 | E149: 94 | F149: 76 | G149: 126 | H149: 115 | I149: 12 | J149: 74 | K149: 55 | L149: 80 | M149: 5 | N149: 127 | O149: 34 | P149: 96 | Q149: 32 | R149: 101 | S149: 67 | T149: 49 | U149: 127 | V149: 23 | W149: 97
B150: 81 | C150: 27 | D150: 10 | E150: 64 | F150: 128 | G150: 89 | H150: 59 | I150: 101 | J150: 107 | K150: 77 | L150: 78 | M150: 96 | N150: 10 | O150: 6 | P150: 125 | Q150: 28 | R150: 30 | S150: 90 | T150: 116 | U150: 27 | V150: 6 | W150: 24
B151: 77 | C151: 57 | D151: 39 | E151: 62 | F151: 80 | G151: 20 | H151: 60 | I151: 88 | J151: 123 | K151: 6 | L151: 93 | M151: 101 | N151: 62 | O151: 11 | P151: 100 | Q151: 96 | R151: 125 | S151: 26 | T151: 100 | U151: 35 | V151: 55 | W151: 46
B152: 41 | C152: 92 | D152: 41 | E152: 69 | F152: 124 | G152: 88 | H152: 36 | I152: 87 | J152: 50 | K152: 119 | L152: 63 | M152: 68 | N152: 8 | O152: 9 | P152: 84 | Q152: 31 | R152: 24 | S152: 5 | T152: 54 | U152: 37 | V152: 28 | W152: 100
B153: 8 | C153: 85 | D153: 31 | E153: 21 | F153: 79 | G153: 45 | H153: 48 | I153: 78 | J153: 67 | K153: 32 | L153: 61 | M153: 97 | N153: 47 | O153: 3 | P153: 106 | Q153: 70 | R153: 84 | S153: 103 | T153: 7 | U153: 50 | V153: 17 | W153: 125
B154: 23 | C154: 3 | D154: 50 | E154: 129 | F154: 59 | G154: 40 | H154: 31 | I154: 11 | J154: 128 | K154: 83 | L154: 126 | M154: 123 | N154: 15 | O154: 106 | P154: 80 | Q154: 14 | R154: 37 | S154: 86 | T154: 86 | U154: 106 | V154: 64 | W154: 27
B155: 7 | C155: 2 | D155: 8 | E155: 35 | F155: 17 | G155: 111 | H155: 2 | I155: 49 | J155: 113 | K155: 73 | L155: 75 | M155: 119 | N155: 23 | O155: 71 | P155: 93 | Q155: 125 | R155: 80 | S155: 17 | T155: 80 | U155: 84 | V155: 49 | W155: 35
B156: 104 | C156: 116 | D156: 51 | E156: 122 | F156: 52 | G156: 8 | H156: 38 | I156: 69 | J156: 105 | K156: 113 | L156: 6 | M156: 126 | N156: 22 | O156: 103 | P156: 95 | Q156: 7 | R156: 27 | S156: 45 | T156: 33 | U156: 100 | V156: 43 | W156: 93
B157: 82 | C157: 120 | D157: 28 | E157: 37 | F157: 38 | G157: 105 | H157: 9 | I157: 32 | J157: 83 | K157: 52 | L157: 17 | M157: 127 | N157: 4 | O157: 85 | P157: 103 | Q157: 128 | R157: 95 | S157: 81 | T157: 58 | U157: 125 | V157: 25 | W157: 80
B158: 71 | C158: 35 | D158: 119 | E158: 34 | F158: 14 | G158: 61 | H158: 103 | I158: 107 | J158: 18 | K158: 106 | L158: 56 | M158: 79 | N158: 44 | O158: 7 | P158: 121 | Q158: 57 | R158: 38 | S158: 128 | T158: 118 | U158: 59 | V158: 42 | W158: 31
B159: 85 | C159: 4 | D159: 128 | E159: 105 | F159: 26 | G159: 50 | H159: 95 | I159: 117 | J159: 49 | K159: 38 | L159: 44 | M159: 74 | N159: 20 | O159: 49 | P159: 92 | Q159: 81 | R159: 121 | S159: 38 | T159: 121 | U159: 60 | V159: 20 | W159: 2
B160: 60 | C160: 66 | D160: 112 | E160: 40 | F160: 23 | G160: 78 | H160: 93 | I160: 75 | J160: 30 | K160: 108 | L160: 91 | M160: 129 | N160: 64 | O160: 50 | P160: 128 | Q160: 39 | R160: 31 | S160: 16 | T160: 18 | U160: 36 | V160: 8 | W160: 92
B161: 38 | C161: 79 | D161: 107 | E161: 76 | F161: 5 | G161: 37 | H161: 80 | I161: 92 | J161: 57 | K161: 8 | L161: 105 | M161: 91 | N161: 28 | O161: 66 | P161: 99 | Q161: 126 | R161: 128 | S161: 97 | T161: 41 | U161: 48 | V161: 22 | W161: 121
B162: 5 | C162: 5 | D162: 109 | E162: 49 | F162: 87 | G162: 1 | H162: 106 | I162: 17 | J162: 11 | K162: 61 | L162: 10 | M162: 72 | N162: 57 | O162: 99 | P162: 82 | Q162: 41 | R162: 36 | S162: 70 | T162: 114 | U162: 99 | V162: 47 | W162: 59
B163: 40 | C163: 48 | D163: 71 | E163: 118 | F163: 91 | G163: 96 | H163: 84 | I163: 6 | J163: 41 | K163: 46 | L163: 20 | M163: 90 | N163: 46 | O163: 129 | P163: 94 | Q163: 74 | R163: 82 | S163: 55 | T163: 108 | U163: 128 | V163: 63 | W163: 60
B164: 121 | C164: 70 | D164: 101 | E164: 2 | F164: 84 | G164: 6 | H164: 100 | I164: 8 | J164: 68 | K164: 112 | L164: 104 | M164: 98 | N164: 24 | O164: 73 | P164: 70 | Q164: 17 | R164: 59 | S164: 51 | T164: 62 | U164: 92 | V164: 10 | W164: 94
B165: 95 | C165: 88 | D165: 76 | E165: 99 | F165: 89 | G165: 86 | H165: 125 | I165: 34 | J165: 6 | K165: 4 | L165: 90 | M165: 115 | N165: 52 | O165: 95 | P165: 71 | Q165: 101 | R165: 70 | S165: 95 | T165: 39 | U165: 121 | V165: 18 | W165: 82
B166: 116 | C166: 74 | D166: 115 | E166: 73 | F166: 110 | G166: 117 | H166: 6 | I166: 14 | J166: 1 | K166: 67 | L166: 96 | M166: 44 | N166: 6 | O166: 84 | P166: 112 | Q166: 117 | R166: 10 | S166: 64 | T166: 52 | U166: 42 | V166: 71 | W166: 47
B167: 117 | C167: 62 | D167: 78 | E167: 5 | F167: 85 | G167: 49 | H167: 55 | I167: 25 | J167: 48 | K167: 68 | L167: 123 | M167: 13 | N167: 33 | O167: 107 | P167: 120 | Q167: 43 | R167: 112 | S167: 52 | T167: 42 | U167: 20 | V167: 70 | W167: 63
B168: 31 | C168: 19 | D168: 127 | E168: 106 | F168: 82 | G168: 121 | H168: 28 | I168: 19 | J168: 33 | K168: 54 | L168: 45 | M168: 54 | N168: 41 | O168: 76 | P168: 67 | Q168: 69 | R168: 47 | S168: 20 | T168: 71 | U168: 8 | V168: 94 | W168: 120
B169: 36 | C169: 25 | D169: 81 | E169: 17 | F169: 77 | G169: 15 | H169: 17 | I169: 44 | J169: 15 | K169: 103 | L169: 16 | M169: 57 | N169: 55 | O169: 92 | P169: 83 | Q169: 52 | R169: 67 | S169: 123 | T169: 77 | U169: 22 | V169: 82 | W169: 112
B170: 29 | C170: 96 | D170: 106 | E170: 86 | F170: 31 | G170: 62 | H170: 64 | I170: 68 | J170: 55 | K170: 2 | L170: 100 | M170: 14 | N170: 40 | O170: 60 | P170: 108 | Q170: 76 | R170: 8 | S170: 108 | T170: 10 | U170: 83 | V170: 99 | W170: 42
B171: 19 | C171: 113 | D171: 111 | E171: 79 | F171: 29 | G171: 77 | H171: 49 | I171: 84 | J171: 42 | K171: 101 | L171: 95 | M171: 52 | N171: 2 | O171: 48 | P171: 122 | Q171: 11 | R171: 108 | S171: 39 | T171: 31 | U171: 67 | V171: 128 | W171: 20
B172: 78 | C172: 55 | D172: 118 | E172: 110 | F172: 60 | G172: 29 | H172: 43 | I172: 76 | J172: 34 | K172: 12 | L172: 51 | M172: 21 | N172: 59 | O172: 20 | P172: 110 | Q172: 88 | R172: 42 | S172: 8 | T172: 125 | U172: 120 | V172: 92 | W172: 122
B173: 87 | C173: 18 | D173: 97 | E173: 48 | F173: 27 | G173: 128 | H173: 25 | I173: 79 | J173: 46 | K173: 100 | L173: 68 | M173: 45 | N173: 30 | O173: 18 | P173: 88 | Q173: 21 | R173: 110 | S173: 111 | T173: 92 | U173: 112 | V173: 121 | W173: 108
B174: 112 | C174: 121 | D174: 47 | E174: 14 | F174: 28 | G174: 72 | H174: 88 | I174: 2 | J174: 120 | K174: 31 | L174: 9 | M174: 26 | N174: 9 | O174: 105 | P174: 105 | Q174: 110 | R174: 43 | S174: 88 | T174: 73 | U174: 6 | V174: 103 | W174: 64
B175: 114 | C175: 93 | D175: 34 | E175: 92 | F175: 11 | G175: 3 | H175: 110 | I175: 21 | J175: 110 | K175: 93 | L175: 27 | M175: 16 | N175: 14 | O175: 67 | P175: 87 | Q175: 24 | R175: 105 | S175: 68 | T175: 37 | U175: 55 | V175: 95 | W175: 49
B176: 47 | C176: 24 | D176: 58 | E176: 15 | F176: 69 | G176: 116 | H176: 122 | I176: 36 | J176: 127 | K176: 45 | L176: 101 | M176: 41 | N176: 18 | O176: 125 | P176: 81 | Q176: 107 | R176: 64 | S176: 36 | T176: 111 | U176: 28 | V176: 93 | W176: 87
B177: 12 | C177: 32 | D177: 25 | E177: 119 | F177: 64 | G177: 31 | H177: 108 | I177: 1 | J177: 102 | K177: 86 | L177: 107 | M177: 19 | N177: 32 | O177: 77 | P177: 66 | Q177: 38 | R177: 81 | S177: 96 | T177: 106 | U177: 17 | V177: 80 | W177: 105
B178: 28 | C178: 115 | D178: 61 | E178: 72 | F178: 108 | G178: 38 | H178: 83 | I178: 77 | J178: 69 | K178: 43 | L178: 5 | M178: 53 | N178: 26 | O178: 17 | P178: 113 | Q178: 118 | R178: 28 | S178: 73 | T178: 6 | U178: 66 | V178: 106 | W178: 6
B179: 46 | C179: 72 | D179: 63 | E179: 87 | F179: 117 | G179: 67 | H179: 67 | I179: 90 | J179: 99 | K179: 109 | L179: 22 | M179: 12 | N179: 50 | O179: 37 | P179: 102 | Q179: 55 | R179: 113 | S179: 3 | T179: 25 | U179: 81 | V179: 84 | W179: 55
B180: 80 | C180: 11 | D180: 5 | E180: 22 | F180: 123 | G180: 23 | H180: 120 | I180: 97 | J180: 59 | K180: 3 | L180: 59 | M180: 61 | N180: 34 | O180: 26 | P180: 75 | Q180: 108 | R180: 6 | S180: 18 | T180: 94 | U180: 87 | V180: 100 | W180: 102
B181: 79 | C181: 76 | D181: 40 | E181: 126 | F181: 109 | G181: 91 | H181: 112 | I181: 99 | J181: 86 | K181: 95 | L181: 83 | M181: 23 | N181: 39 | O181: 19 | P181: 124 | Q181: 59 | R181: 75 | S181: 101 | T181: 101 | U181: 105 | V181: 125 | W181: 113
B182: 126 | C182: 30 | D182: 14 | E182: 123 | F182: 90 | G182: 113 | H182: 44 | I182: 7 | J182: 8 | K182: 33 | L182: 57 | M182: 124 | N182: 125 | O182: 14 | P182: 107 | Q182: 53 | R182: 61 | S182: 124 | T182: 27 | U182: 26 | V182: 96 | W182: 53
B183: 74 | C183: 7 | D183: 38 | E183: 52 | F183: 106 | G183: 21 | H183: 13 | I183: 4 | J183: 35 | K183: 105 | L183: 76 | M183: 75 | N183: 95 | O183: 29 | P183: 69 | Q183: 122 | R183: 107 | S183: 53 | T183: 64 | U183: 16 | V183: 101 | W183: 12
B184: 27 | C184: 83 | D184: 73 | E184: 67 | F184: 75 | G184: 114 | H184: 54 | I184: 20 | J184: 24 | K184: 39 | L184: 3 | M184: 102 | N184: 82 | O184: 55 | P184: 118 | Q184: 15 | R184: 53 | S184: 24 | T184: 95 | U184: 41 | V184: 68 | W184: 69
B185: 10 | C185: 124 | D185: 64 | E185: 50 | F185: 112 | G185: 46 | H185: 57 | I185: 22 | J185: 40 | K185: 71 | L185: 41 | M185: 113 | N185: 111 | O185: 56 | P185: 77 | Q185: 100 | R185: 118 | S185: 72 | T185: 98 | U185: 19 | V185: 97 | W185: 107
B186: 44 | C186: 23 | D186: 16 | E186: 89 | F186: 72 | G186: 11 | H186: 14 | I186: 100 | J186: 45 | K186: 13 | L186: 84 | M186: 66 | N186: 74 | O186: 108 | P186: 111 | Q186: 48 | R186: 41 | S186: 107 | T186: 2 | U186: 77 | V186: 123 | W186: 26
B187: 58 | C187: 39 | D187: 13 | E187: 33 | F187: 42 | G187: 70 | H187: 52 | I187: 64 | J187: 13 | K187: 125 | L187: 119 | M187: 81 | N187: 85 | O187: 98 | P187: 89 | Q187: 67 | R187: 111 | S187: 13 | T187: 1 | U187: 118 | V187: 119 | W187: 16
B188: 129 | C188: 84 | D188: 20 | E188: 91 | F188: 25 | G188: 28 | H188: 21 | I188: 106 | J188: 53 | K188: 9 | L188: 48 | M188: 87 | N188: 105 | O188: 79 | P188: 114 | Q188: 25 | R188: 26 | S188: 9 | T188: 109 | U188: 69 | V188: 126 | W188: 89
B189: 68 | C189: 59 | D189: 43 | E189: 28 | F189: 49 | G189: 74 | H189: 45 | I189: 114 | J189: 52 | K189: 129 | L189: 13 | M189: 105 | N189: 92 | O189: 102 | P189: 104 | Q189: 86 | R189: 114 | S189: 80 | T189: 122 | U189: 107 | V189: 127 | W189: 111
B190: 75 | C190: 28 | D190: 113 | E190: 18 | F190: 33 | G190: 108 | H190: 104 | I190: 18 | J190: 126 | K190: 49 | L190: 8 | M190: 88 | N190: 123 | O190: 13 | P190: 85 | Q190: 16 | R190: 21 | S190: 84 | T190: 46 | U190: 44 | V190: 79 | W190: 14
B191: 73 | C191: 8 | D191: 104 | E191: 104 | F191: 47 | G191: 35 | H191: 114 | I191: 35 | J191: 118 | K191: 72 | L191: 38 | M191: 110 | N191: 103 | O191: 16 | P191: 109 | Q191: 84 | R191: 85 | S191: 25 | T191: 3 | U191: 13 | V191: 74 | W191: 52
B192: 25 | C192: 114 | D192: 86 | E192: 23 | F192: 10 | G192: 71 | H192: 89 | I192: 37 | J192: 93 | K192: 42 | L192: 106 | M192: 122 | N192: 129 | O192: 68 | P192: 78 | Q192: 18 | R192: 14 | S192: 47 | T192: 74 | U192: 54 | V192: 129 | W192: 109
B193: 33 | C193: 89 | D193: 74 | E193: 88 | F193: 56 | G193: 51 | H193: 111 | I193: 58 | J193: 114 | K193: 123 | L193: 99 | M193: 108 | N193: 114 | O193: 40 | P193: 116 | Q193: 121 | R193: 78 | S193: 118 | T193: 79 | U193: 57 | V193: 91 | W193: 85
B194: 37 | C194: 12 | D194: 103 | E194: 16 | F194: 118 | G194: 48 | H194: 77 | I194: 91 | J194: 103 | K194: 40 | L194: 19 | M194: 83 | N194: 63 | O194: 100 | P194: 73 | Q194: 66 | R194: 54 | S194: 115 | T194: 11 | U194: 116 | V194: 72 | W194: 44
B195: 17 | C195: 26 | D195: 108 | E195: 85 | F195: 86 | G195: 106 | H195: 118 | I195: 127 | J195: 72 | K195: 64 | L195: 58 | M195: 67 | N195: 88 | O195: 126 | P195: 76 | Q195: 83 | R195: 73 | S195: 48 | T195: 34 | U195: 78 | V195: 90 | W195: 13
B196: 88 | C196: 69 | D196: 77 | E196: 30 | F196: 126 | G196: 43 | H196: 69 | I196: 67 | J196: 109 | K196: 14 | L196: 115 | M196: 120 | N196: 77 | O196: 115 | P196: 117 | Q196: 19 | R196: 44 | S196: 54 | T196: 82 | U196: 109 | V196: 98 | W196: 76
B197: 110 | C197: 101 | D197: 123 | E197: 75 | F197: 98 | G197: 104 | H197: 107 | I197: 83 | J197: 92 | K197: 96 | L197: 66 | M197: 112 | N197: 70 | O197: 78 | P197: 86 | Q197: 120 | R197: 117 | S197: 74 | T197: 69 | U197: 85 | V197: 115 | W197: 73
B198: 30 | C198: 52 | D198: 6 | E198: 32 | F198: 1 | G198: 57 | H198: 96 | I198: 50 | J198: 14 | K198: 10 | L198: 32 | M198: 71 | N198: 21 | O198: 10 | P198: 15 | Q198: 58 | R198: 98 | S198: 41 | T198: 60 | U198: 79 | V198: 86 | W198: 72
B199: 11 | C199: 50 | D199: 36 | E199: 103 | F199: 8 | G199: 75 | H199: 101 | I199: 26 | J199: 51 | K199: 80 | L199: 53 | M199: 70 | N199: 13 | O199: 36 | P199: 32 | Q199: 68 | R199: 15 | S199: 71 | T199: 55 | U199: 74 | V199: 117 | W199: 90
B200: 69 | C200: 67 | D200: 45 | E200: 46 | F200: 19 | G200: 33 | H200: 68 | I200: 48 | J200: 22 | K200: 56 | L200: 109 | M200: 94 | N200: 58 | O200: 2 | P200: 40 | Q200: 51 | R200: 72 | S200: 109 | T200: 110 | U200: 129 | V200: 76 | W200: 32
... 1213 more rows

Sheet NOLH for up to 22 factors
A2: low level | B2: 1 | C2: 1 | D2: 1 | E2: 1 | F2: 1 | G2: 1 | H2: 1 | I2: 1 | J2: 1 | K2: 1 | L2: 1 | M2: 1 | N2: 1 | O2: 1 | P2: 1 | Q2: 1 | R2: 1 | S2: 1 | T2: 1 | U2: 1 | V2: 1 | W2: 1
A3: high level | B3: 129 | C3: 129 | D3: 129 | E3: 129 | F3: 129 | G3: 129 | H3: 129 | I3: 129 | J3: 129 | K3: 129 | L3: 129 | M3: 129 | N3: 129 | O3: 129 | P3: 129 | Q3: 129 | R3: 129 | S3: 129 | T3: 129 | U3: 129 | V3: 129 | W3: 129
A4: decimals | B4: 0 | C4: 0 | D4: 0 | E4: 0 | F4: 0 | G4: 0 | H4: 0 | I4: 0 | J4: 0 | K4: 0 | L4: 0 | M4: 0 | N4: 0 | O4: 0 | P4: 0 | Q4: 0 | R4: 0 | S4: 0 | T4: 0 | U4: 0 | V4: 0 | W4: 0
A5: factor name
B6: =ROUND(B$2+ (('coded NOLH for 17-22 factors'!B5-1)*(B$3-B$2) )/128, B$4 ) -> 32 | C6: =ROUND(C$2+ (('coded NOLH for 17-22 factors'!C5-1)*(C$3-C$2) )/128, C$4 ) -> 58 | D6: =ROUND(D$2+ (('coded NOLH for 17-22 factors'!D5-1)*(D$3-D$2) )/128, D$4 ) -> 51 | E6: =ROUND(E$2+ (('coded NOLH for 17-22 factors'!E5-1)*(E$3-E$2) )/128, E$4 ) -> 59 | F6: =ROUND(F$2+ (('coded NOLH for 17-22 factors'!F5-1)*(F$3-F$2) )/128, F$4 ) -> 44 | G6: =ROUND(G$2+ (('coded NOLH for 17-22 factors'!G5-1)*(G$3-G$2) )/128, G$4 ) -> 89 | H6: =ROUND(H$2+ (('coded NOLH for 17-22 factors'!H5-1)*(H$3-H$2) )/128, H$4 ) -> 73 | I6: =ROUND(I$2+ (('coded NOLH for 17-22 factors'!I5-1)*(I$3-I$2) )/128, I$4 ) -> 98 | J6: =ROUND(J$2+ (('coded NOLH for 17-22 factors'!J5-1)*(J$3-J$2) )/128, J$4 ) -> 72 | K6: =ROUND(K$2+ (('coded NOLH for 17-22 factors'!K5-1)*(K$3-K$2) )/128, K$4 ) -> 120 | L6: =ROUND(L$2+ (('coded NOLH for 17-22 factors'!L5-1)*(L$3-L$2) )/128, L$4 ) -> 100 | M6: =ROUND(M$2+ (('coded NOLH for 17-22 factors'!M5-1)*(M$3-M$2) )/128, M$4 ) -> 98 | N6: =ROUND(N$2+ (('coded NOLH for 17-22 factors'!N5-1)*(N$3-N$2) )/128, N$4 ) -> 78 | O6: =ROUND(O$2+ (('coded NOLH for 17-22 factors'!O5-1)*(O$3-O$2) )/128, O$4 ) -> 129 | P6: =ROUND(P$2+ (('coded NOLH for 17-22 factors'!P5-1)*(P$3-P$2) )/128, P$4 ) -> 120 | Q6: =ROUND(Q$2+ (('coded NOLH for 17-22 factors'!Q5-1)*(Q$3-Q$2) )/128, Q$4 ) -> 80 | R6: =ROUND(R$2+ (('coded NOLH for 17-22 factors'!R5-1)*(R$3-R$2) )/128, R$4 ) -> 109 | S6: =ROUND(S$2+ (('coded NOLH for 17-22 factors'!S5-1)*(S$3-S$2) )/128, S$4 ) -> 70 | T6: =ROUND(T$2+ (('coded NOLH for 17-22 factors'!T5-1)*(T$3-T$2) )/128, T$4 ) -> 116 | U6: =ROUND(U$2+ (('coded NOLH for 17-22 factors'!U5-1)*(U$3-U$2) )/128, U$4 ) -> 124 | V6: =ROUND(V$2+ (('coded NOLH for 17-22 factors'!V5-1)*(V$3-V$2) )/128, V$4 ) -> 34 | W6: =ROUND(W$2+ (('coded NOLH for 17-22 factors'!W5-1)*(W$3-W$2) )/128, W$4 ) -> 115
B7: =ROUND(B$2+ (('coded NOLH for 17-22 factors'!B6-1)*(B$3-B$2) )/128, B$4 ) -> 115 | C7: =ROUND(C$2+ (('coded NOLH for 17-22 factors'!C6-1)*(C$3-C$2) )/128, C$4 ) -> 40 | D7: =ROUND(D$2+ (('coded NOLH for 17-22 factors'!D6-1)*(D$3-D$2) )/128, D$4 ) -> 56 | E7: =ROUND(E$2+ (('coded NOLH for 17-22 factors'!E6-1)*(E$3-E$2) )/128, E$4 ) -> 60 | F7: =ROUND(F$2+ (('coded NOLH for 17-22 factors'!F6-1)*(F$3-F$2) )/128, F$4 ) -> 13 | G7: =ROUND(G$2+ (('coded NOLH for 17-22 factors'!G6-1)*(G$3-G$2) )/128, G$4 ) -> 59 | H7: =ROUND(H$2+ (('coded NOLH for 17-22 factors'!H6-1)*(H$3-H$2) )/128, H$4 ) -> 55 | I7: =ROUND(I$2+ (('coded NOLH for 17-22 factors'!I6-1)*(I$3-I$2) )/128, I$4 ) -> 27 | J7: =ROUND(J$2+ (('coded NOLH for 17-22 factors'!J6-1)*(J$3-J$2) )/128, J$4 ) -> 62 | K7: =ROUND(K$2+ (('coded NOLH for 17-22 factors'!K6-1)*(K$3-K$2) )/128, K$4 ) -> 50 | L7: =ROUND(L$2+ (('coded NOLH for 17-22 factors'!L6-1)*(L$3-L$2) )/128, L$4 ) -> 119 | M7: =ROUND(M$2+ (('coded NOLH for 17-22 factors'!M6-1)*(M$3-M$2) )/128, M$4 ) -> 77 | N7: =ROUND(N$2+ (('coded NOLH for 17-22 factors'!N6-1)*(N$3-N$2) )/128, N$4 ) -> 80 | O7: =ROUND(O$2+ (('coded NOLH for 17-22 factors'!O6-1)*(O$3-O$2) )/128, O$4 ) -> 122 | P7: =ROUND(P$2+ (('coded NOLH for 17-22 factors'!P6-1)*(P$3-P$2) )/128, P$4 ) -> 94 | Q7: =ROUND(Q$2+ (('coded NOLH for 17-22 factors'!Q6-1)*(Q$3-Q$2) )/128, Q$4 ) -> 104 | R7: =ROUND(R$2+ (('coded NOLH for 17-22 factors'!R6-1)*(R$3-R$2) )/128, R$4 ) -> 117 | S7: =ROUND(S$2+ (('coded NOLH for 17-22 factors'!S6-1)*(S$3-S$2) )/128, S$4 ) -> 75 | T7: =ROUND(T$2+ (('coded NOLH for 17-22 factors'!T6-1)*(T$3-T$2) )/128, T$4 ) -> 79 | U7: =ROUND(U$2+ (('coded NOLH for 17-22 factors'!U6-1)*(U$3-U$2) )/128, U$4 ) -> 94 | V7: =ROUND(V$2+ (('coded NOLH for 17-22 factors'!V6-1)*(V$3-V$2) )/128, V$4 ) -> 29 | W7: =ROUND(W$2+ (('coded NOLH for 17-22 factors'!W6-1)*(W$3-W$2) )/128, W$4 ) -> 98
B8: =ROUND(B$2+ (('coded NOLH for 17-22 factors'!B7-1)*(B$3-B$2) )/128, B$4 ) -> 58 | C8: =ROUND(C$2+ (('coded NOLH for 17-22 factors'!C7-1)*(C$3-C$2) )/128, C$4 ) -> 98 | D8: =ROUND(D$2+ (('coded NOLH for 17-22 factors'!D7-1)*(D$3-D$2) )/128, D$4 ) -> 1 | E8: =ROUND(E$2+ (('coded NOLH for 17-22 factors'!E7-1)*(E$3-E$2) )/128, E$4 ) -> 36 | F8: =ROUND(F$2+ (('coded NOLH for 17-22 factors'!F7-1)*(F$3-F$2) )/128, F$4 ) -> 54 | G8: =ROUND(G$2+ (('coded NOLH for 17-22 factors'!G7-1)*(G$3-G$2) )/128, G$4 ) -> 21 | H8: =ROUND(H$2+ (('coded NOLH for 17-22 factors'!H7-1)*(H$3-H$2) )/128, H$4 ) -> 97 | I8: =ROUND(I$2+ (('coded NOLH for 17-22 factors'!I7-1)*(I$3-I$2) )/128, I$4 ) -> 84 | J8: =ROUND(J$2+ (('coded NOLH for 17-22 factors'!J7-1)*(J$3-J$2) )/128, J$4 ) -> 79 | K8: =ROUND(K$2+ (('coded NOLH for 17-22 factors'!K7-1)*(K$3-K$2) )/128, K$4 ) -> 74 | L8: =ROUND(L$2+ (('coded NOLH for 17-22 factors'!L7-1)*(L$3-L$2) )/128, L$4 ) -> 61 | M8: =ROUND(M$2+ (('coded NOLH for 17-22 factors'!M7-1)*(M$3-M$2) )/128, M$4 ) -> 21 | N8: =ROUND(N$2+ (('coded NOLH for 17-22 factors'!N7-1)*(N$3-N$2) )/128, N$4 ) -> 63 | O8: =ROUND(O$2+ (('coded NOLH for 17-22 factors'!O7-1)*(O$3-O$2) )/128, O$4 ) -> 111 | P8: =ROUND(P$2+ (('coded NOLH for 17-22 factors'!P7-1)*(P$3-P$2) )/128, P$4 ) -> 128 | Q8: =ROUND(Q$2+ (('coded NOLH for 17-22 factors'!Q7-1)*(Q$3-Q$2) )/128, Q$4 ) -> 82 | R8: =ROUND(R$2+ (('coded NOLH for 17-22 factors'!R7-1)*(R$3-R$2) )/128, R$4 ) -> 72 | S8: =ROUND(S$2+ (('coded NOLH for 17-22 factors'!S7-1)*(S$3-S$2) )/128, S$4 ) -> 20 | T8: =ROUND(T$2+ (('coded NOLH for 17-22 factors'!T7-1)*(T$3-T$2) )/128, T$4 ) -> 108 | U8: =ROUND(U$2+ (('coded NOLH for 17-22 factors'!U7-1)*(U$3-U$2) )/128, U$4 ) -> 85 | V8: =ROUND(V$2+ (('coded NOLH for 17-22 factors'!V7-1)*(V$3-V$2) )/128, V$4 ) -> 62 | W8: =ROUND(W$2+ (('coded NOLH for 17-22 factors'!W7-1)*(W$3-W$2) )/128, W$4 ) -> 90
B9: =ROUND(B$2+ (('coded NOLH for 17-22 factors'!B8-1)*(B$3-B$2) )/128, B$4 ) -> 90 | C9: =ROUND(C$2+ (('coded NOLH for 17-22 factors'!C8-1)*(C$3-C$2) )/128, C$4 ) -> 115 | D9: =ROUND(D$2+ (('coded NOLH for 17-22 factors'!D8-1)*(D$3-D$2) )/128, D$4 ) -> 39 | E9: =ROUND(E$2+ (('coded NOLH for 17-22 factors'!E8-1)*(E$3-E$2) )/128, E$4 ) -> 48 | F9: =ROUND(F$2+ (('coded NOLH for 17-22 factors'!F8-1)*(F$3-F$2) )/128, F$4 ) -> 57 | G9: =ROUND(G$2+ (('coded NOLH for 17-22 factors'!G8-1)*(G$3-G$2) )/128, G$4 ) -> 98 | H9: =ROUND(H$2+ (('coded NOLH for 17-22 factors'!H8-1)*(H$3-H$2) )/128, H$4 ) -> 10 | I9: =ROUND(I$2+ (('coded NOLH for 17-22 factors'!I8-1)*(I$3-I$2) )/128, I$4 ) -> 53 | J9: =ROUND(J$2+ (('coded NOLH for 17-22 factors'!J8-1)*(J$3-J$2) )/128, J$4 ) -> 35 | K9: =ROUND(K$2+ (('coded NOLH for 17-22 factors'!K8-1)*(K$3-K$2) )/128, K$4 ) -> 60 | L9: =ROUND(L$2+ (('coded NOLH for 17-22 factors'!L8-1)*(L$3-L$2) )/128, L$4 ) -> 54 | M9: =ROUND(M$2+ (('coded NOLH for 17-22 factors'!M8-1)*(M$3-M$2) )/128, M$4 ) -> 49 | N9: =ROUND(N$2+ (('coded NOLH for 17-22 factors'!N8-1)*(N$3-N$2) )/128, N$4 ) -> 44 | O9: =ROUND(O$2+ (('coded NOLH for 17-22 factors'!O8-1)*(O$3-O$2) )/128, O$4 ) -> 127 | P9: =ROUND(P$2+ (('coded NOLH for 17-22 factors'!P8-1)*(P$3-P$2) )/128, P$4 ) -> 87 | Q9: =ROUND(Q$2+ (('coded NOLH for 17-22 factors'!Q8-1)*(Q$3-Q$2) )/128, Q$4 ) -> 125 | R9: =ROUND(R$2+ (('coded NOLH for 17-22 factors'!R8-1)*(R$3-R$2) )/128, R$4 ) -> 79 | S9: =ROUND(S$2+ (('coded NOLH for 17-22 factors'!S8-1)*(S$3-S$2) )/128, S$4 ) -> 47 | T9: =ROUND(T$2+ (('coded NOLH for 17-22 factors'!T8-1)*(T$3-T$2) )/128, T$4 ) -> 76 | U9: =ROUND(U$2+ (('coded NOLH for 17-22 factors'!U8-1)*(U$3-U$2) )/128, U$4 ) -> 100 | V9: =ROUND(V$2+ (('coded NOLH for 17-22 factors'!V8-1)*(V$3-V$2) )/128, V$4 ) -> 33 | W9: =ROUND(W$2+ (('coded NOLH for 17-22 factors'!W8-1)*(W$3-W$2) )/128, W$4 ) -> 72
B10: =ROUND(B$2+ (('coded NOLH for 17-22 factors'!B9-1)*(B$3-B$2) )/128, B$4 ) -> 1 | C10: =ROUND(C$2+ (('coded NOLH for 17-22 factors'!C9-1)*(C$3-C$2) )/128, C$4 ) -> 51 | D10: =ROUND(D$2+ (('coded NOLH for 17-22 factors'!D9-1)*(D$3-D$2) )/128, D$4 ) -> 72 | E10: =ROUND(E$2+ (('coded NOLH for 17-22 factors'!E9-1)*(E$3-E$2) )/128, E$4 ) -> 31 | F10: =ROUND(F$2+ (('coded NOLH for 17-22 factors'!F9-1)*(F$3-F$2) )/128, F$4 ) -> 14 | G10: =ROUND(G$2+ (('coded NOLH for 17-22 factors'!G9-1)*(G$3-G$2) )/128, G$4 ) -> 69 | H10: =ROUND(H$2+ (('coded NOLH for 17-22 factors'!H9-1)*(H$3-H$2) )/128, H$4 ) -> 47 | I10: =ROUND(I$2+ (('coded NOLH for 17-22 factors'!I9-1)*(I$3-I$2) )/128, I$4 ) -> 120 | J10: =ROUND(J$2+ (('coded NOLH for 17-22 factors'!J9-1)*(J$3-J$2) )/128, J$4 ) -> 129 | K10: =ROUND(K$2+ (('coded NOLH for 17-22 factors'!K9-1)*(K$3-K$2) )/128, K$4 ) -> 82 | L10: =ROUND(L$2+ (('coded NOLH for 17-22 factors'!L9-1)*(L$3-L$2) )/128, L$4 ) -> 15 | M10: =ROUND(M$2+ (('coded NOLH for 17-22 factors'!M9-1)*(M$3-M$2) )/128, M$4 ) -> 128 | N10: =ROUND(N$2+ (('coded NOLH for 17-22 factors'!N9-1)*(N$3-N$2) )/128, N$4 ) -> 110 | O10: =ROUND(O$2+ (('coded NOLH for 17-22 factors'!O9-1)*(O$3-O$2) )/128, O$4 ) -> 35 | P10: =ROUND(P$2+ (('coded NOLH for 17-22 factors'!P9-1)*(P$3-P$2) )/128, P$4 ) -> 58 | Q10: =ROUND(Q$2+ (('coded NOLH for 17-22 factors'!Q9-1)*(Q$3-Q$2) )/128, Q$4 ) -> 57 | R10: =ROUND(R$2+ (('coded NOLH for 17-22 factors'!R9-1)*(R$3-R$2) )/128, R$4 ) -> 113 | S10: =ROUND(S$2+ (('coded NOLH for 17-22 factors'!S9-1)*(S$3-S$2) )/128, S$4 ) -> 87 | T10: =ROUND(T$2+ (('coded NOLH for 17-22 factors'!T9-1)*(T$3-T$2) )/128, T$4 ) -> 94 | U10: =ROUND(U$2+ (('coded NOLH for 17-22 factors'!U9-1)*(U$3-U$2) )/128, U$4 ) -> 84 | V10: =ROUND(V$2+ (('coded NOLH for 17-22 factors'!V9-1)*(V$3-V$2) )/128, V$4 ) -> 7 | W10: =ROUND(W$2+ (('coded NOLH for 17-22 factors'!W9-1)*(W$3-W$2) )/128, W$4 ) -> 91
B11: =ROUND(B$2+ (('coded NOLH for 17-22 factors'!B10-1)*(B$3-B$2) )/128, B$4 ) -> 91 | C11: =ROUND(C$2+ (('coded NOLH for 17-22 factors'!C10-1)*(C$3-C$2) )/128, C$4 ) -> 56 | D11: =ROUND(D$2+ (('coded NOLH for 17-22 factors'!D10-1)*(D$3-D$2) )/128, D$4 ) -> 90 | E11: =ROUND(E$2+ (('coded NOLH for 17-22 factors'!E10-1)*(E$3-E$2) )/128, E$4 ) -> 2 | F11: =ROUND(F$2+ (('coded NOLH for 17-22 factors'!F10-1)*(F$3-F$2) )/128, F$4 ) -> 52 | G11: =ROUND(G$2+ (('coded NOLH for 17-22 factors'!G10-1)*(G$3-G$2) )/128, G$4 ) -> 43 | H11: =ROUND(H$2+ (('coded NOLH for 17-22 factors'!H10-1)*(H$3-H$2) )/128, H$4 ) -> 76 | I11: =ROUND(I$2+ (('coded NOLH for 17-22 factors'!I10-1)*(I$3-I$2) )/128, I$4 ) -> 6 | J11: =ROUND(J$2+ (('coded NOLH for 17-22 factors'!J10-1)*(J$3-J$2) )/128, J$4 ) -> 33 | K11: =ROUND(K$2+ (('coded NOLH for 17-22 factors'!K10-1)*(K$3-K$2) )/128, K$4 ) -> 16 | L11: =ROUND(L$2+ (('coded NOLH for 17-22 factors'!L10-1)*(L$3-L$2) )/128, L$4 ) -> 24 | M11: =ROUND(M$2+ (('coded NOLH for 17-22 factors'!M10-1)*(M$3-M$2) )/128, M$4 ) -> 129 | N11: =ROUND(N$2+ (('coded NOLH for 17-22 factors'!N10-1)*(N$3-N$2) )/128, N$4 ) -> 81 | O11: =ROUND(O$2+ (('coded NOLH for 17-22 factors'!O10-1)*(O$3-O$2) )/128, O$4 ) -> 63 | P11: =ROUND(P$2+ (('coded NOLH for 17-22 factors'!P10-1)*(P$3-P$2) )/128, P$4 ) -> 41 | Q11: =ROUND(Q$2+ (('coded NOLH for 17-22 factors'!Q10-1)*(Q$3-Q$2) )/128, Q$4 ) -> 45 | R11: =ROUND(R$2+ (('coded NOLH for 17-22 factors'!R10-1)*(R$3-R$2) )/128, R$4 ) -> 119 | S11: =ROUND(S$2+ (('coded NOLH for 17-22 factors'!S10-1)*(S$3-S$2) )/128, S$4 ) -> 113 | T11: =ROUND(T$2+ (('coded NOLH for 17-22 factors'!T10-1)*(T$3-T$2) )/128, T$4 ) -> 98 | U11: =ROUND(U$2+ (('coded NOLH for 17-22 factors'!U10-1)*(U$3-U$2) )/128, U$4 ) -> 95 | V11: =ROUND(V$2+ (('coded NOLH for 17-22 factors'!V10-1)*(V$3-V$2) )/128, V$4 ) -> 11 | W11: =ROUND(W$2+ (('coded NOLH for 17-22 factors'!W10-1)*(W$3-W$2) )/128, W$4 ) -> 129
B12: =ROUND(B$2+ (('coded NOLH for 17-22 factors'!B11-1)*(B$3-B$2) )/128, B$4 ) -> 51 | C12: =ROUND(C$2+ (('coded NOLH for 17-22 factors'!C11-1)*(C$3-C$2) )/128, C$4 ) -> 129 | D12: =ROUND(D$2+ (('coded NOLH for 17-22 factors'!D11-1)*(D$3-D$2) )/128, D$4 ) -> 98 | E12: =ROUND(E$2+ (('coded NOLH for 17-22 factors'!E11-1)*(E$3-E$2) )/128, E$4 ) -> 38 | F12: =ROUND(F$2+ (('coded NOLH for 17-22 factors'!F11-1)*(F$3-F$2) )/128, F$4 ) -> 21 | G12: =ROUND(G$2+ (('coded NOLH for 17-22 factors'!G11-1)*(G$3-G$2) )/128, G$4 ) -> 30 | H12: =ROUND(H$2+ (('coded NOLH for 17-22 factors'!H11-1)*(H$3-H$2) )/128, H$4 ) -> 32 | I12: =ROUND(I$2+ (('coded NOLH for 17-22 factors'!I11-1)*(I$3-I$2) )/128, I$4 ) -> 121 | J12: =ROUND(J$2+ (('coded NOLH for 17-22 factors'!J11-1)*(J$3-J$2) )/128, J$4 ) -> 124 | K12: =ROUND(K$2+ (('coded NOLH for 17-22 factors'!K11-1)*(K$3-K$2) )/128, K$4 ) -> 94 | L12: =ROUND(L$2+ (('coded NOLH for 17-22 factors'!L11-1)*(L$3-L$2) )/128, L$4 ) -> 91 | M12: =ROUND(M$2+ (('coded NOLH for 17-22 factors'!M11-1)*(M$3-M$2) )/128, M$4 ) -> 14 | N12: =ROUND(N$2+ (('coded NOLH for 17-22 factors'!N11-1)*(N$3-N$2) )/128, N$4 ) -> 1 | O12: =ROUND(O$2+ (('coded NOLH for 17-22 factors'!O11-1)*(O$3-O$2) )/128, O$4 ) -> 15 | P12: =ROUND(P$2+ (('coded NOLH for 17-22 factors'!P11-1)*(P$3-P$2) )/128, P$4 ) -> 61 | Q12: =ROUND(Q$2+ (('coded NOLH for 17-22 factors'!Q11-1)*(Q$3-Q$2) )/128, Q$4 ) -> 41 | R12: =ROUND(R$2+ (('coded NOLH for 17-22 factors'!R11-1)*(R$3-R$2) )/128, R$4 ) -> 118 | S12: =ROUND(S$2+ (('coded NOLH for 17-22 factors'!S11-1)*(S$3-S$2) )/128, S$4 ) -> 45 | T12: =ROUND(T$2+ (('coded NOLH for 17-22 factors'!T11-1)*(T$3-T$2) )/128, T$4 ) -> 121 | U12: =ROUND(U$2+ (('coded NOLH for 17-22 factors'!U11-1)*(U$3-U$2) )/128, U$4 ) -> 88 | V12: =ROUND(V$2+ (('coded NOLH for 17-22 factors'!V11-1)*(V$3-V$2) )/128, V$4 ) -> 4 | W12: =ROUND(W$2+ (('coded NOLH for 17-22 factors'!W11-1)*(W$3-W$2) )/128, W$4 ) -> 74
B13: =ROUND(B$2+ (('coded NOLH for 17-22 factors'!B12-1)*(B$3-B$2) )/128, B$4 ) -> 74 | C13: =ROUND(C$2+ (('coded NOLH for 17-22 factors'!C12-1)*(C$3-C$2) )/128, C$4 ) -> 91 | D13: =ROUND(D$2+ (('coded NOLH for 17-22 factors'!D12-1)*(D$3-D$2) )/128, D$4 ) -> 115 | E13: =ROUND(E$2+ (('coded NOLH for 17-22 factors'!E12-1)*(E$3-E$2) )/128, E$4 ) -> 9 | F13: =ROUND(F$2+ (('coded NOLH for 17-22 factors'!F12-1)*(F$3-F$2) )/128, F$4 ) -> 45 | G13: =ROUND(G$2+ (('coded NOLH for 17-22 factors'!G12-1)*(G$3-G$2) )/128, G$4 ) -> 119 | H13: =ROUND(H$2+ (('coded NOLH for 17-22 factors'!H12-1)*(H$3-H$2) )/128, H$4 ) -> 112 | I13: =ROUND(I$2+ (('coded NOLH for 17-22 factors'!I12-1)*(I$3-I$2) )/128, I$4 ) -> 3 | J13: =ROUND(J$2+ (('coded NOLH for 17-22 factors'!J12-1)*(J$3-J$2) )/128, J$4 ) -> 40 | K13: =ROUND(K$2+ (('coded NOLH for 17-22 factors'!K12-1)*(K$3-K$2) )/128, K$4 ) -> 28 | L13: =ROUND(L$2+ (('coded NOLH for 17-22 factors'!L12-1)*(L$3-L$2) )/128, L$4 ) -> 64 | M13: =ROUND(M$2+ (('coded NOLH for 17-22 factors'!M12-1)*(M$3-M$2) )/128, M$4 ) -> 12 | N13: =ROUND(N$2+ (('coded NOLH for 17-22 factors'!N12-1)*(N$3-N$2) )/128, N$4 ) -> 22 | O13: =ROUND(O$2+ (('coded NOLH for 17-22 factors'!O12-1)*(O$3-O$2) )/128, O$4 ) -> 37 | P13: =ROUND(P$2+ (('coded NOLH for 17-22 factors'!P12-1)*(P$3-P$2) )/128, P$4 ) -> 44 | Q13: =ROUND(Q$2+ (('coded NOLH for 17-22 factors'!Q12-1)*(Q$3-Q$2) )/128, Q$4 ) -> 56 | R13: =ROUND(R$2+ (('coded NOLH for 17-22 factors'!R12-1)*(R$3-R$2) )/128, R$4 ) -> 61 | S13: =ROUND(S$2+ (('coded NOLH for 17-22 factors'!S12-1)*(S$3-S$2) )/128, S$4 ) -> 13 | T13: =ROUND(T$2+ (('coded NOLH for 17-22 factors'!T12-1)*(T$3-T$2) )/128, T$4 ) -> 125 | U13: =ROUND(U$2+ (('coded NOLH for 17-22 factors'!U12-1)*(U$3-U$2) )/128, U$4 ) -> 75 | V13: =ROUND(V$2+ (('coded NOLH for 17-22 factors'!V12-1)*(V$3-V$2) )/128, V$4 ) -> 3 | W13: =ROUND(W$2+ (('coded NOLH for 17-22 factors'!W12-1)*(W$3-W$2) )/128, W$4 ) -> 79
B14: =ROUND(B$2+ (('coded NOLH for 17-22 factors'!B13-1)*(B$3-B$2) )/128, B$4 ) -> 4 | C14: =ROUND(C$2+ (('coded NOLH for 17-22 factors'!C13-1)*(C$3-C$2) )/128, C$4 ) -> 7 | D14: =ROUND(D$2+ (('coded NOLH for 17-22 factors'!D13-1)*(D$3-D$2) )/128, D$4 ) -> 34 | E14: =ROUND(E$2+ (('coded NOLH for 17-22 factors'!E13-1)*(E$3-E$2) )/128, E$4 ) -> 27 | F14: =ROUND(F$2+ (('coded NOLH for 17-22 factors'!F13-1)*(F$3-F$2) )/128, F$4 ) -> 26 | G14: =ROUND(G$2+ (('coded NOLH for 17-22 factors'!G13-1)*(G$3-G$2) )/128, G$4 ) -> 126 | H14: =ROUND(H$2+ (('coded NOLH for 17-22 factors'!H13-1)*(H$3-H$2) )/128, H$4 ) -> 94 | I14: =ROUND(I$2+ (('coded NOLH for 17-22 factors'!I13-1)*(I$3-I$2) )/128, I$4 ) -> 56 | J14: =ROUND(J$2+ (('coded NOLH for 17-22 factors'!J13-1)*(J$3-J$2) )/128, J$4 ) -> 94 | K14: =ROUND(K$2+ (('coded NOLH for 17-22 factors'!K13-1)*(K$3-K$2) )/128, K$4 ) -> 110 | L14: =ROUND(L$2+ (('coded NOLH for 17-22 factors'!L13-1)*(L$3-L$2) )/128, L$4 ) -> 96 | M14: =ROUND(M$2+ (('coded NOLH for 17-22 factors'!M13-1)*(M$3-M$2) )/128, M$4 ) -> 36 | N14: =ROUND(N$2+ (('coded NOLH for 17-22 factors'!N13-1)*(N$3-N$2) )/128, N$4 ) -> 77 | O14: =ROUND(O$2+ (('coded NOLH for 17-22 factors'!O13-1)*(O$3-O$2) )/128, O$4 ) -> 34 | P14: =ROUND(P$2+ (('coded NOLH for 17-22 factors'!P13-1)*(P$3-P$2) )/128, P$4 ) -> 122 | Q14: =ROUND(Q$2+ (('coded NOLH for 17-22 factors'!Q13-1)*(Q$3-Q$2) )/128, Q$4 ) -> 103 | R14: =ROUND(R$2+ (('coded NOLH for 17-22 factors'!R13-1)*(R$3-R$2) )/128, R$4 ) -> 101 | S14: =ROUND(S$2+ (('coded NOLH for 17-22 factors'!S13-1)*(S$3-S$2) )/128, S$4 ) -> 126 | T14: =ROUND(T$2+ (('coded NOLH for 17-22 factors'!T13-1)*(T$3-T$2) )/128, T$4 ) -> 43 | U14: =ROUND(U$2+ (('coded NOLH for 17-22 factors'!U13-1)*(U$3-U$2) )/128, U$4 ) -> 4 | V14: =ROUND(V$2+ (('coded NOLH for 17-22 factors'!V13-1)*(V$3-V$2) )/128, V$4 ) -> 79 | W14: =ROUND(W$2+ (('coded NOLH for 17-22 factors'!W13-1)*(W$3-W$2) )/128, W$4 ) -> 127
B15: =ROUND(B$2+ (('coded NOLH for 17-22 factors'!B14-1)*(B$3-B$2) )/128, B$4 ) -> 127 | C15: =ROUND(C$2+ (('coded NOLH for 17-22 factors'!C14-1)*(C$3-C$2) )/128, C$4 ) -> 11 | D15: =ROUND(D$2+ (('coded NOLH for 17-22 factors'!D14-1)*(D$3-D$2) )/128, D$4 ) -> 29 | E15: =ROUND(E$2+ (('coded NOLH for 17-22 factors'!E14-1)*(E$3-E$2) )/128, E$4 ) -> 35 | F15: =ROUND(F$2+ (('coded NOLH for 17-22 factors'!F14-1)*(F$3-F$2) )/128, F$4 ) -> 16 | G15: =ROUND(G$2+ (('coded NOLH for 17-22 factors'!G14-1)*(G$3-G$2) )/128, G$4 ) -> 14 | H15: =ROUND(H$2+ (('coded NOLH for 17-22 factors'!H14-1)*(H$3-H$2) )/128, H$4 ) -> 27 | I15: =ROUND(I$2+ (('coded NOLH for 17-22 factors'!I14-1)*(I$3-I$2) )/128, I$4 ) -> 71 | J15: =ROUND(J$2+ (('coded NOLH for 17-22 factors'!J14-1)*(J$3-J$2) )/128, J$4 ) -> 26 | K15: =ROUND(K$2+ (('coded NOLH for 17-22 factors'!K14-1)*(K$3-K$2) )/128, K$4 ) -> 19 | L15: =ROUND(L$2+ (('coded NOLH for 17-22 factors'!L14-1)*(L$3-L$2) )/128, L$4 ) -> 63 | M15: =ROUND(M$2+ (('coded NOLH for 17-22 factors'!M14-1)*(M$3-M$2) )/128, M$4 ) -> 18 | N15: =ROUND(N$2+ (('coded NOLH for 17-22 factors'!N14-1)*(N$3-N$2) )/128, N$4 ) -> 90 | O15: =ROUND(O$2+ (('coded NOLH for 17-22 factors'!O14-1)*(O$3-O$2) )/128, O$4 ) -> 16 | P15: =ROUND(P$2+ (('coded NOLH for 17-22 factors'!P14-1)*(P$3-P$2) )/128, P$4 ) -> 118 | Q15: =ROUND(Q$2+ (('coded NOLH for 17-22 factors'!Q14-1)*(Q$3-Q$2) )/128, Q$4 ) -> 59 | R15: =ROUND(R$2+ (('coded NOLH for 17-22 factors'!R14-1)*(R$3-R$2) )/128, R$4 ) -> 94 | S15: =ROUND(S$2+ (('coded NOLH for 17-22 factors'!S14-1)*(S$3-S$2) )/128, S$4 ) -> 90 | T15: =ROUND(T$2+ (('coded NOLH for 17-22 factors'!T14-1)*(T$3-T$2) )/128, T$4 ) -> 29 | U15: =ROUND(U$2+ (('coded NOLH for 17-22 factors'!U14-1)*(U$3-U$2) )/128, U$4 ) -> 48 | V15: =ROUND(V$2+ (('coded NOLH for 17-22 factors'!V14-1)*(V$3-V$2) )/128, V$4 ) -> 74 | W15: =ROUND(W$2+ (('coded NOLH for 17-22 factors'!W14-1)*(W$3-W$2) )/128, W$4 ) -> 126
B16: =ROUND(B$2+ (('coded NOLH for 17-22 factors'!B15-1)*(B$3-B$2) )/128, B$4 ) -> 7 | C16: =ROUND(C$2+ (('coded NOLH for 17-22 factors'!C15-1)*(C$3-C$2) )/128, C$4 ) -> 126 | D16: =ROUND(D$2+ (('coded NOLH for 17-22 factors'!D15-1)*(D$3-D$2) )/128, D$4 ) -> 62 | E16: =ROUND(E$2+ (('coded NOLH for 17-22 factors'!E15-1)*(E$3-E$2) )/128, E$4 ) -> 37 | F16: =ROUND(F$2+ (('coded NOLH for 17-22 factors'!F15-1)*(F$3-F$2) )/128, F$4 ) -> 41 | G16: =ROUND(G$2+ (('coded NOLH for 17-22 factors'!G15-1)*(G$3-G$2) )/128, G$4 ) -> 10 | H16: =ROUND(H$2+ (('coded NOLH for 17-22 factors'!H15-1)*(H$3-H$2) )/128, H$4 ) -> 100 | I16: =ROUND(I$2+ (('coded NOLH for 17-22 factors'!I15-1)*(I$3-I$2) )/128, I$4 ) -> 29 | J16: =ROUND(J$2+ (('coded NOLH for 17-22 factors'!J15-1)*(J$3-J$2) )/128, J$4 ) -> 80 | K16: =ROUND(K$2+ (('coded NOLH for 17-22 factors'!K15-1)*(K$3-K$2) )/128, K$4 ) -> 107 | L16: =ROUND(L$2+ (('coded NOLH for 17-22 factors'!L15-1)*(L$3-L$2) )/128, L$4 ) -> 22 | M16: =ROUND(M$2+ (('coded NOLH for 17-22 factors'!M15-1)*(M$3-M$2) )/128, M$4 ) -> 70 | N16: =ROUND(N$2+ (('coded NOLH for 17-22 factors'!N15-1)*(N$3-N$2) )/128, N$4 ) -> 36 | O16: =ROUND(O$2+ (('coded NOLH for 17-22 factors'!O15-1)*(O$3-O$2) )/128, O$4 ) -> 30 | P16: =ROUND(P$2+ (('coded NOLH for 17-22 factors'!P15-1)*(P$3-P$2) )/128, P$4 ) -> 97 | Q16: =ROUND(Q$2+ (('coded NOLH for 17-22 factors'!Q15-1)*(Q$3-Q$2) )/128, Q$4 ) -> 121 | R16: =ROUND(R$2+ (('coded NOLH for 17-22 factors'!R15-1)*(R$3-R$2) )/128, R$4 ) -> 93 | S16: =ROUND(S$2+ (('coded NOLH for 17-22 factors'!S15-1)*(S$3-S$2) )/128, S$4 ) -> 28 | T16: =ROUND(T$2+ (('coded NOLH for 17-22 factors'!T15-1)*(T$3-T$2) )/128, T$4 ) -> 39 | U16: =ROUND(U$2+ (('coded NOLH for 17-22 factors'!U15-1)*(U$3-U$2) )/128, U$4 ) -> 1 | V16: =ROUND(V$2+ (('coded NOLH for 17-22 factors'!V15-1)*(V$3-V$2) )/128, V$4 ) -> 129 | W16: =ROUND(W$2+ (('coded NOLH for 17-22 factors'!W15-1)*(W$3-W$2) )/128, W$4 ) -> 119
B17: =ROUND(B$2+ (('coded NOLH for 17-22 factors'!B16-1)*(B$3-B$2) )/128, B$4 ) -> 119 | C17: =ROUND(C$2+ (('coded NOLH for 17-22 factors'!C16-1)*(C$3-C$2) )/128, C$4 ) -> 127 | D17: =ROUND(D$2+ (('coded NOLH for 17-22 factors'!D16-1)*(D$3-D$2) )/128, D$4 ) -> 33 | E17: =ROUND(E$2+ (('coded NOLH for 17-22 factors'!E16-1)*(E$3-E$2) )/128, E$4 ) -> 50 | F17: =ROUND(F$2+ (('coded NOLH for 17-22 factors'!F16-1)*(F$3-F$2) )/128, F$4 ) -> 19 | G17: =ROUND(G$2+ (('coded NOLH for 17-22 factors'!G16-1)*(G$3-G$2) )/128, G$4 ) -> 129 | H17: =ROUND(H$2+ (('coded NOLH for 17-22 factors'!H16-1)*(H$3-H$2) )/128, H$4 ) -> 66 | I17: =ROUND(I$2+ (('coded NOLH for 17-22 factors'!I16-1)*(I$3-I$2) )/128, I$4 ) -> 117 | J17: =ROUND(J$2+ (('coded NOLH for 17-22 factors'!J16-1)*(J$3-J$2) )/128, J$4 ) -> 37 | K17: =ROUND(K$2+ (('coded NOLH for 17-22 factors'!K16-1)*(K$3-K$2) )/128, K$4 ) -> 41 | L17: =ROUND(L$2+ (('coded NOLH for 17-22 factors'!L16-1)*(L$3-L$2) )/128, L$4 ) -> 32 | M17: =ROUND(M$2+ (('coded NOLH for 17-22 factors'!M16-1)*(M$3-M$2) )/128, M$4 ) -> 87 | N17: =ROUND(N$2+ (('coded NOLH for 17-22 factors'!N16-1)*(N$3-N$2) )/128, N$4 ) -> 33 | O17: =ROUND(O$2+ (('coded NOLH for 17-22 factors'!O16-1)*(O$3-O$2) )/128, O$4 ) -> 57 | P17: =ROUND(P$2+ (('coded NOLH for 17-22 factors'!P16-1)*(P$3-P$2) )/128, P$4 ) -> 109 | Q17: =ROUND(Q$2+ (('coded NOLH for 17-22 factors'!Q16-1)*(Q$3-Q$2) )/128, Q$4 ) -> 70 | R17: =ROUND(R$2+ (('coded NOLH for 17-22 factors'!R16-1)*(R$3-R$2) )/128, R$4 ) -> 76 | S17: =ROUND(S$2+ (('coded NOLH for 17-22 factors'!S16-1)*(S$3-S$2) )/128, S$4 ) -> 26 | T17: =ROUND(T$2+ (('coded NOLH for 17-22 factors'!T16-1)*(T$3-T$2) )/128, T$4 ) -> 26 | U17: =ROUND(U$2+ (('coded NOLH for 17-22 factors'!U16-1)*(U$3-U$2) )/128, U$4 ) -> 9 | V17: =ROUND(V$2+ (('coded NOLH for 17-22 factors'!V16-1)*(V$3-V$2) )/128, V$4 ) -> 91 | W17: =ROUND(W$2+ (('coded NOLH for 17-22 factors'!W16-1)*(W$3-W$2) )/128, W$4 ) -> 123
B18: =ROUND(B$2+ (('coded NOLH for 17-22 factors'!B17-1)*(B$3-B$2) )/128, B$4 ) -> 62 | C18: =ROUND(C$2+ (('coded NOLH for 17-22 factors'!C17-1)*(C$3-C$2) )/128, C$4 ) -> 34 | D18: =ROUND(D$2+ (('coded NOLH for 17-22 factors'!D17-1)*(D$3-D$2) )/128, D$4 ) -> 123 | E18: =ROUND(E$2+ (('coded NOLH for 17-22 factors'!E17-1)*(E$3-E$2) )/128, E$4 ) -> 24 | F18: =ROUND(F$2+ (('coded NOLH for 17-22 factors'!F17-1)*(F$3-F$2) )/128, F$4 ) -> 53 | G18: =ROUND(G$2+ (('coded NOLH for 17-22 factors'!G17-1)*(G$3-G$2) )/128, G$4 ) -> 93 | H18: =ROUND(H$2+ (('coded NOLH for 17-22 factors'!H17-1)*(H$3-H$2) )/128, H$4 ) -> 7 | I18: =ROUND(I$2+ (('coded NOLH for 17-22 factors'!I17-1)*(I$3-I$2) )/128, I$4 ) -> 47 | J18: =ROUND(J$2+ (('coded NOLH for 17-22 factors'!J17-1)*(J$3-J$2) )/128, J$4 ) -> 85 | K18: =ROUND(K$2+ (('coded NOLH for 17-22 factors'!K17-1)*(K$3-K$2) )/128, K$4 ) -> 115 | L18: =ROUND(L$2+ (('coded NOLH for 17-22 factors'!L17-1)*(L$3-L$2) )/128, L$4 ) -> 2 | M18: =ROUND(M$2+ (('coded NOLH for 17-22 factors'!M17-1)*(M$3-M$2) )/128, M$4 ) -> 28 | N18: =ROUND(N$2+ (('coded NOLH for 17-22 factors'!N17-1)*(N$3-N$2) )/128, N$4 ) -> 117 | O18: =ROUND(O$2+ (('coded NOLH for 17-22 factors'!O17-1)*(O$3-O$2) )/128, O$4 ) -> 94 | P18: =ROUND(P$2+ (('coded NOLH for 17-22 factors'!P17-1)*(P$3-P$2) )/128, P$4 ) -> 42 | Q18: =ROUND(Q$2+ (('coded NOLH for 17-22 factors'!Q17-1)*(Q$3-Q$2) )/128, Q$4 ) -> 15 | R18: =ROUND(R$2+ (('coded NOLH for 17-22 factors'!R17-1)*(R$3-R$2) )/128, R$4 ) -> 99 | S18: =ROUND(S$2+ (('coded NOLH for 17-22 factors'!S17-1)*(S$3-S$2) )/128, S$4 ) -> 107 | T18: =ROUND(T$2+ (('coded NOLH for 17-22 factors'!T17-1)*(T$3-T$2) )/128, T$4 ) -> 60 | U18: =ROUND(U$2+ (('coded NOLH for 17-22 factors'!U17-1)*(U$3-U$2) )/128, U$4 ) -> 62 | V18: =ROUND(V$2+ (('coded NOLH for 17-22 factors'!V17-1)*(V$3-V$2) )/128, V$4 ) -> 72 | W18: =ROUND(W$2+ (('coded NOLH for 17-22 factors'!W17-1)*(W$3-W$2) )/128, W$4 ) -> 97
B19: =ROUND(B$2+ (('coded NOLH for 17-22 factors'!B18-1)*(B$3-B$2) )/128, B$4 ) -> 97 | C19: =ROUND(C$2+ (('coded NOLH for 17-22 factors'!C18-1)*(C$3-C$2) )/128, C$4 ) -> 29 | D19: =ROUND(D$2+ (('coded NOLH for 17-22 factors'!D18-1)*(D$3-D$2) )/128, D$4 ) -> 119 | E19: =ROUND(E$2+ (('coded NOLH for 17-22 factors'!E18-1)*(E$3-E$2) )/128, E$4 ) -> 46 | F19: =ROUND(F$2+ (('coded NOLH for 17-22 factors'!F18-1)*(F$3-F$2) )/128, F$4 ) -> 12 | G19: =ROUND(G$2+ (('coded NOLH for 17-22 factors'!G18-1)*(G$3-G$2) )/128, G$4 ) -> 31 | H19: =ROUND(H$2+ (('coded NOLH for 17-22 factors'!H18-1)*(H$3-H$2) )/128, H$4 ) -> 118 | I19: =ROUND(I$2+ (('coded NOLH for 17-22 factors'!I18-1)*(I$3-I$2) )/128, I$4 ) -> 70 | J19: =ROUND(J$2+ (('coded NOLH for 17-22 factors'!J18-1)*(J$3-J$2) )/128, J$4 ) -> 27 | K19: =ROUND(K$2+ (('coded NOLH for 17-22 factors'!K18-1)*(K$3-K$2) )/128, K$4 ) -> 51 | L19: =ROUND(L$2+ (('coded NOLH for 17-22 factors'!L18-1)*(L$3-L$2) )/128, L$4 ) -> 3 | M19: =ROUND(M$2+ (('coded NOLH for 17-22 factors'!M18-1)*(M$3-M$2) )/128, M$4 ) -> 42 | N19: =ROUND(N$2+ (('coded NOLH for 17-22 factors'!N18-1)*(N$3-N$2) )/128, N$4 ) -> 109 | O19: =ROUND(O$2+ (('coded NOLH for 17-22 factors'!O18-1)*(O$3-O$2) )/128, O$4 ) -> 121 | P19: =ROUND(P$2+ (('coded NOLH for 17-22 factors'!P18-1)*(P$3-P$2) )/128, P$4 ) -> 47 | Q19: =ROUND(Q$2+ (('coded NOLH for 17-22 factors'!Q18-1)*(Q$3-Q$2) )/128, Q$4 ) -> 28 | R19: =ROUND(R$2+ (('coded NOLH for 17-22 factors'!R18-1)*(R$3-R$2) )/128, R$4 ) -> 87 | S19: =ROUND(S$2+ (('coded NOLH for 17-22 factors'!S18-1)*(S$3-S$2) )/128, S$4 ) -> 63 | T19: =ROUND(T$2+ (('coded NOLH for 17-22 factors'!T18-1)*(T$3-T$2) )/128, T$4 ) -> 64 | U19: =ROUND(U$2+ (('coded NOLH for 17-22 factors'!U18-1)*(U$3-U$2) )/128, U$4 ) -> 32 | V19: =ROUND(V$2+ (('coded NOLH for 17-22 factors'!V18-1)*(V$3-V$2) )/128, V$4 ) -> 90 | W19: =ROUND(W$2+ (('coded NOLH for 17-22 factors'!W18-1)*(W$3-W$2) )/128, W$4 ) -> 68
B20: =ROUND(B$2+ (('coded NOLH for 17-22 factors'!B19-1)*(B$3-B$2) )/128, B$4 ) -> 34 | C20: =ROUND(C$2+ (('coded NOLH for 17-22 factors'!C19-1)*(C$3-C$2) )/128, C$4 ) -> 68 | D20: =ROUND(D$2+ (('coded NOLH for 17-22 factors'!D19-1)*(D$3-D$2) )/128, D$4 ) -> 126 | E20: =ROUND(E$2+ (('coded NOLH for 17-22 factors'!E19-1)*(E$3-E$2) )/128, E$4 ) -> 30 | F20: =ROUND(F$2+ (('coded NOLH for 17-22 factors'!F19-1)*(F$3-F$2) )/128, F$4 ) -> 61 | G20: =ROUND(G$2+ (('coded NOLH for 17-22 factors'!G19-1)*(G$3-G$2) )/128, G$4 ) -> 28 | H20: =ROUND(H$2+ (('coded NOLH for 17-22 factors'!H19-1)*(H$3-H$2) )/128, H$4 ) -> 5 | I20: =ROUND(I$2+ (('coded NOLH for 17-22 factors'!I19-1)*(I$3-I$2) )/128, I$4 ) -> 19 | J20: =ROUND(J$2+ (('coded NOLH for 17-22 factors'!J19-1)*(J$3-J$2) )/128, J$4 ) -> 127 | K20: =ROUND(K$2+ (('coded NOLH for 17-22 factors'!K19-1)*(K$3-K$2) )/128, K$4 ) -> 104 | L20: =ROUND(L$2+ (('coded NOLH for 17-22 factors'!L19-1)*(L$3-L$2) )/128, L$4 ) -> 109 | M20: =ROUND(M$2+ (('coded NOLH for 17-22 factors'!M19-1)*(M$3-M$2) )/128, M$4 ) -> 97 | N20: =ROUND(N$2+ (('coded NOLH for 17-22 factors'!N19-1)*(N$3-N$2) )/128, N$4 ) -> 31 | O20: =ROUND(O$2+ (('coded NOLH for 17-22 factors'!O19-1)*(O$3-O$2) )/128, O$4 ) -> 68 | P20: =ROUND(P$2+ (('coded NOLH for 17-22 factors'!P19-1)*(P$3-P$2) )/128, P$4 ) -> 39 | Q20: =ROUND(Q$2+ (('coded NOLH for 17-22 factors'!Q19-1)*(Q$3-Q$2) )/128, Q$4 ) -> 10 | R20: =ROUND(R$2+ (('coded NOLH for 17-22 factors'!R19-1)*(R$3-R$2) )/128, R$4 ) -> 81 | S20: =ROUND(S$2+ (('coded NOLH for 17-22 factors'!S19-1)*(S$3-S$2) )/128, S$4 ) -> 15 | T20: =ROUND(T$2+ (('coded NOLH for 17-22 factors'!T19-1)*(T$3-T$2) )/128, T$4 ) -> 19 | U20: =ROUND(U$2+ (('coded NOLH for 17-22 factors'!U19-1)*(U$3-U$2) )/128, U$4 ) -> 60 | V20: =ROUND(V$2+ (('coded NOLH for 17-22 factors'!V19-1)*(V$3-V$2) )/128, V$4 ) -> 98 | W20: =ROUND(W$2+ (('coded NOLH for 17-22 factors'!W19-1)*(W$3-W$2) )/128, W$4 ) -> 101
B21: =ROUND(B$2+ (('coded NOLH for 17-22 factors'!B20-1)*(B$3-B$2) )/128, B$4 ) -> 101 | C21: =ROUND(C$2+ (('coded NOLH for 17-22 factors'!C20-1)*(C$3-C$2) )/128, C$4 ) -> 97 | D21: =ROUND(D$2+ (('coded NOLH for 17-22 factors'!D20-1)*(D$3-D$2) )/128, D$4 ) -> 127 | E21: =ROUND(E$2+ (('coded NOLH for 17-22 factors'!E20-1)*(E$3-E$2) )/128, E$4 ) -> 5 | F21: =ROUND(F$2+ (('coded NOLH for 17-22 factors'!F20-1)*(F$3-F$2) )/128, F$4 ) -> 23 | G21: =ROUND(G$2+ (('coded NOLH for 17-22 factors'!G20-1)*(G$3-G$2) )/128, G$4 ) -> 67 | H21: =ROUND(H$2+ (('coded NOLH for 17-22 factors'!H20-1)*(H$3-H$2) )/128, H$4 ) -> 126 | I21: =ROUND(I$2+ (('coded NOLH for 17-22 factors'!I20-1)*(I$3-I$2) )/128, I$4 ) -> 94 | J21: =ROUND(J$2+ (('coded NOLH for 17-22 factors'!J20-1)*(J$3-J$2) )/128, J$4 ) -> 32 | K21: =ROUND(K$2+ (('coded NOLH for 17-22 factors'!K20-1)*(K$3-K$2) )/128, K$4 ) -> 55 | L21: =ROUND(L$2+ (('coded NOLH for 17-22 factors'!L20-1)*(L$3-L$2) )/128, L$4 ) -> 124 | M21: =ROUND(M$2+ (('coded NOLH for 17-22 factors'!M20-1)*(M$3-M$2) )/128, M$4 ) -> 80 | N21: =ROUND(N$2+ (('coded NOLH for 17-22 factors'!N20-1)*(N$3-N$2) )/128, N$4 ) -> 43 | O21: =ROUND(O$2+ (('coded NOLH for 17-22 factors'!O20-1)*(O$3-O$2) )/128, O$4 ) -> 76 | P21: =ROUND(P$2+ (('coded NOLH for 17-22 factors'!P20-1)*(P$3-P$2) )/128, P$4 ) -> 34 | Q21: =ROUND(Q$2+ (('coded NOLH for 17-22 factors'!Q20-1)*(Q$3-Q$2) )/128, Q$4 ) -> 12 | R21: =ROUND(R$2+ (('coded NOLH for 17-22 factors'!R20-1)*(R$3-R$2) )/128, R$4 ) -> 127 | S21: =ROUND(S$2+ (('coded NOLH for 17-22 factors'!S20-1)*(S$3-S$2) )/128, S$4 ) -> 49 | T21: =ROUND(T$2+ (('coded NOLH for 17-22 factors'!T20-1)*(T$3-T$2) )/128, T$4 ) -> 74 | U21: =ROUND(U$2+ (('coded NOLH for 17-22 factors'!U20-1)*(U$3-U$2) )/128, U$4 ) -> 37 | V21: =ROUND(V$2+ (('coded NOLH for 17-22 factors'!V20-1)*(V$3-V$2) )/128, V$4 ) -> 115 | W21: =ROUND(W$2+ (('coded NOLH for 17-22 factors'!W20-1)*(W$3-W$2) )/128, W$4 ) -> 96
B22: =ROUND(B$2+ (('coded NOLH for 17-22 factors'!B21-1)*(B$3-B$2) )/128, B$4 ) -> 30 | C22: =ROUND(C$2+ (('coded NOLH for 17-22 factors'!C21-1)*(C$3-C$2) )/128, C$4 ) -> 24 | D22: =ROUND(D$2+ (('coded NOLH for 17-22 factors'!D21-1)*(D$3-D$2) )/128, D$4 ) -> 27 | E22: =ROUND(E$2+ (('coded NOLH for 17-22 factors'!E21-1)*(E$3-E$2) )/128, E$4 ) -> 96 | F22: =ROUND(F$2+ (('coded NOLH for 17-22 factors'!F21-1)*(F$3-F$2) )/128, F$4 ) -> 6 | G22: =ROUND(G$2+ (('coded NOLH for 17-22 factors'!G21-1)*(G$3-G$2) )/128, G$4 ) -> 90 | H22: =ROUND(H$2+ (('coded NOLH for 17-22 factors'!H21-1)*(H$3-H$2) )/128, H$4 ) -> 89 | I22: =ROUND(I$2+ (('coded NOLH for 17-22 factors'!I21-1)*(I$3-I$2) )/128, I$4 ) -> 64 | J22: =ROUND(J$2+ (('coded NOLH for 17-22 factors'!J21-1)*(J$3-J$2) )/128, J$4 ) -> 28 | K22: =ROUND(K$2+ (('coded NOLH for 17-22 factors'!K21-1)*(K$3-K$2) )/128, K$4 ) -> 77 | L22: =ROUND(L$2+ (('coded NOLH for 17-22 factors'!L21-1)*(L$3-L$2) )/128, L$4 ) -> 81 | M22: =ROUND(M$2+ (('coded NOLH for 17-22 factors'!M21-1)*(M$3-M$2) )/128, M$4 ) -> 78 | N22: =ROUND(N$2+ (('coded NOLH for 17-22 factors'!N21-1)*(N$3-N$2) )/128, N$4 ) -> 27 | O22: =ROUND(O$2+ (('coded NOLH for 17-22 factors'!O21-1)*(O$3-O$2) )/128, O$4 ) -> 128 | P22: =ROUND(P$2+ (('coded NOLH for 17-22 factors'!P21-1)*(P$3-P$2) )/128, P$4 ) -> 6 | Q22: =ROUND(Q$2+ (('coded NOLH for 17-22 factors'!Q21-1)*(Q$3-Q$2) )/128, Q$4 ) -> 101 | R22: =ROUND(R$2+ (('coded NOLH for 17-22 factors'!R21-1)*(R$3-R$2) )/128, R$4 ) -> 10 | S22: =ROUND(S$2+ (('coded NOLH for 17-22 factors'!S21-1)*(S$3-S$2) )/128, S$4 ) -> 116 | T22: =ROUND(T$2+ (('coded NOLH for 17-22 factors'!T21-1)*(T$3-T$2) )/128, T$4 ) -> 107 | U22: =ROUND(U$2+ (('coded NOLH for 17-22 factors'!U21-1)*(U$3-U$2) )/128, U$4 ) -> 10 | V22: =ROUND(V$2+ (('coded NOLH for 17-22 factors'!V21-1)*(V$3-V$2) )/128, V$4 ) -> 59 | W22: =ROUND(W$2+ (('coded NOLH for 17-22 factors'!W21-1)*(W$3-W$2) )/128, W$4 ) -> 125
B23: =ROUND(B$2+ (('coded NOLH for 17-22 factors'!B22-1)*(B$3-B$2) )/128, B$4 ) -> 125 | C23: =ROUND(C$2+ (('coded NOLH for 17-22 factors'!C22-1)*(C$3-C$2) )/128, C$4 ) -> 46 | D23: =ROUND(D$2+ (('coded NOLH for 17-22 factors'!D22-1)*(D$3-D$2) )/128, D$4 ) -> 35 | E23: =ROUND(E$2+ (('coded NOLH for 17-22 factors'!E22-1)*(E$3-E$2) )/128, E$4 ) -> 101 | F23: =ROUND(F$2+ (('coded NOLH for 17-22 factors'!F22-1)*(F$3-F$2) )/128, F$4 ) -> 55 | G23: =ROUND(G$2+ (('coded NOLH for 17-22 factors'!G22-1)*(G$3-G$2) )/128, G$4 ) -> 26 | H23: =ROUND(H$2+ (('coded NOLH for 17-22 factors'!H22-1)*(H$3-H$2) )/128, H$4 ) -> 20 | I23: =ROUND(I$2+ (('coded NOLH for 17-22 factors'!I22-1)*(I$3-I$2) )/128, I$4 ) -> 62 | J23: =ROUND(J$2+ (('coded NOLH for 17-22 factors'!J22-1)*(J$3-J$2) )/128, J$4 ) -> 96 | K23: =ROUND(K$2+ (('coded NOLH for 17-22 factors'!K22-1)*(K$3-K$2) )/128, K$4 ) -> 6 | L23: =ROUND(L$2+ (('coded NOLH for 17-22 factors'!L22-1)*(L$3-L$2) )/128, L$4 ) -> 77 | M23: =ROUND(M$2+ (('coded NOLH for 17-22 factors'!M22-1)*(M$3-M$2) )/128, M$4 ) -> 93 | N23: =ROUND(N$2+ (('coded NOLH for 17-22 factors'!N22-1)*(N$3-N$2) )/128, N$4 ) -> 57 | O23: =ROUND(O$2+ (('coded NOLH for 17-22 factors'!O22-1)*(O$3-O$2) )/128, O$4 ) -> 80 | P23: =ROUND(P$2+ (('coded NOLH for 17-22 factors'!P22-1)*(P$3-P$2) )/128, P$4 ) -> 11 | Q23: =ROUND(Q$2+ (('coded NOLH for 17-22 factors'!Q22-1)*(Q$3-Q$2) )/128, Q$4 ) -> 88 | R23: =ROUND(R$2+ (('coded NOLH for 17-22 factors'!R22-1)*(R$3-R$2) )/128, R$4 ) -> 62 | S23: =ROUND(S$2+ (('coded NOLH for 17-22 factors'!S22-1)*(S$3-S$2) )/128, S$4 ) -> 100 | T23: =ROUND(T$2+ (('coded NOLH for 17-22 factors'!T22-1)*(T$3-T$2) )/128, T$4 ) -> 123 | U23: =ROUND(U$2+ (('coded NOLH for 17-22 factors'!U22-1)*(U$3-U$2) )/128, U$4 ) -> 39 | V23: =ROUND(V$2+ (('coded NOLH for 17-22 factors'!V22-1)*(V$3-V$2) )/128, V$4 ) -> 60 | W23: =ROUND(W$2+ (('coded NOLH for 17-22 factors'!W22-1)*(W$3-W$2) )/128, W$4 ) -> 100
B24: =ROUND(B$2+ (('coded NOLH for 17-22 factors'!B23-1)*(B$3-B$2) )/128, B$4 ) -> 24 | C24: =ROUND(C$2+ (('coded NOLH for 17-22 factors'!C23-1)*(C$3-C$2) )/128, C$4 ) -> 100 | D24: =ROUND(D$2+ (('coded NOLH for 17-22 factors'!D23-1)*(D$3-D$2) )/128, D$4 ) -> 37 | E24: =ROUND(E$2+ (('coded NOLH for 17-22 factors'!E23-1)*(E$3-E$2) )/128, E$4 ) -> 68 | F24: =ROUND(F$2+ (('coded NOLH for 17-22 factors'!F23-1)*(F$3-F$2) )/128, F$4 ) -> 28 | G24: =ROUND(G$2+ (('coded NOLH for 17-22 factors'!G23-1)*(G$3-G$2) )/128, G$4 ) -> 5 | H24: =ROUND(H$2+ (('coded NOLH for 17-22 factors'!H23-1)*(H$3-H$2) )/128, H$4 ) -> 88 | I24: =ROUND(I$2+ (('coded NOLH for 17-22 factors'!I23-1)*(I$3-I$2) )/128, I$4 ) -> 69 | J24: =ROUND(J$2+ (('coded NOLH for 17-22 factors'!J23-1)*(J$3-J$2) )/128, J$4 ) -> 31 | K24: =ROUND(K$2+ (('coded NOLH for 17-22 factors'!K23-1)*(K$3-K$2) )/128, K$4 ) -> 119 | L24: =ROUND(L$2+ (('coded NOLH for 17-22 factors'!L23-1)*(L$3-L$2) )/128, L$4 ) -> 41 | M24: =ROUND(M$2+ (('coded NOLH for 17-22 factors'!M23-1)*(M$3-M$2) )/128, M$4 ) -> 63 | N24: =ROUND(N$2+ (('coded NOLH for 17-22 factors'!N23-1)*(N$3-N$2) )/128, N$4 ) -> 92 | O24: =ROUND(O$2+ (('coded NOLH for 17-22 factors'!O23-1)*(O$3-O$2) )/128, O$4 ) -> 124 | P24: =ROUND(P$2+ (('coded NOLH for 17-22 factors'!P23-1)*(P$3-P$2) )/128, P$4 ) -> 9 | Q24: =ROUND(Q$2+ (('coded NOLH for 17-22 factors'!Q23-1)*(Q$3-Q$2) )/128, Q$4 ) -> 87 | R24: =ROUND(R$2+ (('coded NOLH for 17-22 factors'!R23-1)*(R$3-R$2) )/128, R$4 ) -> 8 | S24: =ROUND(S$2+ (('coded NOLH for 17-22 factors'!S23-1)*(S$3-S$2) )/128, S$4 ) -> 54 | T24: =ROUND(T$2+ (('coded NOLH for 17-22 factors'!T23-1)*(T$3-T$2) )/128, T$4 ) -> 50 | U24: =ROUND(U$2+ (('coded NOLH for 17-22 factors'!U23-1)*(U$3-U$2) )/128, U$4 ) -> 41 | V24: =ROUND(V$2+ (('coded NOLH for 17-22 factors'!V23-1)*(V$3-V$2) )/128, V$4 ) -> 36 | W24: =ROUND(W$2+ (('coded NOLH for 17-22 factors'!W23-1)*(W$3-W$2) )/128, W$4 ) -> 84
B25: =ROUND(B$2+ (('coded NOLH for 17-22 factors'!B24-1)*(B$3-B$2) )/128, B$4 ) -> 84 | C25: =ROUND(C$2+ (('coded NOLH for 17-22 factors'!C24-1)*(C$3-C$2) )/128, C$4 ) -> 125 | D25: =ROUND(D$2+ (('coded NOLH for 17-22 factors'!D24-1)*(D$3-D$2) )/128, D$4 ) -> 50 | E25: =ROUND(E$2+ (('coded NOLH for 17-22 factors'!E24-1)*(E$3-E$2) )/128, E$4 ) -> 97 | F25: =ROUND(F$2+ (('coded NOLH for 17-22 factors'!F24-1)*(F$3-F$2) )/128, F$4 ) -> 17 | G25: =ROUND(G$2+ (('coded NOLH for 17-22 factors'!G24-1)*(G$3-G$2) )/128, G$4 ) -> 103 | H25: =ROUND(H$2+ (('coded NOLH for 17-22 factors'!H24-1)*(H$3-H$2) )/128, H$4 ) -> 45 | I25: =ROUND(I$2+ (('coded NOLH for 17-22 factors'!I24-1)*(I$3-I$2) )/128, I$4 ) -> 21 | J25: =ROUND(J$2+ (('coded NOLH for 17-22 factors'!J24-1)*(J$3-J$2) )/128, J$4 ) -> 70 | K25: =ROUND(K$2+ (('coded NOLH for 17-22 factors'!K24-1)*(K$3-K$2) )/128, K$4 ) -> 32 | L25: =ROUND(L$2+ (('coded NOLH for 17-22 factors'!L24-1)*(L$3-L$2) )/128, L$4 ) -> 8 | M25: =ROUND(M$2+ (('coded NOLH for 17-22 factors'!M24-1)*(M$3-M$2) )/128, M$4 ) -> 61 | N25: =ROUND(N$2+ (('coded NOLH for 17-22 factors'!N24-1)*(N$3-N$2) )/128, N$4 ) -> 85 | O25: =ROUND(O$2+ (('coded NOLH for 17-22 factors'!O24-1)*(O$3-O$2) )/128, O$4 ) -> 79 | P25: =ROUND(P$2+ (('coded NOLH for 17-22 factors'!P24-1)*(P$3-P$2) )/128, P$4 ) -> 3 | Q25: =ROUND(Q$2+ (('coded NOLH for 17-22 factors'!Q24-1)*(Q$3-Q$2) )/128, Q$4 ) -> 78 | R25: =ROUND(R$2+ (('coded NOLH for 17-22 factors'!R24-1)*(R$3-R$2) )/128, R$4 ) -> 47 | S25: =ROUND(S$2+ (('coded NOLH for 17-22 factors'!S24-1)*(S$3-S$2) )/128, S$4 ) -> 7 | T25: =ROUND(T$2+ (('coded NOLH for 17-22 factors'!T24-1)*(T$3-T$2) )/128, T$4 ) -> 67 | U25: =ROUND(U$2+ (('coded NOLH for 17-22 factors'!U24-1)*(U$3-U$2) )/128, U$4 ) -> 31 | V25: =ROUND(V$2+ (('coded NOLH for 17-22 factors'!V24-1)*(V$3-V$2) )/128, V$4 ) -> 48 | W25: =ROUND(W$2+ (('coded NOLH for 17-22 factors'!W24-1)*(W$3-W$2) )/128, W$4 ) -> 106
B26: =ROUND(B$2+ (('coded NOLH for 17-22 factors'!B25-1)*(B$3-B$2) )/128, B$4 ) -> 37 | C26: =ROUND(C$2+ (('coded NOLH for 17-22 factors'!C25-1)*(C$3-C$2) )/128, C$4 ) -> 27 | D26: =ROUND(D$2+ (('coded NOLH for 17-22 factors'!D25-1)*(D$3-D$2) )/128, D$4 ) -> 106 | E26: =ROUND(E$2+ (('coded NOLH for 17-22 factors'!E25-1)*(E$3-E$2) )/128, E$4 ) -> 123 | F26: =ROUND(F$2+ (('coded NOLH for 17-22 factors'!F25-1)*(F$3-F$2) )/128, F$4 ) -> 64 | G26: =ROUND(G$2+ (('coded NOLH for 17-22 factors'!G25-1)*(G$3-G$2) )/128, G$4 ) -> 86 | H26: =ROUND(H$2+ (('coded NOLH for 17-22 factors'!H25-1)*(H$3-H$2) )/128, H$4 ) -> 40 | I26: =ROUND(I$2+ (('coded NOLH for 17-22 factors'!I25-1)*(I$3-I$2) )/128, I$4 ) -> 129 | J26: =ROUND(J$2+ (('coded NOLH for 17-22 factors'!J25-1)*(J$3-J$2) )/128, J$4 ) -> 14 | K26: =ROUND(K$2+ (('coded NOLH for 17-22 factors'!K25-1)*(K$3-K$2) )/128, K$4 ) -> 83 | L26: =ROUND(L$2+ (('coded NOLH for 17-22 factors'!L25-1)*(L$3-L$2) )/128, L$4 ) -> 23 | M26: =ROUND(M$2+ (('coded NOLH for 17-22 factors'!M25-1)*(M$3-M$2) )/128, M$4 ) -> 126 | N26: =ROUND(N$2+ (('coded NOLH for 17-22 factors'!N25-1)*(N$3-N$2) )/128, N$4 ) -> 3 | O26: =ROUND(O$2+ (('coded NOLH for 17-22 factors'!O25-1)*(O$3-O$2) )/128, O$4 ) -> 59 | P26: =ROUND(P$2+ (('coded NOLH for 17-22 factors'!P25-1)*(P$3-P$2) )/128, P$4 ) -> 106 | Q26: =ROUND(Q$2+ (('coded NOLH for 17-22 factors'!Q25-1)*(Q$3-Q$2) )/128, Q$4 ) -> 11 | R26: =ROUND(R$2+ (('coded NOLH for 17-22 factors'!R25-1)*(R$3-R$2) )/128, R$4 ) -> 15 | S26: =ROUND(S$2+ (('coded NOLH for 17-22 factors'!S25-1)*(S$3-S$2) )/128, S$4 ) -> 86 | T26: =ROUND(T$2+ (('coded NOLH for 17-22 factors'!T25-1)*(T$3-T$2) )/128, T$4 ) -> 128 | U26: =ROUND(U$2+ (('coded NOLH for 17-22 factors'!U25-1)*(U$3-U$2) )/128, U$4 ) -> 50 | V26: =ROUND(V$2+ (('coded NOLH for 17-22 factors'!V25-1)*(V$3-V$2) )/128, V$4 ) -> 31 | W26: =ROUND(W$2+ (('coded NOLH for 17-22 factors'!W25-1)*(W$3-W$2) )/128, W$4 ) -> 80
B27: =ROUND(B$2+ (('coded NOLH for 17-22 factors'!B26-1)*(B$3-B$2) )/128, B$4 ) -> 80 | C27: =ROUND(C$2+ (('coded NOLH for 17-22 factors'!C26-1)*(C$3-C$2) )/128, C$4 ) -> 35 | D27: =ROUND(D$2+ (('coded NOLH for 17-22 factors'!D26-1)*(D$3-D$2) )/128, D$4 ) -> 84 | E27: =ROUND(E$2+ (('coded NOLH for 17-22 factors'!E26-1)*(E$3-E$2) )/128, E$4 ) -> 119 | F27: =ROUND(F$2+ (('coded NOLH for 17-22 factors'!F26-1)*(F$3-F$2) )/128, F$4 ) -> 49 | G27: =ROUND(G$2+ (('coded NOLH for 17-22 factors'!G26-1)*(G$3-G$2) )/128, G$4 ) -> 17 | H27: =ROUND(H$2+ (('coded NOLH for 17-22 factors'!H26-1)*(H$3-H$2) )/128, H$4 ) -> 111 | I27: =ROUND(I$2+ (('coded NOLH for 17-22 factors'!I26-1)*(I$3-I$2) )/128, I$4 ) -> 35 | J27: =ROUND(J$2+ (('coded NOLH for 17-22 factors'!J26-1)*(J$3-J$2) )/128, J$4 ) -> 125 | K27: =ROUND(K$2+ (('coded NOLH for 17-22 factors'!K26-1)*(K$3-K$2) )/128, K$4 ) -> 73 | L27: =ROUND(L$2+ (('coded NOLH for 17-22 factors'!L26-1)*(L$3-L$2) )/128, L$4 ) -> 7 | M27: =ROUND(M$2+ (('coded NOLH for 17-22 factors'!M26-1)*(M$3-M$2) )/128, M$4 ) -> 75 | N27: =ROUND(N$2+ (('coded NOLH for 17-22 factors'!N26-1)*(N$3-N$2) )/128, N$4 ) -> 2 | O27: =ROUND(O$2+ (('coded NOLH for 17-22 factors'!O26-1)*(O$3-O$2) )/128, O$4 ) -> 17 | P27: =ROUND(P$2+ (('coded NOLH for 17-22 factors'!P26-1)*(P$3-P$2) )/128, P$4 ) -> 71 | Q27: =ROUND(Q$2+ (('coded NOLH for 17-22 factors'!Q26-1)*(Q$3-Q$2) )/128, Q$4 ) -> 49 | R27: =ROUND(R$2+ (('coded NOLH for 17-22 factors'!R26-1)*(R$3-R$2) )/128, R$4 ) -> 23 | S27: =ROUND(S$2+ (('coded NOLH for 17-22 factors'!S26-1)*(S$3-S$2) )/128, S$4 ) -> 80 | T27: =ROUND(T$2+ (('coded NOLH for 17-22 factors'!T26-1)*(T$3-T$2) )/128, T$4 ) -> 113 | U27: =ROUND(U$2+ (('coded NOLH for 17-22 factors'!U26-1)*(U$3-U$2) )/128, U$4 ) -> 8 | V27: =ROUND(V$2+ (('coded NOLH for 17-22 factors'!V26-1)*(V$3-V$2) )/128, V$4 ) -> 2 | W27: =ROUND(W$2+ (('coded NOLH for 17-22 factors'!W26-1)*(W$3-W$2) )/128, W$4 ) -> 93
B28: =ROUND(B$2+ (('coded NOLH for 17-22 factors'!B27-1)*(B$3-B$2) )/128, B$4 ) -> 27 | C28: =ROUND(C$2+ (('coded NOLH for 17-22 factors'!C27-1)*(C$3-C$2) )/128, C$4 ) -> 93 | D28: =ROUND(D$2+ (('coded NOLH for 17-22 factors'!D27-1)*(D$3-D$2) )/128, D$4 ) -> 100 | E28: =ROUND(E$2+ (('coded NOLH for 17-22 factors'!E27-1)*(E$3-E$2) )/128, E$4 ) -> 126 | F28: =ROUND(F$2+ (('coded NOLH for 17-22 factors'!F27-1)*(F$3-F$2) )/128, F$4 ) -> 43 | G28: =ROUND(G$2+ (('coded NOLH for 17-22 factors'!G27-1)*(G$3-G$2) )/128, G$4 ) -> 45 | H28: =ROUND(H$2+ (('coded NOLH for 17-22 factors'!H27-1)*(H$3-H$2) )/128, H$4 ) -> 8 | I28: =ROUND(I$2+ (('coded NOLH for 17-22 factors'!I27-1)*(I$3-I$2) )/128, I$4 ) -> 122 | J28: =ROUND(J$2+ (('coded NOLH for 17-22 factors'!J27-1)*(J$3-J$2) )/128, J$4 ) -> 7 | K28: =ROUND(K$2+ (('coded NOLH for 17-22 factors'!K27-1)*(K$3-K$2) )/128, K$4 ) -> 113 | L28: =ROUND(L$2+ (('coded NOLH for 17-22 factors'!L27-1)*(L$3-L$2) )/128, L$4 ) -> 104 | M28: =ROUND(M$2+ (('coded NOLH for 17-22 factors'!M27-1)*(M$3-M$2) )/128, M$4 ) -> 6 | N28: =ROUND(N$2+ (('coded NOLH for 17-22 factors'!N27-1)*(N$3-N$2) )/128, N$4 ) -> 116 | O28: =ROUND(O$2+ (('coded NOLH for 17-22 factors'!O27-1)*(O$3-O$2) )/128, O$4 ) -> 52 | P28: =ROUND(P$2+ (('coded NOLH for 17-22 factors'!P27-1)*(P$3-P$2) )/128, P$4 ) -> 103 | Q28: =ROUND(Q$2+ (('coded NOLH for 17-22 factors'!Q27-1)*(Q$3-Q$2) )/128, Q$4 ) -> 69 | R28: =ROUND(R$2+ (('coded NOLH for 17-22 factors'!R27-1)*(R$3-R$2) )/128, R$4 ) -> 22 | S28: =ROUND(S$2+ (('coded NOLH for 17-22 factors'!S27-1)*(S$3-S$2) )/128, S$4 ) -> 33 | T28: =ROUND(T$2+ (('coded NOLH for 17-22 factors'!T27-1)*(T$3-T$2) )/128, T$4 ) -> 105 | U28: =ROUND(U$2+ (('coded NOLH for 17-22 factors'!U27-1)*(U$3-U$2) )/128, U$4 ) -> 51 | V28: =ROUND(V$2+ (('coded NOLH for 17-22 factors'!V27-1)*(V$3-V$2) )/128, V$4 ) -> 38 | W28: =ROUND(W$2+ (('coded NOLH for 17-22 factors'!W27-1)*(W$3-W$2) )/128, W$4 ) -> 95
B29: =ROUND(B$2+ (('coded NOLH for 17-22 factors'!B28-1)*(B$3-B$2) )/128, B$4 ) -> 95 | C29: =ROUND(C$2+ (('coded NOLH for 17-22 factors'!C28-1)*(C$3-C$2) )/128, C$4 ) -> 80 | D29: =ROUND(D$2+ (('coded NOLH for 17-22 factors'!D28-1)*(D$3-D$2) )/128, D$4 ) -> 125 | E29: =ROUND(E$2+ (('coded NOLH for 17-22 factors'!E28-1)*(E$3-E$2) )/128, E$4 ) -> 127 | F29: =ROUND(F$2+ (('coded NOLH for 17-22 factors'!F28-1)*(F$3-F$2) )/128, F$4 ) -> 25 | G29: =ROUND(G$2+ (('coded NOLH for 17-22 factors'!G28-1)*(G$3-G$2) )/128, G$4 ) -> 81 | H29: =ROUND(H$2+ (('coded NOLH for 17-22 factors'!H28-1)*(H$3-H$2) )/128, H$4 ) -> 105 | I29: =ROUND(I$2+ (('coded NOLH for 17-22 factors'!I28-1)*(I$3-I$2) )/128, I$4 ) -> 37 | J29: =ROUND(J$2+ (('coded NOLH for 17-22 factors'!J28-1)*(J$3-J$2) )/128, J$4 ) -> 128 | K29: =ROUND(K$2+ (('coded NOLH for 17-22 factors'!K28-1)*(K$3-K$2) )/128, K$4 ) -> 52 | L29: =ROUND(L$2+ (('coded NOLH for 17-22 factors'!L28-1)*(L$3-L$2) )/128, L$4 ) -> 82 | M29: =ROUND(M$2+ (('coded NOLH for 17-22 factors'!M28-1)*(M$3-M$2) )/128, M$4 ) -> 17 | N29: =ROUND(N$2+ (('coded NOLH for 17-22 factors'!N28-1)*(N$3-N$2) )/128, N$4 ) -> 120 | O29: =ROUND(O$2+ (('coded NOLH for 17-22 factors'!O28-1)*(O$3-O$2) )/128, O$4 ) -> 38 | P29: =ROUND(P$2+ (('coded NOLH for 17-22 factors'!P28-1)*(P$3-P$2) )/128, P$4 ) -> 85 | Q29: =ROUND(Q$2+ (('coded NOLH for 17-22 factors'!Q28-1)*(Q$3-Q$2) )/128, Q$4 ) -> 32 | R29: =ROUND(R$2+ (('coded NOLH for 17-22 factors'!R28-1)*(R$3-R$2) )/128, R$4 ) -> 4 | S29: =ROUND(S$2+ (('coded NOLH for 17-22 factors'!S28-1)*(S$3-S$2) )/128, S$4 ) -> 58 | T29: =ROUND(T$2+ (('coded NOLH for 17-22 factors'!T28-1)*(T$3-T$2) )/128, T$4 ) -> 83 | U29: =ROUND(U$2+ (('coded NOLH for 17-22 factors'!U28-1)*(U$3-U$2) )/128, U$4 ) -> 28 | V29: =ROUND(V$2+ (('coded NOLH for 17-22 factors'!V28-1)*(V$3-V$2) )/128, V$4 ) -> 9 | W29: =ROUND(W$2+ (('coded NOLH for 17-22 factors'!W28-1)*(W$3-W$2) )/128, W$4 ) -> 103
B30: =ROUND(B$2+ (('coded NOLH for 17-22 factors'!B29-1)*(B$3-B$2) )/128, B$4 ) -> 38 | C30: =ROUND(C$2+ (('coded NOLH for 17-22 factors'!C29-1)*(C$3-C$2) )/128, C$4 ) -> 31 | D30: =ROUND(D$2+ (('coded NOLH for 17-22 factors'!D29-1)*(D$3-D$2) )/128, D$4 ) -> 59 | E30: =ROUND(E$2+ (('coded NOLH for 17-22 factors'!E29-1)*(E$3-E$2) )/128, E$4 ) -> 79 | F30: =ROUND(F$2+ (('coded NOLH for 17-22 factors'!F29-1)*(F$3-F$2) )/128, F$4 ) -> 42 | G30: =ROUND(G$2+ (('coded NOLH for 17-22 factors'!G29-1)*(G$3-G$2) )/128, G$4 ) -> 128 | H30: =ROUND(H$2+ (('coded NOLH for 17-22 factors'!H29-1)*(H$3-H$2) )/128, H$4 ) -> 61 | I30: =ROUND(I$2+ (('coded NOLH for 17-22 factors'!I29-1)*(I$3-I$2) )/128, I$4 ) -> 34 | J30: =ROUND(J$2+ (('coded NOLH for 17-22 factors'!J29-1)*(J$3-J$2) )/128, J$4 ) -> 57 | K30: =ROUND(K$2+ (('coded NOLH for 17-22 factors'!K29-1)*(K$3-K$2) )/128, K$4 ) -> 106 | L30: =ROUND(L$2+ (('coded NOLH for 17-22 factors'!L29-1)*(L$3-L$2) )/128, L$4 ) -> 71 | M30: =ROUND(M$2+ (('coded NOLH for 17-22 factors'!M29-1)*(M$3-M$2) )/128, M$4 ) -> 56 | N30: =ROUND(N$2+ (('coded NOLH for 17-22 factors'!N29-1)*(N$3-N$2) )/128, N$4 ) -> 35 | O30: =ROUND(O$2+ (('coded NOLH for 17-22 factors'!O29-1)*(O$3-O$2) )/128, O$4 ) -> 14 | P30: =ROUND(P$2+ (('coded NOLH for 17-22 factors'!P29-1)*(P$3-P$2) )/128, P$4 ) -> 7 | Q30: =ROUND(Q$2+ (('coded NOLH for 17-22 factors'!Q29-1)*(Q$3-Q$2) )/128, Q$4 ) -> 107 | R30: =ROUND(R$2+ (('coded NOLH for 17-22 factors'!R29-1)*(R$3-R$2) )/128, R$4 ) -> 44 | S30: =ROUND(S$2+ (('coded NOLH for 17-22 factors'!S29-1)*(S$3-S$2) )/128, S$4 ) -> 118 | T30: =ROUND(T$2+ (('coded NOLH for 17-22 factors'!T29-1)*(T$3-T$2) )/128, T$4 ) -> 18 | U30: =ROUND(U$2+ (('coded NOLH for 17-22 factors'!U29-1)*(U$3-U$2) )/128, U$4 ) -> 119 | V30: =ROUND(V$2+ (('coded NOLH for 17-22 factors'!V29-1)*(V$3-V$2) )/128, V$4 ) -> 103 | W30: =ROUND(W$2+ (('coded NOLH for 17-22 factors'!W29-1)*(W$3-W$2) )/128, W$4 ) -> 121
B31: =ROUND(B$2+ (('coded NOLH for 17-22 factors'!B30-1)*(B$3-B$2) )/128, B$4 ) -> 121 | C31: =ROUND(C$2+ (('coded NOLH for 17-22 factors'!C30-1)*(C$3-C$2) )/128, C$4 ) -> 2 | D31: =ROUND(D$2+ (('coded NOLH for 17-22 factors'!D30-1)*(D$3-D$2) )/128, D$4 ) -> 60 | E31: =ROUND(E$2+ (('coded NOLH for 17-22 factors'!E30-1)*(E$3-E$2) )/128, E$4 ) -> 74 | F31: =ROUND(F$2+ (('coded NOLH for 17-22 factors'!F30-1)*(F$3-F$2) )/128, F$4 ) -> 20 | G31: =ROUND(G$2+ (('coded NOLH for 17-22 factors'!G30-1)*(G$3-G$2) )/128, G$4 ) -> 38 | H31: =ROUND(H$2+ (('coded NOLH for 17-22 factors'!H30-1)*(H$3-H$2) )/128, H$4 ) -> 50 | I31: =ROUND(I$2+ (('coded NOLH for 17-22 factors'!I30-1)*(I$3-I$2) )/128, I$4 ) -> 105 | J31: =ROUND(J$2+ (('coded NOLH for 17-22 factors'!J30-1)*(J$3-J$2) )/128, J$4 ) -> 81 | K31: =ROUND(K$2+ (('coded NOLH for 17-22 factors'!K30-1)*(K$3-K$2) )/128, K$4 ) -> 38 | L31: =ROUND(L$2+ (('coded NOLH for 17-22 factors'!L30-1)*(L$3-L$2) )/128, L$4 ) -> 85 | M31: =ROUND(M$2+ (('coded NOLH for 17-22 factors'!M30-1)*(M$3-M$2) )/128, M$4 ) -> 44 | N31: =ROUND(N$2+ (('coded NOLH for 17-22 factors'!N30-1)*(N$3-N$2) )/128, N$4 ) -> 4 | O31: =ROUND(O$2+ (('coded NOLH for 17-22 factors'!O30-1)*(O$3-O$2) )/128, O$4 ) -> 26 | P31: =ROUND(P$2+ (('coded NOLH for 17-22 factors'!P30-1)*(P$3-P$2) )/128, P$4 ) -> 49 | Q31: =ROUND(Q$2+ (('coded NOLH for 17-22 factors'!Q30-1)*(Q$3-Q$2) )/128, Q$4 ) -> 117 | R31: =ROUND(R$2+ (('coded NOLH for 17-22 factors'!R30-1)*(R$3-R$2) )/128, R$4 ) -> 20 | S31: =ROUND(S$2+ (('coded NOLH for 17-22 factors'!S30-1)*(S$3-S$2) )/128, S$4 ) -> 121 | T31: =ROUND(T$2+ (('coded NOLH for 17-22 factors'!T30-1)*(T$3-T$2) )/128, T$4 ) -> 49 | U31: =ROUND(U$2+ (('coded NOLH for 17-22 factors'!U30-1)*(U$3-U$2) )/128, U$4 ) -> 128 | V31: =ROUND(V$2+ (('coded NOLH for 17-22 factors'!V30-1)*(V$3-V$2) )/128, V$4 ) -> 95 | W31: =ROUND(W$2+ (('coded NOLH for 17-22 factors'!W30-1)*(W$3-W$2) )/128, W$4 ) -> 92
B32: =ROUND(B$2+ (('coded NOLH for 17-22 factors'!B31-1)*(B$3-B$2) )/128, B$4 ) -> 31 | C32: =ROUND(C$2+ (('coded NOLH for 17-22 factors'!C31-1)*(C$3-C$2) )/128, C$4 ) -> 92 | D32: =ROUND(D$2+ (('coded NOLH for 17-22 factors'!D31-1)*(D$3-D$2) )/128, D$4 ) -> 36 | E32: =ROUND(E$2+ (('coded NOLH for 17-22 factors'!E31-1)*(E$3-E$2) )/128, E$4 ) -> 129 | F32: =ROUND(F$2+ (('coded NOLH for 17-22 factors'!F31-1)*(F$3-F$2) )/128, F$4 ) -> 8 | G32: =ROUND(G$2+ (('coded NOLH for 17-22 factors'!G31-1)*(G$3-G$2) )/128, G$4 ) -> 16 | H32: =ROUND(H$2+ (('coded NOLH for 17-22 factors'!H31-1)*(H$3-H$2) )/128, H$4 ) -> 78 | I32: =ROUND(I$2+ (('coded NOLH for 17-22 factors'!I31-1)*(I$3-I$2) )/128, I$4 ) -> 40 | J32: =ROUND(J$2+ (('coded NOLH for 17-22 factors'!J31-1)*(J$3-J$2) )/128, J$4 ) -> 39 | K32: =ROUND(K$2+ (('coded NOLH for 17-22 factors'!K31-1)*(K$3-K$2) )/128, K$4 ) -> 108 | L32: =ROUND(L$2+ (('coded NOLH for 17-22 factors'!L31-1)*(L$3-L$2) )/128, L$4 ) -> 60 | M32: =ROUND(M$2+ (('coded NOLH for 17-22 factors'!M31-1)*(M$3-M$2) )/128, M$4 ) -> 91 | N32: =ROUND(N$2+ (('coded NOLH for 17-22 factors'!N31-1)*(N$3-N$2) )/128, N$4 ) -> 66 | O32: =ROUND(O$2+ (('coded NOLH for 17-22 factors'!O31-1)*(O$3-O$2) )/128, O$4 ) -> 23 | P32: =ROUND(P$2+ (('coded NOLH for 17-22 factors'!P31-1)*(P$3-P$2) )/128, P$4 ) -> 50 | Q32: =ROUND(Q$2+ (('coded NOLH for 17-22 factors'!Q31-1)*(Q$3-Q$2) )/128, Q$4 ) -> 75 | R32: =ROUND(R$2+ (('coded NOLH for 17-22 factors'!R31-1)*(R$3-R$2) )/128, R$4 ) -> 64 | S32: =ROUND(S$2+ (('coded NOLH for 17-22 factors'!S31-1)*(S$3-S$2) )/128, S$4 ) -> 18 | T32: =ROUND(T$2+ (('coded NOLH for 17-22 factors'!T31-1)*(T$3-T$2) )/128, T$4 ) -> 30 | U32: =ROUND(U$2+ (('coded NOLH for 17-22 factors'!U31-1)*(U$3-U$2) )/128, U$4 ) -> 112 | V32: =ROUND(V$2+ (('coded NOLH for 17-22 factors'!V31-1)*(V$3-V$2) )/128, V$4 ) -> 93 | W32: =ROUND(W$2+ (('coded NOLH for 17-22 factors'!W31-1)*(W$3-W$2) )/128, W$4 ) -> 128
B33: =ROUND(B$2+ (('coded NOLH for 17-22 factors'!B32-1)*(B$3-B$2) )/128, B$4 ) -> 128 | C33: =ROUND(C$2+ (('coded NOLH for 17-22 factors'!C32-1)*(C$3-C$2) )/128, C$4 ) -> 121 | D33: =ROUND(D$2+ (('coded NOLH for 17-22 factors'!D32-1)*(D$3-D$2) )/128, D$4 ) -> 48 | E33: =ROUND(E$2+ (('coded NOLH for 17-22 factors'!E32-1)*(E$3-E$2) )/128, E$4 ) -> 91 | F33: =ROUND(F$2+ (('coded NOLH for 17-22 factors'!F32-1)*(F$3-F$2) )/128, F$4 ) -> 22 | G33: =ROUND(G$2+ (('coded NOLH for 17-22 factors'!G32-1)*(G$3-G$2) )/128, G$4 ) -> 97 | H33: =ROUND(H$2+ (('coded NOLH for 17-22 factors'!H32-1)*(H$3-H$2) )/128, H$4 ) -> 37 | I33: =ROUND(I$2+ (('coded NOLH for 17-22 factors'!I32-1)*(I$3-I$2) )/128, I$4 ) -> 76 | J33: =ROUND(J$2+ (('coded NOLH for 17-22 factors'!J32-1)*(J$3-J$2) )/128, J$4 ) -> 126 | K33: =ROUND(K$2+ (('coded NOLH for 17-22 factors'!K32-1)*(K$3-K$2) )/128, K$4 ) -> 8 | L33: =ROUND(L$2+ (('coded NOLH for 17-22 factors'!L32-1)*(L$3-L$2) )/128, L$4 ) -> 38 | M33: =ROUND(M$2+ (('coded NOLH for 17-22 factors'!M32-1)*(M$3-M$2) )/128, M$4 ) -> 105 | N33: =ROUND(N$2+ (('coded NOLH for 17-22 factors'!N32-1)*(N$3-N$2) )/128, N$4 ) -> 79 | O33: =ROUND(O$2+ (('coded NOLH for 17-22 factors'!O32-1)*(O$3-O$2) )/128, O$4 ) -> 5 | P33: =ROUND(P$2+ (('coded NOLH for 17-22 factors'!P32-1)*(P$3-P$2) )/128, P$4 ) -> 66 | Q33: =ROUND(Q$2+ (('coded NOLH for 17-22 factors'!Q32-1)*(Q$3-Q$2) )/128, Q$4 ) -> 92 | R33: =ROUND(R$2+ (('coded NOLH for 17-22 factors'!R32-1)*(R$3-R$2) )/128, R$4 ) -> 28 | S33: =ROUND(S$2+ (('coded NOLH for 17-22 factors'!S32-1)*(S$3-S$2) )/128, S$4 ) -> 41 | T33: =ROUND(T$2+ (('coded NOLH for 17-22 factors'!T32-1)*(T$3-T$2) )/128, T$4 ) -> 57 | U33: =ROUND(U$2+ (('coded NOLH for 17-22 factors'!U32-1)*(U$3-U$2) )/128, U$4 ) -> 107 | V33: =ROUND(V$2+ (('coded NOLH for 17-22 factors'!V32-1)*(V$3-V$2) )/128, V$4 ) -> 80 | W33: =ROUND(W$2+ (('coded NOLH for 17-22 factors'!W32-1)*(W$3-W$2) )/128, W$4 ) -> 99
B34: =ROUND(B$2+ (('coded NOLH for 17-22 factors'!B33-1)*(B$3-B$2) )/128, B$4 ) -> 36 | C34: =ROUND(C$2+ (('coded NOLH for 17-22 factors'!C33-1)*(C$3-C$2) )/128, C$4 ) -> 59 | D34: =ROUND(D$2+ (('coded NOLH for 17-22 factors'!D33-1)*(D$3-D$2) )/128, D$4 ) -> 99 | E34: =ROUND(E$2+ (('coded NOLH for 17-22 factors'!E33-1)*(E$3-E$2) )/128, E$4 ) -> 72 | F34: =ROUND(F$2+ (('coded NOLH for 17-22 factors'!F33-1)*(F$3-F$2) )/128, F$4 ) -> 47 | G34: =ROUND(G$2+ (('coded NOLH for 17-22 factors'!G33-1)*(G$3-G$2) )/128, G$4 ) -> 70 | H34: =ROUND(H$2+ (('coded NOLH for 17-22 factors'!H33-1)*(H$3-H$2) )/128, H$4 ) -> 1 | I34: =ROUND(I$2+ (('coded NOLH for 17-22 factors'!I33-1)*(I$3-I$2) )/128, I$4 ) -> 49 | J34: =ROUND(J$2+ (('coded NOLH for 17-22 factors'!J33-1)*(J$3-J$2) )/128, J$4 ) -> 41 | K34: =ROUND(K$2+ (('coded NOLH for 17-22 factors'!K33-1)*(K$3-K$2) )/128, K$4 ) -> 61 | L34: =ROUND(L$2+ (('coded NOLH for 17-22 factors'!L33-1)*(L$3-L$2) )/128, L$4 ) -> 5 | M34: =ROUND(M$2+ (('coded NOLH for 17-22 factors'!M33-1)*(M$3-M$2) )/128, M$4 ) -> 10 | N34: =ROUND(N$2+ (('coded NOLH for 17-22 factors'!N33-1)*(N$3-N$2) )/128, N$4 ) -> 5 | O34: =ROUND(O$2+ (('coded NOLH for 17-22 factors'!O33-1)*(O$3-O$2) )/128, O$4 ) -> 87 | P34: =ROUND(P$2+ (('coded NOLH for 17-22 factors'!P33-1)*(P$3-P$2) )/128, P$4 ) -> 99 | Q34: =ROUND(Q$2+ (('coded NOLH for 17-22 factors'!Q33-1)*(Q$3-Q$2) )/128, Q$4 ) -> 17 | R34: =ROUND(R$2+ (('coded NOLH for 17-22 factors'!R33-1)*(R$3-R$2) )/128, R$4 ) -> 57 | S34: =ROUND(S$2+ (('coded NOLH for 17-22 factors'!S33-1)*(S$3-S$2) )/128, S$4 ) -> 114 | T34: =ROUND(T$2+ (('coded NOLH for 17-22 factors'!T33-1)*(T$3-T$2) )/128, T$4 ) -> 11 | U34: =ROUND(U$2+ (('coded NOLH for 17-22 factors'!U33-1)*(U$3-U$2) )/128, U$4 ) -> 109 | V34: =ROUND(V$2+ (('coded NOLH for 17-22 factors'!V33-1)*(V$3-V$2) )/128, V$4 ) -> 106 | W34: =ROUND(W$2+ (('coded NOLH for 17-22 factors'!W33-1)*(W$3-W$2) )/128, W$4 ) -> 82
B35: =ROUND(B$2+ (('coded NOLH for 17-22 factors'!B34-1)*(B$3-B$2) )/128, B$4 ) -> 82 | C35: =ROUND(C$2+ (('coded NOLH for 17-22 factors'!C34-1)*(C$3-C$2) )/128, C$4 ) -> 60 | D35: =ROUND(D$2+ (('coded NOLH for 17-22 factors'!D34-1)*(D$3-D$2) )/128, D$4 ) -> 128 | E35: =ROUND(E$2+ (('coded NOLH for 17-22 factors'!E34-1)*(E$3-E$2) )/128, E$4 ) -> 90 | F35: =ROUND(F$2+ (('coded NOLH for 17-22 factors'!F34-1)*(F$3-F$2) )/128, F$4 ) -> 63 | G35: =ROUND(G$2+ (('coded NOLH for 17-22 factors'!G34-1)*(G$3-G$2) )/128, G$4 ) -> 55 | H35: =ROUND(H$2+ (('coded NOLH for 17-22 factors'!H34-1)*(H$3-H$2) )/128, H$4 ) -> 96 | I35: =ROUND(I$2+ (('coded NOLH for 17-22 factors'!I34-1)*(I$3-I$2) )/128, I$4 ) -> 118 | J35: =ROUND(J$2+ (('coded NOLH for 17-22 factors'!J34-1)*(J$3-J$2) )/128, J$4 ) -> 74 | K35: =ROUND(K$2+ (('coded NOLH for 17-22 factors'!K34-1)*(K$3-K$2) )/128, K$4 ) -> 46 | L35: =ROUND(L$2+ (('coded NOLH for 17-22 factors'!L34-1)*(L$3-L$2) )/128, L$4 ) -> 40 | M35: =ROUND(M$2+ (('coded NOLH for 17-22 factors'!M34-1)*(M$3-M$2) )/128, M$4 ) -> 20 | N35: =ROUND(N$2+ (('coded NOLH for 17-22 factors'!N34-1)*(N$3-N$2) )/128, N$4 ) -> 48 | O35: =ROUND(O$2+ (('coded NOLH for 17-22 factors'!O34-1)*(O$3-O$2) )/128, O$4 ) -> 91 | P35: =ROUND(P$2+ (('coded NOLH for 17-22 factors'!P34-1)*(P$3-P$2) )/128, P$4 ) -> 129 | Q35: =ROUND(Q$2+ (('coded NOLH for 17-22 factors'!Q34-1)*(Q$3-Q$2) )/128, Q$4 ) -> 6 | R35: =ROUND(R$2+ (('coded NOLH for 17-22 factors'!R34-1)*(R$3-R$2) )/128, R$4 ) -> 46 | S35: =ROUND(S$2+ (('coded NOLH for 17-22 factors'!S34-1)*(S$3-S$2) )/128, S$4 ) -> 108 | T35: =ROUND(T$2+ (('coded NOLH for 17-22 factors'!T34-1)*(T$3-T$2) )/128, T$4 ) -> 41 | U35: =ROUND(U$2+ (('coded NOLH for 17-22 factors'!U34-1)*(U$3-U$2) )/128, U$4 ) -> 71 | V35: =ROUND(V$2+ (('coded NOLH for 17-22 factors'!V34-1)*(V$3-V$2) )/128, V$4 ) -> 84 | W35: =ROUND(W$2+ (('coded NOLH for 17-22 factors'!W34-1)*(W$3-W$2) )/128, W$4 ) -> 94
